Workbook

Sheet 表紙
A7: 福井県市町勢要覧
A11: 令和６年度版
A45: 福井県未来創造部統計調査課

Sheet ご利用の方へ
A1: 令和６年度版 | B1: ご利用の方へ
A2: 1 | B2: 「市町勢要覧」は、人口をはじめ、様々な分野にわたる基礎的なデータを市町別に編集し、個々の市勢町勢および | D2: 4 統計表中の符号の用法は次のとおりです。
B3: 地域ごとの県勢をわかりやすくとらえられる資料として整理したものです。 | D3: 「－」…該当数値なし
A4: 2 | B4: 数値の単位未満は四捨五入を原則としていますので、総数と内訳の合計が一致しない場合があります。 | D4: 「０」…単位未満
A5: 3 | B5: 各項目は「福井県統計年鑑」に準拠して並べています。 | D5: 「ｘ」…１つの事業所の値しかないなど、事業所に関する数が判明する箇所を秘匿としたもの
D6: 「…」…事業所に関する集計において、事業所単位の売上（収入）金額の把握ができない産業
D7: 5 資料出所および留意事項は次のとおりです。
A9: 分 類 | B9: 項 目 | C9: 資 料 の 出 所 | D9: 調査時点 | E9: 留意事項
A10: １．土 地 | B10: 総面積 | C10: 令和6年全国都道府県市区町村別面積調 | D10: 6.10.1
C11: （国土交通省国土地理院）
B12: 町・丁・大字区画数 | C12: 市町資料 | D12: 5.4.1 | G12: 照会
B13: 固定資産概要調書による地目別面積 | C13: 固定資産概要調書（県税務課） | D13: 6.1.1 | E13: 道路河川を除く非課税地を含めた面積 | G13: 年鑑
E14: 住居表示指定区域内は住居表示の町名
A15: ２．世帯数と人口 | B15: 世帯数、人口、一世帯当たり人員、人口密度 | C15: 国勢調査 | D15: 昭和60年､平成2､7､12､17､22､27､令和2年 | E15: 市町村合併のあった市町については、平成17年以降の人口密度のみを計上した。
C16: 福井県の推計人口（県統計調査課） | D16: 6.10.1
B17: 年齢階級別人口 | C17: 〃 | D17: 6.10.1
B18: 人口動態 | C18: 〃 | D18: 5.10.1～6.9.30 | G18: 人口G
B19: 婚姻、離婚 | C19: 県地域福祉課 | D19: 5.1.1～5.12.31 | G19: 年鑑
A20: ３．事 業 所 | B20: 事業所数、従業者数 | C20: 経済センサス‐活動調査 | D20: 3.6.1 | E20: 調査は、国・地方公共団体、外国公務の事業所、農林漁業、家事ｻｰﾋﾞｽに属する個人経営の事業所を除く。
A21: ４．農 業 | B21: 農業経営体数（総数）と就業状況 | C21: 2020農林業センサス | D21: 2.2.1 | E21: 2020年農林業センサス調査対象 | G21: 経済G
B22: 米収穫量 | C22: 北陸農政局 | D22: 5年 | E22: 面積・頭数が一定規模以上（外形基準）の農林業生産活動を行う方（組織の場合は代表者）を対象とする。
B23: 耕地面積 | C23: 〃 | D23: 5.7.15 | G23: 年鑑
B24: 農業生産物 | C24: 〃 | D24: 5年産
B25: 畜産 | C25: 県中山間農業・畜産課 | D25: 6.3.31 | G25: 年鑑
A26: ５．林 業 | B26: 林野面積 | C26: 県森づくり課 | D26: 5.3.31 | G26: 年鑑
B27: 林産物生産量 | C27: 〃 | D27: 5年中 | G27: 年鑑
A28: ６．漁 業 | B28: 漁船隻数・トン数 | C28: 県水産課 | D28: 5.12.31 | E28: エンジンの取り付け場所がわからないジーゼル船は動力船、電気点火式は船外機付漁船に計上した。
B29: 男女別就業者数 | C29: 2023年漁業センサス | D29: 5.11.1 | E29: 市町別の総数のみ掲載している。 | G29: 照会
B30: 海面漁業漁獲量（属人） | C30: 北陸農政局 | D30: 30年中 | E30: 内水面漁業、海面養殖業を除く。 | G30: 照会
A31: ７．商 業 | B31: 事業所数、従業者数、年間商品販売額 | C31: 経済センサス‐活動調査 | D31: 3.6.1(令和2年実績） | E31: 調査は、民営の事業所を対象とした。事業所、従業員数はR3.6.1現在、年間商品販売額はR2年1年間の値。
E32: ただし年間商品販売額には個人経営を含まない。
A33: ８．住 宅 | C33: 市町村固定資産課税台帳（市町資料） | D33: 5年 | E33: 共同住宅、併用住宅については、独立して生活できる部分を一戸として計上した。
E34: （ただし坂井市のみ戸数の把握が困難なため棟数で計上している。）
A35: ９．議 員・職 員 | B35: 市町議会 | C35: 市町資料 | D35: 6.8.1 | G35: 照会
B36: 有権者数 | C36: 選挙人名簿登録者（県選挙管理委員会） | D36: 6.9.1
B37: 職員数 | C37: 県市町協働課 | D37: 6.4.1 | G37: 照会
A38: 10．工 業 | B38: 事業所数、従業者数、製造品出荷額等 | C38: 福井県の工業（令和4年（2022年）経済構造実態調査 | D38: 4.6.1（令和3年実績） | E38: 従業者４人以上の事業所。事業所、従業員数はR4.6.1現在、製造品出荷額等はR3年1年間の値。 | G38: 年鑑
C39: 製造業に関する結果報告書）（県統計調査課） | E39: 「経済センサス－活動調査」および「工業統計調査」とは集計範囲等が異なるため、
E40: 令和３年以前の値と単純比較できない。
A41: 11．上・下 水 道 | B41: 水道供給人口 | C41: 県医薬食品・衛生課 | D41: 6.3.31
B42: 下水道処理人口 | C42: 県河川課 | D42: 6.3.31
A43: 12．交 通・通 信 | B43: 道路 | C43: 県道路保全課 | D43: 5.4.1 | G43: 年鑑
B44: 鉄道営業キロ数 | C44: 福井鉄道㈱、えちぜん鉄道㈱ | D44: 6.4.1 | G44: 照会
B45: 自動車台数 | C45: 中部運輸局福井運輸支局 | D45: 6.3.31 | E45: 町不明の車両は県計に一括計上した。 | G45: 年鑑
B46: 通信（郵便局数） | C46: 日本郵便㈱ | D46: 6.3.31 | G46: 照会
B47: 〃（一般加入電話数） | C47: 西日本電信電話㈱－北陸 | D47: 6.3.31 | G47: 年鑑
B48: 〃（ＩＮＳネット加入数） | C48: 〃 | D48: 6.3.31 | G48: 照会
A49: 13．税 ･ 財 政 | B49: 歳入歳出当初予算額 | C49: 〃 | D49: 6年度 | G49: 年鑑
B50: 歳入歳出決算額 | C50: 〃 | D50: 5年度 | G50: 照会
A51: 14．文 化 | B51: 公共施設数 | C51: 図書館・公民館(県生涯学習・文化財課) | D51: 6.4.1 | E51: 県の図書館数・図書数は県立図書館、若狭図書学習センターの分 | G51: 照会
C52: 公園(県都市計画課) | D52: 6.3.31 | E52: 都市公園の箇所数
C53: 児童館(県こども未来課) | D53: 6.4.1 | G53: 年鑑
C54: 公会堂・市民会館（県市町協働課） | D54: 6.3.31 | G54: 照会
B55: 社会教育学級講座 | C55: 県生涯学習・文化財課 | D55: 6.4.1 | E55: 青少年、成人、女性、高齢者、家庭教育、その他の学級・講座の合計 | G55: 年鑑
B56: 宗教法人数 | C56: 県情報公開・法制課 | D56: 5.12.31 | G56: 市町財政要覧
B57: 衛星放送契約数 | C57: 日本放送協会 | D57: 6.3.31 | G57: 年鑑
A58: 15．労 働 | B58: 産業別就業者数 | C58: 国勢調査 | D58: 2.10.1 | G58: 照会
A59: 16．社 会 福 祉 | B59: 施設数、収容定員 | C59: 県地域福祉課 | D59: 6.4.1 | G59: 年鑑
A60: 17．教 育 | B60: 学校数、教員数、学生・生徒・児童・園児数 | C60: 学校基本調査 | D60: 6.5.1 | E60: 福井大学松岡キャンパス・永平寺キャンパス・敦賀キャンパスは本校に、福井県立大学
C61: （大学・短大・高専の教員数、学生数は直接照会した。） | E61: 小浜キャンパス・あわらキャンパス・かつみキャンパスは分校に計上した。
E62: 各市町の小学校・中学校の教員数および児童・生徒数は公立学校分のみを計上した。
E63: 各市町の幼稚園の園数、教員数および園児数は公立・私立分のみ計上した。
E64: ただし、県計は国立、公立、私立学校の合計である。
A65: 18．衛 生 | B65: 医療関係施設数 | C65: 県地域医療課 | D65: 5.10.1 | E65: 医療関係者については、就業届出による。
B66: 医療関係者数 | C66: 〃 | D66: 4.12.31 | E66: 看護師には准看護師を含む。
B67: 死因別死亡数 | C67: 県地域福祉課 | D67: 5年中 | E67: 交通事故の数は不慮の事故の内数。 | G67: 年鑑
A68: 19．警 察・消 防 | B68: 警察署数、交番・駐在所・検問所数 | C68: 県警察本部警務課 | D68: 6.4.1 | G68: 年鑑
B69: 刑法犯認知件数・刑法犯検挙件数 | C69: 県警察本部捜査第一課 | D69: 5年中 | E69: 発生地不明の認知件数・検挙件数は県計に一括計上した。 | G69: 照会
B70: 交通人身事故発生件数 | C70: 県警察本部交通企画課 | D70: 5年中 | E70: 交通事故発生件数は人身事故の数。 | G70: 照会
B71: 火災発生件数、焼損棟数、林野焼損面積 | C71: 県消防保安課 | D71: 5年中
B72: 損害見積額 | C72: 〃 | D72: 5年中
B73: 消防自動車数、ポンプ数、消防吏員、消防団員数 | C73: 〃 | D73: 6.4.1 | E73: 消防本部等、複数の市町に跨っているものは市町ごとに按分している。 | G73: 年鑑、照会
A74: 20．そ の 他 | B74: 名所・旧跡、文化財等（福井県） | C74: 県生涯学習・文化財課 | G74: 年鑑
B75: 名所・旧跡、文化財等（市町） | C75: 市町資料
B76: 特産物、年中行事 | C76: 〃 | G76: 照会
A77: 欄 外 | B77: 市（町）章とそのいわれ | C77: 〃 | G77: 照会
B78: 位置および地勢 | C78: 〃 | G78: 照会
G79: 照会

Sheet 行政区画図（目次）
B1: （＊地図上の市町名または五十音順市町名を押すと該当市町のシートに、分野名を押すとデータ一覧の該当箇所に移動します。）
H2: （五十音順市町名） | L2: （分野別）
I3: 福井県 | L3: 1． | M3: 土 地
H4: あ行 | I4: あわら市 | L4: 2． | M4: 世帯数と人口
I5: 池田町 | J5: 今立郡 | L5: 3． | M5: 事 業 所
I6: 永平寺町 | J6: 吉田郡 | L6: 4． | M6: 農 業
I7: 越前市 | L7: 5． | M7: 林 業
I8: 越前町 | J8: 丹生郡 | L8: 6． | M8: 漁 業
I9: おおい町 | J9: 大飯郡 | L9: 7． | M9: 商 業
I10: 大野市 | L10: 8． | M10: 住 宅
I11: 小浜市 | L11: 9． | M11: 議員・職員
H12: か行 | I12: 勝山市 | L12: 10． | M12: 工 業
H13: さ行 | I13: 坂井市 | L13: 11． | M13: 上・下水道
I14: 鯖江市 | L14: 12． | M14: 交通･通信
H15: た行 | I15: 高浜町 | J15: 大飯郡 | L15: 13． | M15: 税・財 政
I16: 敦賀市 | L16: 14． | M16: 文 化
H17: は行 | I17: 福井市 | L17: 15． | M17: 労 働
H18: ま行 | I18: 南越前町 | J18: 南条郡 | L18: 16． | M18: 社会福祉
I19: 美浜町 | J19: 三方郡 | L19: 17． | M19: 教 育
H20: わ行 | I20: 若狭町 | J20: 三方上中郡 | L20: 18． | M20: 衛 生
L21: 19． | M21: 警察・消防
B29: ※令和7年3月31日現在の市町区分に合わせて、旧市町村のデータを合算している。

Sheet データ一覧
A2: データ一覧 | E2: かな | P2: よしだぐん | Q2: いまだてぐん | R2: なんじょうぐん | S2: にゅうぐん | T2: みかたぐん | U2: おおいぐん | V2: おおいぐん | W2: みかたかみなかぐん
F3: ふくいけん | G3: ふくいし | H3: つるがし | I3: おばまし | J3: おおのし | K3: かつやまし | L3: さばえし | M3: あわらし | N3: えちぜんし | O3: さかいし | P3: えいへいじちょう | Q3: いけだちょう | R3: みなみえちぜんちょう | S3: えちぜんちょう | T3: みはまちょう | U3: たかはまちょう | V3: おおいちょう | W3: わかさちょう
E5: 郡 | P5: 吉田郡 | Q5: 今立郡 | R5: 南条郡 | S5: 丹生郡 | T5: 三方郡 | U5: 大飯郡 | V5: 大飯郡 | W5: 三方上中郡
A6: 基準日 | B6: 分類 | E6: 市町村名 | F6: 福井県 | G6: 福井市 | H6: 敦賀市 | I6: 小浜市 | J6: 大野市 | K6: 勝山市 | L6: 鯖江市 | M6: あわら市 | N6: 越前市 | O6: 坂井市 | P6: 永平寺町 | Q6: 池田町 | R6: 南越前町 | S6: 越前町 | T6: 美浜町 | U6: 高浜町 | V6: おおい町 | W6: 若狭町
A7: 6.10.1 | B7: 1 土地 | C7: 総面積 | F7: 4190.57 | G7: 536.37 | H7: 251.47 | I7: 233.11 | J7: 872.43 | K7: 253.88 | L7: 84.59 | M7: 116.98 | N7: 230.7 | O7: 209.67 | P7: 94.43 | Q7: 194.65 | R7: 343.69 | S7: 153.15 | T7: 152.38 | U7: 72.4 | V7: 212.19 | W7: 178.49
A8: 5.4.1 | C8: 町・丁・大字区画数 | F8: 2758 | G8: 736 | H8: 158 | I8: 143 | J8: 207 | K8: 118 | L8: 153 | M8: 120 | N8: 253 | O8: 359 | P8: 93 | Q8: 47 | R8: 63 | S8: 99 | T8: 31 | U8: 54 | V8: 48 | W8: 76
A9: 6.1.1 | C9: 固定資産概要調書による地目別面積 | E9: 総数 | F9: 263073.7 | G9: 34945.8 | H9: 11236.1 | I9: 13510.6 | J9: 48581 | K9: 20781.9 | L9: 8459 | M9: 8984.2 | N9: 13161.4 | O9: 20331.6 | P9: 6157.6 | Q9: 6553.5 | R9: 13048.1 | S9: 10419.1 | T9: 15235 | U9: 7240 | V9: 11812.2 | W9: 12616.6
E10: うち田 | F10: 38913.7 | G10: 7785.9 | H10: 1285.9 | I10: 1474.9 | J10: 4181.5 | K10: 1899.8 | L10: 1992.6 | M10: 2669.7 | N10: 3667.6 | O10: 6033.1 | P10: 1014.8 | Q10: 556 | R10: 994.7 | S10: 1369 | T10: 918.8 | U10: 452.2 | V10: 686.2 | W10: 1931
E11: うち畑 | F11: 5379.4 | G11: 826.6 | H11: 251.1 | I11: 233.1 | J11: 218.8 | K11: 135.5 | L11: 120.2 | M11: 891.3 | N11: 330.2 | O11: 894.5 | P11: 87.3 | Q11: 116.9 | R11: 143.1 | S11: 298.9 | T11: 123.6 | U11: 158.2 | V11: 138.1 | W11: 412
E12: うち宅地 | F12: 17942.9 | G12: 4937.1 | H12: 1253 | I12: 659.6 | J12: 1021.4 | K12: 603.4 | L12: 1490.4 | M12: 878 | N12: 1971.3 | O12: 2415.2 | P12: 408.9 | Q12: 96.9 | R12: 284.1 | S12: 495.4 | T12: 284.9 | U12: 324.9 | V12: 287.7 | W12: 530.7
E13: うち山林 | F13: 100620.2 | G13: 17453.5 | H13: 4523.8 | I13: 7226.3 | J13: 12977 | K13: 9280.1 | L13: 1168.2 | M13: 2162.8 | N13: 4832.4 | O13: 5982.5 | P13: 4017.1 | Q13: 2521.8 | R13: 6125.4 | S13: 4563.8 | T13: 4178.1 | U13: 2242.7 | V13: 5968.2 | W13: 5396.5
E14: うち原野 | F14: 2535.8 | G14: 102.3 | H14: 219.3 | I14: 149.5 | J14: 670.4 | K14: 335.5 | L14: 0 | M14: 94.1 | N14: 108.1 | O14: 98.1 | P14: 49 | Q14: 81.7 | R14: 199.9 | S14: 82.1 | T14: 86 | U14: 122 | V14: 72.9 | W14: 64.9
A15: 60.10.1 | B15: 2 世帯数と人口 | C15: 国勢調査人口 | D15: (昭和６０年) | E15: 世帯数 | F15: 224295 | G15: 77605 | H15: 21194 | I15: 9584 | J15: 10925 | K15: 7718 | L15: 15362 | M15: 8588 | N15: 21726 | O15: 20745 | P15: 5033 | Q15: 1166 | R15: 3450 | S15: 6188 | T15: 3878 | U15: 3668 | V15: 3023 | W15: 4442
E16: 人口*計 | F16: 817633 | G16: 269083 | H16: 65670 | I16: 34011 | J16: 43118 | K16: 30416 | L16: 61452 | M16: 31830 | N16: 83953 | O16: 80707 | P16: 19550 | Q16: 4318 | R16: 13886 | S16: 26128 | T16: 13384 | U16: 12310 | V16: 9791 | W16: 18026
E17: 人口*男 | F17: 397115 | G17: 130648 | H17: 32808 | I17: 16309 | J17: 20700 | K17: 14715 | L17: 29881 | M17: 15016 | N17: 40566 | O17: 38775 | P17: 9447 | Q17: 2123 | R17: 6695 | S17: 12647 | T17: 6695 | U17: 6262 | V17: 5067 | W17: 8761
E18: 人口*女 | F18: 420518 | G18: 138435 | H18: 32862 | I18: 17702 | J18: 22418 | K18: 15701 | L18: 31571 | M18: 16814 | N18: 43387 | O18: 41932 | P18: 10103 | Q18: 2195 | R18: 7191 | S18: 13481 | T18: 6689 | U18: 6048 | V18: 4724 | W18: 9265
E19: 男女比*女１００につき男(／１００人) | F19: 94.4 | G19: 378.5 | H19: 99.8 | I19: 92.1 | J19: 92.3 | K19: 93.7 | L19: 94.6 | M19: 89.30653027 | N19: 93.5 | O19: 92.5 | P19: 93.5 | Q19: 96.7 | R19: 93.10248922 | S19: 93.81351532 | T19: 100.1 | U19: 103.5 | V19: 107.3 | W19: 94.56017269
E20: １世帯当たり人員*(／１世帯) | F20: 3.65 | G20: 3.47 | H20: 3.1 | I20: 3.55 | J20: 3.95 | K20: 3.94 | L20: 4 | M20: 3.71 | N20: 3.86 | O20: 3.89 | P20: 3.88 | Q20: 3.7 | R20: 4.02 | S20: 4.22 | T20: 3.45 | U20: 3.36 | V20: 3.24 | W20: 4.06
E21: 人口密度*(人／ｋ㎡) | F21: 195.1 | H21: 263.2 | I21: 145.4 | K21: 120.1 | L21: 729.6 | Q21: 22.2 | T21: 87.6 | U21: 172.7
A22: 2.10.1 | C22: 国勢調査人口 | D22: (平成２年) | E22: 世帯数*(世帯) | F22: 234192 | G22: 81287 | H22: 22995 | I22: 9920 | J22: 10758 | K22: 7701 | L22: 16053 | M22: 8708 | N22: 22678 | O22: 21981 | P22: 5159 | Q22: 1130 | R22: 3484 | S22: 6223 | T22: 4019 | U22: 3822 | V22: 3775 | W22: 4499
E23: 人口*計(人) | F23: 823585 | G23: 270911 | H23: 68041 | I23: 33774 | J23: 41837 | K23: 29805 | L23: 62283 | M23: 31743 | N23: 84897 | O23: 83372 | P23: 19387 | Q23: 4203 | R23: 13804 | S23: 25448 | T23: 13222 | U23: 12425 | V23: 10598 | W23: 17835
E24: 人口*男(人) | F24: 400391 | G24: 131608 | H24: 34091 | I24: 16175 | J24: 19944 | K24: 14400 | L24: 30164 | M24: 14885 | N24: 41272 | O24: 40152 | P24: 9427 | Q24: 2051 | R24: 6628 | S24: 12249 | T24: 6672 | U24: 6250 | V24: 5767 | W24: 8656
E25: 人口*女(人) | F25: 423194 | G25: 139303 | H25: 33950 | I25: 17599 | J25: 21893 | K25: 15405 | L25: 32119 | M25: 16858 | N25: 43625 | O25: 43220 | P25: 9960 | Q25: 2152 | R25: 7176 | S25: 13199 | T25: 6550 | U25: 6175 | V25: 4831 | W25: 9179
E26: 男女比*女１００につき男(／１００人) | F26: 94.6 | G26: 94.5 | H26: 100.4 | I26: 91.9 | J26: 91.1 | K26: 93.5 | L26: 93.9 | M26: 88.29635781 | N26: 94.6 | O26: 92.9 | P26: 94.6 | Q26: 95.3 | R26: 92.36343367 | S26: 92.80248504 | T26: 101.9 | U26: 101.2 | V26: 119.4 | W26: 94.30221157
E27: １世帯当たり人員*(／１世帯) | F27: 3.52 | G27: 3.33 | H27: 2.96 | I27: 3.4 | J27: 3.89 | K27: 3.87 | L27: 3.88 | M27: 3.65 | N27: 3.74 | O27: 3.79 | P27: 3.76 | Q27: 3.72 | R27: 3.96 | S27: 4.09 | T27: 3.29 | U27: 3.25 | V27: 2.81 | W27: 3.96
E28: 人口密度*(人／ｋ㎡) | F28: 196.7 | H28: 271.6 | I28: 145.1 | K28: 117.5 | L28: 734.9 | Q28: 21.6 | T28: 86.9 | U28: 172.6
A29: 7.10.1 | C29: 国勢調査人口 | D29: (平成７年) | E29: 世帯数*(世帯) | F29: 246911 | G29: 87719 | H29: 23115 | I29: 10383 | J29: 10862 | K29: 7733 | L29: 16919 | M29: 9327 | N29: 24233 | O29: 23882 | P29: 6049 | Q29: 1115 | R29: 3634 | S29: 6379 | T29: 3687 | U29: 3816 | V29: 3469 | W29: 4589
E30: 人口*計(人) | F30: 826996 | G30: 272970 | H30: 67204 | I30: 33496 | J30: 41069 | K30: 29162 | L30: 62890 | M30: 32432 | N30: 85533 | O30: 86870 | P30: 20183 | Q30: 4032 | R30: 13616 | S30: 25158 | T30: 12362 | U30: 12201 | V30: 10251 | W30: 17567
E31: 人口*男(人) | F31: 401860 | G31: 133444 | H31: 33047 | I31: 16164 | J31: 19537 | K31: 14033 | L31: 30376 | M31: 15174 | N31: 41641 | O31: 41942 | P31: 9907 | Q31: 1957 | R31: 6555 | S31: 12060 | T31: 6087 | U31: 6086 | V31: 5400 | W31: 8450
E32: 人口*女(人) | F32: 425136 | G32: 139526 | H32: 34157 | I32: 17332 | J32: 21532 | K32: 15129 | L32: 32514 | M32: 17258 | N32: 43892 | O32: 44928 | P32: 10276 | Q32: 2075 | R32: 7061 | S32: 13098 | T32: 6275 | U32: 6115 | V32: 4851 | W32: 9117
E33: 男女比*女１００につき男(／１００人) | F33: 94.5 | G33: 95.6 | H33: 96.8 | I33: 93.3 | J33: 90.7 | K33: 92.8 | L33: 93.4 | M33: 87.92444084 | N33: 94.9 | O33: 93.4 | P33: 96.4 | Q33: 94.3 | R33: 92.83387622 | S33: 92.07512597 | T33: 97 | U33: 99.5 | V33: 111.3 | W33: 92.68399693
E34: １世帯当たり人員*(／１世帯) | F34: 3.35 | G34: 3.11 | H34: 2.91 | I34: 3.23 | J34: 3.78 | K34: 3.77 | L34: 3.72 | M34: 3.48 | N34: 3.53 | O34: 3.64 | P34: 3.34 | Q34: 3.62 | R34: 3.75 | S34: 3.94 | T34: 3.35 | U34: 3.2 | V34: 2.96 | W34: 3.83
E35: 人口密度*(人／ｋ㎡) | F35: 197.4 | H35: 268.1 | I35: 143.9 | K35: 115 | L35: 742.1 | Q35: 20.7 | T35: 81.2 | U35: 169.4
A36: 12.10.1 | C36: 国勢調査人口 | D36: (平成１2年) | E36: 世帯数*(世帯) | F36: 259612 | G36: 89946 | H36: 24539 | I36: 10962 | J36: 11151 | K36: 7942 | L36: 18598 | M36: 9562 | N36: 26461 | O36: 26278 | P36: 6781 | Q36: 1095 | R36: 3744 | S36: 6619 | T36: 3713 | U36: 4015 | V36: 3490 | W36: 4716
E37: 人口*計(人) | F37: 828944 | G37: 269557 | H37: 68145 | I37: 33295 | J37: 39632 | K37: 28143 | L37: 64898 | M37: 32178 | N37: 87699 | O37: 91173 | P37: 21182 | Q37: 3759 | R37: 13221 | S37: 25017 | T37: 11630 | U37: 12119 | V37: 9983 | W37: 17313
E38: 人口*男(人) | F38: 402367 | G38: 131344 | H38: 33504 | I38: 16134 | J38: 18942 | K38: 13391 | L38: 31448 | M38: 15072 | N38: 42858 | O38: 43972 | P38: 10225 | Q38: 1825 | R38: 6437 | S38: 11973 | T38: 5672 | U38: 6076 | V38: 5192 | W38: 8302
E39: 人口*女(人) | F39: 426577 | G39: 138213 | H39: 34641 | I39: 17161 | J39: 20690 | K39: 14752 | L39: 33450 | M39: 17106 | N39: 44841 | O39: 47201 | P39: 10957 | Q39: 1934 | R39: 6784 | S39: 13044 | T39: 5958 | U39: 6043 | V39: 4791 | W39: 9011
E40: 男女比*女１００につき男(／１００人) | F40: 94.3 | G40: 95 | H40: 96.7 | I40: 94 | J40: 91.6 | K40: 90.8 | L40: 94 | M40: 88.10943529 | N40: 95.6 | O40: 93.2 | P40: 93.3 | Q40: 94.4 | R40: 94.88502358 | S40: 91.78932843 | T40: 95.2 | U40: 100.5 | V40: 108.4 | W40: 92.13183886
E41: １世帯当たり人員*(／１世帯) | F41: 3.19 | G41: 3 | H41: 2.78 | I41: 3.04 | J41: 3.55 | K41: 3.54 | L41: 3.49 | M41: 3.37 | N41: 3.31 | O41: 3.47 | P41: 3.12 | Q41: 3.43 | R41: 3.53 | S41: 3.78 | T41: 3.13 | U41: 3.02 | V41: 2.86 | W41: 3.67
E42: 人口密度*(人／ｋ㎡) | F42: 197.9 | H42: 271.8 | I42: 143 | K42: 110.9 | L42: 765.8 | Q42: 19.3 | T42: 76.4 | U42: 168.2
A43: 17.10.1 | C43: 国勢調査人口 | D43: (平成１7年) | E43: 世帯数*(世帯) | F43: 269577 | G43: 93694 | H43: 25742 | I43: 11136 | J43: 11230 | K43: 7990 | L43: 20177 | M43: 9658 | N43: 27916 | O43: 28035 | P43: 6868 | Q43: 1060 | R43: 3542 | S43: 6670 | T43: 3760 | U43: 4014 | V43: 3258 | W43: 4827
E44: 人口*計(人) | F44: 821592 | G44: 269144 | H44: 68402 | I44: 32182 | J44: 37843 | K44: 26961 | L44: 66831 | M44: 31081 | N44: 87742 | O44: 92318 | P44: 20764 | Q44: 3405 | R44: 12274 | S44: 23995 | T44: 11023 | U44: 11630 | V44: 9217 | W44: 16780
E45: 人口*男(人) | F45: 397271 | G45: 130834 | H45: 33475 | I45: 15620 | J45: 17956 | K45: 12777 | L45: 32263 | M45: 14498 | N45: 42706 | O45: 44349 | P45: 10085 | Q45: 1643 | R45: 5850 | S45: 11447 | T45: 5364 | U45: 5729 | V45: 4649 | W45: 8026
E46: 人口*女(人) | F46: 424321 | G46: 138310 | H46: 34927 | I46: 16562 | J46: 19887 | K46: 14184 | L46: 34568 | M46: 16583 | N46: 45036 | O46: 47969 | P46: 10679 | Q46: 1762 | R46: 6424 | S46: 12548 | T46: 5659 | U46: 5901 | V46: 4568 | W46: 8754
E47: 男女比*女１００につき男(／１００人) | F47: 93.6 | G47: 94.6 | H47: 95.8 | I47: 94.3 | J47: 90.3 | K47: 90.1 | L47: 93.3 | M47: 87.4 | N47: 94.8 | O47: 92.5 | P47: 94.4 | Q47: 93.2 | R47: 91.1 | S47: 91.2 | T47: 94.8 | U47: 97.1 | V47: 101.8 | W47: 91.7
E48: １世帯当たり人員*(／１世帯) | F48: 3.05 | G48: 2.87 | H48: 2.66 | I48: 2.89 | J48: 3.37 | K48: 3.37 | L48: 3.31 | M48: 3.22 | N48: 3.14 | O48: 3.29 | P48: 3.02 | Q48: 3.21 | R48: 3.47 | S48: 3.6 | T48: 2.93 | U48: 2.9 | V48: 2.83 | W48: 3.48
E49: 人口密度*(人／ｋ㎡) | F49: 196.1 | G49: 502 | H49: 272.8 | I49: 138.2 | J49: 43.4 | K49: 106.3 | L49: 788.6 | M49: 265.7 | N49: 380.2 | O49: 439.8 | P49: 220.1 | Q49: 17.5 | R49: 35.7 | S49: 156.9 | T49: 72.4 | U49: 161.3 | V49: 43.4 | W49: 93.9
A50: 22.10.1 | C50: 国勢調査人口 | D50: (平成22年) | E50: 世帯数*(世帯) | F50: 275599 | G50: 97446 | H50: 26453 | I50: 11477 | J50: 10847 | K50: 7773 | L50: 21028 | M50: 9735 | N50: 27601 | O50: 28744 | P50: 7217 | Q50: 1006 | R50: 3483 | S50: 6728 | T50: 3879 | U50: 4044 | V50: 3144 | W50: 4994
E51: 人口*計(人) | F51: 806314 | G51: 266796 | H51: 67760 | I51: 31340 | J51: 35291 | K51: 25466 | L51: 67450 | M51: 29989 | N51: 85614 | O51: 91900 | P51: 20647 | Q51: 3046 | R51: 11551 | S51: 23160 | T51: 10563 | U51: 11062 | V51: 8580 | W51: 16099
E52: 人口*男(人) | F52: 389712 | G52: 128692 | H52: 33396 | I52: 15376 | J52: 16705 | K52: 12072 | L52: 32507 | M52: 14081 | N52: 41762 | O52: 44235 | P52: 10026 | Q52: 1449 | R52: 5501 | S52: 11036 | T52: 5292 | U52: 5521 | V52: 4280 | W52: 7781
E53: 人口*女(人) | F53: 416602 | G53: 138104 | H53: 34364 | I53: 15964 | J53: 18586 | K53: 13394 | L53: 34943 | M53: 15908 | N53: 43852 | O53: 47665 | P53: 10621 | Q53: 1597 | R53: 6050 | S53: 12124 | T53: 5271 | U53: 5541 | V53: 4300 | W53: 8318
E54: 男女比*女１００につき男(／１００人) | F54: 93.5 | G54: 93.2 | H54: 97.2 | I54: 96.3 | J54: 89.9 | K54: 90.1 | L54: 93 | M54: 88.5 | N54: 95.2 | O54: 92.8 | P54: 94.4 | Q54: 90.7 | R54: 90.9 | S54: 91 | T54: 100.4 | U54: 99.6 | V54: 99.5 | W54: 93.5
E55: １世帯当たり人員*(／１世帯) | F55: 2.93 | G55: 2.74 | H55: 2.56 | I55: 2.73 | J55: 3.25 | K55: 3.28 | L55: 3.21 | M55: 3.08 | N55: 3.1 | O55: 3.2 | P55: 2.86 | Q55: 3.03 | R55: 3.32 | S55: 3.44 | T55: 2.72 | U55: 2.74 | V55: 2.73 | W55: 3.22
E56: 人口密度*(人／ｋ㎡) | F56: 192.4 | G56: 497.6 | H56: 269.7 | I56: 134.6 | J56: 40.5 | K56: 100.4 | L56: 795.9 | M56: 256.3 | N56: 371 | O56: 437.8 | P56: 218.9 | Q56: 15.6 | R56: 33.6 | S56: 151.4 | T56: 69.3 | U56: 153.3 | V56: 40.4 | W56: 90.1
A57: 27.10.1 | C57: 国勢調査人口 | D57: （平成27年） | E57: 世帯数*(世帯) | F57: 279687 | G57: 99872 | H57: 26545 | I57: 11220 | J57: 10698 | K57: 7703 | L57: 22335 | M57: 9697 | N57: 27889 | O57: 29454 | P57: 7276 | Q57: 902 | R57: 3353 | S57: 6560 | T57: 3899 | U57: 4191 | V57: 3222 | W57: 4871
E58: 人口*計(人) | F58: 786740 | G58: 265904 | H58: 66165 | I58: 29670 | J58: 33109 | K58: 24125 | L58: 68284 | M58: 28729 | N58: 81524 | O58: 90280 | P58: 19883 | Q58: 2638 | R58: 10799 | S58: 21538 | T58: 9914 | U58: 10596 | V58: 8325 | W58: 15257
E59: 人口*男(人) | F59: 381474 | G59: 128892 | H59: 32558 | I59: 14539 | J59: 15683 | K59: 11478 | L59: 33105 | M59: 13555 | N59: 39859 | O59: 43526 | P59: 9621 | Q59: 1250 | R59: 5173 | S59: 10333 | T59: 4988 | U59: 5417 | V59: 4201 | W59: 7296
E60: 人口*女(人) | F60: 405266 | G60: 137012 | H60: 33607 | I60: 15131 | J60: 17426 | K60: 12647 | L60: 35179 | M60: 15174 | N60: 41665 | O60: 46754 | P60: 10262 | Q60: 1388 | R60: 5626 | S60: 11205 | T60: 4926 | U60: 5179 | V60: 4124 | W60: 7961
E61: 男女比*女１００につき男(／１００人) | F61: 94.12928792 | G61: 94.07351181 | H61: 96.87862648 | I61: 96.08750248 | J61: 89.99770458 | K61: 90.75670119 | L61: 94.10443731 | M61: 89.33043364 | N61: 95.66542662 | O61: 93.0957779 | P61: 93.75365426 | Q61: 90.05763689 | R61: 91.94809812 | S61: 92.21775993 | T61: 101.2586277 | U61: 104.5954818 | V61: 101.8671193 | W61: 91.64677804
E62: １世帯当たり人員*(／１世帯) | F62: 2.812930168 | G62: 2.662447933 | H62: 2.492559804 | I62: 2.644385027 | J62: 3.094877547 | K62: 3.131896664 | L62: 3.057264383 | M62: 2.962668867 | N62: 2.923159669 | O62: 3.06511849 | P62: 2.732682793 | Q62: 2.924611973 | R62: 3.220697882 | S62: 3.283231707 | T62: 2.542703257 | U62: 2.528274875 | V62: 2.583798883 | W62: 3.132211045
E63: 人口密度*(人／ｋ㎡) | F63: 187.7 | G63: 495.7 | H63: 263.2 | I63: 127.3 | J63: 38 | K63: 95 | L63: 807.2 | M63: 245.6 | N63: 353.4 | O63: 430.6 | P63: 210.6 | Q63: 13.6 | R63: 31.4 | S63: 140.6 | T63: 65.1 | U63: 146.4 | V63: 39.2 | W63: 85.5
A64: 2.10.1 | C64: 国勢調査人口 | D64: （令和2年） | E64: 世帯数*(世帯) | F64: 291662 | G64: 104470 | H64: 27849 | I64: 12082 | J64: 10868 | K64: 7524 | L64: 23915 | M64: 9933 | N64: 29634 | O64: 31067 | P64: 7285 | Q64: 948 | R64: 3266 | S64: 6581 | T64: 3745 | U64: 4500 | V64: 3165 | W64: 4830
E65: 人口*計(人) | F65: 766863 | G65: 262328 | H65: 64264 | I65: 28991 | J65: 31286 | K65: 22150 | L65: 68302 | M65: 27524 | N65: 80611 | O65: 88481 | P65: 18965 | Q65: 2423 | R65: 10002 | S65: 20118 | T65: 9179 | U65: 10326 | V65: 7910 | W65: 14003
E66: 人口*男(人) | F66: 373973 | G66: 127867 | H66: 31785 | I66: 14317 | J66: 14997 | K66: 10581 | L66: 33323 | M66: 13067 | N66: 39657 | O66: 42719 | P66: 9231 | Q66: 1196 | R66: 4804 | S66: 9725 | T66: 4610 | U66: 5424 | V66: 3968 | W66: 6702
E67: 人口*女(人) | F67: 392890 | G67: 134461 | H67: 32479 | I67: 14674 | J67: 16289 | K67: 11569 | L67: 34979 | M67: 14457 | N67: 40954 | O67: 45762 | P67: 9734 | Q67: 1227 | R67: 5198 | S67: 10393 | T67: 4569 | U67: 4902 | V67: 3942 | W67: 7301
E68: 男女比*女１００につき男(／１００人) | F68: 95.18516633 | G68: 95.09597578 | H68: 97.86323471 | I68: 97.56712553 | J68: 92.06826693 | K68: 91.45993604 | L68: 95.26573087 | M68: 90.38528049 | N68: 96.83303218 | O68: 93.35037804 | P68: 94.83254572 | Q68: 97.47351263 | R68: 92.4201616 | S68: 93.57259694 | T68: 100.8973517 | U68: 110.6487148 | V68: 100.6595637 | W68: 91.79564443
E69: １世帯当たり人員*(／１世帯) | F69: 2.62928664 | G69: 2.511036661 | H69: 2.307587346 | I69: 2.399519947 | J69: 2.878726537 | K69: 2.943912812 | L69: 2.856031779 | M69: 2.770965469 | N69: 2.720220018 | O69: 2.8480703 | P69: 2.603294441 | Q69: 2.555907173 | R69: 3.062461727 | S69: 3.056982222 | T69: 2.451001335 | U69: 2.294666667 | V69: 2.499210111 | W69: 2.899171843
E70: 人口密度*(人／ｋ㎡) | F70: 182.9973011 | G70: 489.080299 | H70: 255.5533463 | I70: 124.3661791 | J70: 35.86075674 | K70: 87.24594297 | L70: 807.4476889 | M70: 235.2880834 | N70: 349.4191591 | O70: 422.00124 | P70: 200.8365985 | Q70: 12.44798356 | R70: 29.10180686 | S70: 131.3614104 | T70: 60.23756398 | U70: 142.6243094 | V70: 37.27791131 | W70: 78.45257437
A71: 6.10.1 | C71: 推計人口 | E71: 世帯数*(世帯) | F71: 298603 | G71: 107801 | H71: 28057 | I71: 12206 | J71: 10731 | K71: 7480 | L71: 25067 | M71: 10133 | N71: 30646 | O71: 32287 | P71: 7488 | Q71: 908 | R71: 3189 | S71: 6561 | T71: 3676 | U71: 4443 | V71: 3150 | W71: 4780
E72: １世帯当たり人員*(／１世帯) | F72: 2.47 | G72: 2.36 | H72: 2.2 | I72: 2.27 | J72: 2.69 | K72: 2.76 | L72: 2.69 | M72: 2.58 | N72: 2.56 | O72: 2.66 | P72: 2.44 | Q72: 2.37 | R72: 2.88 | S72: 2.88 | T72: 2.33 | U72: 2.17 | V72: 2.35 | W72: 2.71
E73: 人口密度*(人／ｋ㎡) | F73: 176.2745879 | G73: 475.0004661 | H73: 244.9158945 | I73: 118.8752091 | J73: 33.0616783 | K73: 81.26674019 | L73: 795.6614257 | M73: 223.6023252 | N73: 340.4898136 | O73: 410.2971336 | P73: 193.868474 | Q73: 11.03519137 | R73: 26.68102069 | S73: 123.3300686 | T73: 56.24753905 | U73: 133.4530387 | V73: 34.91681983 | W73: 72.51946888
A74: 5.10.1～6.9.30 | D74: 自然動態 | E74: 出 生 | F74: 4528 | G74: 1674 | H74: 365 | I74: 169 | J74: 110 | K74: 87 | L74: 494 | M74: 109 | N74: 508 | O74: 527 | P74: 87 | Q74: 10 | R74: 40 | S74: 110 | T74: 58 | U74: 66 | V74: 46 | W74: 68
E75: 死 亡 | F75: 10580 | G75: 3382 | H75: 880 | I75: 453 | J75: 579 | K75: 337 | L75: 802 | M75: 438 | N75: 1073 | O75: 1151 | P75: 251 | Q75: 48 | R75: 166 | S75: 366 | T75: 172 | U75: 145 | V75: 121 | W75: 216
A76: 5.10.1～6.9.30 | D76: 社会動態 | E76: 転入計 | F76: 23770 | G76: 7752 | H76: 2048 | I76: 841 | J76: 743 | K76: 375 | L76: 2048 | M76: 901 | N76: 3985 | O76: 2854 | P76: 482 | Q76: 45 | R76: 184 | S76: 482 | T76: 275 | U76: 264 | V76: 236 | W76: 255
E77: 転出計 | F77: 23595 | G77: 7974 | H77: 2196 | I77: 876 | J77: 883 | K77: 526 | L77: 1880 | M77: 865 | N77: 2895 | O77: 2811 | P77: 580 | Q77: 54 | R77: 205 | S77: 575 | T77: 298 | U77: 341 | V77: 285 | W77: 351
A78: 5.1.1～5.12.31 | E78: 婚姻 | F78: 2620 | G78: 982 | H78: 218 | I78: 100 | J78: 80 | K78: 53 | L78: 260 | M78: 66 | N78: 282 | O78: 307 | P78: 51 | Q78: 1 | R78: 18 | S78: 56 | T78: 31 | U78: 39 | V78: 36 | W78: 40
E79: 離婚 | F79: 942 | G79: 349 | H79: 90 | I79: 37 | J79: 36 | K79: 19 | L79: 91 | M79: 26 | N79: 95 | O79: 111 | P79: 14 | Q79: 1 | R79: 10 | S79: 21 | T79: 8 | U79: 7 | V79: 13 | W79: 14
A80: 6.10.1 | D80: 総計 | E80: 男女計（年齢不詳含む） | F80: 738691 | G80: 254776 | H80: 61589 | I80: 27711 | J80: 28844 | K80: 20632 | L80: 67305 | M80: 26157 | N80: 78551 | O80: 86027 | P80: 18307 | Q80: 2148 | R80: 9170 | S80: 18888 | T80: 8571 | U80: 9662 | V80: 7409 | W80: 12944
E81: 男 | F81: 361311 | G81: 124420 | H81: 30432 | I81: 13756 | J81: 13800 | K81: 9895 | L81: 32964 | M81: 12481 | N81: 38822 | O81: 41723 | P81: 8932 | Q81: 1072 | R81: 4422 | S81: 9159 | T81: 4342 | U81: 5097 | V81: 3739 | W81: 6255
E82: 女 | F82: 377380 | G82: 130356 | H82: 31157 | I82: 13955 | J82: 15044 | K82: 10737 | L82: 34341 | M82: 13676 | N82: 39729 | O82: 44304 | P82: 9375 | Q82: 1076 | R82: 4748 | S82: 9729 | T82: 4229 | U82: 4565 | V82: 3670 | W82: 6689
A83: 6.10.1 | D83: 男 | E83: 0～14 | F83: 44293 | G83: 15523 | H83: 3606 | I83: 1662 | J83: 1444 | K83: 1062 | L83: 4530 | M83: 1372 | N83: 4876 | O83: 5331 | P83: 956 | Q83: 84 | R83: 535 | S83: 1064 | T83: 465 | U83: 548 | V83: 474 | W83: 761
E84: 15～24 | F84: 35666 | G84: 12880 | H84: 2846 | I84: 1167 | J84: 1165 | K84: 848 | L84: 3514 | M84: 1086 | N84: 3821 | O84: 4421 | P84: 1050 | Q84: 64 | R84: 421 | S84: 839 | T84: 359 | U84: 411 | V84: 304 | W84: 470
E85: 25～34 | F85: 33258 | G85: 11778 | H85: 2737 | I85: 1286 | J85: 888 | K85: 692 | L85: 3183 | M85: 1049 | N85: 4035 | O85: 3836 | P85: 1026 | Q85: 79 | R85: 293 | S85: 715 | T85: 386 | U85: 486 | V85: 342 | W85: 447
E86: 35～44 | F86: 40897 | G86: 14429 | H86: 3555 | I86: 1474 | J86: 1434 | K86: 1025 | L86: 3945 | M86: 1401 | N86: 4554 | O86: 4628 | P86: 932 | Q86: 101 | R86: 466 | S86: 973 | T86: 456 | U86: 520 | V86: 390 | W86: 614
E87: 45～54 | F87: 53212 | G87: 18478 | H87: 4574 | I87: 1881 | J87: 1926 | K87: 1336 | L87: 5220 | M87: 1730 | N87: 5824 | O87: 6325 | P87: 1175 | Q87: 142 | R87: 569 | S87: 1286 | T87: 594 | U87: 762 | V87: 531 | W87: 859
E88: 55～64 | F88: 46647 | G88: 15789 | H88: 4123 | I88: 1810 | J88: 1868 | K88: 1238 | L88: 3983 | M88: 1724 | N88: 4805 | O88: 5484 | P88: 1111 | Q88: 165 | R88: 579 | S88: 1247 | T88: 609 | U88: 669 | V88: 547 | W88: 896
E89: 65以上 | F89: 100988 | G89: 32676 | H89: 8139 | I89: 3989 | J89: 4947 | K89: 3600 | L89: 8260 | M89: 3945 | N89: 10444 | O89: 11313 | P89: 2471 | Q89: 437 | R89: 1559 | S89: 3020 | T89: 1429 | U89: 1457 | V89: 1123 | W89: 2179
E90: 計(年齢不詳含む) | F90: 361311 | G90: 124420 | H90: 30432 | I90: 13756 | J90: 13800 | K90: 9895 | L90: 32964 | M90: 12481 | N90: 38822 | O90: 41723 | P90: 8932 | Q90: 1072 | R90: 4422 | S90: 9159 | T90: 4342 | U90: 5097 | V90: 3739 | W90: 6255
D91: 女 | E91: 0～14 | F91: 42029 | G91: 14434 | H91: 3533 | I91: 1575 | J91: 1439 | K91: 1024 | L91: 4319 | M91: 1358 | N91: 4529 | O91: 5118 | P91: 976 | Q91: 75 | R91: 466 | S91: 1016 | T91: 418 | U91: 512 | V91: 488 | W91: 749
E92: 15～24 | F92: 32233 | G92: 11331 | H92: 2574 | I92: 973 | J92: 1127 | K92: 808 | L92: 3240 | M92: 1032 | N92: 3520 | O92: 4013 | P92: 998 | Q92: 53 | R92: 354 | S92: 828 | T92: 298 | U92: 328 | V92: 260 | W92: 496
E93: 25～34 | F93: 29859 | G93: 10796 | H93: 2391 | I93: 993 | J93: 841 | K93: 655 | L93: 2958 | M93: 980 | N93: 3680 | O93: 3580 | P93: 939 | Q93: 59 | R93: 254 | S93: 583 | T93: 288 | U93: 291 | V93: 214 | W93: 357
E94: 35～44 | F94: 39226 | G94: 14088 | H94: 3320 | I94: 1341 | J94: 1363 | K94: 996 | L94: 3951 | M94: 1333 | N94: 4208 | O94: 4633 | P94: 839 | Q94: 77 | R94: 441 | S94: 884 | T94: 409 | U94: 432 | V94: 371 | W94: 540
E95: 45～54 | F95: 50865 | G95: 17987 | H95: 4379 | I95: 1763 | J95: 1718 | K95: 1286 | L95: 5011 | M95: 1678 | N95: 5394 | O95: 6220 | P95: 1175 | Q95: 100 | R95: 537 | S95: 1210 | T95: 482 | U95: 648 | V95: 446 | W95: 831
E96: 55～64 | F96: 47720 | G96: 16421 | H96: 3926 | I96: 1744 | J96: 2031 | K96: 1354 | L96: 4034 | M96: 1878 | N96: 4828 | O96: 5834 | P96: 1195 | Q96: 151 | R96: 579 | S96: 1287 | T96: 512 | U96: 569 | V96: 455 | W96: 922
E97: 65以上 | F97: 131147 | G97: 43347 | H97: 10427 | I97: 5145 | J97: 6471 | K97: 4605 | L97: 10619 | M97: 5273 | N97: 13307 | O97: 14480 | P97: 3114 | Q97: 561 | R97: 2117 | S97: 3917 | T97: 1794 | U97: 1760 | V97: 1431 | W97: 2779
E98: 計(年齢不詳含む) | F98: 377380 | G98: 130356 | H98: 31157 | I98: 13955 | J98: 15044 | K98: 10737 | L98: 34341 | M98: 13676 | N98: 39729 | O98: 44304 | P98: 9375 | Q98: 1076 | R98: 4748 | S98: 9729 | T98: 4229 | U98: 4565 | V98: 3670 | W98: 6689
A99: 3.6.1 | B99: 3 事業所（民営） | C99: 事業所数 | D99: 全産業 | E99: 総数 | F99: … | G99: … | H99: … | I99: … | J99: … | K99: … | L99: … | M99: … | N99: … | O99: … | P99: … | Q99: … | R99: … | S99: … | T99: … | U99: … | V99: … | W99: …
E100: 民営 | F100: 39859 | G100: 15338 | H100: 3184 | I100: 1722 | J100: 1737 | K100: 1091 | L100: 3399 | M100: 1242 | N100: 4151 | O100: 3592 | P100: 699 | Q100: 151 | R100: 382 | S100: 967 | T100: 483 | U100: 522 | V100: 463 | W100: 736
E101: 国，地方公共団体 | F101: … | G101: … | H101: … | I101: … | J101: … | K101: … | L101: … | M101: … | N101: … | O101: … | P101: … | Q101: … | R101: … | S101: … | T101: … | U101: … | V101: … | W101: …
D102: 農林漁業 | E102: 総数 | F102: … | G102: … | H102: … | I102: … | J102: … | K102: … | L102: … | M102: … | N102: … | O102: … | P102: … | Q102: … | R102: … | S102: … | T102: … | U102: … | V102: … | W102: …
E103: 民営 | F103: 540 | G103: 81 | H103: 10 | I103: 35 | J103: 53 | K103: 19 | L103: 22 | M103: 44 | N103: 49 | O103: 73 | P103: 15 | Q103: 12 | R103: 21 | S103: 26 | T103: 16 | U103: 13 | V103: 17 | W103: 34
E104: 国，地方公共団体 | F104: … | G104: … | H104: … | I104: … | J104: … | K104: … | L104: … | M104: … | N104: … | O104: … | P104: … | Q104: … | R104: … | S104: … | T104: … | U104: … | V104: … | W104: …
D105: 鉱業 | E105: 総数 | F105: … | G105: … | H105: … | I105: … | J105: … | K105: … | L105: … | M105: … | N105: … | O105: … | P105: … | Q105: … | R105: … | S105: … | T105: … | U105: … | V105: … | W105: …
E106: 民営 | F106: 16 | G106: 9 | H106: - | I106: - | J106: - | K106: - | L106: - | M106: 2 | N106: 1 | O106: 1 | P106: 1 | Q106: - | R106: 2 | S106: - | T106: - | U106: - | V106: - | W106: -
E107: 国，地方公共団体 | F107: … | G107: … | H107: … | I107: … | J107: … | K107: … | L107: … | M107: … | N107: … | O107: … | P107: … | Q107: … | R107: … | S107: … | T107: … | U107: … | V107: … | W107: …
D108: 建設業 | E108: 総数 | F108: … | G108: … | H108: … | I108: … | J108: … | K108: … | L108: … | M108: … | N108: … | O108: … | P108: … | Q108: … | R108: … | S108: … | T108: … | U108: … | V108: … | W108: …
E109: 民営 | F109: 4521 | G109: 1493 | H109: 465 | I109: 198 | J109: 264 | K109: 150 | L109: 258 | M109: 140 | N109: 454 | O109: 414 | P109: 98 | Q109: 23 | R109: 55 | S109: 148 | T109: 75 | U109: 92 | V109: 96 | W109: 98
E110: 国，地方公共団体 | F110: … | G110: … | H110: … | I110: … | J110: … | K110: … | L110: … | M110: … | N110: … | O110: … | P110: … | Q110: … | R110: … | S110: … | T110: … | U110: … | V110: … | W110: …
D111: 製造業 | E111: 総数 | F111: … | G111: … | H111: … | I111: … | J111: … | K111: … | L111: … | M111: … | N111: … | O111: … | P111: … | Q111: … | R111: … | S111: … | T111: … | U111: … | V111: … | W111: …
E112: 民営 | F112: 4746 | G112: 1311 | H112: 165 | I112: 144 | J112: 185 | K112: 146 | L112: 973 | M112: 160 | N112: 610 | O112: 575 | P112: 116 | Q112: 30 | R112: 31 | S112: 157 | T112: 29 | U112: 26 | V112: 26 | W112: 62
E113: 国，地方公共団体 | F113: … | G113: … | H113: … | I113: … | J113: … | K113: … | L113: … | M113: … | N113: … | O113: … | P113: … | Q113: … | R113: … | S113: … | T113: … | U113: … | V113: … | W113: …
D114: 電気・ガス・熱供給・水道業 | E114: 総数 | F114: … | G114: … | H114: … | I114: … | J114: … | K114: … | L114: … | M114: … | N114: … | O114: … | P114: … | Q114: … | R114: … | S114: … | T114: … | U114: … | V114: … | W114: …
E115: 民営 | F115: 51 | G115: 15 | H115: 9 | I115: 1 | J115: 3 | K115: 1 | L115: 1 | M115: 1 | N115: 7 | O115: 7 | P115: - | Q115: - | R115: - | S115: - | T115: 3 | U115: 1 | V115: 1 | W115: 1
E116: 国，地方公共団体 | F116: … | G116: … | H116: … | I116: … | J116: … | K116: … | L116: … | M116: … | N116: … | O116: … | P116: … | Q116: … | R116: … | S116: … | T116: … | U116: … | V116: … | W116: …
D117: 情報通信業 | E117: 総数 | F117: … | G117: … | H117: … | I117: … | J117: … | K117: … | L117: … | M117: … | N117: … | O117: … | P117: … | Q117: … | R117: … | S117: … | T117: … | U117: … | V117: … | W117: …
E118: 民営 | F118: 341 | G118: 192 | H118: 23 | I118: 12 | J118: 6 | K118: 6 | L118: 17 | M118: 3 | N118: 23 | O118: 42 | P118: 3 | Q118: 1 | R118: - | S118: 3 | T118: 6 | U118: 1 | V118: - | W118: 3
E119: 国，地方公共団体 | F119: … | G119: … | H119: … | I119: … | J119: … | K119: … | L119: … | M119: … | N119: … | O119: … | P119: … | Q119: … | R119: … | S119: … | T119: … | U119: … | V119: … | W119: …
D120: 運輸業、郵便業 | E120: 総数 | F120: … | G120: … | H120: … | I120: … | J120: … | K120: … | L120: … | M120: … | N120: … | O120: … | P120: … | Q120: … | R120: … | S120: … | T120: … | U120: … | V120: … | W120: …
E121: 民営 | F121: 847 | G121: 320 | H121: 104 | I121: 22 | J121: 24 | K121: 16 | L121: 48 | M121: 36 | N121: 84 | O121: 115 | P121: 16 | Q121: 3 | R121: 8 | S121: 13 | T121: 10 | U121: 12 | V121: 6 | W121: 10
E122: 国，地方公共団体 | F122: … | G122: … | H122: … | I122: … | J122: … | K122: … | L122: … | M122: … | N122: … | O122: … | P122: … | Q122: … | R122: … | S122: … | T122: … | U122: … | V122: … | W122: …
D123: 卸売業、小売業 | E123: 総数 | F123: … | G123: … | H123: … | I123: … | J123: … | K123: … | L123: … | M123: … | N123: … | O123: … | P123: … | Q123: … | R123: … | S123: … | T123: … | U123: … | V123: … | W123: …
E124: 民営 | F124: 9510 | G124: 3893 | H124: 763 | I124: 433 | J124: 391 | K124: 256 | L124: 737 | M124: 273 | N124: 1056 | O124: 880 | P124: 133 | Q124: 27 | R124: 68 | S124: 223 | T124: 78 | U124: 83 | V124: 62 | W124: 154
E125: 国，地方公共団体 | F125: … | G125: … | H125: … | I125: … | J125: … | K125: … | L125: … | M125: … | N125: … | O125: … | P125: … | Q125: … | R125: … | S125: … | T125: … | U125: … | V125: … | W125: …
D126: 金融業、保険業 | E126: 総数 | F126: … | G126: … | H126: … | I126: … | J126: … | K126: … | L126: … | M126: … | N126: … | O126: … | P126: … | Q126: … | R126: … | S126: … | T126: … | U126: … | V126: … | W126: …
E127: 民営 | F127: 726 | G127: 379 | H127: 56 | I127: 34 | J127: 28 | K127: 15 | L127: 51 | M127: 18 | N127: 63 | O127: 39 | P127: 8 | Q127: 1 | R127: 3 | S127: 12 | T127: 4 | U127: 5 | V127: 2 | W127: 8
E128: 国，地方公共団体 | F128: … | G128: … | H128: … | I128: … | J128: … | K128: … | L128: … | M128: … | N128: … | O128: … | P128: … | Q128: … | R128: … | S128: … | T128: … | U128: … | V128: … | W128: …
D129: 不動産業、物品賃貸業 | E129: 総数 | F129: … | G129: … | H129: … | I129: … | J129: … | K129: … | L129: … | M129: … | N129: … | O129: … | P129: … | Q129: … | R129: … | S129: … | T129: … | U129: … | V129: … | W129: …
E130: 民営 | F130: 1461 | G130: 763 | H130: 133 | I130: 69 | J130: 33 | K130: 21 | L130: 85 | M130: 20 | N130: 155 | O130: 83 | P130: 37 | Q130: - | R130: 3 | S130: 12 | T130: 11 | U130: 13 | V130: 13 | W130: 10
E131: 国，地方公共団体 | F131: … | G131: … | H131: … | I131: … | J131: … | K131: … | L131: … | M131: … | N131: … | O131: … | P131: … | Q131: … | R131: … | S131: … | T131: … | U131: … | V131: … | W131: …
D132: 学術研究、専門・技術サービス業 | E132: 総数 | F132: … | G132: … | H132: … | I132: … | J132: … | K132: … | L132: … | M132: … | N132: … | O132: … | P132: … | Q132: … | R132: … | S132: … | T132: … | U132: … | V132: … | W132: …
E133: 民営 | F133: 1639 | G133: 826 | H133: 138 | I133: 72 | J133: 48 | K133: 30 | L133: 105 | M133: 38 | N133: 133 | O133: 125 | P133: 23 | Q133: 4 | R133: 10 | S133: 20 | T133: 19 | U133: 18 | V133: 12 | W133: 18
E134: 国，地方公共団体 | F134: … | G134: … | H134: … | I134: … | J134: … | K134: … | L134: … | M134: … | N134: … | O134: … | P134: … | Q134: … | R134: … | S134: … | T134: … | U134: … | V134: … | W134: …
D135: 宿泊業、飲食サービス業 | E135: 総数 | F135: … | G135: … | H135: … | I135: … | J135: … | K135: … | L135: … | M135: … | N135: … | O135: … | P135: … | Q135: … | R135: … | S135: … | T135: … | U135: … | V135: … | W135: …
E136: 民営 | F136: 4759 | G136: 1813 | H136: 498 | I136: 230 | J136: 203 | K136: 135 | L136: 300 | M136: 180 | N136: 386 | O136: 338 | P136: 61 | Q136: 15 | R136: 61 | S136: 111 | T136: 87 | U136: 122 | V136: 76 | W136: 143
E137: 国，地方公共団体 | F137: … | G137: … | H137: … | I137: … | J137: … | K137: … | L137: … | M137: … | N137: … | O137: … | P137: … | Q137: … | R137: … | S137: … | T137: … | U137: … | V137: … | W137: …
D138: 生活関連サービス業、娯楽業 | E138: 総数 | F138: … | G138: … | H138: … | I138: … | J138: … | K138: … | L138: … | M138: … | N138: … | O138: … | P138: … | Q138: … | R138: … | S138: … | T138: … | U138: … | V138: … | W138: …
E139: 民営 | F139: 3366 | G139: 1324 | H139: 248 | I139: 158 | J139: 162 | K139: 108 | L139: 266 | M139: 110 | N139: 342 | O139: 303 | P139: 60 | Q139: 11 | R139: 27 | S139: 68 | T139: 36 | U139: 40 | V139: 46 | W139: 57
E140: 国，地方公共団体 | F140: … | G140: … | H140: … | I140: … | J140: … | K140: … | L140: … | M140: … | N140: … | O140: … | P140: … | Q140: … | R140: … | S140: … | T140: … | U140: … | V140: … | W140: …
D141: 教育、学習支援業 | E141: 総数 | F141: … | G141: … | H141: … | I141: … | J141: … | K141: … | L141: … | M141: … | N141: … | O141: … | P141: … | Q141: … | R141: … | S141: … | T141: … | U141: … | V141: … | W141: …
E142: 民営 | F142: 1049 | G142: 455 | H142: 64 | I142: 44 | J142: 39 | K142: 32 | L142: 83 | M142: 40 | N142: 113 | O142: 86 | P142: 23 | Q142: 1 | R142: 16 | S142: 18 | T142: 4 | U142: 11 | V142: 11 | W142: 9
E143: 国，地方公共団体 | F143: … | G143: … | H143: … | I143: … | J143: … | K143: … | L143: … | M143: … | N143: … | O143: … | P143: … | Q143: … | R143: … | S143: … | T143: … | U143: … | V143: … | W143: …
D144: 医療、福祉 | E144: 総数 | F144: … | G144: … | H144: … | I144: … | J144: … | K144: … | L144: … | M144: … | N144: … | O144: … | P144: … | Q144: … | R144: … | S144: … | T144: … | U144: … | V144: … | W144: …
E145: 民営 | F145: 2586 | G145: 1079 | H145: 207 | I145: 90 | J145: 147 | K145: 67 | L145: 200 | M145: 76 | N145: 263 | O145: 209 | P145: 40 | Q145: 5 | R145: 35 | S145: 59 | T145: 28 | U145: 19 | V145: 21 | W145: 41
E146: 国，地方公共団体 | F146: … | G146: … | H146: … | I146: … | J146: … | K146: … | L146: … | M146: … | N146: … | O146: … | P146: … | Q146: … | R146: … | S146: … | T146: … | U146: … | V146: … | W146: …
D147: 複合サービス事業 | E147: 総数 | F147: … | G147: … | H147: … | I147: … | J147: … | K147: … | L147: … | M147: … | N147: … | O147: … | P147: … | Q147: … | R147: … | S147: … | T147: … | U147: … | V147: … | W147: …
E148: 民営 | F148: 328 | G148: 92 | H148: 17 | I148: 23 | J148: 15 | K148: 10 | L148: 23 | M148: 11 | N148: 33 | O148: 33 | P148: 7 | Q148: 3 | R148: 9 | S148: 14 | T148: 8 | U148: 13 | V148: 6 | W148: 11
E149: 国，地方公共団体 | F149: … | G149: … | H149: … | I149: … | J149: … | K149: … | L149: … | M149: … | N149: … | O149: … | P149: … | Q149: … | R149: … | S149: … | T149: … | U149: … | V149: … | W149: …
D150: サービス業（他に分類されないもの） | E150: 総数 | F150: … | G150: … | H150: … | I150: … | J150: … | K150: … | L150: … | M150: … | N150: … | O150: … | P150: … | Q150: … | R150: … | S150: … | T150: … | U150: … | V150: … | W150: …
E151: 民営 | F151: 3373 | G151: 1293 | H151: 284 | I151: 157 | J151: 136 | K151: 79 | L151: 230 | M151: 90 | N151: 379 | O151: 269 | P151: 58 | Q151: 15 | R151: 33 | S151: 83 | T151: 69 | U151: 53 | V151: 68 | W151: 77
E152: 国，地方公共団体 | F152: … | G152: … | H152: … | I152: … | J152: … | K152: … | L152: … | M152: … | N152: … | O152: … | P152: … | Q152: … | R152: … | S152: … | T152: … | U152: … | V152: … | W152: …
D153: 公務（他に分類されないもの） | E153: 総数 | F153: … | G153: … | H153: … | I153: … | J153: … | K153: … | L153: … | M153: … | N153: … | O153: … | P153: … | Q153: … | R153: … | S153: … | T153: … | U153: … | V153: … | W153: …
E154: 民営 | F154: … | G154: … | H154: … | I154: … | J154: … | K154: … | L154: … | M154: … | N154: … | O154: … | P154: … | Q154: … | R154: … | S154: … | T154: … | U154: … | V154: … | W154: …
E155: 国，地方公共団体 | F155: … | G155: … | H155: … | I155: … | J155: … | K155: … | L155: … | M155: … | N155: … | O155: … | P155: … | Q155: … | R155: … | S155: … | T155: … | U155: … | V155: … | W155: …
C156: 従業者数 | D156: 全産業 | E156: 総数 | F156: … | G156: … | H156: … | I156: … | J156: … | K156: … | L156: … | M156: … | N156: … | O156: … | P156: … | Q156: … | R156: … | S156: … | T156: … | U156: … | V156: … | W156: …
E157: 民営 | F157: 373974 | G157: 149002 | H157: 31278 | I157: 12613 | J157: 12482 | K157: 8633 | L157: 30197 | M157: 12932 | N157: 42890 | O157: 35608 | P157: 7893 | Q157: 932 | R157: 2596 | S157: 6753 | T157: 4885 | U157: 5175 | V157: 4179 | W157: 5926
E158: 国，地方公共団体等 | F158: … | G158: … | H158: … | I158: … | J158: … | K158: … | L158: … | M158: … | N158: … | O158: … | P158: … | Q158: … | R158: … | S158: … | T158: … | U158: … | V158: … | W158: …
D159: 農林漁業 | E159: 総数 | F159: … | G159: … | H159: … | I159: … | J159: … | K159: … | L159: … | M159: … | N159: … | O159: … | P159: … | Q159: … | R159: … | S159: … | T159: … | U159: … | V159: … | W159: …
E160: 民営 | F160: 7116 | G160: 1284 | H160: 205 | I160: 459 | J160: 789 | K160: 342 | L160: 221 | M160: 559 | N160: 493 | O160: 752 | P160: 289 | Q160: 137 | R160: 269 | S160: 255 | T160: 157 | U160: 305 | V160: 142 | W160: 458
E161: 国，地方公共団体等 | F161: … | G161: … | H161: … | I161: … | J161: … | K161: … | L161: … | M161: … | N161: … | O161: … | P161: … | Q161: … | R161: … | S161: … | T161: … | U161: … | V161: … | W161: …
D162: 鉱業 | E162: 総数 | F162: … | G162: … | H162: … | I162: … | J162: … | K162: … | L162: … | M162: … | N162: … | O162: … | P162: … | Q162: … | R162: … | S162: … | T162: … | U162: … | V162: … | W162: …
E163: 民営 | F163: 121 | G163: 56 | H163: - | I163: - | J163: - | K163: - | L163: - | M163: 9 | N163: 10 | O163: 1 | P163: 10 | Q163: - | R163: 35 | S163: - | T163: - | U163: - | V163: - | W163: -
E164: 国，地方公共団体等 | F164: … | G164: … | H164: … | I164: … | J164: … | K164: … | L164: … | M164: … | N164: … | O164: … | P164: … | Q164: … | R164: … | S164: … | T164: … | U164: … | V164: … | W164: …
D165: 建設業 | E165: 総数 | F165: … | G165: … | H165: … | I165: … | J165: … | K165: … | L165: … | M165: … | N165: … | O165: … | P165: … | Q165: … | R165: … | S165: … | T165: … | U165: … | V165: … | W165: …
E166: 民営 | F166: 31696 | G166: 11252 | H166: 3975 | I166: 1061 | J166: 1605 | K166: 752 | L166: 1575 | M166: 683 | N166: 2736 | O166: 2610 | P166: 621 | Q166: 122 | R166: 283 | S166: 617 | T166: 976 | U166: 1230 | V166: 1065 | W166: 533
E167: 国，地方公共団体等 | F167: … | G167: … | H167: … | I167: … | J167: … | K167: … | L167: … | M167: … | N167: … | O167: … | P167: … | Q167: … | R167: … | S167: … | T167: … | U167: … | V167: … | W167: …
D168: 製造業 | E168: 総数 | F168: … | G168: … | H168: … | I168: … | J168: … | K168: … | L168: … | M168: … | N168: … | O168: … | P168: … | Q168: … | R168: … | S168: … | T168: … | U168: … | V168: … | W168: …
E169: 民営 | F169: 80836 | G169: 20001 | H169: 3835 | I169: 1857 | J169: 2796 | K169: 2736 | L169: 10921 | M169: 4537 | N169: 16284 | O169: 11064 | P169: 1199 | Q169: 210 | R169: 481 | S169: 2157 | T169: 287 | U169: 348 | V169: 274 | W169: 1849
E170: 国，地方公共団体等 | F170: … | G170: … | H170: … | I170: … | J170: … | K170: … | L170: … | M170: … | N170: … | O170: … | P170: … | Q170: … | R170: … | S170: … | T170: … | U170: … | V170: … | W170: …
D171: 電気・ガス・熱供給・水道業 | E171: 総数 | F171: … | G171: … | H171: … | I171: … | J171: … | K171: … | L171: … | M171: … | N171: … | O171: … | P171: … | Q171: … | R171: … | S171: … | T171: … | U171: … | V171: … | W171: …
E172: 民営 | F172: 3576 | G172: 725 | H172: 473 | I172: 2 | J172: 107 | K172: 9 | L172: 2 | M172: - | N172: 89 | O172: 124 | P172: - | Q172: - | R172: - | S172: - | T172: 1010 | U172: 567 | V172: 464 | W172: 4
E173: 国，地方公共団体等 | F173: … | G173: … | H173: … | I173: … | J173: … | K173: … | L173: … | M173: … | N173: … | O173: … | P173: … | Q173: … | R173: … | S173: … | T173: … | U173: … | V173: … | W173: …
D174: 情報通信業 | E174: 総数 | F174: … | G174: … | H174: … | I174: … | J174: … | K174: … | L174: … | M174: … | N174: … | O174: … | P174: … | Q174: … | R174: … | S174: … | T174: … | U174: … | V174: … | W174: …
E175: 民営 | F175: 5157 | G175: 3307 | H175: 241 | I175: 65 | J175: 18 | K175: 43 | L175: 356 | M175: 11 | N175: 145 | O175: 914 | P175: 16 | Q175: 1 | R175: - | S175: 9 | T175: 22 | U175: 4 | V175: - | W175: 5
E176: 国，地方公共団体等 | F176: … | G176: … | H176: … | I176: … | J176: … | K176: … | L176: … | M176: … | N176: … | O176: … | P176: … | Q176: … | R176: … | S176: … | T176: … | U176: … | V176: … | W176: …
D177: 運輸業、郵便業 | E177: 総数 | F177: … | G177: … | H177: … | I177: … | J177: … | K177: … | L177: … | M177: … | N177: … | O177: … | P177: … | Q177: … | R177: … | S177: … | T177: … | U177: … | V177: … | W177: …
E178: 民営 | F178: 16650 | G178: 7801 | H178: 2323 | I178: 350 | J178: 252 | K178: 156 | L178: 713 | M178: 529 | N178: 1684 | O178: 2000 | P178: 232 | Q178: 20 | R178: 50 | S178: 94 | T178: 104 | U178: 111 | V178: 108 | W178: 123
E179: 国，地方公共団体等 | F179: … | G179: … | H179: … | I179: … | J179: … | K179: … | L179: … | M179: … | N179: … | O179: … | P179: … | Q179: … | R179: … | S179: … | T179: … | U179: … | V179: … | W179: …
D180: 卸売業、小売業 | E180: 総数 | F180: … | G180: … | H180: … | I180: … | J180: … | K180: … | L180: … | M180: … | N180: … | O180: … | P180: … | Q180: … | R180: … | S180: … | T180: … | U180: … | V180: … | W180: …
E181: 民営 | F181: 69965 | G181: 32160 | H181: 5658 | I181: 3042 | J181: 2232 | K181: 1309 | L181: 5676 | M181: 1648 | N181: 6732 | O181: 6852 | P181: 896 | Q181: 109 | R181: 434 | S181: 1114 | T181: 437 | U181: 469 | V181: 342 | W181: 855
E182: 国，地方公共団体等 | F182: … | G182: … | H182: … | I182: … | J182: … | K182: … | L182: … | M182: … | N182: … | O182: … | P182: … | Q182: … | R182: … | S182: … | T182: … | U182: … | V182: … | W182: …
D183: 金融業、保険業 | E183: 総数 | F183: … | G183: … | H183: … | I183: … | J183: … | K183: … | L183: … | M183: … | N183: … | O183: … | P183: … | Q183: … | R183: … | S183: … | T183: … | U183: … | V183: … | W183: …
E184: 民営 | F184: 8923 | G184: 5509 | H184: 569 | I184: 369 | J184: 254 | K184: 102 | L184: 604 | M184: 127 | N184: 641 | O184: 489 | P184: 53 | Q184: 1 | R184: 12 | S184: 71 | T184: 30 | U184: 39 | V184: 13 | W184: 40
E185: 国，地方公共団体等 | F185: … | G185: … | H185: … | I185: … | J185: … | K185: … | L185: … | M185: … | N185: … | O185: … | P185: … | Q185: … | R185: … | S185: … | T185: … | U185: … | V185: … | W185: …
D186: 不動産業、物品賃貸業 | E186: 総数 | F186: … | G186: … | H186: … | I186: … | J186: … | K186: … | L186: … | M186: … | N186: … | O186: … | P186: … | Q186: … | R186: … | S186: … | T186: … | U186: … | V186: … | W186: …
E187: 民営 | F187: 5573 | G187: 3197 | H187: 655 | I187: 173 | J187: 131 | K187: 51 | L187: 218 | M187: 77 | N187: 545 | O187: 246 | P187: 75 | Q187: - | R187: 5 | S187: 30 | T187: 42 | U187: 40 | V187: 45 | W187: 43
E188: 国，地方公共団体等 | F188: … | G188: … | H188: … | I188: … | J188: … | K188: … | L188: … | M188: … | N188: … | O188: … | P188: … | Q188: … | R188: … | S188: … | T188: … | U188: … | V188: … | W188: …
D189: 学術研究、専門・技術サービス業 | E189: 総数 | F189: … | G189: … | H189: … | I189: … | J189: … | K189: … | L189: … | M189: … | N189: … | O189: … | P189: … | Q189: … | R189: … | S189: … | T189: … | U189: … | V189: … | W189: …
E190: 民営 | F190: 10426 | G190: 4470 | H190: 1734 | I190: 742 | J190: 246 | K190: 95 | L190: 466 | M190: 139 | N190: 677 | O190: 1018 | P190: 95 | Q190: 7 | R190: 20 | S190: 47 | T190: 204 | U190: 223 | V190: 206 | W190: 37
E191: 国，地方公共団体 | F191: … | G191: … | H191: … | I191: … | J191: … | K191: … | L191: … | M191: … | N191: … | O191: … | P191: … | Q191: … | R191: … | S191: … | T191: … | U191: … | V191: … | W191: …
D192: 宿泊業、飲食サービス業 | E192: 総数 | F192: … | G192: … | H192: … | I192: … | J192: … | K192: … | L192: … | M192: … | N192: … | O192: … | P192: … | Q192: … | R192: … | S192: … | T192: … | U192: … | V192: … | W192: …
E193: 民営 | F193: 29487 | G193: 12276 | H193: 3044 | I193: 1155 | J193: 681 | K193: 672 | L193: 2348 | M193: 1574 | N193: 2385 | O193: 2287 | P193: 331 | Q193: 62 | R193: 264 | S193: 610 | T193: 402 | U193: 525 | V193: 272 | W193: 599
E194: 国，地方公共団体等 | F194: … | G194: … | H194: … | I194: … | J194: … | K194: … | L194: … | M194: … | N194: … | O194: … | P194: … | Q194: … | R194: … | S194: … | T194: … | U194: … | V194: … | W194: …
D195: 生活関連サービス業、娯楽業 | E195: 総数 | F195: … | G195: … | H195: … | I195: … | J195: … | K195: … | L195: … | M195: … | N195: … | O195: … | P195: … | Q195: … | R195: … | S195: … | T195: … | U195: … | V195: … | W195: …
E196: 民営 | F196: 12821 | G196: 5855 | H196: 937 | I196: 587 | J196: 549 | K196: 258 | L196: 983 | M196: 567 | N196: 1015 | O196: 1105 | P196: 164 | Q196: 35 | R196: 64 | S196: 141 | T196: 106 | U196: 108 | V196: 163 | W196: 184
E197: 国，地方公共団体等 | F197: … | G197: … | H197: … | I197: … | J197: … | K197: … | L197: … | M197: … | N197: … | O197: … | P197: … | Q197: … | R197: … | S197: … | T197: … | U197: … | V197: … | W197: …
D198: 教育、学習支援業 | E198: 総数 | F198: … | G198: … | H198: … | I198: … | J198: … | K198: … | L198: … | M198: … | N198: … | O198: … | P198: … | Q198: … | R198: … | S198: … | T198: … | U198: … | V198: … | W198: …
E199: 民営 | F199: 11530 | G199: 6185 | H199: 583 | I199: 213 | J199: 267 | K199: 232 | L199: 430 | M199: 354 | N199: 990 | O199: 445 | P199: 1565 | Q199: 1 | R199: 47 | S199: 73 | T199: 24 | U199: 47 | V199: 63 | W199: 11
E200: 国，地方公共団体等 | F200: … | G200: … | H200: … | I200: … | J200: … | K200: … | L200: … | M200: … | N200: … | O200: … | P200: … | Q200: … | R200: … | S200: … | T200: … | U200: … | V200: … | W200: …
D201: 医療、福祉 | E201: 総数 | F201: … | G201: … | H201: … | I201: … | J201: … | K201: … | L201: … | M201: … | N201: … | O201: … | P201: … | Q201: … | R201: … | S201: … | T201: … | U201: … | V201: … | W201: …
E202: 民営 | F202: 47484 | G202: 19988 | H202: 3638 | I202: 1339 | J202: 1707 | K202: 1545 | L202: 4206 | M202: 1517 | N202: 4331 | O202: 3597 | P202: 1924 | Q202: 122 | R202: 456 | S202: 1125 | T202: 346 | U202: 538 | V202: 276 | W202: 829
... 491 more rows

Sheet 福井県
A1: =+データ一覧!F2 -> 0
A2: =+データ一覧!F5 -> 0
AN3: 0 | BS3: 0
AB4: 【県章とそのいわれ】「フクイ」の三文字を組み合わせ、伸びゆく | AO4: 【位置および地勢 】本県は本州日本海側のほぼ中央にあり、総面積は、 | BS4: 0 | BW4: 所在地 | CE4: 〒910-8580
AB5: 福井県を表現しています。 | AO5: 4,190.57k㎡で北は石川県に、東南は岐阜県、西南は滋賀県、京都府に | BS5: 0 | CE5: 福井市大手３丁目１７番１号
A6: =+データ一覧!F3 -> ふくいけん | AB6: 0 | AO6: 連なり、西北は日本海に面している。 | BS6: 0
A7: =データ一覧!F6 -> 福井県 | AB7: 0 | BS7: 0 | BW7: 電話番号 | CE7: （０７７６）２１－１１１１（代表）
AB8: 0
AB9: 0
AB10: 0 | BS10: 0 | BW10: 最寄駅および距離 | CE10: ＪＲ北陸新幹線福井駅 下車３００ｍ
BS11: 0
BS12: 0 | BW12: ホームページ | CE12: https://www.pref.fukui.lg.jp/
A15: １ 土 地 | Z15: =データ一覧!$A$240 -> 5年 | AA15: 産米収穫量 | AD15: 収 穫 量 | AG15: 作 付 面 積 | AJ15: 10a当たり収量 | BP15: １５ 労 働 | CE15: 2.10.1
AD16: =データ一覧!$F$240 -> 116500 | AF16: t | AG16: =データ一覧!$F$241 -> 23300 | AI16: ha | AJ16: =データ一覧!F242 -> 500 | AM16: kg | AN16: １０ 工 業 | BB16: =データ一覧!$A$332 -> 4.6.1（令和3年実績）
A17: 総 面 積 | K17: 固 定 資 産 概 要 調 書 に よ る 地 目 別 面 積 | AC17: 総 数 | AG17: うち 田 | AK17: うち 畑 | BW17: 産業別就業者数
C18: =データ一覧!$A$7 -> 6.10.1 | Q18: =データ一覧!$A$9 -> 6.1.1 | Z18: 耕 地 面 積 | AD18: ha | AG18: ha | AK18: ha | AO18: 産業分類 | AW18: 事業所数 | BB18: 従業者数 | BH18: 年間製造品出荷額等 | BQ18: 区 分 | BV18: 総 数 | CA18: 男 | CE18: 女 | CI18: 区 分 | CN18: 総 数 | CS18: 男 | CW18: 女
G19: ㎢ | K19: 総 数 | P19: う ち 田 | U19: う ち 畑 | Z19: =データ一覧!A243 -> 5.7.15 | AC19: =データ一覧!$F$243 -> 39600 | AF19: =データ一覧!$F$244 -> 35900 | AJ19: =データ一覧!$F$245 -> 3660 | AZ19: 事業所 | BB19: 人 | BE19: 人 | BG19: 万円 | BN19: 万円 | BV19: 人 | CB19: 人 | CF19: 人 | CN19: 人 | CR19: 人 | CV19: 人
D20: =データ一覧!F7 -> 4190.57 | O20: ha | T20: ha | Y20: ha | Z20: 農 業 生 産 物 | AD20: 作 付 面 積 | AG20: 収 穫 量 | AJ20: 10a当たり収量 | AO20: 総数 | AX20: =データ一覧!F332 -> 2021 | BB20: =+データ一覧!F357 -> 73433 | BI20: =データ一覧!F382 -> 237361751 | BP20: 総 数 | BV20: =BZ20+CD20 -> 395765 | BZ20: =データ一覧!F507 -> 213590 | CD20: =データ一覧!F532 -> 182175
L21: =データ一覧!F9 -> 263073.7 | Q21: =データ一覧!F10 -> 38913.7 | V21: =データ一覧!F11 -> 5379.4 | Z21: =データ一覧!$A$246 -> 5年産 | AD21: ha | AG21: t | AJ21: kg | AO21: 食料品 | AX21: =データ一覧!F333 -> 164 | BB21: =+データ一覧!F358 -> 4076 | BI21: =データ一覧!F383 -> 5851205 | CI21: 卸売業,小売業 | CN21: =CR21+CV21 -> 57301 | CR21: =データ一覧!F520 -> 26888 | CV21: =データ一覧!F545 -> 30413
A22: 町 ･ 丁 ･ 大 字 | K22: う ち 宅 地 | P22: う ち 山 林 | U22: う ち 原 野 | Z22: 水 稲 | AD22: =データ一覧!F246 -> 23300 | AG22: =データ一覧!F247 -> 116500 | AJ22: =データ一覧!F248 -> 500 | AO22: 飲料・飼料 | AX22: =データ一覧!F334 -> 29 | BB22: =+データ一覧!F359 -> 437 | BI22: =データ一覧!F384 -> 1477678 | BP22: 第１次産業 | BV22: =BZ22+CD22 -> 12640 | BZ22: =データ一覧!F508 -> 8592 | CD22: =データ一覧!F533 -> 4048 | CI22: 金融業,保険業 | CN22: =CR22+CV22 -> 8653 | CR22: =データ一覧!F521 -> 3431 | CV22: =データ一覧!F546 -> 5222
A23: 区 画 数 | H23: =データ一覧!F8 -> 2758 | O23: ha | T23: ha | Y23: ha | Z23: 六 条 大 麦 | AD23: =データ一覧!F249 -> 5140 | AG23: =データ一覧!F250 -> 16100 | AJ23: =データ一覧!F251 -> 313 | AO23: 繊維 | AX23: =データ一覧!F335 -> 491 | BB23: =+データ一覧!F360 -> 14063 | BI23: =データ一覧!F385 -> 21058246 | BQ23: 農業 | BV23: =BZ23+CD23 -> 11120 | BZ23: =データ一覧!F509 -> 7269 | CD23: =データ一覧!F534 -> 3851 | CI23: 不動産業 | CN23: 4201 | CR23: =データ一覧!F522 -> 2338 | CV23: =データ一覧!F547 -> 1863
A24: =データ一覧!$A$8 -> 5.4.1 | L24: =データ一覧!F12 -> 17942.9 | Q24: =データ一覧!F13 -> 100620.2 | V24: =データ一覧!F14 -> 2535.8 | Z24: 大 豆 | AD24: =データ一覧!F252 -> 1940 | AG24: =データ一覧!F253 -> 2270 | AJ24: =データ一覧!F254 -> 117 | AO24: 木材 | AX24: =データ一覧!F336 -> 67 | BB24: =+データ一覧!F361 -> 1671 | BI24: =データ一覧!F386 -> 8934468 | BQ24: 林業 | BV24: 582 | BZ24: =データ一覧!F510 -> 493 | CD24: =データ一覧!F535 -> 89 | CI24: 学術研究 | CN24: 10845 | CR24: =データ一覧!F523 -> 6826 | CV24: =データ一覧!F548 -> 4019
A25: ２ 世 帯 数 と 人 口 | AB25: 区 分 | AD25: 乳 用 牛 | AF25: 肉 用 牛 | AH25: 豚 | AJ25: 採卵鶏 | AL25: ブロイラー | AO25: 家具 | AX25: =データ一覧!F337 -> 43 | BB25: =+データ一覧!F362 -> 1108 | BI25: =データ一覧!F387 -> 2075623 | BQ25: 漁業 | BV25: 938 | BZ25: =データ一覧!F511 -> 830 | CD25: =データ一覧!F536 -> 108 | CI25: 宿泊業,飲食ｻｰﾋﾞｽ | CN25: 19972 | CR25: =データ一覧!F524 -> 7092 | CV25: =データ一覧!F549 -> 12880
Z26: 畜 産 | AB26: 飼養農家 | AD26: =データ一覧!$F$255 -> 17 | AF26: =データ一覧!$F$257 -> 37 | AH26: =データ一覧!$F$259 -> x | AJ26: =データ一覧!$F$261 -> 23 | AL26: =データ一覧!$F$263 -> x | AO26: パルプ・紙 | AX26: =データ一覧!F338 -> 74 | BB26: =+データ一覧!F363 -> 1802 | BI26: =データ一覧!F388 -> 7908820 | BP26: 第２次産業 | BV26: 122364 | BZ26: =データ一覧!F512 -> 83904 | CD26: =データ一覧!F537 -> 38460 | CI26: 生活関連ｻｰﾋﾞｽ業 | CN26: 12477 | CR26: =データ一覧!F525 -> 4715 | CV26: =データ一覧!F550 -> 7762
I27: 人 口 | U27: １世帯当 | W27: 人 口 | Z27: =データ一覧!$A$255 -> 6.3.31 | AB27: （戸） | AO27: 印刷 | AX27: =データ一覧!F339 -> 90 | BB27: =+データ一覧!F364 -> 1882 | BI27: =データ一覧!F389 -> 2848535 | BQ27: 鉱業，採石業 | BV27: 104 | BZ27: =データ一覧!F513 -> 82 | CD27: =データ一覧!F538 -> 22 | CI27: 教育,学習支援業 | CN27: 19726 | CR27: =データ一覧!F526 -> 7559 | CV27: =データ一覧!F551 -> 12167
A28: 区 分 | F28: 世帯数 | I28: 総 数 | L28: 男 | O28: 女 | R28: 男／女 | U28: たり人員 | W28: 密 度 | AB28: 頭 羽 | AD28: =データ一覧!$F$256 -> 753 | AF28: =データ一覧!$F$258 -> 1851 | AH28: =データ一覧!$F$260 -> 2441 | AJ28: =データ一覧!$F$262 -> 731268 | AL28: =データ一覧!$F$264 -> 79500 | AO28: 化学 | AX28: =データ一覧!F340 -> 58 | BB28: =+データ一覧!F365 -> 3924 | BI28: =データ一覧!F390 -> 23179459 | BQ28: 建設業 | BV28: 36668 | BZ28: =データ一覧!F514 -> 30474 | CD28: =データ一覧!F539 -> 6194 | CI28: 医療，福祉 | CN28: 52198 | CR28: =データ一覧!F527 -> 11175 | CV28: =データ一覧!F552 -> 41023
F29: 世 帯 | I29: 人 | L29: 人 | O29: 人 | S29: ％ | U29: 人 | W29: 人/㎢ | AO29: 石油・石炭 | AX29: =データ一覧!F341 -> 9 | BB29: =+データ一覧!F366 -> 80 | BI29: =データ一覧!F391 -> x | BQ29: 製造業 | BV29: 85592 | BZ29: =データ一覧!F515 -> 53348 | CD29: =データ一覧!F540 -> 32244 | CI29: 複合サービス事業 | CN29: 4622 | CR29: =データ一覧!F528 -> 2638 | CV29: =データ一覧!F553 -> 1984
A30: =データ一覧!$A$22 -> 2.10.1 | F30: =データ一覧!F22 -> 234192 | I30: =+L30+O30 -> 823585 | L30: =データ一覧!F24 -> 400391 | O30: =データ一覧!F25 -> 423194 | S30: =+L30/O30*100 -> 94.61169109 | U30: =データ一覧!F27 -> 3.52 | W30: =データ一覧!F28 -> 196.7 | Z30: ５ 林 業 | AO30: プラスチック | AX30: =データ一覧!F342 -> 128 | BB30: =+データ一覧!F367 -> 5752 | BI30: =データ一覧!F392 -> 19212981 | BP30: 第３次産業 | BV30: 252272 | BZ30: =データ一覧!F516 -> 116581 | CD30: =データ一覧!F541 -> 135691 | CI30: サービス業 | CN30: 22170 | CR30: =データ一覧!F529 -> 13933 | CV30: =データ一覧!F554 -> 8237
A31: =データ一覧!$A$29 -> 7.10.1 | F31: =データ一覧!F29 -> 246911 | I31: =+L31+O31 -> 826996 | L31: =データ一覧!F31 -> 401860 | O31: =データ一覧!F32 -> 425136 | S31: 94.5250461 | U31: =データ一覧!F34 -> 3.35 | W31: =データ一覧!F35 -> 197.4 | AO31: ゴム | AX31: =データ一覧!F343 -> 6 | BB31: =+データ一覧!F368 -> 170 | BI31: =データ一覧!F393 -> 193919 | BQ31: 電気･ｶﾞｽ･水道業 | BV31: 4777 | BZ31: =データ一覧!F517 -> 4254 | CD31: =データ一覧!F542 -> 523 | CI31: 公務 | CN31: 13757 | CR31: =データ一覧!F530 -> 9304 | CV31: =データ一覧!F555 -> 4453
A32: =データ一覧!$A$36 -> 12.10.1 | F32: =データ一覧!F36 -> 259612 | I32: =+L32+O32 -> 828944 | L32: =データ一覧!F38 -> 402367 | O32: =データ一覧!F39 -> 426577 | S32: 94.32458853 | U32: =データ一覧!F41 -> 3.19 | W32: =データ一覧!F42 -> 197.9 | Z32: 森 林 総 面 積 | AH32: =データ一覧!$A$265 -> 5.3.31 | AO32: 皮革 | AX32: =データ一覧!F344 -> 4 | BB32: =+データ一覧!F369 -> 86 | BI32: =データ一覧!F394 -> 125494 | BQ32: 情報通信業 | BV32: 5730 | BZ32: =データ一覧!F518 -> 3859 | CD32: =データ一覧!F543 -> 1871 | CH32: 分類不能の産業 | CN32: 8489 | CR32: =データ一覧!F531 -> 4513 | CV32: =データ一覧!F556 -> 3976
A33: =+データ一覧!$A$43 -> 17.10.1 | F33: =データ一覧!F43 -> 269577 | I33: =+L33+O33 -> 821592 | L33: =データ一覧!F45 -> 397271 | O33: =データ一覧!F46 -> 424321 | S33: 93.62510929 | U33: =データ一覧!F48 -> 3.05 | W33: =データ一覧!F49 -> 196.1 | Z33: 森 林 の 構 成 | AO33: 窯業・土石 | AX33: =データ一覧!F345 -> 86 | BB33: =+データ一覧!F370 -> 1910 | BI33: =データ一覧!F395 -> 6081983 | BQ33: 運輸業,郵便業 | BV33: =BZ33+CD33 -> 15843 | BZ33: =データ一覧!F519 -> 12569 | CD33: =データ一覧!F544 -> 3274
A34: =+データ一覧!$A$50 -> 22.10.1 | F34: =+データ一覧!F50 -> 275599 | I34: =データ一覧!F51 -> 806314 | L34: =+データ一覧!F52 -> 389712 | O34: =+データ一覧!F53 -> 416602 | S34: 93.54539825 | U34: =+データ一覧!F55 -> 2.93 | W34: =+データ一覧!F56 -> 192.4 | AE34: ha | AL34: ha | AO34: 鉄鋼 | AX34: =データ一覧!F346 -> 26 | BB34: =+データ一覧!F371 -> 426 | BI34: =データ一覧!F396 -> 3590790 | BP34: １６ 社 会 福 祉 | CE34: =データ一覧!$A$557 -> 6.4.1
A35: =+データ一覧!$A$57 -> 27.10.1 | F35: =+データ一覧!F57 -> 279687 | I35: =データ一覧!F58 -> 786740 | L35: =+データ一覧!F59 -> 381474 | O35: =+データ一覧!F60 -> 405266 | S35: 94.12928792 | U35: =+データ一覧!F62 -> 2.812930168 | W35: =+データ一覧!F63 -> 187.7 | Z35: 総 数 | AD35: =データ一覧!F265 -> 312064.27 | AG35: 天然林 針葉樹 | AK35: =データ一覧!F268 -> 8951.04 | AO35: 非鉄金属 | AX35: =データ一覧!F347 -> 22 | BB35: =+データ一覧!F372 -> 1756 | BI35: =データ一覧!F397 -> 19056634
A36: 令 2.10.1（国調） | F36: =データ一覧!F64 -> 291662 | I36: =データ一覧!F65 -> 766863 | L36: =データ一覧!F66 -> 373973 | O36: =データ一覧!F67 -> 392890 | S36: =+L36/O36*100 -> 95.18516633 | U36: =データ一覧!F69 -> 2.62928664 | W36: =データ一覧!F70 -> 182.9973011 | Z36: 人工林 針葉樹 | AD36: =データ一覧!F266 -> 120774.04 | AG36: 天然林 広葉樹 | AK36: =データ一覧!F269 -> 169850.95 | AO36: 金属 | AX36: =データ一覧!F348 -> 163 | BB36: =+データ一覧!F373 -> 4165 | BI36: =データ一覧!F398 -> 10497287 | BQ36: 区分 | BX36: 施設数 | CC36: 収容定員 | CI36: 区分 | CP36: 施設数 | CU36: 収容定員
A37: 年 | C37: 区 | E37: 0歳 | H37: 15歳 | K37: 25歳 | N37: 35歳 | Q37: 45歳 | T37: 55歳 | W37: 65歳 | Z37: 人工林 広葉樹 | AD37: =データ一覧!F267 -> 3024.13 | AG37: 竹 林 | AK37: =データ一覧!F270 -> 1391.09 | AO37: はん用機械 | AX37: =データ一覧!F349 -> 36 | BB37: =+データ一覧!F374 -> 853 | BI37: =データ一覧!F399 -> 2136460 | BP37: 生活保護施設 | BX37: =データ一覧!F557 -> 2 | CB37: =データ一覧!F570 -> 130 | CF37: 人 | CH37: 指定障害者支援施設 | CP37: =データ一覧!F563 -> 26 | CT37: =データ一覧!F576 -> 1628 | CX37: 人
A38: 齢 | B38: 令 | F38: ～ | I38: ～ | L38: ～ | O38: ～ | R38: ～ | U38: ～ | AO38: 生産用機械 | AX38: =データ一覧!F350 -> 138 | BB38: =+データ一覧!F375 -> 3546 | BI38: =データ一覧!F400 -> 7693019 | BP38: 地域福祉施設 | BX38: =データ一覧!F558 -> 3 | CB38: =データ一覧!F571 -> 0 | CH38: 指定相談支援事業所 | CP38: =データ一覧!F564 -> 25 | CT38: =データ一覧!F577 -> 0
A39: 階 | B39: =+LEFT(データ一覧!$A$83,1) -> 6 | C39: 分 | G39: 14歳 | J39: 24歳 | M39: 34歳 | P39: 44歳 | S39: 54歳 | V39: 64歳 | Y39: 以上 | Z39: 林 野 の 構 成 | AG39: 保 有 形 態 別 | AO39: 業務用機械 | AX39: =データ一覧!F351 -> 10 | BB39: =+データ一覧!F376 -> 743 | BI39: =データ一覧!F401 -> 1299261 | BP39: 老人福祉施設 | BX39: =データ一覧!F559 -> 187 | CB39: =データ一覧!F572 -> 5698 | CH39: 児童福祉施設 | CP39: =データ一覧!F565 -> 623 | CT39: =データ一覧!F578 -> 33175
A40: 級 | B40: ・ | G40: 人 | J40: 人 | L40: 人 | O40: 人 | R40: 人 | U40: 人 | X40: 人 | AF40: ha | AL40: ha | AO40: 電子・デバイス | AX40: =データ一覧!F352 -> 55 | BB40: =+データ一覧!F377 -> 11861 | BI40: =データ一覧!F402 -> 42210832 | BP40: 介護保険施設 | BX40: =データ一覧!F560 -> 1267 | CB40: =データ一覧!F573 -> 24228 | CH40: 母子福祉施設 | CP40: =データ一覧!F566 -> 1 | CT40: =データ一覧!F579 -> 0
A41: 別 | B41: =+MID(データ一覧!$A$83,3,2) -> 10 | C41: 総 数 | E41: =+E42+E43 -> 86322 | H41: =+H42+H43 -> 67899 | K41: =+K42+K43 -> 63117 | N41: =+N42+N43 -> 80123 | Q41: =+Q42+Q43 -> 104077 | T41: =+T42+T43 -> 94367 | W41: =+W42+W43 -> 232135 | Z41: 無立木地 伐採跡地 | AD41: =データ一覧!F271 -> 111.45 | AG41: 国 有 | AK41: =データ一覧!F273 -> 39306.54 | AO41: 電気機械 | AX41: =データ一覧!F353 -> 59 | BB41: =+データ一覧!F378 -> 3123 | BI41: =データ一覧!F403 -> 21140987 | BP41: 障害者自立支援法施行前からの身体障害者福祉施設 | BX41: =データ一覧!F561 -> 2 | CB41: =データ一覧!F574 -> 0 | CH41: 婦人保護施設 | CP41: =データ一覧!F567 -> 1 | CT41: =データ一覧!F580 -> 15
A42: 人 | B42: ・ | C42: 男 | E42: =データ一覧!F83 -> 44293 | H42: =データ一覧!F84 -> 35666 | K42: =データ一覧!F85 -> 33258 | N42: =データ一覧!F86 -> 40897 | Q42: =データ一覧!F87 -> 53212 | T42: =データ一覧!F88 -> 46647 | W42: =データ一覧!F89 -> 100988 | Z42: 無立木地 未立木地 | AD42: =データ一覧!F272 -> 7961.57 | AG42: 公 有 | AK42: =データ一覧!F274 -> 38816.73 | AO42: 情報通信機械 | AX42: =データ一覧!F354 -> 3 | BB42: =+データ一覧!F379 -> 322 | BI42: =データ一覧!F404 -> 827201 | CH42: その他の社会福祉施設 | CP42: =データ一覧!F568+データ一覧!F569 -> 17 | CT42: =SUM(データ一覧!F581,データ一覧!F582) -> 0
A43: 口 | B43: =+RIGHT(データ一覧!$A$83,1) -> 1 | C43: 女 | E43: =データ一覧!F91 -> 42029 | H43: =データ一覧!F92 -> 32233 | K43: =データ一覧!F93 -> 29859 | N43: =データ一覧!F94 -> 39226 | Q43: =データ一覧!F95 -> 50865 | T43: =データ一覧!F96 -> 47720 | W43: =データ一覧!F97 -> 131147 | AG43: 私 有 | AK43: =データ一覧!F275 -> 233941 | AO43: 輸送機械 | AX43: =データ一覧!F355 -> 26 | BB43: =+データ一覧!F380 -> 4455 | BI43: =データ一覧!F405 -> x | BP43: 障害福祉サービス事業所 | BX43: =データ一覧!F562 -> 643 | CB43: =データ一覧!F575 -> 8121
Z44: 林 産 物 生 産 量 | AJ44: =データ一覧!$A$276 -> 5年中 | AO44: その他 | AX44: =データ一覧!F356 -> 234 | BB44: =+データ一覧!F381 -> 5222 | BI44: =データ一覧!F406 -> 8256813 | BP44: １７ 教 育 | CD44: =データ一覧!$A$583 -> 6.5.1
A45: 人口動態 | H45: 自 然 動 態 | N45: 社 会 動 態 | T45: =データ一覧!$A78 -> 5.1.1～5.12.31 | Z45: 生椎茸 | AD45: =データ一覧!F276 -> 167545 | AF45: ㎏ | AG45: 乾椎茸 | AK45: =データ一覧!F277 -> 3274 | AM45: ㎏
C46: 区 分 | H46: 出 生 | K46: 死 亡 | N46: 転 入 | Q46: 転 出 | T46: 婚 姻 | W46: 離 婚 | Z46: えのきだけ | AD46: =データ一覧!F279 -> 38 | AF46: ㎏ | AG46: なめこ | AK46: =データ一覧!F278 -> 21073 | AM46: ㎏ | AO46: 工 業 用 水 量 | AU46: （従業者30人以上の事業所） | BF46: =データ一覧!F407 -> 274156 | BK46: ㎥／日 | BZ46: 学校数（校） | CG46: 教員数（人） | CO46: 学生・生徒・児童数（人）
A47: =LEFT(データ一覧!$A74,6) -> 5.10.1 | H47: 人 | K47: 人 | N47: 人 | Q47: 人 | U47: 件 | X47: 件 | Z47: ひらたけ | AD47: =+データ一覧!F280 -> 6688 | AF47: ㎏ | AG47: まいたけ | AK47: =+データ一覧!F281 -> 115332 | AM47: ㎏ | BR47: 区分 | BZ47: 本 校 | CC47: 分 校 | CF47: 本 務 | CJ47: 兼 務 | CN47: 総 数 | CR47: 男 | CV47: 女
A48: ～ | C48: 実 数 | H48: =データ一覧!F74 -> 4528 | K48: =データ一覧!F75 -> 10580 | N48: =データ一覧!F76 -> 23770 | Q48: =データ一覧!F77 -> 23595 | T48: =データ一覧!F78 -> 2620 | W48: =データ一覧!F79 -> 942 | AN48: １１ 上 ・ 下 水 道 | BQ48: 小学校 | BZ48: =データ一覧!F584 -> 190 | CC48: =データ一覧!F585 -> 1 | CF48: =データ一覧!F586 -> 3122 | CJ48: =データ一覧!F587 -> 501 | CN48: =データ一覧!F588 -> 36755 | CR48: =データ一覧!F589 -> 18874 | CV48: =データ一覧!F590 -> 17881
A49: =RIGHT(データ一覧!$A76,6) -> 6.9.30 | C49: 比率(対1,000人) | H49: =+H48/I36*1000 -> 5.904574872 | K49: =+K48/I36*1000 -> 13.7964669 | N49: - | Q49: - | T49: =+T48/I36*1000 -> 3.416516379 | W49: =+W48/I36*1000 -> 1.22838108 | Z49: ６ 漁 業 | BQ49: 中学校 | BZ49: =データ一覧!F592 -> 74 | CC49: =データ一覧!F593 -> 2 | CF49: =データ一覧!F594 -> 1797 | CJ49: =データ一覧!F595 -> 351 | CN49: =データ一覧!F596 -> 20102 | CR49: =データ一覧!F597 -> 10320 | CV49: =データ一覧!F598 -> 9782
AN50: 水 道 供 給 人 口 | AU50: 上 水 道 | AY50: 簡易水道 | BC50: 専用水道 | BG50: 飲料水供給施設 | BK50: 下水道処理人口 | BQ50: 高等学校 | BZ50: =データ一覧!F600 -> 32 | CC50: =データ一覧!F601 -> 0 | CF50: =データ一覧!F602 -> 1636 | CJ50: =データ一覧!F603 -> 645 | CN50: =データ一覧!F604 -> 20181 | CR50: =データ一覧!F605 -> 10201 | CV50: =データ一覧!F606 -> 9980
A51: ３ 事 業 所（民 営） | L51: 3.6.1 | Z51: 漁船隻数・トン数 | AD51: =データ一覧!$A$282 -> 5.12.31 | AH51: 動 力 船 | AN51: =データ一覧!$A$408 -> 6.3.31 | AT51: 人 | AV51: =データ一覧!F408 -> 682254 | AY51: =データ一覧!F409 -> 40837 | BD51: =データ一覧!F410 -> 1212 | BH51: =データ一覧!F411 -> 1038 | BL51: =データ一覧!F412 -> 626538 | BQ51: 大学・短期大学 | BZ51: =データ一覧!F607 -> 9 | CC51: =データ一覧!F608 -> 3 | CF51: =データ一覧!F609 -> 1083 | CJ51: =データ一覧!F610 -> 604 | CN51: =データ一覧!F611 -> 11287 | CR51: =データ一覧!F612 -> 6769 | CV51: =データ一覧!F613 -> 4518
Z52: 無動力船隻数 | AD52: 船外機付漁船隻数 | AH52: 隻 数 | AK52: 総 ト ン 数 | BQ52: 高等専門学校 | BZ52: =データ一覧!F614 -> 1 | CC52: =データ一覧!F615 -> 0 | CF52: =データ一覧!F616 -> 77 | CJ52: =データ一覧!F617 -> 42 | CN52: =データ一覧!F618 -> 1063 | CR52: =データ一覧!F619 -> 828 | CV52: =データ一覧!F620 -> 235
H53: 総 数 | N53: 民 営 | T53: 国 ･ 地方公共団体 | AC53: 隻 | AG53: 隻 | AJ53: 隻 | AM53: t | AN53: １２ 交 通 ・ 通 信 | BQ53: 特別支援学校 | BZ53: =+データ一覧!F622 -> 12 | CC53: =+データ一覧!F623 -> 0 | CF53: =+データ一覧!F624 -> 754 | CJ53: =+データ一覧!F625 -> 67 | CN53: =+データ一覧!F626 -> 1011 | CR53: =+データ一覧!F627 -> 649 | CV53: =+データ一覧!F628 -> 362
A54: 区 分 | H54: 事業所数 | K54: 従業者数 | N54: 事業所数 | Q54: 従業者数 | T54: 事業所数 | W54: 従業者数 | Z54: =データ一覧!$F$282 -> 50 | AD54: =データ一覧!$F$283 -> 976 | AH54: =データ一覧!F284 -> 857 | AK54: =データ一覧!F285 -> 5130.84 | BQ54: 幼稚園 | BZ54: =データ一覧!F630 -> 58 | CC54: =データ一覧!F631 -> 0 | CF54: =データ一覧!F632 -> 164 | CJ54: =データ一覧!F633 -> 41 | CN54: =データ一覧!F634 -> 714 | CR54: =データ一覧!F635 -> 355 | CV54: =データ一覧!F636 -> 359
K55: 人 | Q55: 人 | W55: 人 | Z55: 男女別就業者数 | AH55: =データ一覧!$A$286 -> 5.11.1 | AN55: 道 路 | AR55: 実 延 長 | AV55: 国 道 | AZ55: 県 道 | BD55: 市町道 | BH55: 鉄 道 営 業 キ ロ 数 | BQ55: 幼保連携認定こども園 | BZ55: =データ一覧!F638 -> 154 | CC55: =データ一覧!F639 -> 1 | CF55: =データ一覧!F640 -> 2864 | CJ55: =データ一覧!F641 -> 471 | CN55: =データ一覧!F642 -> 15477 | CR55: =データ一覧!F643 -> 8003 | CV55: =データ一覧!F644 -> 7474
A56: 総数 | H56: =データ一覧!F99 -> … | K56: =データ一覧!F156 -> … | N56: =データ一覧!F100 -> 39859 | Q56: =データ一覧!F157 -> 373974 | T56: =データ一覧!F101 -> … | W56: =データ一覧!F158 -> … | Z56: 総 数 | AF56: 男 | AJ56: 女 | AN56: =データ一覧!$A$413 -> 5.4.1 | AR56: =データ一覧!F413 -> 10787.2 | AU56: ㎞ | AV56: =データ一覧!F414 -> 591.7 | AY56: ㎞ | AZ56: =データ一覧!F415 -> 1584.9 | BC56: ㎞ | BD56: =データ一覧!F416 -> 8610.6 | BG56: km | BH56: =データ一覧!$A$417 -> 6.4.1 | BL56: =データ一覧!F417 -> 74.4 | BO56: ㎞ | BQ56: 各種学校 | BZ56: =データ一覧!F646 -> 12 | CC56: =データ一覧!F647 -> 0 | CF56: =データ一覧!F648 -> 234 | CJ56: =データ一覧!F649 -> 11 | CN56: =データ一覧!F650 -> 1881 | CR56: =データ一覧!F651 -> 1275 | CV56: =データ一覧!F652 -> 606
A57: 農林漁業 | H57: =データ一覧!F102 -> … | K57: =データ一覧!F159 -> … | N57: =データ一覧!F103 -> 540 | Q57: =データ一覧!F160 -> 7116 | T57: =データ一覧!F104 -> … | W57: =データ一覧!F161 -> … | AE57: 人 | AH57: 人 | AM57: 人 | AN57: 自動車 | AW57: 乗用車 | BQ57: 専修学校 | BZ57: =データ一覧!F654 -> 18 | CC57: =データ一覧!F655 -> 0 | CF57: =データ一覧!F656 -> 149 | CJ57: =データ一覧!F657 -> 369 | CN57: =データ一覧!F658 -> 1596 | CR57: =データ一覧!F659 -> 473 | CV57: =データ一覧!F660 -> 1123
A58: 鉱業 | H58: =データ一覧!F105 -> … | K58: =データ一覧!F162 -> … | N58: =データ一覧!F106 -> 16 | Q58: =データ一覧!F163 -> 121 | T58: =データ一覧!F107 -> … | W58: =データ一覧!F164 -> … | Z58: =データ一覧!F286 -> 1060 | AF58: =データ一覧!F287 -> 0 | AJ58: =データ一覧!F288 -> 0 | AN58: 台 数 | AR58: 貨 物 | AV58: 普 通 | AZ58: 小 型 | BD58: 乗 合 | BG58: 特 種 | BJ58: 小型二輪 | BM58: 軽自動車 | BP58: １８ 衛 生
A59: 建設業 | H59: =データ一覧!F108 -> … | K59: =データ一覧!F165 -> … | N59: =データ一覧!F109 -> 4521 | Q59: =データ一覧!F166 -> 31696 | T59: =データ一覧!F110 -> … | W59: =データ一覧!F167 -> … | Z59: 海 面 漁 業 漁 獲 量 （属人） | AH59: =データ一覧!$A$289 -> 30年中 | AN59: =データ一覧!$A$418 -> 6.3.31 | AS59: =データ一覧!F418 -> 44717 | AW59: =データ一覧!F420 -> 158868 | BA59: =データ一覧!F421 -> 143478 | BD59: =データ一覧!F419 -> 1719 | BG59: =データ一覧!F422 -> 15312 | BJ59: =データ一覧!F423 -> 9427 | BM59: =データ一覧!F424 -> 289841
A60: 製造業 | H60: =データ一覧!F111 -> … | K60: =データ一覧!F168 -> … | N60: =データ一覧!F112 -> 4746 | Q60: =データ一覧!F169 -> 80836 | T60: =データ一覧!F113 -> … | W60: =データ一覧!F170 -> … | AF60: ｔ | AM60: t | AR60: 郵 便 局 数 | BF60: =+MID(データ一覧!$A$428,3,2) -> 3. | BG60: 令 | BH60: 一般加入 | BL60: ＩＮＳネット | BT60: 医療関係施設 | BZ60: =データ一覧!$A$661 -> 5.10.1 | CG60: および医療関係者数 | CO60: =データ一覧!$A$666 -> 4.12.31
A61: 電気・ｶﾞ ｽ・熱供給・水道業 | H61: =データ一覧!F114 -> … | K61: =データ一覧!F171 -> … | N61: =データ一覧!F115 -> 51 | Q61: =データ一覧!F172 -> 3576 | T61: =データ一覧!F116 -> … | W61: =データ一覧!F173 -> … | Z61: 総 数 | AD61: =データ一覧!F289 -> 11317 | AG61: 藻 類 | AK61: =データ一覧!F292 -> 50 | AN61: 通 信 | AR61: 総 数 | AW61: 郵 便 局 | BB61: 簡 易 局 | BF61: ・ | BG61: =+LEFT(データ一覧!$A$428,1) -> 6 | BH61: 電話数 | BL61: 加入数 | BW61: 病 | BZ61: 院 | CH61: 一般診療所 | CT61: 歯科診療所
A62: 情報通信業 | H62: =データ一覧!F117 -> … | K62: =データ一覧!F174 -> … | N62: =データ一覧!F118 -> 341 | Q62: =データ一覧!F175 -> 5157 | T62: =データ一覧!F119 -> … | W62: =データ一覧!F176 -> … | Z62: 魚 類 | AD62: =データ一覧!F290 -> 8504 | AG62: そ の 他 | AK62: =データ一覧!F293 -> 2502 | AN62: =データ一覧!$A$428 -> 6.3.31 | AR62: =データ一覧!F425 -> 232 | AW62: =データ一覧!F426 -> 207 | BB62: =データ一覧!F427 -> 25 | BF62: =+RIGHT(データ一覧!$A$428,2) -> 31 | BG62: ・ | BH62: =データ一覧!F428 -> 57902 | BL62: =データ一覧!F429 -> 8064 | BQ62: 医療関係 | CC62: 一般病院 | CO62: 有 | CR62: 床
A63: 運輸業、郵便業 | H63: =データ一覧!F120 -> … | K63: =データ一覧!F177 -> … | N63: =データ一覧!F121 -> 847 | Q63: =データ一覧!F178 -> 16650 | T63: =データ一覧!F122 -> … | W63: =データ一覧!F179 -> … | Z63: 貝 類 | AD63: =データ一覧!F291 -> 261 | BQ63: 施設数 | BX63: =データ一覧!F661 -> 67 | CD63: =データ一覧!F662 -> 57 | CJ63: =データ一覧!F663 -> 574 | CP63: =データ一覧!F664 -> 45 | CV63: =データ一覧!F665 -> 291
A64: 卸売業、小売業 | H64: =データ一覧!F123 -> … | K64: =データ一覧!F180 -> … | N64: =データ一覧!F124 -> 9510 | Q64: =データ一覧!F181 -> 69965 | T64: =データ一覧!F125 -> … | W64: =データ一覧!F182 -> … | AN64: １３ 税 ・ 財 政 | BW64: 医師 | CB64: 歯科医師 | CG64: 薬剤師 | CL64: 保健師 | CQ64: 助産師 | CV64: 看護師
A65: 金融業、保険業 | H65: =データ一覧!F126 -> … | K65: =データ一覧!F183 -> … | N65: =データ一覧!F127 -> 726 | Q65: =データ一覧!F184 -> 8923 | T65: =データ一覧!F128 -> … | W65: =データ一覧!F185 -> … | Z65: ７ 商 業 | AG65: =データ一覧!$A$294 -> 3.6.1(令和2年実績） | BQ65: 医療 | BZ65: 人 | CE65: 人 | CJ65: 人 | CO65: 人 | CT65: 人 | CY65: 人
A66: 不動産業、物品賃貸業 | H66: =データ一覧!F129 -> … | K66: =データ一覧!F186 -> … | N66: =データ一覧!F130 -> 1461 | Q66: =データ一覧!F187 -> 5573 | T66: =データ一覧!F131 -> … | W66: =データ一覧!F188 -> … | AR66: 歳入 | BA66: (千円） | BF66: 歳出 | BO66: (千円） | BQ66: 関係者 | BV66: =データ一覧!F666 -> 2132 | CA66: =データ一覧!F667 -> 465 | CF66: =データ一覧!F668 -> 1500 | CK66: =データ一覧!F669 -> 528 | CP66: =データ一覧!F670 -> 258 | CU66: =データ一覧!F671 -> 11959
A67: 学術研究、専門・技術ｻｰﾋﾞｽ業 | H67: =データ一覧!F132 -> … | K67: =データ一覧!F189 -> … | N67: =データ一覧!F133 -> 1639 | Q67: =データ一覧!F190 -> 10426 | T67: =データ一覧!F134 -> … | W67: =データ一覧!F191 -> … | Z67: 産 業 分 類 | AD67: 事 業 所 数 | AG67: 従 業 者 数 | AJ67: 年 間 販 売 額 | AN67: 一人当たり歳入歳出予算決算額 | BY67: 死因別死亡数 | CO67: =データ一覧!$A$672 -> 5年中 | CX67: 単 位：人
A68: 宿泊業、飲食サービス業 | H68: =データ一覧!F135 -> … | K68: =データ一覧!F192 -> … | N68: =データ一覧!F136 -> 4759 | Q68: =データ一覧!F193 -> 29487 | T68: =データ一覧!F137 -> … | W68: =データ一覧!F194 -> … | AI68: 人 | AK68: 百万円 | AN68: 区分 | AR68: =データ一覧!$A$438 -> 6年度 | AW68: =データ一覧!$A$452 -> 5年度 | BB68: 区分 | BF68: =+AR68 -> 6年度 | BK68: =データ一覧!$A$452 -> 5年度 | BP68: 死 因 | CB68: 悪 性 | CE68: 高血圧 | CK68: 脳血管 | CT68: 不慮の事故
A69: 生活関連サービス業、娯楽業 | H69: =データ一覧!F138 -> … | K69: =データ一覧!F195 -> … | N69: =データ一覧!F139 -> 3366 | Q69: =データ一覧!F196 -> 12821 | T69: =データ一覧!F140 -> … | W69: =データ一覧!F197 -> … | Z69: 総 計 | AD69: =データ一覧!F294 -> 8369 | AG69: =データ一覧!F303 -> 59927 | AJ69: =データ一覧!F312 -> 1941283 | AR69: =データ一覧!F434 -> 583203.0186 | AW69: =データ一覧!F435 -> 640805.5221 | BF69: =データ一覧!F436 -> 583203.0186 | BK69: =データ一覧!F437 -> 615837.1781 | BU69: 全 死 因 | BY69: 結 核 | CB69: 新生物 | CE69: 性疾患 | CH69: 心疾患 | CK69: 疾 患 | CN69: 肺 炎 | CQ69: 老 衰 | CW69: 交通事故
A70: 教育、学習支援業 | H70: =データ一覧!F141 -> … | K70: =データ一覧!F198 -> … | N70: =データ一覧!F142 -> 1049 | Q70: =データ一覧!F199 -> 11530 | T70: =データ一覧!F143 -> … | W70: =データ一覧!F200 -> … | Z70: 卸売業 | AD70: =データ一覧!F295 -> 2050 | AG70: =データ一覧!F304 -> 17018 | AJ70: =データ一覧!F313 -> 1123737 | AN70: 項目別歳入歳出予算決算額
A71: 医療、福祉 | H71: =データ一覧!F144 -> … | K71: =データ一覧!F201 -> … | N71: =データ一覧!F145 -> 2586 | Q71: =データ一覧!F202 -> 47484 | T71: =データ一覧!F146 -> … | W71: =データ一覧!F203 -> … | Z71: 小売業 | AD71: =データ一覧!F296 -> 6319 | AG71: =データ一覧!F305 -> 42909 | AJ71: =データ一覧!F314 -> 817545 | AN71: 区分 | AR71: =データ一覧!$A$438 -> 6年度 | AW71: =データ一覧!$A$452 -> 5年度 | BB71: 区分 | BF71: =+AR71 -> 6年度 | BK71: =データ一覧!$A$452 -> 5年度 | BU71: =データ一覧!F672 -> 10426 | BY71: － | BZ71: =データ一覧!F673 -> 7 | CB71: =データ一覧!F674 -> 2367 | CF71: =データ一覧!F675 -> 61 | CH71: =データ一覧!F676 -> 1606 | CK71: =データ一覧!F677 -> 725 | CN71: =データ一覧!F678 -> 569 | CQ71: =データ一覧!F679 -> 1272 | CT71: =データ一覧!F680 -> 347 | CW71: =データ一覧!F681 -> 26
A72: 複合サービス事業 | H72: =データ一覧!F147 -> … | K72: =データ一覧!F204 -> … | N72: =データ一覧!F148 -> 328 | Q72: =データ一覧!F205 -> 4222 | T72: =データ一覧!F149 -> … | W72: =データ一覧!F206 -> … | Z72: 各種商品 | AD72: =データ一覧!F297 -> 24 | AG72: =データ一覧!F306 -> 1577 | AJ72: =データ一覧!F315 -> 41446 | AN72: 総額 | AR72: =SUM(AR73:AV85) -> 430806821 | AW72: =SUM(AW73:BA85) -> 477123286 | BB72: 総額 | BF72: =SUM(BF73:BJ85) -> 430806821 | BK72: =SUM(BK73:BO85) -> 458532656 | BP72: １９ 警 察 ・ 消 防 | CE72: =+データ一覧!$A682 -> 6.4.1
A73: サービス業 | H73: =データ一覧!F150 -> … | K73: =データ一覧!F207 -> … | N73: =データ一覧!F151 -> 3373 | Q73: =データ一覧!F208 -> 28391 | T73: =データ一覧!F152 -> … | W73: =データ一覧!F209 -> … | Z73: 織物・衣服・身の回り品 | AD73: =データ一覧!F298 -> 858 | AG73: =データ一覧!F307 -> 2827 | AJ73: =データ一覧!F316 -> 31583 | AN73: 地方税 | AR73: =データ一覧!F439 -> 128511152 | AW73: =データ一覧!F453 -> 135244832 | BB73: 議会費 | BF73: =データ一覧!F467 -> 3108777 | BK73: =データ一覧!F481 -> 3016030
A74: 公務 | H74: =データ一覧!F153 -> … | K74: =データ一覧!F210 -> … | N74: =データ一覧!F154 -> … | Q74: =データ一覧!F211 -> … | T74: =データ一覧!F155 -> … | W74: =データ一覧!F212 -> … | Z74: 飲食料品 | AD74: =データ一覧!F299 -> 1907 | AG74: =データ一覧!F308 -> 15901 | AJ74: =データ一覧!F317 -> 228815 | AN74: 地方譲与税 | AR74: =データ一覧!F440 -> 3639223 | AW74: =データ一覧!F454 -> 3537373 | BB74: 総務費 | BF74: =データ一覧!F468 -> 60543410 | BK74: =データ一覧!F482 -> 72403119 | BZ74: 交番・駐在所 | CI74: 刑法犯認知件数 | CR74: 交通人身事故発生件数
A75: ４ 農 業 | Z75: 機械器具 | AD75: =データ一覧!F300 -> 979 | AG75: =データ一覧!F309 -> 6300 | AJ75: =データ一覧!F318 -> 182138 | AN75: 各種交付金 | AR75: =データ一覧!F441 -> 23975165 | AW75: =データ一覧!F455 -> 24236342 | BB75: 民生費 | BF75: =データ一覧!F469 -> 140159707 | BK75: =データ一覧!F483 -> 143906943 | BQ75: 警察署数 | BZ75: 検問所数 | CJ75: =データ一覧!$A$684 -> 5年中 | CS75: =データ一覧!$A$684 -> 5年中
Z76: その他 | AD76: =データ一覧!F301 -> 2315 | AG76: =データ一覧!F310 -> 13955 | AJ76: =データ一覧!F319 -> 264391 | AN76: 地方特例交付金 | AR76: =データ一覧!F442 -> 3408336 | AW76: =データ一覧!F456 -> 883261 | BB76: 衛生費 | BF76: =データ一覧!F470 -> 41356258 | BK76: =データ一覧!F484 -> 35542487 | CN76: 件 | CW76: 件
C77: 農業経営体数 | J77: 農産物販売額規模別経営体数 | R77: 経営耕地面積規模別経営体数 | Z77: 無店舗 | AD77: =データ一覧!F302 -> 236 | AG77: =データ一覧!F311 -> 2349 | AJ77: =データ一覧!F320 -> 69173 | AN77: 地方交付税 | AR77: =データ一覧!F443 -> 75415000 | AW77: =データ一覧!F457 -> 80067785 | BB77: 労働費 | BF77: =データ一覧!F471 -> 1181626 | BK77: =データ一覧!F485 -> 1199209 | BR77: =データ一覧!F682 -> 11 | CA77: =データ一覧!F683 -> 136 | CJ77: =データ一覧!F684 -> 2840 | CS77: =データ一覧!F685 -> 986
A78: 農 | C78: 区 分 | G78: 経営体数 （経営体） | J78: 区 分 | O78: 経営体数 （経営体） | R78: 区 分 | W78: 経営体数 （経営体） | AN78: 分担金および負担金 | AR78: =データ一覧!F444 -> 1483859 | AW78: =データ一覧!F458 -> 2812207 | BB78: 農林水産業費 | BF78: =データ一覧!F472 -> 19595273 | BK78: =データ一覧!F486 -> 20171202 | BP78: 火災発生件数 | BZ78: 林野焼損 | CE78: 損 害 | CJ78: 消 防 自 | CN78: その他の
A79: 業 | B79: 令 | Z79: ８ 住 宅 | AN79: 使用料および手数料 | AR79: =データ一覧!F445 -> 4412662 | AW79: =データ一覧!F459 -> 4416661 | BB79: 商工費 | BF79: =データ一覧!F473 -> 18997974 | BK79: =データ一覧!F487 -> 20415802 | BP79: =+データ一覧!$A$686 -> 5年中 | BU79: 焼損棟数 | BZ79: 面 積 | CE79: 見 積 額 | CJ79: 動 車 数 | CN79: ﾎﾟﾝﾌﾟ数 | CR79: 消防吏員 | CV79: 消防団員
A80: 経 | B80: =+LEFT(データ一覧!$A$213) -> 2 | C80: 計 | G80: =データ一覧!F213 -> 10546 | J80: 総 数 | O80: =データ一覧!F217 -> 10546 | R80: 総 数 | W80: =データ一覧!F233 -> 32792 | AN80: 国庫支出金 | AR80: =データ一覧!F446 -> 61792215 | AW80: =データ一覧!F460 -> 78076891 | BB80: 土木費 | BF80: =データ一覧!F474 -> 40823260 | BK80: =データ一覧!F488 -> 54033366 | BP80: 件 | BV80: 棟 | CC80: ａ | CG80: 千円 | CT80: 人 | CX80: 人
A81: 営 | B81: ・ | C81: 個人経営体 | G81: =データ一覧!F214 -> 9871 | J81: 販 売 な し | O81: =データ一覧!F218 -> 706 | R81: 0.5 ha 未満 | W81: =データ一覧!F234 -> 728 | Z81: =+データ一覧!$A$321 -> 4年 | AE81: =データ一覧!$A$324 -> 5年 | AF81: 中の増減 | AJ81: =+データ一覧!$A$324 -> 5年 | AN81: 県支出金 | AR81: =データ一覧!F447 -> 42233639 | AW81: =データ一覧!F461 -> 42612917 | BB81: 消防費 | BF81: =データ一覧!F475 -> 14975478 | BK81: =データ一覧!F489 -> 14027398 | BQ81: =データ一覧!F686 -> 174 | BV81: =データ一覧!F687 -> 176 | CA81: =データ一覧!F688 -> 14 | CE81: =データ一覧!F689 -> 1266774 | CK81: =データ一覧!F690 -> 257 | CO81: =データ一覧!F691 -> 386 | CS81: =データ一覧!F692 -> 1250 | CW81: =データ一覧!F693 -> 5826
A82: 体 | B82: =+LEFT(データ一覧!$A$213,1) -> 2 | C82: 団体経営体 | G82: =データ一覧!F215 -> 675 | J82: 50万円未満 | O82: =データ一覧!F219 -> 3648 | R82: 0.5 ha ～ 1.0 ha | W82: =データ一覧!F235 -> 2338 | AD82: 建設した住宅 | AG82: 消失した住宅 | AN82: 財産収入 | AR82: =データ一覧!F448 -> 1098770 | AW82: =データ一覧!F462 -> 1333959 | BB82: 教育費 | BF82: =データ一覧!F476 -> 48644124 | BK82: =データ一覧!F490 -> 51099393 | BP82: ２０ そ の 他 （令6．4．1）
A83: 数 | B83: ・ | D83: 法人経営 | G83: =データ一覧!F216 -> 414 | J83: 50～300万円 | O83: =データ一覧!F220 -> 4670 | R83: 1.0 ha ～ 2.0 ha | W83: =データ一覧!F236 -> 4042 | AN83: 繰入金 | AR83: =データ一覧!F449 -> 26100323 | AW83: =データ一覧!F463 -> 19876699 | BB83: 災害復旧費 | BF83: =データ一覧!F477 -> 298734 | BK83: =データ一覧!F491 -> 3408218
A84: （ | B84: =+RIGHT(データ一覧!$A$213) -> 1 | J84: 300～500万円 | O84: =データ一覧!F221 -> 431 | R84: 2.0 ha ～ 3.0 ha | W84: =データ一覧!F237 -> 1968 | AA84: =データ一覧!F321 -> 313349 | AC84: 戸 | AD84: =データ一覧!F322 -> 4444 | AF84: 戸 | AG84: =データ一覧!F323 -> 2431 | AI84: 戸 | AK84: =データ一覧!F324 -> 315362 | AM84: 戸 | AN84: 地方債 | AR84: =データ一覧!F450 -> 32950600 | AW84: =データ一覧!F464 -> 33991173 | BB84: 公債費 | BF84: =データ一覧!F478 -> 38852530 | BK84: =データ一覧!F492 -> 39307435
A85: 総 | J85: 500～1,000万円 | O85: =データ一覧!F222 -> 417 | R85: 3.0 ha ～ 5.0 ha | W85: =データ一覧!F238 -> 1473 | AN85: その他 | AR85: =データ一覧!F451 -> 25785877 | AW85: =データ一覧!F465 -> 50033186 | BB85: その他 | BF85: =データ一覧!F479 -> 2269670 | BK85: =データ一覧!F493 -> 2054 | BQ85: 県内文化財数 | CC85: 国指定 | CH85: 国選択・選定 | CO85: 国登録 | CU85: 県指定
A86: 数 | J86: 1,000万円以上 | O86: =データ一覧!F223 -> 674 | R86: 5.0 ha以上 | W86: =データ一覧!F239 -> 22242 | BQ86: 有形文化財 | CC86: 114 | CO86: 237 | CU86: 279
A87: ） | C87: 15歳以上の常雇い数 | J87: 農業に60日以上従事した世帯員、役員・構成員 （経営主を含む）の平均年齢 | Z87: ９ 議 員 ・ 職 員 | AN87: １４ 文 化 | AV87: ( | AW87: ="令"&データ一覧!$A$498 -> 令6.3.31 | AZ87: ただし図書館・公民館・児童館・ 社会教育学級講座 | BL87: =データ一覧!$A$494 -> 6.4.1 | BQ87: 無形文化財 | CC87: 2 | CU87: 4
A88: と | BA88: 宗教法人数 | BL88: =データ一覧!$A$502 -> 5.12.31 | BQ88: 民俗文化財 | CC88: 6 | CI88: 12 | CO88: 1 | CU88: 75
A89: 就 | J89: 農業に60日以上従事 | R89: 農業に150日以上従事 | Z89: 市 町 議 会 | AC89: 有権者数 | AE89: =データ一覧!$A$328 -> 6.9.1 | AG89: 市 町 議 会 | AJ89: 市町職員数 | AR89: 県立図書館 | AY89: 公 民 館 | BJ89: 社会教育学級講座 | BQ89: 天然記念物、史跡・名勝 | CC89: 62 | CO89: 3 | CU89: 67
A90: 業 | C90: 区分 | G90: 人 | J90: 区分 | O90: 歳 | R90: 区 分 | W90: 歳 | Z90: 議 員 定 数 | AC90: 男 | AE90: 女 | AG90: 選 挙 投 票 率 | AJ90: 総 数 | AL90: 一般行政職 | AN90: 公 共 | AR90: 館 数 | AU90: 図書数 | AX90: 本 館 | BA90: 分 館 | BD90: 公 園 | BG90: 児童館 | BJ90: 学級講座数 | BM90: 受講者数 | BQ90: 選定保存技術
A91: 状 | C91: 総数 | G91: =データ一覧!F230 -> 783 | J91: 総数 | O91: =データ一覧!F224 -> 67.9 | R91: 総数 | W91: =データ一覧!F227 -> 67.4 | AB91: 人 | AD91: 人 | AF91: 人 | AI91: ％ | AK91: 人 | AM91: 人 | AN91: 施 設 数 | AS91: =データ一覧!F494 -> 2 | AU91: =データ一覧!F495 -> 1404363 | AY91: =データ一覧!F496 -> 182 | BA91: =データ一覧!F497 -> 24 | BD91: =データ一覧!F498 -> 944 | BG91: =データ一覧!F499 -> 97 | BJ91: =データ一覧!F500 -> 10230 | BM91: =データ一覧!F501 -> 220460 | BQ91: 重要伝統的建造物群保存地区 | CI91: 3
A92: 況 | C92: 男 | G92: =データ一覧!F231 -> 489 | J92: 男 | O92: =データ一覧!F225 -> 67.1 | R92: 男 | W92: =データ一覧!F228 -> 66.7 | AA92: =データ一覧!F325 -> 283 | AC92: =データ一覧!F328 -> 301274 | AE92: =データ一覧!F329 -> 321086 | AG92: =データ一覧!F327 -> - | AJ92: =データ一覧!F330 -> 7856 | AL92: =データ一覧!F331 -> 4341 | AN92: 宗 教 | AR92: 仏教系 | AU92: ｷﾘｽﾄ教系 | AX92: 神道諸派 | BA92: 公会堂・市民会館 | BG92: テレビ | BJ92: 衛星放送契約数 | BQ92: 文化的景観 | CI92: 3
C93: 女 | G93: =データ一覧!F232 -> 294 | J93: 女 | O93: =データ一覧!F226 -> 69.7 | R93: 女 | W93: =データ一覧!F229 -> 69 | AN93: 法 人 数 | AR93: =データ一覧!F502 -> 1673 | AU93: =データ一覧!F503 -> 35 | AX93: =データ一覧!F504 -> 1805 | BA93: =データ一覧!F505 -> 45 | BG93: 等 | BJ93: =データ一覧!F506 -> 175543 | BQ93: その他

Sheet 福井市
A1: =+データ一覧!G2 -> 0
A2: =+データ一覧!G5 -> 0
AN3: 0
AB4: 【市章とそのいわれ】福井城内にあった「福ノ井」の井げたに、 | AN4: 【位置および地勢】福井市は、福井県の北部に位置し、面積は536.37平方㎞、東西に | BS4: 所在地 | CA4: 〒910-8511
AB5: 福井の旧称「北ノ庄」の北を組み合せ、古きを | AO5: 広がりのある形で、西方は日本海に臨み、奇岩で有名な越前海岸は風光明媚な | CA5: 福井市大手３丁目１０番１号
A6: =+データ一覧!G3 -> ふくいし | AB6: 生かし新しい時代への発展と繁栄を図案化した | AO6: 観光地となっている。市の西部と南東部は山岳地であるが、他のほとんどは平坦地で
A7: =データ一覧!G6 -> 福井市 | AB7: もの。 | AO7: 穀倉地帯となっている。市南東部の豊かな森林地帯に源を発する足羽川が市の中央部を | BS7: 電話番号 | CA7: （０７７６）２０－５１１１
AB8: 0 | AO8: 流れて、南越から市街地西側に流れ込む日野川と合流し、さらに市の北部を流れる本県
AB9: 0 | AO9: 最大河川の九頭竜川へと注いでいる。北陸新幹線が市街地の東側を走り、その東を
AB10: 0 | AO10: これに平行して国道８号と北陸自動車道が南北に貫いている。 | BS10: 最寄駅および距離 | CA10: ハピラインふくい福井駅 下車５００ｍ
AB11: 0 | AN11: 0
AB13: 【市が掲げる標語】みんなが輝く 全国に誇れる ふくい | BS13: ホームページ | CA13: https://www.city.fukui.lg.jp/
A15: １ 土 地 | Z15: =データ一覧!$A$240 -> 5年 | AA15: 産米収穫量 | AD15: 収 穫 量 | AG15: 作 付 面 積 | AJ15: 10a当たり収量 | BP15: １５ 労 働 | CE15: 2.10.1
AD16: =データ一覧!$G$240 -> 25400 | AF16: t | AG16: =データ一覧!$G$241 -> 4970 | AI16: ha | AJ16: =データ一覧!G242 -> 511 | AM16: kg | AN16: １０ 工 業 | BB16: =データ一覧!$A$332 -> 4.6.1（令和3年実績）
A17: 総 面 積 | K17: 固 定 資 産 概 要 調 書 に よ る 地 目 別 面 積 | AC17: 総 数 | AG17: うち 田 | AK17: うち 畑 | BW17: 産業別就業者数
C18: =データ一覧!$A$7 -> 6.10.1 | Q18: =データ一覧!$A$9 -> 6.1.1 | Z18: 耕 地 面 積 | AD18: ha | AG18: ha | AK18: ha | AO18: 産業分類 | AW18: 事業所数 | BB18: 従業者数 | BH18: 年間製造品出荷額等 | BQ18: 区 分 | BV18: 総 数 | CA18: 男 | CE18: 女 | CI18: 区 分 | CN18: 総 数 | CS18: 男 | CW18: 女
G19: ㎢ | K19: 総 数 | P19: う ち 田 | U19: う ち 畑 | Z19: =データ一覧!A243 -> 5.7.15 | AC19: =データ一覧!$G$243 -> 7730 | AF19: =データ一覧!$G$244 -> 7330 | AJ19: =データ一覧!$G$245 -> 404 | AZ19: 事業所 | BB19: 人 | BE19: 人 | BG19: 万円 | BN19: 万円 | BV19: 人 | CB19: 人 | CF19: 人 | CN19: 人 | CR19: 人 | CV19: 人
D20: =データ一覧!G7 -> 536.37 | O20: ha | T20: ha | Y20: ha | Z20: 農 業 生 産 物 | AD20: 作 付 面 積 | AG20: 収 穫 量 | AJ20: 10a当たり収量 | AO20: 総数 | AX20: =データ一覧!G332 -> 596 | BB20: =+データ一覧!G357 -> 17634 | BI20: =データ一覧!G382 -> 47878373 | BP20: 総 数 | BV20: =BZ20+CD20 -> 134244 | BZ20: =データ一覧!G507 -> 71774 | CD20: =データ一覧!G532 -> 62470
L21: =データ一覧!G9 -> 34945.8 | Q21: =データ一覧!G10 -> 7785.9 | V21: =データ一覧!G11 -> 826.6 | Z21: =データ一覧!$A$246 -> 5年産 | AD21: ha | AG21: t | AJ21: kg | AN21: 食料品 | AO21: 食料品 | AX21: =データ一覧!G333 -> 60 | BB21: =+データ一覧!G358 -> 1729 | BI21: =データ一覧!G383 -> 2683244 | CI21: 卸売業,小売業 | CN21: =CR21+CV21 -> 22424 | CR21: =データ一覧!G520 -> 11054 | CV21: =データ一覧!G545 -> 11370
A22: 町 ･ 丁 ･ 大 字 | K22: う ち 宅 地 | P22: う ち 山 林 | U22: う ち 原 野 | Z22: 水 稲 | AD22: =データ一覧!G246 -> 4970 | AG22: =データ一覧!G247 -> 25400 | AJ22: =データ一覧!G248 -> 511 | AN22: 飲料・飼料 | AO22: 飲料・飼料 | AX22: =データ一覧!G334 -> 11 | BB22: =+データ一覧!G359 -> 71 | BI22: =データ一覧!G384 -> 42622 | BP22: 第１次産業 | BV22: =BZ22+CD22 -> 2504 | BZ22: =データ一覧!G508 -> 1753 | CD22: =データ一覧!G533 -> 751 | CI22: 金融業,保険業 | CN22: =CR22+CV22 -> 3986 | CR22: =データ一覧!G521 -> 1655 | CV22: =データ一覧!G546 -> 2331
A23: 区 画 数 | H23: =データ一覧!G8 -> 736 | O23: ha | T23: ha | Y23: ha | Z23: 六 条 大 麦 | AD23: =データ一覧!G249 -> 1020 | AG23: =データ一覧!G250 -> 3090 | AJ23: =データ一覧!G251 -> 303 | AN23: 繊維 | AO23: 繊維 | AX23: =データ一覧!G335 -> 143 | BB23: =+データ一覧!G360 -> 4610 | BI23: =データ一覧!G385 -> 8433420 | BQ23: 農業 | BV23: =BZ23+CD23 -> 2269 | BZ23: =データ一覧!G509 -> 1559 | CD23: =データ一覧!G534 -> 710 | CI23: 不動産業 | CN23: 2120 | CR23: =データ一覧!G522 -> 1176 | CV23: =データ一覧!G547 -> 944
A24: =データ一覧!$A$8 -> 5.4.1 | L24: =データ一覧!G12 -> 4937.1 | Q24: =データ一覧!G13 -> 17453.5 | V24: =データ一覧!G14 -> 102.3 | Z24: 大 豆 | AD24: =データ一覧!G252 -> 466 | AG24: =データ一覧!G253 -> 555 | AJ24: =データ一覧!G254 -> 119 | AN24: 衣服 | AO24: 木材 | AX24: =データ一覧!G336 -> 19 | BB24: =+データ一覧!G361 -> 401 | BI24: =データ一覧!G386 -> 4869803 | BQ24: 林業 | BV24: 165 | BZ24: =データ一覧!G510 -> 131 | CD24: =データ一覧!G535 -> 34 | CI24: 学術研究 | CN24: 4182 | CR24: =データ一覧!G523 -> 2486 | CV24: =データ一覧!G548 -> 1696
A25: ２ 世 帯 数 と 人 口 | AB25: 区 分 | AD25: 乳 用 牛 | AF25: 肉 用 牛 | AH25: 豚 | AJ25: 採卵鶏 | AL25: ブロイラー | AN25: 木材 | AO25: 家具 | AX25: =データ一覧!G337 -> 13 | BB25: =+データ一覧!G362 -> 287 | BI25: =データ一覧!G387 -> 439312 | BQ25: 漁業 | BV25: 70 | BZ25: =データ一覧!G511 -> 63 | CD25: =データ一覧!G536 -> 7 | CI25: 宿泊業,飲食ｻｰﾋﾞｽ | CN25: 7058 | CR25: =データ一覧!G524 -> 2749 | CV25: =データ一覧!G549 -> 4309
Z26: 畜 産 | AB26: 飼養農家 | AD26: =データ一覧!$G$255 -> 3 | AF26: =データ一覧!$G$257 -> 5 | AH26: =データ一覧!$G$259 -> 0 | AJ26: =データ一覧!$G$261 -> 6 | AL26: =データ一覧!$G$263 -> x | AN26: 家具 | AO26: パルプ・紙 | AX26: =データ一覧!G338 -> 20 | BB26: =+データ一覧!G363 -> 307 | BI26: =データ一覧!G388 -> 649110 | BP26: 第２次産業 | BV26: 33779 | BZ26: =データ一覧!G512 -> 23835 | CD26: =データ一覧!G537 -> 9944 | CI26: 生活関連ｻｰﾋﾞｽ業 | CN26: 4687 | CR26: =データ一覧!G525 -> 1850 | CV26: =データ一覧!G550 -> 2837
I27: 人 口 | U27: １世帯当 | W27: 人 口 | Z27: =データ一覧!$A$255 -> 6.3.31 | AB27: （戸） | AN27: パルプ・紙 | AO27: 印刷 | AX27: =データ一覧!G339 -> 45 | BB27: =+データ一覧!G364 -> 913 | BI27: =データ一覧!G389 -> 1221005 | BQ27: 鉱業，採石業 | BV27: 18 | BZ27: =データ一覧!G513 -> 13 | CD27: =データ一覧!G538 -> 5 | CI27: 教育,学習支援業 | CN27: 7790 | CR27: =データ一覧!G526 -> 2995 | CV27: =データ一覧!G551 -> 4795
A28: 区 分 | F28: 世帯数 | I28: 総 数 | L28: 男 | O28: 女 | R28: 男／女 | U28: たり人員 | W28: 密 度 | AB28: 頭 羽 | AD28: =データ一覧!$G$256 -> 146 | AF28: =データ一覧!$G$258 -> 261 | AH28: =データ一覧!$G$260 -> 0 | AJ28: =データ一覧!$G$262 -> 6451 | AL28: =データ一覧!$G$264 -> 27000 | AN28: 出版・印刷 | AO28: 化学 | AX28: =データ一覧!G340 -> 21 | BB28: =+データ一覧!G365 -> 1567 | BI28: =データ一覧!G390 -> 9296058 | BQ28: 建設業 | BV28: 11456 | BZ28: =データ一覧!G514 -> 9394 | CD28: =データ一覧!G539 -> 2062 | CI28: 医療，福祉 | CN28: 18536 | CR28: =データ一覧!G527 -> 4479 | CV28: =データ一覧!G552 -> 14057
F29: 世 帯 | I29: 人 | L29: 人 | O29: 人 | S29: ％ | U29: 人 | W29: 人/㎢ | AN29: 化学 | AO29: 石油・石炭 | AX29: =データ一覧!G341 -> 4 | BB29: =+データ一覧!G366 -> 42 | BI29: =データ一覧!G391 -> 290420 | BQ29: 製造業 | BV29: 22305 | BZ29: =データ一覧!G515 -> 14428 | CD29: =データ一覧!G540 -> 7877 | CI29: 複合サービス事業 | CN29: 1330 | CR29: =データ一覧!G528 -> 763 | CV29: =データ一覧!G553 -> 567
A30: =データ一覧!$A$22 -> 2.10.1 | F30: =データ一覧!G22 -> 81287 | I30: =+L30+O30 -> 270911 | L30: =データ一覧!G24 -> 131608 | O30: =データ一覧!G25 -> 139303 | S30: =+L30/O30*100 -> 94.47607015 | U30: =データ一覧!G27 -> 3.33 | W30: =データ一覧!G21 -> 0 | Z30: ５ 林 業 | AN30: 石油・石炭 | AO30: プラスチック | AX30: =データ一覧!G342 -> 42 | BB30: =+データ一覧!G367 -> 1467 | BI30: =データ一覧!G392 -> 4083165 | BP30: 第３次産業 | BV30: 93861 | BZ30: =データ一覧!G516 -> 44070 | CD30: =データ一覧!G541 -> 49791 | CI30: サービス業 | CN30: 7476 | CR30: =データ一覧!G529 -> 4492 | CV30: =データ一覧!G554 -> 2984
A31: =データ一覧!$A$29 -> 7.10.1 | F31: =データ一覧!G29 -> 87719 | I31: =+L31+O31 -> 272970 | L31: =データ一覧!G31 -> 133444 | O31: =データ一覧!G32 -> 139526 | S31: 95.64095581 | U31: =データ一覧!G34 -> 3.11 | W31: =データ一覧!G28 -> 0 | AN31: プラスチック | AO31: ゴム | AX31: =データ一覧!G343 -> 3 | BB31: =+データ一覧!G368 -> 59 | BI31: =データ一覧!G393 -> 93503 | BQ31: 電気･ｶﾞｽ･水道業 | BV31: 609 | BZ31: =データ一覧!G517 -> 494 | CD31: =データ一覧!G542 -> 115 | CI31: 公務 | CN31: 5118 | CR31: =データ一覧!G530 -> 3495 | CV31: =データ一覧!G555 -> 1623
A32: =データ一覧!$A$36 -> 12.10.1 | F32: =データ一覧!G36 -> 89946 | I32: =+L32+O32 -> 269557 | L32: =データ一覧!G38 -> 131344 | O32: =データ一覧!G39 -> 138213 | S32: 95.03013465 | U32: =データ一覧!G41 -> 3 | W32: =データ一覧!G35 -> 0 | Z32: 森 林 総 面 積 | AH32: =データ一覧!$A$265 -> 5.3.31 | AN32: ゴム | AO32: 皮革 | AX32: =データ一覧!G344 -> 1 | BB32: =+データ一覧!G369 -> 26 | BI32: =データ一覧!G394 -> x | BQ32: 情報通信業 | BV32: 2921 | BZ32: =データ一覧!G518 -> 1944 | CD32: =データ一覧!G543 -> 977 | CH32: 分類不能の産業 | CN32: 4100 | CR32: =データ一覧!G531 -> 2116 | CV32: =データ一覧!G556 -> 1984
A33: =+データ一覧!$A$43 -> 17.10.1 | F33: =データ一覧!G43 -> 93694 | I33: =+L33+O33 -> 269144 | L33: =データ一覧!G45 -> 130834 | O33: =データ一覧!G46 -> 138310 | S33: 94.59475092 | U33: =データ一覧!G48 -> 2.87 | W33: =データ一覧!G49 -> 502 | Z33: 森 林 の 構 成 | AN33: 皮革 | AO33: 窯業・土石 | AX33: =データ一覧!G345 -> 18 | BB33: =+データ一覧!G370 -> 246 | BI33: =データ一覧!G395 -> 695249 | BQ33: 運輸業,郵便業 | BV33: =BZ33+CD33 -> 5624 | BZ33: =データ一覧!G519 -> 4438 | CD33: =データ一覧!G544 -> 1186
A34: =+データ一覧!$A$50 -> 22.10.1 | F34: =+データ一覧!G50 -> 97446 | I34: =+L34+O34 -> 266796 | L34: =+データ一覧!G52 -> 128692 | O34: =+データ一覧!G53 -> 138104 | S34: 93.1848462 | U34: =+データ一覧!G55 -> 2.74 | W34: =+データ一覧!G56 -> 497.6 | AE34: ha | AL34: ha | AN34: 窯業・土石 | AO34: 鉄鋼 | AX34: =データ一覧!G346 -> 9 | BB34: =+データ一覧!G371 -> 97 | BI34: =データ一覧!G396 -> 432812 | BP34: １６ 社 会 福 祉 | CF34: =データ一覧!$A$557 -> 6.4.1
A35: =データ一覧!$A$57 -> 27.10.1 | F35: =データ一覧!G57 -> 99872 | I35: =データ一覧!G58 -> 265904 | L35: =データ一覧!G59 -> 128892 | O35: =データ一覧!G60 -> 137012 | S35: 94.07351181 | U35: =データ一覧!G62 -> 2.662447933 | W35: =データ一覧!G63 -> 495.7 | Z35: 総 数 | AD35: =データ一覧!G265 -> 31955.22 | AG35: 天然林 針葉樹 | AK35: =データ一覧!G268 -> 750.5 | AN35: 鉄鋼 | AO35: 非鉄金属 | AX35: =データ一覧!G347 -> 6 | BB35: =+データ一覧!G372 -> 238 | BI35: =データ一覧!G397 -> 1572038
A36: 令 2.10.1（国調） | F36: =データ一覧!G64 -> 104470 | I36: =データ一覧!G65 -> 262328 | L36: =データ一覧!G66 -> 127867 | O36: =データ一覧!G67 -> 134461 | S36: =+L36/O36*100 -> 95.09597578 | U36: =データ一覧!G69 -> 2.511036661 | W36: =データ一覧!G70 -> 489.080299 | Z36: 人工林 針葉樹 | AD36: =データ一覧!G266 -> 19369.74 | AG36: 天然林 広葉樹 | AK36: =データ一覧!G269 -> 10923.51 | AN36: 非鉄金属 | AO36: 金属 | AX36: =データ一覧!G348 -> 53 | BB36: =+データ一覧!G373 -> 1270 | BI36: =データ一覧!G398 -> 3198379 | BQ36: 区分 | BX36: 施設数 | CC36: 収容定員 | CI36: 区分 | CP36: 施設数 | CU36: 収容定員
A37: 年 | C37: 区 | E37: 0歳 | H37: 15歳 | K37: 25歳 | N37: 35歳 | Q37: 45歳 | T37: 55歳 | W37: 65歳 | Z37: 人工林 広葉樹 | AD37: =データ一覧!G267 -> 72.27 | AG37: 竹 林 | AK37: =データ一覧!G270 -> 302.22 | AN37: 金属 | AO37: はん用機械 | AX37: =データ一覧!G349 -> 14 | BB37: =+データ一覧!G374 -> 175 | BI37: =データ一覧!G399 -> 350272 | BP37: 生活保護施設 | BX37: =データ一覧!G557 -> 1 | CB37: =データ一覧!G570 -> - | CF37: 人 | CH37: 指定障害者支援施設 | CP37: =データ一覧!G563 -> 8 | CT37: =データ一覧!G576 -> 465 | CX37: 人
A38: 齢 | B38: 令 | F38: ～ | I38: ～ | L38: ～ | O38: ～ | R38: ～ | U38: ～ | AN38: 一般機械 | AO38: 生産用機械 | AX38: =データ一覧!G350 -> 45 | BB38: =+データ一覧!G375 -> 1574 | BI38: =データ一覧!G400 -> 2689406 | BP38: 地域福祉施設 | BX38: =データ一覧!G558 -> - | CB38: =データ一覧!G571 -> - | CH38: 指定相談支援事業所 | CP38: =データ一覧!G564 -> 4 | CT38: =データ一覧!G577 -> -
A39: 階 | B39: =+LEFT(データ一覧!$A$83,1) -> 6 | C39: 分 | G39: 14歳 | J39: 24歳 | M39: 34歳 | P39: 44歳 | S39: 54歳 | V39: 64歳 | Y39: 以上 | Z39: 林 野 の 構 成 | AG39: 保 有 形 態 別 | AN39: 電気機械 | AO39: 業務用機械 | AX39: =データ一覧!G351 -> 4 | BB39: =+データ一覧!G376 -> 189 | BI39: =データ一覧!G401 -> 431149 | BP39: 老人福祉施設 | BX39: =データ一覧!G559 -> 62 | CB39: =データ一覧!G572 -> 1926 | CH39: 児童福祉施設 | CP39: =データ一覧!G565 -> 238 | CT39: =データ一覧!G578 -> 12153
A40: 級 | B40: ・ | G40: 人 | J40: 人 | L40: 人 | O40: 人 | R40: 人 | U40: 人 | X40: 人 | AF40: ha | AL40: ha | AO40: 電子・デバイス | AX40: =データ一覧!G352 -> 10 | BB40: =+データ一覧!G377 -> 952 | BI40: =データ一覧!G402 -> 4068043 | BP40: 介護保険施設 | BX40: =データ一覧!G560 -> 455 | CB40: =データ一覧!G573 -> 8383 | CH40: 母子福祉施設 | CP40: =データ一覧!G566 -> 1 | CT40: =データ一覧!G579 -> -
A41: 別 | B41: =+MID(データ一覧!$A$83,3,2) -> 10 | C41: 総 数 | E41: =+E42+E43 -> 29957 | H41: =+H42+H43 -> 24211 | K41: =+K42+K43 -> 22574 | N41: =+N42+N43 -> 28517 | Q41: =+Q42+Q43 -> 36465 | T41: =+T42+T43 -> 32210 | W41: =+W42+W43 -> 76023 | Z41: 無立木地 伐採跡地 | AD41: =データ一覧!G271 -> 21.31 | AG41: 国 有 | AK41: =データ一覧!G273 -> 108.99 | AO41: 電気機械 | AX41: =データ一覧!G353 -> 12 | BB41: =+データ一覧!G378 -> 239 | BI41: =データ一覧!G403 -> 402320 | BP41: 障害者自立支援法施行前からの身体障害者福祉施設 | BX41: =データ一覧!G561 -> 2 | CB41: =データ一覧!G574 -> - | CH41: 婦人保護施設 | CP41: =データ一覧!G567 -> 1 | CT41: =データ一覧!G580 -> 15
A42: 人 | B42: ・ | C42: 男 | E42: =データ一覧!G83 -> 15523 | H42: =データ一覧!G84 -> 12880 | K42: =データ一覧!G85 -> 11778 | N42: =データ一覧!G86 -> 14429 | Q42: =データ一覧!G87 -> 18478 | T42: =データ一覧!G88 -> 15789 | W42: =データ一覧!G89 -> 32676 | Z42: 無立木地 未立木地 | AD42: =データ一覧!G272 -> 515.67 | AG42: 公 有 | AK42: =データ一覧!G274 -> 1529.77 | AN42: 輸送機械 | AO42: 情報通信機械 | AX42: =データ一覧!G354 -> 1 | BB42: =+データ一覧!G379 -> 97 | BI42: =データ一覧!G404 -> x | CH42: その他の社会福祉施設 | CP42: =データ一覧!G568+データ一覧!G569 -> 9 | CT42: =SUM(データ一覧!G581,データ一覧!G582) -> 0
A43: 口 | B43: =+RIGHT(データ一覧!$A$83,1) -> 1 | C43: 女 | E43: =データ一覧!G91 -> 14434 | H43: =データ一覧!G92 -> 11331 | K43: =データ一覧!G93 -> 10796 | N43: =データ一覧!G94 -> 14088 | Q43: =データ一覧!G95 -> 17987 | T43: =データ一覧!G96 -> 16421 | W43: =データ一覧!G97 -> 43347 | AG43: 私 有 | AK43: =データ一覧!G275 -> 30316.46 | AN43: 精密機械 | AO43: 輸送機械 | AX43: =データ一覧!G355 -> 4 | BB43: =+データ一覧!G380 -> 245 | BI43: =データ一覧!G405 -> x | BP43: 障害福祉サービス事業所 | BX43: =データ一覧!G562 -> 246 | CB43: =データ一覧!G575 -> 3506
Z44: 林 産 物 生 産 量 | AJ44: =データ一覧!$A$276 -> 5年中 | AN44: その他 | AO44: その他 | AX44: =データ一覧!G356 -> 38 | BB44: =+データ一覧!G381 -> 833 | BI44: =データ一覧!G406 -> 996553 | BP44: １７ 教 育 | CF44: =データ一覧!$A$583 -> 6.5.1
A45: 人口動態 | H45: 自 然 動 態 | N45: 社 会 動 態 | T45: =データ一覧!$A78 -> 5.1.1～5.12.31 | Z45: 生椎茸 | AD45: =データ一覧!G276 -> 9506 | AF45: ㎏ | AG45: 乾椎茸 | AK45: =データ一覧!G277 -> 177 | AM45: ㎏
C46: 区 分 | H46: 出 生 | K46: 死 亡 | N46: 転 入 | Q46: 転 出 | T46: 婚 姻 | W46: 離 婚 | Z46: えのきだけ | AD46: =データ一覧!G279 -> 38 | AF46: ㎏ | AG46: なめこ | AK46: =データ一覧!G278 -> 36 | AM46: ㎏ | AO46: 工 業 用 水 量 | AU46: （従業者30人以上の事業所） | BF46: =データ一覧!G407 -> 65949 | BK46: ㎥／日 | BZ46: 学校数（校） | CG46: 教員数（人） | CO46: 学生・生徒・児童数（人）
A47: =LEFT(データ一覧!$A74,6) -> 5.10.1 | H47: 人 | K47: 人 | N47: 人 | Q47: 人 | U47: 件 | X47: 件 | Z47: ひらたけ | AD47: =+データ一覧!G280 -> 6621 | AF47: ㎏ | AG47: まいたけ | AK47: =+データ一覧!G281 -> 420 | AM47: ㎏ | BR47: 区分 | BZ47: 本 校 | CC47: 分 校 | CF47: 本 務 | CJ47: 兼 務 | CN47: 総 数 | CR47: 男 | CV47: 女
A48: ～ | C48: 実 数 | H48: =データ一覧!G74 -> 1674 | K48: =データ一覧!G75 -> 3382 | N48: =データ一覧!G76 -> 7752 | Q48: =データ一覧!G77 -> 7974 | T48: =データ一覧!G78 -> 982 | W48: =データ一覧!G79 -> 349 | AN48: １１ 上 ・ 下 水 道 | BQ48: 小学校 | BZ48: =データ一覧!G584 -> 53 | CC48: =データ一覧!G585 -> 0 | CF48: =データ一覧!G586 -> 952 | CJ48: =データ一覧!G587 -> 145 | CN48: =データ一覧!G588 -> 12451 | CR48: =データ一覧!G589 -> 6404 | CV48: =データ一覧!G590 -> 6047
A49: =RIGHT(データ一覧!$A76,6) -> 6.9.30 | C49: 比率(対1,000人) | H49: =+H48/I36*1000 -> 6.381324144 | K49: =+K48/I36*1000 -> 12.89225702 | N49: - | Q49: - | T49: =+T48/I36*1000 -> 3.743405203 | W49: =+W48/I36*1000 -> 1.330395535 | Z49: ６ 漁 業 | BQ49: 中学校 | BZ49: =データ一覧!G592 -> 27 | CC49: =データ一覧!G593 -> 1 | CF49: =データ一覧!G594 -> 631 | CJ49: =データ一覧!G595 -> 188 | CN49: =データ一覧!G596 -> 6945 | CR49: =データ一覧!G597 -> 3637 | CV49: =データ一覧!G598 -> 3308
AN50: 水 道 供 給 人 口 | AU50: 上 水 道 | AY50: 簡易水道 | BC50: 専用水道 | BG50: 飲料水供給施設 | BK50: 下水道処理人口 | BQ50: 高等学校 | BZ50: =データ一覧!G600 -> 13 | CC50: =データ一覧!G601 -> 0 | CF50: =データ一覧!G602 -> 741 | CJ50: =データ一覧!G603 -> 374 | CN50: =データ一覧!G604 -> 10456 | CR50: =データ一覧!G605 -> 4970 | CV50: =データ一覧!G606 -> 5486
A51: ３ 事 業 所（民 営） | L51: 3.6.1 | Z51: 漁船隻数・トン数 | AD51: =データ一覧!$A$282 -> 5.12.31 | AH51: 動 力 船 | AN51: =データ一覧!$A$408 -> 6.3.31 | AT51: 人 | AV51: =データ一覧!G408 -> 249334 | AY51: =データ一覧!G409 -> 4146 | BD51: =データ一覧!G410 -> 302 | BH51: =データ一覧!G411 -> 409 | BL51: =データ一覧!G412 -> 231063 | BQ51: 大学・短期大学 | BZ51: =データ一覧!G607 -> 4 | CC51: =データ一覧!G608 -> 0 | CF51: =データ一覧!G609 -> 465 | CJ51: =データ一覧!G610 -> 373 | CN51: =データ一覧!G611 -> 6721 | CR51: =データ一覧!G612 -> 4784 | CV51: =データ一覧!G613 -> 1937
Z52: 無動力船隻数 | AD52: 船外機付漁船隻数 | AH52: 隻 数 | AK52: 総 ト ン 数 | BQ52: 高等専門学校 | BZ52: =データ一覧!G614 -> 0 | CC52: =データ一覧!G615 -> 0 | CF52: =データ一覧!G616 -> 0 | CJ52: =データ一覧!G617 -> 0 | CN52: =データ一覧!G618 -> 0 | CR52: =データ一覧!G619 -> 0 | CV52: =データ一覧!G620 -> 0
H53: 総 数 | N53: 民 営 | T53: 国 ･ 地方公共団体 | AC53: 隻 | AG53: 隻 | AJ53: 隻 | AM53: t | AN53: １２ 交 通 ・ 通 信 | BQ53: 特別支援学校 | BZ53: =+データ一覧!G622 -> 7 | CC53: =+データ一覧!G623 -> 0 | CF53: =+データ一覧!G624 -> 343 | CJ53: =+データ一覧!G625 -> 43 | CN53: =+データ一覧!G626 -> 374 | CR53: =+データ一覧!G627 -> 225 | CV53: =+データ一覧!G628 -> 149
A54: 区 分 | H54: 事業所数 | K54: 従業者数 | N54: 事業所数 | Q54: 従業者数 | T54: 事業所数 | W54: 従業者数 | Z54: =データ一覧!$G$282 -> 0 | AD54: =データ一覧!$G$283 -> 124 | AH54: =データ一覧!G284 -> 68 | AK54: =データ一覧!G285 -> 499 | BQ54: 幼稚園 | BZ54: =データ一覧!G630 -> 21 | CC54: =データ一覧!G631 -> 0 | CF54: =データ一覧!G632 -> 46 | CJ54: =データ一覧!G633 -> 17 | CN54: =データ一覧!G634 -> 286 | CR54: =データ一覧!G635 -> 128 | CV54: =データ一覧!G636 -> 158
K55: 人 | Q55: 人 | W55: 人 | Z55: 男女別就業者数 | AH55: =データ一覧!$A$286 -> 5.11.1 | AN55: 道 路 | AR55: 実 延 長 | AV55: 国 道 | AZ55: 県 道 | BD55: 市町道 | BH55: 鉄 道 営 業 キ ロ 数 | BQ55: 幼保連携認定こども園 | BZ55: =データ一覧!G638 -> 68 | CC55: =データ一覧!G639 -> 1 | CF55: =データ一覧!G640 -> 1342 | CJ55: =データ一覧!G641 -> 229 | CN55: =データ一覧!G642 -> 7201 | CR55: =データ一覧!G643 -> 3785 | CV55: =データ一覧!G644 -> 3416
A56: 総数 | H56: =データ一覧!G99 -> … | K56: =データ一覧!G156 -> … | N56: =データ一覧!G100 -> 15338 | Q56: =データ一覧!G157 -> 149002 | T56: =データ一覧!G101 -> … | W56: =データ一覧!G158 -> … | Z56: 総 数 | AF56: 男 | AJ56: 女 | AN56: =データ一覧!$A$413 -> 5.4.1 | AR56: =データ一覧!G413 -> 2525.3 | AU56: ㎞ | AV56: =データ一覧!G414 -> 108.8 | AY56: ㎞ | AZ56: =データ一覧!G415 -> 303 | BC56: ㎞ | BD56: =データ一覧!G416 -> 2113.5 | BG56: km | BH56: =データ一覧!$A$417 -> 6.4.1 | BL56: =データ一覧!G417 -> 24.7 | BO56: ㎞ | BQ56: 各種学校 | BZ56: =データ一覧!G646 -> 4 | CC56: =データ一覧!G647 -> 0 | CF56: =データ一覧!G648 -> 112 | CJ56: =データ一覧!G649 -> 6 | CN56: =データ一覧!G650 -> 1155 | CR56: =データ一覧!G651 -> 782 | CV56: =データ一覧!G652 -> 373
A57: 農林漁業 | H57: =データ一覧!G102 -> … | K57: =データ一覧!G159 -> … | N57: =データ一覧!G103 -> 81 | Q57: =データ一覧!G160 -> 1284 | T57: =データ一覧!G104 -> … | W57: =データ一覧!G161 -> … | AE57: 人 | AH57: 人 | AM57: 人 | AN57: 自動車 | AW57: 乗用車 | BQ57: 専修学校 | BZ57: =データ一覧!G654 -> 11 | CC57: =データ一覧!G655 -> 0 | CF57: =データ一覧!G656 -> 88 | CJ57: =データ一覧!G657 -> 228 | CN57: =データ一覧!G658 -> 1055 | CR57: =データ一覧!G659 -> 366 | CV57: =データ一覧!G660 -> 689
A58: 鉱業 | H58: =データ一覧!G105 -> … | K58: =データ一覧!G162 -> … | N58: =データ一覧!G106 -> 9 | Q58: =データ一覧!G163 -> 56 | T58: =データ一覧!G107 -> … | W58: =データ一覧!G164 -> … | Z58: =データ一覧!G286 -> 112 | AF58: =データ一覧!$G$287 -> 0 | AJ58: =データ一覧!G288 -> 0 | AN58: 台 数 | AR58: 貨 物 | AV58: 普 通 | AZ58: 小 型 | BD58: 乗 合 | BG58: 特 種 | BJ58: 小型二輪 | BM58: 軽自動車 | BP58: １８ 衛 生
A59: 建設業 | H59: =データ一覧!G108 -> … | K59: =データ一覧!G165 -> … | N59: =データ一覧!G109 -> 1493 | Q59: =データ一覧!G166 -> 11252 | T59: =データ一覧!G110 -> … | W59: =データ一覧!G167 -> … | Z59: 海 面 漁 業 漁 獲 量 （属人） | AH59: =データ一覧!$A$289 -> 30年中 | AN59: =データ一覧!$A$418 -> 6.3.31 | AS59: =データ一覧!G418 -> 17946 | AW59: =データ一覧!G420 -> 57693 | BA59: =データ一覧!G421 -> 52694 | BD59: =データ一覧!G419 -> 484 | BG59: =データ一覧!G422 -> 5378 | BJ59: =データ一覧!G423 -> 2861 | BM59: =データ一覧!G424 -> 88067
A60: 製造業 | H60: =データ一覧!G111 -> … | K60: =データ一覧!G168 -> … | N60: =データ一覧!G112 -> 1311 | Q60: =データ一覧!G169 -> 20001 | T60: =データ一覧!G113 -> … | W60: =データ一覧!G170 -> … | AF60: ｔ | AM60: t | AR60: 郵 便 局 数 | BF60: =+MID(データ一覧!$A$428,3,2) -> 3. | BG60: 令 | BH60: 一般加入 | BL60: ＩＮＳネット | BT60: 医療関係施設 | BZ60: =データ一覧!$A$661 -> 5.10.1 | CG60: および医療関係者数 | CO60: =データ一覧!$A$666 -> 4.12.31
A61: 電気・ｶﾞ ｽ・熱供給・水道業 | H61: =データ一覧!G114 -> … | K61: =データ一覧!G171 -> … | N61: =データ一覧!G115 -> 15 | Q61: =データ一覧!G172 -> 725 | T61: =データ一覧!G116 -> … | W61: =データ一覧!G173 -> … | Z61: 総 数 | AD61: =データ一覧!G289 -> 1038 | AG61: 藻 類 | AK61: =データ一覧!G292 -> 4 | AN61: 通 信 | AR61: 総 数 | AW61: 郵 便 局 | BB61: 簡 易 局 | BF61: ・ | BG61: =+LEFT(データ一覧!$A$428,1) -> 6 | BH61: 電話数 | BL61: 加入数 | BW61: 病 | BZ61: 院 | CH61: 一般診療所 | CT61: 歯科診療所
A62: 情報通信業 | H62: =データ一覧!G117 -> … | K62: =データ一覧!G174 -> … | N62: =データ一覧!G118 -> 192 | Q62: =データ一覧!G175 -> 3307 | T62: =データ一覧!G119 -> … | W62: =データ一覧!G176 -> … | Z62: 魚 類 | AD62: =データ一覧!G290 -> 583 | AG62: そ の 他 | AK62: =データ一覧!G293 -> 445 | AN62: =データ一覧!$A$428 -> 6.3.31 | AR62: =データ一覧!G425 -> 70 | AW62: =データ一覧!G426 -> 65 | BB62: =データ一覧!G427 -> 5 | BF62: =+RIGHT(データ一覧!$A$428,2) -> 31 | BG62: ・ | BH62: =データ一覧!G428 -> 16843 | BL62: =データ一覧!G429 -> 2974 | BQ62: 医療関係 | CC62: 一般病院 | CO62: 有 | CR62: 床
A63: 運輸業、郵便業 | H63: =データ一覧!G120 -> … | K63: =データ一覧!G177 -> … | N63: =データ一覧!G121 -> 320 | Q63: =データ一覧!G178 -> 7801 | T63: =データ一覧!G122 -> … | W63: =データ一覧!G179 -> … | Z63: 貝 類 | AD63: =データ一覧!G291 -> 6 | BQ63: 施設数 | BX63: =データ一覧!G661 -> 27 | CD63: =データ一覧!G662 -> 23 | CJ63: =データ一覧!G663 -> 253 | CP63: =データ一覧!G664 -> 25 | CV63: =データ一覧!G665 -> 132
A64: 卸売業、小売業 | H64: =データ一覧!G123 -> … | K64: =データ一覧!G180 -> … | N64: =データ一覧!G124 -> 3893 | Q64: =データ一覧!G181 -> 32160 | T64: =データ一覧!G125 -> … | W64: =データ一覧!G182 -> … | AN64: １３ 税 ・ 財 政 | BW64: 医師 | CB64: 歯科医師 | CG64: 薬剤師 | CL64: 保健師 | CQ64: 助産師 | CV64: 看護師
A65: 金融業、保険業 | H65: =データ一覧!G126 -> … | K65: =データ一覧!G183 -> … | N65: =データ一覧!G127 -> 379 | Q65: =データ一覧!G184 -> 5509 | T65: =データ一覧!G128 -> … | W65: =データ一覧!G185 -> … | Z65: ７ 商 業 | AG65: =データ一覧!$A$294 -> 3.6.1(令和2年実績） | BQ65: 医療 | BZ65: 人 | CE65: 人 | CJ65: 人 | CO65: 人 | CT65: 人 | CY65: 人
A66: 不動産業、物品賃貸業 | H66: =データ一覧!G129 -> … | K66: =データ一覧!G186 -> … | N66: =データ一覧!G130 -> 763 | Q66: =データ一覧!G187 -> 3197 | T66: =データ一覧!G131 -> … | W66: =データ一覧!G188 -> … | AR66: 歳入 | BA66: (千円） | BF66: 歳出 | BO66: (千円） | BQ66: 関係者 | BV66: =データ一覧!G666 -> 1004 | CA66: =データ一覧!G667 -> 193 | CF66: =データ一覧!G668 -> 687 | CK66: =データ一覧!G669 -> 179 | CP66: =データ一覧!G670 -> 139 | CU66: =データ一覧!G671 -> 5458
A67: 学術研究、専門・技術ｻｰﾋﾞｽ業 | H67: =データ一覧!G132 -> … | K67: =データ一覧!G189 -> … | N67: =データ一覧!G133 -> 826 | Q67: =データ一覧!G190 -> 4470 | T67: =データ一覧!G134 -> … | W67: =データ一覧!G191 -> … | Z67: 産 業 分 類 | AD67: 事 業 所 数 | AG67: 従 業 者 数 | AJ67: 年 間 販 売 額 | AN67: 一人当たり歳入歳出予算決算額 | BY67: 死因別死亡数 | CO67: =データ一覧!$A$672 -> 5年中 | CX67: 単 位：人
A68: 宿泊業、飲食サービス業 | H68: =データ一覧!G135 -> … | K68: =データ一覧!G192 -> … | N68: =データ一覧!G136 -> 1813 | Q68: =データ一覧!G193 -> 12276 | T68: =データ一覧!G137 -> … | W68: =データ一覧!G194 -> … | AI68: 人 | AK68: 百万円 | AN68: 区分 | AR68: =データ一覧!$A$438 -> 6年度 | AW68: =データ一覧!$A$452 -> 5年度 | BB68: 区分 | BF68: =+AR68 -> 6年度 | BK68: =データ一覧!$A$452 -> 5年度 | BP68: 死 因 | CB68: 悪 性 | CE68: 高血圧 | CK68: 脳血管 | CT68: 不慮の事故
A69: 生活関連サービス業、娯楽業 | H69: =データ一覧!G138 -> … | K69: =データ一覧!G195 -> … | N69: =データ一覧!G139 -> 1324 | Q69: =データ一覧!G196 -> 5855 | T69: =データ一覧!G140 -> … | W69: =データ一覧!G197 -> … | Z69: 総 計 | AD69: =データ一覧!$G$294 -> 3374 | AG69: =データ一覧!G303 -> 27581 | AJ69: =データ一覧!G312 -> 1132111 | AR69: =データ一覧!G434 -> 493200.3014 | AW69: =データ一覧!G435 -> 528957.0793 | BF69: =データ一覧!G436 -> 493200.3014 | BK69: =データ一覧!G437 -> 517428.05 | BU69: 全 死 因 | BY69: 結 核 | CB69: 新生物 | CE69: 性疾患 | CH69: 心疾患 | CK69: 疾 患 | CN69: 肺 炎 | CQ69: 老 衰 | CW69: 交通事故
A70: 教育、学習支援業 | H70: =データ一覧!G141 -> … | K70: =データ一覧!G198 -> … | N70: =データ一覧!G142 -> 455 | Q70: =データ一覧!G199 -> 6185 | T70: =データ一覧!G143 -> … | W70: =データ一覧!G200 -> … | Z70: 卸売業 | AD70: =データ一覧!G295 -> 1047 | AG70: =データ一覧!G304 -> 9834 | AJ70: =データ一覧!G313 -> 756572 | AN70: 項目別歳入歳出予算決算額
A71: 医療、福祉 | H71: =データ一覧!G144 -> … | K71: =データ一覧!G201 -> … | N71: =データ一覧!G145 -> 1079 | Q71: =データ一覧!G202 -> 19988 | T71: =データ一覧!G146 -> … | W71: =データ一覧!G203 -> … | Z71: 小売業 | AD71: =データ一覧!G296 -> 2327 | AG71: =データ一覧!G305 -> 17747 | AJ71: =データ一覧!G314 -> 375539 | AN71: 区分 | AR71: =データ一覧!$A$438 -> 6年度 | AW71: =データ一覧!$A$452 -> 5年度 | BB71: 区分 | BF71: =+AR71 -> 6年度 | BK71: =データ一覧!$A$452 -> 5年度 | BU71: =データ一覧!G672 -> 3345 | BY71: － | BZ71: =データ一覧!G673 -> 4 | CB71: =データ一覧!G674 -> 763 | CF71: =データ一覧!G675 -> 9 | CH71: =データ一覧!G676 -> 494 | CK71: =データ一覧!G677 -> 202 | CN71: =データ一覧!G678 -> 193 | CQ71: =データ一覧!G679 -> 358 | CT71: =データ一覧!G680 -> 114 | CW71: =データ一覧!G681 -> 6
A72: 複合サービス事業 | H72: =データ一覧!G147 -> … | K72: =データ一覧!G204 -> … | N72: =データ一覧!G148 -> 92 | Q72: =データ一覧!G205 -> 1263 | T72: =データ一覧!G149 -> … | W72: =データ一覧!G206 -> … | Z72: 各種商品 | AD72: =データ一覧!G297 -> 11 | AG72: =データ一覧!G306 -> 730 | AJ72: =データ一覧!G315 -> 21678 | AN72: 総額 | AR72: =SUM(AR73:AV85) -> 125655600 | AW72: =SUM(AW73:BA85) -> 135786456 | BB72: 総額 | BF72: =SUM(BF73:BJ85) -> 125655600 | BK72: =SUM(BK73:BO85) -> 132826885 | BP72: １９ 警 察 ・ 消 防 | CF72: =+データ一覧!$A682 -> 6.4.1
A73: サービス業 | H73: =データ一覧!G150 -> … | K73: =データ一覧!G207 -> … | N73: =データ一覧!G151 -> 1293 | Q73: =データ一覧!G208 -> 13673 | T73: =データ一覧!G152 -> … | W73: =データ一覧!G209 -> … | Z73: 織物・衣服・身の回り品 | AD73: =データ一覧!G298 -> 408 | AG73: =データ一覧!G307 -> 1517 | AJ73: =データ一覧!G316 -> 19910 | AN73: 地方税 | AR73: =データ一覧!G439 -> 43911000 | AW73: =データ一覧!G453 -> 45424092 | BB73: 議会費 | BF73: =データ一覧!G467 -> 684997 | BK73: =データ一覧!G481 -> 657660
A74: 公務 | H74: =データ一覧!G153 -> … | K74: =データ一覧!G210 -> … | N74: =データ一覧!G154 -> … | Q74: =データ一覧!G211 -> … | T74: =データ一覧!G155 -> … | W74: =データ一覧!G212 -> … | Z74: 飲食料品 | AD74: =データ一覧!G299 -> 620 | AG74: =データ一覧!G308 -> 5768 | AJ74: =データ一覧!G317 -> 82095 | AN74: 地方譲与税 | AR74: =データ一覧!G440 -> 942000 | AW74: =データ一覧!G454 -> 945353 | BB74: 総務費 | BF74: =データ一覧!G468 -> 10101998 | BK74: =データ一覧!G482 -> 9795811 | BZ74: 交番・駐在所 | CI74: 刑法犯認知件数 | CR74: 交通人身事故発生件数
A75: ４ 農 業 | Z75: 機械器具 | AD75: =データ一覧!G300 -> 364 | AG75: =データ一覧!G309 -> 2897 | AJ75: =データ一覧!G318 -> 102753 | AN75: 各種交付金 | AR75: =データ一覧!G441 -> 8365000 | AW75: =データ一覧!G455 -> 8709182 | BB75: 民生費 | BF75: =データ一覧!G469 -> 48264650 | BK75: =データ一覧!G483 -> 50033257 | BQ75: 警察署数 | BZ75: 検問所数 | CJ75: =データ一覧!$A$684 -> 5年中 | CS75: =データ一覧!$A$684 -> 5年中
Z76: その他 | AD76: =データ一覧!G301 -> 817 | AG76: =データ一覧!G310 -> 5619 | AJ76: =データ一覧!G319 -> 107570 | AN76: 地方特例交付金 | AR76: =データ一覧!G442 -> 1378000 | AW76: =データ一覧!G456 -> 281290 | BB76: 衛生費 | BF76: =データ一覧!G470 -> 13492641 | BK76: =データ一覧!G484 -> 8967708 | CN76: 件 | CW76: 件
C77: 農業経営体数 | J77: 農産物販売額規模別経営体数 | R77: 経営耕地面積規模別経営体数 | Z77: 無店舗 | AD77: =データ一覧!G302 -> 107 | AG77: =データ一覧!G311 -> 1216 | AJ77: =データ一覧!G320 -> 41533 | AN77: 地方交付税 | AR77: =データ一覧!G443 -> 14240000 | AW77: =データ一覧!G457 -> 14082847 | BB77: 労働費 | BF77: =データ一覧!G471 -> 225747 | BK77: =データ一覧!G485 -> 236235 | BR77: =データ一覧!G682 -> 2 | CA77: =データ一覧!G683 -> 36 | CJ77: =データ一覧!G684 -> 1281 | CS77: =データ一覧!G685 -> 452
A78: 農 | C78: 区 分 | G78: 経営体数 （経営体） | J78: 区 分 | O78: 経営体数 （経営体） | R78: 区 分 | W78: 経営体数 （経営体） | AN78: 分担金および負担金 | AR78: =データ一覧!G444 -> 216334 | AW78: =データ一覧!G458 -> 212838 | BB78: 農林水産業費 | BF78: =データ一覧!G472 -> 3484423 | BK78: =データ一覧!G486 -> 3405871 | BP78: 火災発生件数 | BZ78: 林野焼損 | CE78: 損 害 | CJ78: 消 防 自 | CN78: その他の
A79: 業 | B79: 令 | Z79: ８ 住 宅 | AN79: 使用料および手数料 | AR79: =データ一覧!G445 -> 1202499 | AW79: =データ一覧!G459 -> 1189315 | BB79: 商工費 | BF79: =データ一覧!G473 -> 2492536 | BK79: =データ一覧!G487 -> 2480658 | BP79: =+データ一覧!$A$686 -> 5年中 | BU79: 焼損棟数 | BZ79: 面 積 | CE79: 見 積 額 | CJ79: 動 車 数 | CN79: ﾎﾟﾝﾌﾟ数 | CR79: 消防吏員 | CV79: 消防団員
A80: 経 | B80: =+LEFT(データ一覧!$A$213) -> 2 | C80: 計 | G80: =データ一覧!G213 -> 2333 | J80: 総 数 | O80: =データ一覧!G217 -> 2333 | R80: 総 数 | W80: =データ一覧!G233 -> 6910 | AN80: 国庫支出金 | AR80: =データ一覧!G446 -> 21266719 | AW80: =データ一覧!G460 -> 29593126 | BB80: 土木費 | BF80: =データ一覧!G474 -> 15291617 | BK80: =データ一覧!G488 -> 21285622 | BP80: 件 | BV80: 棟 | CC80: ａ | CG80: 千円 | CT80: 人 | CX80: 人
A81: 営 | B81: ・ | C81: 個人経営体 | G81: =データ一覧!G214 -> 2195 | J81: 販 売 な し | O81: =データ一覧!G218 -> 129 | R81: 0.5 ha 未満 | W81: =データ一覧!G234 -> 163 | Z81: =+データ一覧!$A$321 -> 4年 | AE81: =データ一覧!$A$324 -> 5年 | AF81: 中の増減 | AJ81: =+データ一覧!$A$324 -> 5年 | AN81: 県支出金 | AR81: =データ一覧!G447 -> 11247587 | AW81: =データ一覧!G461 -> 11708447 | BB81: 消防費 | BF81: =データ一覧!G475 -> 3887071 | BK81: =データ一覧!G489 -> 3439230 | BQ81: =データ一覧!G686 -> 45 | BV81: =データ一覧!G687 -> 26 | CA81: =データ一覧!G688 -> 3 | CE81: =データ一覧!G689 -> 76611 | CK81: =データ一覧!G690 -> 35 | CO81: =データ一覧!G691 -> 110 | CS81: =データ一覧!G692 -> 365 | CW81: =データ一覧!G693 -> 992
A82: 体 | B82: =+LEFT(データ一覧!$A$213,1) -> 2 | C82: 団体経営体 | G82: =データ一覧!G215 -> 138 | J82: 50万円未満 | O82: =データ一覧!G219 -> 816 | R82: 0.5 ha ～ 1.0 ha | W82: =データ一覧!G235 -> 549 | AD82: 建設した住宅 | AG82: 消失した住宅 | AN82: 財産収入 | AR82: =データ一覧!G448 -> 115150 | AW82: =データ一覧!G462 -> 260244 | BB82: 教育費 | BF82: =データ一覧!G476 -> 13990303 | BK82: =データ一覧!G490 -> 18213043 | BP82: ２０ そ の 他
A83: 数 | B83: ・ | D83: 法人経営 | G83: =データ一覧!G216 -> 73 | J83: 50～300万円 | O83: =データ一覧!G220 -> 1075 | R83: 1.0 ha ～ 2.0 ha | W83: =データ一覧!G236 -> 908 | AN83: 繰入金 | AR83: =データ一覧!G449 -> 3000474 | AW83: =データ一覧!G463 -> 1094633 | BB83: 災害復旧費 | BF83: =データ一覧!G477 -> 26000 | BK83: =データ一覧!G491 -> 478071
A84: （ | B84: =+RIGHT(データ一覧!$A$213) -> 1 | J84: 300～500万円 | O84: =データ一覧!G221 -> 92 | R84: 2.0 ha ～ 3.0 ha | W84: =データ一覧!G237 -> 398 | AA84: =データ一覧!G321 -> 110426 | AC84: 戸 | AD84: =データ一覧!G322 -> 1677 | AF84: 戸 | AG84: =データ一覧!G323 -> 814 | AI84: 戸 | AK84: =データ一覧!G324 -> 111289 | AM84: 戸 | AN84: 地方債 | AR84: =データ一覧!G450 -> 15102900 | AW84: =データ一覧!G464 -> 16150284 | BB84: 公債費 | BF84: =データ一覧!G478 -> 13213617 | BK84: =データ一覧!G492 -> 13833719 | BU84: 一乗谷朝倉氏遺跡、一乗谷朝倉氏庭園、養浩館庭園、免鳥長山古墳、越前海岸、福井城址、北の庄城址・柴田公園､グリフィス記念館、足羽川の桜並木、愛宕坂、丹巌洞、大安禅寺、コスモス広苑、絹本著色 羅漢図、木造十一面観音菩薩立像、鉄製銀象嵌冑、五智如来、糸崎の仏舞、睦月神事、国山神事
A85: 総 | J85: 500～1,000万円 | O85: =データ一覧!G222 -> 81 | R85: 3.0 ha ～ 5.0 ha | W85: =データ一覧!G238 -> 287 | AN85: その他 | AR85: =データ一覧!G451 -> 4667937 | AW85: =データ一覧!G465 -> 6134805 | BB85: その他 | BF85: =データ一覧!G479 -> 500000 | BK85: =データ一覧!G493 -> 0 | BP85: 名所・旧跡
A86: 数 | J86: 1,000万円以上 | O86: =データ一覧!G223 -> 140 | R86: 5.0 ha以上 | W86: =データ一覧!G239 -> 4608 | BP86: 文化財等
A87: ） | C87: 15歳以上の常雇い数 | J87: 農業に60日以上従事した世帯員、役員・構成員 （経営主を含む）の平均年齢 | Z87: ９ 議 員 ・ 職 員 | AN87: １４ 文 化 | AV87: ( | AW87: ="令"&データ一覧!$A$498 -> 令6.3.31 | AZ87: ただし図書館・公民館・児童館・ 社会教育学級講座 | BL87: =データ一覧!$A$494 -> 6.4.1
A88: と | BA88: 宗教法人数 | BL88: =データ一覧!$A$502 -> 5.12.31
A89: 就 | J89: 農業に60日以上従事 | R89: 農業に150日以上従事 | Z89: 市 町 議 会 | AC89: 有権者数 | AE89: =データ一覧!$A$328 -> 6.9.1 | AG89: 市 町 議 会 | AJ89: 職 員 数 | AS89: 図書館 | AY89: 公 民 館 | BJ89: 社会教育学級講座 | BP89: 特産物 | BU89: 羽二重餅、水ようかん、越前がに、越前おろしそば、金福すいか、越のルビー、越前金時、水菜、坊ちゃんかぼちゃ、六条大麦、河内赤かぶら､木田ちそ、明里ネギ、新保ナス、越前水仙、ワカメ、ソースカツ丼、あべかわ餅
A90: 業 | C90: 区分 | G90: 人 | J90: 区分 | O90: 歳 | R90: 区 分 | W90: 歳 | Z90: 議 員 定 数 | AC90: 男 | AE90: 女 | AG90: 選 挙 投 票 率 | AJ90: 総 数 | AL90: 一般行政職 | AN90: 公 共 | AR90: 館 数 | AU90: 図書数 | AX90: 本 館 | BA90: 分 館 | BD90: 公 園 | BG90: 児童館 | BJ90: 学級講座数 | BM90: 受講者数
A91: 状 | C91: 総数 | G91: =データ一覧!G230 -> 113 | J91: 総数 | O91: =データ一覧!G224 -> 67.8 | R91: 総数 | W91: =データ一覧!G227 -> 66.4 | AB91: 人 | AD91: 人 | AF91: 人 | AI91: ％ | AK91: 人 | AM91: 人 | AN91: 施 設 数 | AS91: =データ一覧!G494 -> 5 | AU91: =データ一覧!G495 -> 1256926 | AY91: =データ一覧!G496 -> 50 | BA91: =データ一覧!G497 -> 6 | BD91: =データ一覧!G498 -> 401 | BG91: =データ一覧!G499 -> 25 | BJ91: =データ一覧!G500 -> 2846 | BM91: =データ一覧!G501 -> 51935
A92: 況 | C92: 男 | G92: =データ一覧!G231 -> 79 | J92: 男 | O92: =データ一覧!G225 -> 67.3 | R92: 男 | W92: =データ一覧!G228 -> 65.8 | AA92: =データ一覧!G325 -> 32 | AC92: =データ一覧!G328 -> 101759 | AE92: =データ一覧!G329 -> 109877 | AG92: =データ一覧!G327 -> 44.3 | AJ92: =データ一覧!G330 -> 2259 | AL92: =データ一覧!G331 -> 1213 | AN92: 宗 教 | AR92: 仏教系 | AU92: ｷﾘｽﾄ教系 | AX92: 神道諸派 | BA92: 公会堂・市民会館 | BG92: テレビ | BJ92: 衛星放送契約数 | BP92: 年中行事 | BU92: オシッサマのお渡り、越前朝倉万灯夜、じじぐれ祭り、花山行事、したんじょう行事、馬鹿ばやし、福井フェニックスまつり、ふくい桜まつり
C93: 女 | G93: =データ一覧!G232 -> 34 | J93: 女 | O93: =データ一覧!G226 -> 69.2 | R93: 女 | W93: =データ一覧!G229 -> 67.9 | AG93: =データ一覧!G326 -> 5.4.23 | AN93: 法 人 数 | AR93: =データ一覧!G502 -> 378 | AU93: =データ一覧!G503 -> 12 | AX93: =データ一覧!G504 -> 469 | BA93: =データ一覧!G505 -> 4 | BG93: 等 | BJ93: =データ一覧!G506 -> 64030

Sheet 敦賀市
A1: =+データ一覧!H2 -> 0
A2: =+データ一覧!H5 -> 0
AN3: 0
AB4: 【市章とそのいわれ】周囲の円形は敦賀港を現して地勢を物語り、 | AN4: 【位置および地勢】敦賀市は福井県の中央部に位置し、北に敦賀湾口を開いて | BS4: 所在地 | CA4: 〒914-8501
AB5: 中央の角は「都怒我阿羅斯等」来朝にちなんで | AO5: 日本海に面し、他の三方は山岳が連なり、敦賀湾と平野部を囲んでいる。 | CA5: 敦賀市中央町２丁目１番１号
A6: =+データ一覧!H3 -> つるがし | AB6: その沿革を象徴する。角の上部は敦賀港最初の | AO6: 東西約１４㎞、南北約２６km、面積は２５１．４７平方kmで若狭湾に大きく
A7: =データ一覧!H6 -> 敦賀市 | AB7: 文明施設としての灯台を具現し、港湾都市と | AO7: 張り出た敦賀半島と５４㎞に及ぶ海岸線が敦賀湾を日本海の風や波浪から | BS7: 電話番号 | CA7: （０７７０）２１－１１１１
AB8: しての将来への発展を意味する。 | AO8: 防ぎ、天然の良港を形成している。 | BS8: FAX番号 | CA8: 〃 ２２－６２２０
AB9: 0 | AO9: 日本三大松原の一つに数えられる気比の松原は、敦賀湾の最奥部に位置し、
AB10: 0 | AO10: 海との織り成す景観は、見事である。 | BS10: 最寄駅および距離 | CA10: ＪＲ北陸新幹線敦賀駅 下車２ｋｍ
AB11: 0
AB13: 【市が掲げる標語】好循環が継続する、発展し続ける地域 | BS13: ホームページ | CA13: https://www.city.tsuruga.lg.jp/
A15: １ 土 地 | Z15: =データ一覧!$A$240 -> 5年 | AA15: 産米収穫量 | AD15: 収 穫 量 | AG15: 作 付 面 積 | AJ15: 10a当たり収量 | BP15: １５ 労 働 | CE15: 2.10.1
AD16: =データ一覧!$H$240 -> 1770 | AF16: t | AG16: =データ一覧!$H$241 -> 375 | AI16: ha | AJ16: =データ一覧!H242 -> 472 | AM16: kg | AN16: １０ 工 業 | BB16: =データ一覧!$A$332 -> 4.6.1（令和3年実績）
A17: 総 面 積 | K17: 固 定 資 産 概 要 調 書 に よ る 地 目 別 面 積 | AC17: 総 数 | AG17: うち 田 | AK17: うち 畑 | BW17: 産業別就業者数
C18: =データ一覧!$A$7 -> 6.10.1 | Q18: =データ一覧!$A$9 -> 6.1.1 | Z18: 耕 地 面 積 | AD18: ha | AG18: ha | AK18: ha | AO18: 産業分類 | AW18: 事業所数 | BB18: 従業者数 | BH18: 年間製造品出荷額等 | BQ18: 区 分 | BV18: 総 数 | CA18: 男 | CE18: 女 | CI18: 区 分 | CN18: 総 数 | CS18: 男 | CW18: 女
G19: ㎢ | K19: 総 数 | P19: う ち 田 | U19: う ち 畑 | Z19: =データ一覧!A243 -> 5.7.15 | AC19: =データ一覧!$H$243 -> 858 | AF19: =データ一覧!$H$244 -> 761 | AJ19: =データ一覧!$H$245 -> 97 | AZ19: 事業所 | BB19: 人 | BE19: 人 | BG19: 万円 | BN19: 万円 | BV19: 人 | CB19: 人 | CF19: 人 | CN19: 人 | CR19: 人 | CV19: 人
D20: =データ一覧!H7 -> 251.47 | O20: ha | T20: ha | Y20: ha | Z20: 農 業 生 産 物 | AD20: 作 付 面 積 | AG20: 収 穫 量 | AJ20: 10a当たり収量 | AO20: 総数 | AX20: =データ一覧!H332 -> 71 | BB20: =+データ一覧!H357 -> 3312 | BI20: =データ一覧!H382 -> 14336699 | BP20: 総 数 | BV20: =BZ20+CD20 -> 32012 | BZ20: =データ一覧!H507 -> 18072 | CD20: =データ一覧!H532 -> 13940
L21: =データ一覧!H9 -> 11236.1 | Q21: =データ一覧!H10 -> 1285.9 | V21: =データ一覧!H11 -> 251.1 | Z21: =データ一覧!$A$246 -> 5年産 | AD21: ha | AG21: t | AJ21: kg | AN21: 食料品 | AO21: 食料品 | AX21: =データ一覧!H333 -> 11 | BB21: =+データ一覧!H358 -> 201 | BI21: =データ一覧!H383 -> 208072 | CI21: 卸売業,小売業 | CN21: =CR21+CV21 -> 4340 | CR21: =データ一覧!H520 -> 1754 | CV21: =データ一覧!H545 -> 2586
A22: 町 ･ 丁 ･ 大 字 | K22: う ち 宅 地 | P22: う ち 山 林 | U22: う ち 原 野 | Z22: 水 稲 | AD22: =データ一覧!H246 -> 375 | AG22: =データ一覧!H247 -> 1770 | AJ22: =データ一覧!H248 -> 472 | AN22: 飲料・飼料 | AO22: 飲料・飼料 | AX22: =データ一覧!H334 -> 0 | BB22: =+データ一覧!H359 -> 0 | BI22: =データ一覧!H384 -> 0 | BP22: 第１次産業 | BV22: =BZ22+CD22 -> 490 | BZ22: =データ一覧!H508 -> 331 | CD22: =データ一覧!H533 -> 159 | CI22: 金融業,保険業 | CN22: =CR22+CV22 -> 547 | CR22: =データ一覧!H521 -> 183 | CV22: =データ一覧!H546 -> 364
A23: 区 画 数 | H23: =データ一覧!H8 -> 158 | O23: ha | T23: ha | Y23: ha | Z23: 六 条 大 麦 | AD23: =データ一覧!H249 -> - | AG23: =データ一覧!H250 -> - | AJ23: =データ一覧!H251 -> - | AN23: 繊維 | AO23: 繊維 | AX23: =データ一覧!H335 -> 4 | BB23: =+データ一覧!H360 -> 156 | BI23: =データ一覧!H385 -> 75429 | BQ23: 農業 | BV23: =BZ23+CD23 -> 408 | BZ23: =データ一覧!H509 -> 262 | CD23: =データ一覧!H534 -> 146 | CI23: 不動産業 | CN23: 362 | CR23: =データ一覧!H522 -> 192 | CV23: =データ一覧!H547 -> 170
A24: =データ一覧!$A$8 -> 5.4.1 | L24: =データ一覧!H12 -> 1253 | Q24: =データ一覧!H13 -> 4523.8 | V24: =データ一覧!H14 -> 219.3 | Z24: 大 豆 | AD24: =データ一覧!H252 -> 1 | AG24: =データ一覧!H253 -> 1 | AJ24: =データ一覧!H254 -> 64 | AN24: 衣服 | AO24: 木材 | AX24: =データ一覧!H336 -> 3 | BB24: =+データ一覧!H361 -> 258 | BI24: =データ一覧!H386 -> 898264 | BQ24: 林業 | BV24: 12 | BZ24: =データ一覧!H510 -> 10 | CD24: =データ一覧!H535 -> 2 | CI24: 学術研究 | CN24: 1350 | CR24: =データ一覧!H523 -> 991 | CV24: =データ一覧!H548 -> 359
A25: ２ 世 帯 数 と 人 口 | AB25: 区 分 | AD25: 乳 用 牛 | AF25: 肉 用 牛 | AH25: 豚 | AJ25: 採卵鶏 | AL25: ブロイラー | AN25: 木材 | AO25: 家具 | AX25: =データ一覧!H337 -> 1 | BB25: =+データ一覧!H362 -> 4 | BI25: =データ一覧!H387 -> x | BQ25: 漁業 | BV25: 70 | BZ25: =データ一覧!H511 -> 59 | CD25: =データ一覧!H536 -> 11 | CI25: 宿泊業,飲食ｻｰﾋﾞｽ | CN25: 2067 | CR25: =データ一覧!H524 -> 571 | CV25: =データ一覧!H549 -> 1496
Z26: 畜 産 | AB26: 飼養農家 | AD26: =データ一覧!$H$255 -> 1 | AF26: =データ一覧!$H$257 -> 3 | AH26: =データ一覧!$H$259 -> 0 | AJ26: =データ一覧!$H$261 -> 1 | AL26: =データ一覧!$H$263 -> 0 | AN26: 家具 | AO26: パルプ・紙 | AX26: =データ一覧!H338 -> 4 | BB26: =+データ一覧!H363 -> 200 | BI26: =データ一覧!H388 -> 936243 | BP26: 第２次産業 | BV26: 8813 | BZ26: =データ一覧!H512 -> 6703 | CD26: =データ一覧!H537 -> 2110 | CI26: 生活関連ｻｰﾋﾞｽ業 | CN26: 1025 | CR26: =データ一覧!H525 -> 355 | CV26: =データ一覧!H550 -> 670
I27: 人 口 | U27: １世帯当 | W27: 人 口 | Z27: =データ一覧!$A$255 -> 6.3.31 | AB27: （戸） | AN27: パルプ・紙 | AO27: 印刷 | AX27: =データ一覧!H339 -> 4 | BB27: =+データ一覧!H364 -> 71 | BI27: =データ一覧!H389 -> 81162 | BQ27: 鉱業，採石業 | BV27: 6 | BZ27: =データ一覧!H513 -> 6 | CD27: 0 | CI27: 教育,学習支援業 | CN27: 1284 | CR27: =データ一覧!H526 -> 508 | CV27: =データ一覧!H551 -> 776
A28: 区 分 | F28: 世帯数 | I28: 総 数 | L28: 男 | O28: 女 | R28: 男／女 | U28: たり人員 | W28: 密 度 | AB28: 頭 羽 | AD28: =データ一覧!$H$256 -> 27 | AF28: =データ一覧!$H$258 -> 53 | AH28: =データ一覧!$H$260 -> 0 | AJ28: =データ一覧!$H$262 -> 180 | AL28: =データ一覧!$H$264 -> 0 | AN28: 出版・印刷 | AO28: 化学 | AX28: =データ一覧!H340 -> 1 | BB28: =+データ一覧!H365 -> 24 | BI28: =データ一覧!H390 -> x | BQ28: 建設業 | BV28: 4759 | BZ28: =データ一覧!H514 -> 3933 | CD28: =データ一覧!H539 -> 826 | CI28: 医療，福祉 | CN28: 3986 | CR28: =データ一覧!H527 -> 777 | CV28: =データ一覧!H552 -> 3209
F29: 世 帯 | I29: 人 | L29: 人 | O29: 人 | S29: ％ | U29: 人 | W29: 人/㎢ | AN29: 化学 | AO29: 石油・石炭 | AX29: =データ一覧!H341 -> 2 | BB29: =+データ一覧!H366 -> 10 | BI29: =データ一覧!H391 -> x | BQ29: 製造業 | BV29: 4048 | BZ29: =データ一覧!H515 -> 2764 | CD29: =データ一覧!H540 -> 1284 | CI29: 複合サービス事業 | CN29: 273 | CR29: =データ一覧!H528 -> 138 | CV29: =データ一覧!H553 -> 135
A30: =データ一覧!$A$22 -> 2.10.1 | F30: =データ一覧!H22 -> 22995 | I30: =+L30+O30 -> 68041 | L30: =データ一覧!H24 -> 34091 | O30: =データ一覧!H25 -> 33950 | S30: =+L30/O30*100 -> 100.4153166 | U30: =データ一覧!H27 -> 2.96 | W30: =データ一覧!H28 -> 271.6 | Z30: ５ 林 業 | AN30: 石油・石炭 | AO30: プラスチック | AX30: =データ一覧!H342 -> 5 | BB30: =+データ一覧!H367 -> 1123 | BI30: =データ一覧!H392 -> 6554138 | BP30: 第３次産業 | BV30: 22186 | BZ30: =データ一覧!H516 -> 10715 | CD30: =データ一覧!H541 -> 11471 | CI30: サービス業 | CN30: 2420 | CR30: =データ一覧!H529 -> 1634 | CV30: =データ一覧!H554 -> 786
A31: =データ一覧!$A$29 -> 7.10.1 | F31: =データ一覧!H29 -> 23115 | I31: =+L31+O31 -> 67204 | L31: =データ一覧!H31 -> 33047 | O31: =データ一覧!H32 -> 34157 | S31: 96.75030008 | U31: =データ一覧!H34 -> 2.91 | W31: =データ一覧!H35 -> 268.1 | AN31: プラスチック | AO31: ゴム | AX31: =データ一覧!H343 -> 0 | BB31: =+データ一覧!H368 -> 0 | BI31: =データ一覧!H393 -> 0 | BQ31: 電気･ｶﾞｽ･水道業 | BV31: 1295 | BZ31: =データ一覧!H517 -> 1176 | CD31: =データ一覧!H542 -> 119 | CI31: 公務 | CN31: 1103 | CR31: =データ一覧!H530 -> 746 | CV31: =データ一覧!H555 -> 357
A32: =データ一覧!$A$36 -> 12.10.1 | F32: =データ一覧!H36 -> 24539 | I32: =+L32+O32 -> 68145 | L32: =データ一覧!H38 -> 33504 | O32: =データ一覧!H39 -> 34641 | S32: 96.71776219 | U32: =データ一覧!H41 -> 2.78 | W32: =データ一覧!H42 -> 271.8 | Z32: 森 林 総 面 積 | AH32: =データ一覧!$A$265 -> 5.3.31 | AN32: ゴム | AO32: 皮革 | AX32: =データ一覧!H344 -> 0 | BB32: =+データ一覧!H369 -> 0 | BI32: =データ一覧!H394 -> 0 | BQ32: 情報通信業 | BV32: 295 | BZ32: =データ一覧!H518 -> 172 | CD32: =データ一覧!H543 -> 123 | CH32: 分類不能の産業 | CN32: 523 | CR32: =データ一覧!H531 -> 323 | CV32: =データ一覧!H556 -> 200
A33: =+データ一覧!$A$43 -> 17.10.1 | F33: =データ一覧!H43 -> 25742 | I33: =+L33+O33 -> 68402 | L33: =データ一覧!H45 -> 33475 | O33: =データ一覧!H46 -> 34927 | S33: 95.84275775 | U33: =データ一覧!H48 -> 2.66 | W33: =データ一覧!H49 -> 272.8 | Z33: 森 林 の 構 成 | AN33: 皮革 | AO33: 窯業・土石 | AX33: =データ一覧!H345 -> 9 | BB33: =+データ一覧!H370 -> 366 | BI33: =データ一覧!H395 -> 1386031 | BQ33: 運輸業,郵便業 | BV33: =BZ33+CD33 -> 1839 | BZ33: =データ一覧!H519 -> 1518 | CD33: =データ一覧!H544 -> 321
A34: =+データ一覧!$A$50 -> 22.10.1 | F34: =+データ一覧!H50 -> 26453 | I34: =+L34+O34 -> 67760 | L34: =+データ一覧!H52 -> 33396 | O34: =+データ一覧!H53 -> 34364 | S34: 97.18309859 | U34: =+データ一覧!H55 -> 2.56 | W34: =+データ一覧!H56 -> 269.7 | AE34: ha | AL34: ha | AN34: 窯業・土石 | AO34: 鉄鋼 | AX34: =データ一覧!H346 -> 0 | BB34: =+データ一覧!H371 -> 0 | BI34: =データ一覧!H396 -> 0 | BP34: １６ 社 会 福 祉 | CF34: =データ一覧!$A$557 -> 6.4.1
A35: =データ一覧!$A$57 -> 27.10.1 | F35: =データ一覧!H57 -> 26545 | I35: =データ一覧!H58 -> 66165 | L35: =データ一覧!H59 -> 32558 | O35: =データ一覧!H60 -> 33607 | S35: 96.87862648 | U35: =データ一覧!H62 -> 2.492559804 | W35: =データ一覧!H63 -> 263.2 | Z35: 総 数 | AD35: =データ一覧!H265 -> 19934.49 | AG35: 天然林 針葉樹 | AK35: =データ一覧!H268 -> 2068.36 | AN35: 鉄鋼 | AO35: 非鉄金属 | AX35: =データ一覧!H347 -> 1 | BB35: =+データ一覧!H372 -> 25 | BI35: =データ一覧!H397 -> x
A36: 令 2.10.1（国調） | F36: =データ一覧!H64 -> 27849 | I36: =データ一覧!H65 -> 64264 | L36: =データ一覧!H66 -> 31785 | O36: =データ一覧!H67 -> 32479 | S36: =+L36/O36*100 -> 97.86323471 | U36: =データ一覧!H69 -> 2.307587346 | W36: =データ一覧!H70 -> 255.5533463 | Z36: 人工林 針葉樹 | AD36: =データ一覧!H266 -> 4388.3 | AG36: 天然林 広葉樹 | AK36: =データ一覧!H269 -> 12629.14 | AN36: 非鉄金属 | AO36: 金属 | AX36: =データ一覧!H348 -> 7 | BB36: =+データ一覧!H373 -> 58 | BI36: =データ一覧!H398 -> 73287 | BQ36: 区分 | BX36: 施設数 | CC36: 収容定員 | CI36: 区分 | CP36: 施設数 | CU36: 収容定員
A37: 年 | C37: 区 | E37: 0歳 | H37: 15歳 | K37: 25歳 | N37: 35歳 | Q37: 45歳 | T37: 55歳 | W37: 65歳 | Z37: 人工林 広葉樹 | AD37: =データ一覧!H267 -> 395.69 | AG37: 竹 林 | AK37: =データ一覧!H270 -> 73.03 | AN37: 金属 | AO37: はん用機械 | AX37: =データ一覧!H349 -> 0 | BB37: =+データ一覧!H374 -> 0 | BI37: =データ一覧!H399 -> 0 | BP37: 生活保護施設 | BX37: =データ一覧!H557 -> - | CB37: =データ一覧!H570 -> - | CF37: 人 | CH37: 指定障害者支援施設 | CP37: =データ一覧!H563 -> 1 | CT37: =データ一覧!H576 -> 30 | CX37: 人
A38: 齢 | B38: 令 | F38: ～ | I38: ～ | L38: ～ | O38: ～ | R38: ～ | U38: ～ | AN38: 一般機械 | AO38: 生産用機械 | AX38: =データ一覧!H350 -> 2 | BB38: =+データ一覧!H375 -> 38 | BI38: =データ一覧!H400 -> x | BP38: 地域福祉施設 | BX38: =データ一覧!H558 -> 1 | CB38: =データ一覧!H571 -> - | CH38: 指定相談支援事業所 | CP38: =データ一覧!H564 -> 3 | CT38: =データ一覧!H577 -> -
A39: 階 | B39: =+LEFT(データ一覧!$A$83,1) -> 6 | C39: 分 | G39: 14歳 | J39: 24歳 | M39: 34歳 | P39: 44歳 | S39: 54歳 | V39: 64歳 | Y39: 以上 | Z39: 林 野 の 構 成 | AG39: 保 有 形 態 別 | AN39: 電気機械 | AO39: 業務用機械 | AX39: =データ一覧!H351 -> 0 | BB39: =+データ一覧!H376 -> 0 | BI39: =データ一覧!H401 -> 0 | BP39: 老人福祉施設 | BX39: =データ一覧!H559 -> 12 | CB39: =データ一覧!H572 -> 229 | CH39: 児童福祉施設 | CP39: =データ一覧!H565 -> 45 | CT39: =データ一覧!H578 -> 2588
A40: 級 | B40: ・ | G40: 人 | J40: 人 | L40: 人 | O40: 人 | R40: 人 | U40: 人 | X40: 人 | AF40: ha | AL40: ha | AO40: 電子・デバイス | AX40: =データ一覧!H352 -> 5 | BB40: =+データ一覧!H377 -> 595 | BI40: =データ一覧!H402 -> 3429456 | BP40: 介護保険施設 | BX40: =データ一覧!H560 -> 107 | CB40: =データ一覧!H573 -> 1986 | CH40: 母子福祉施設 | CP40: =データ一覧!H566 -> - | CT40: =データ一覧!H579 -> -
A41: 別 | B41: =+MID(データ一覧!$A$83,3,2) -> 10 | C41: 総 数 | E41: =+E42+E43 -> 7139 | H41: =+H42+H43 -> 5420 | K41: =+K42+K43 -> 5128 | N41: =+N42+N43 -> 6875 | Q41: =+Q42+Q43 -> 8953 | T41: =+T42+T43 -> 8049 | W41: =+W42+W43 -> 18566 | Z41: 無立木地 伐採跡地 | AD41: =データ一覧!H271 -> 0.35 | AG41: 国 有 | AK41: =データ一覧!H273 -> 4794.99 | AO41: 電気機械 | AX41: =データ一覧!H353 -> 5 | BB41: =+データ一覧!H378 -> 93 | BI41: =データ一覧!H403 -> 398534 | BP41: 障害者自立支援法施行前からの身体障害者福祉施設 | BX41: =データ一覧!H561 -> - | CB41: =データ一覧!H574 -> - | CH41: 婦人保護施設 | CP41: =データ一覧!H567 -> - | CT41: =データ一覧!H580 -> -
A42: 人 | B42: ・ | C42: 男 | E42: =データ一覧!H83 -> 3606 | H42: =データ一覧!H84 -> 2846 | K42: =データ一覧!H85 -> 2737 | N42: =データ一覧!H86 -> 3555 | Q42: =データ一覧!H87 -> 4574 | T42: =データ一覧!H88 -> 4123 | W42: =データ一覧!H89 -> 8139 | Z42: 無立木地 未立木地 | AD42: =データ一覧!H272 -> 379.62 | AG42: 公 有 | AK42: =データ一覧!H274 -> 1873.78 | AN42: 輸送機械 | AO42: 情報通信機械 | AX42: =データ一覧!H354 -> 0 | BB42: =+データ一覧!H379 -> 0 | BI42: =データ一覧!H404 -> 0 | CH42: その他の社会福祉施設 | CP42: =データ一覧!H568+データ一覧!H569 -> 2 | CT42: 0
A43: 口 | B43: =+RIGHT(データ一覧!$A$83,1) -> 1 | C43: 女 | E43: =データ一覧!H91 -> 3533 | H43: =データ一覧!H92 -> 2574 | K43: =データ一覧!H93 -> 2391 | N43: =データ一覧!H94 -> 3320 | Q43: =データ一覧!H95 -> 4379 | T43: =データ一覧!H96 -> 3926 | W43: =データ一覧!H97 -> 10427 | AG43: 私 有 | AK43: =データ一覧!H275 -> 13265.72 | AN43: 精密機械 | AO43: 輸送機械 | AX43: =データ一覧!H355 -> 3 | BB43: =+データ一覧!H380 -> 50 | BI43: =データ一覧!H405 -> 18950 | BP43: 障害福祉サービス事業所 | BX43: =データ一覧!H562 -> 46 | CB43: =データ一覧!H575 -> 561
Z44: 林 産 物 生 産 量 | AJ44: =データ一覧!$A$276 -> 5年中 | AN44: その他 | AO44: その他 | AX44: =データ一覧!H356 -> 4 | BB44: =+データ一覧!H381 -> 40 | BI44: =データ一覧!H406 -> 56929 | BP44: １７ 教 育 | CF44: =データ一覧!$A$583 -> 6.5.1
A45: 人口動態 | H45: 自 然 動 態 | N45: 社 会 動 態 | T45: =データ一覧!$A78 -> 5.1.1～5.12.31 | Z45: 生椎茸 | AD45: =データ一覧!H276 -> 5120 | AF45: ㎏ | AG45: 乾椎茸 | AK45: =データ一覧!H277 -> 370 | AM45: ㎏
C46: 区 分 | H46: 出 生 | K46: 死 亡 | N46: 転 入 | Q46: 転 出 | T46: 婚 姻 | W46: 離 婚 | Z46: えのきだけ | AD46: =データ一覧!H279 -> 0 | AF46: ㎏ | AG46: なめこ | AK46: =データ一覧!H278 -> 22 | AM46: ㎏ | AO46: 工 業 用 水 量 | AU46: （従業者30人以上の事業所） | BF46: =データ一覧!H407 -> 61457 | BK46: ㎥／日 | BZ46: 学校数（校） | CG46: 教員数（人） | CO46: 学生・生徒・児童数（人）
A47: =LEFT(データ一覧!$A74,6) -> 5.10.1 | H47: 人 | K47: 人 | N47: 人 | Q47: 人 | U47: 件 | X47: 件 | Z47: ひらたけ | AD47: =+データ一覧!H280 -> 0 | AF47: ㎏ | AG47: まいたけ | AK47: =+データ一覧!H281 -> 0 | AM47: ㎏ | BR47: 区分 | BZ47: 本 校 | CC47: 分 校 | CF47: 本 務 | CJ47: 兼 務 | CN47: 総 数 | CR47: 男 | CV47: 女
A48: ～ | C48: 実 数 | H48: =データ一覧!H74 -> 365 | K48: =データ一覧!H75 -> 880 | N48: =データ一覧!H76 -> 2048 | Q48: =データ一覧!H77 -> 2196 | T48: =データ一覧!H78 -> 218 | W48: =データ一覧!H79 -> 90 | AN48: １１ 上 ・ 下 水 道 | BQ48: 小学校 | BZ48: =データ一覧!H584 -> 11 | CC48: =データ一覧!H585 -> 0 | CF48: =データ一覧!H586 -> 231 | CJ48: =データ一覧!H587 -> 43 | CN48: =データ一覧!H588 -> 3174 | CR48: =データ一覧!H589 -> 1626 | CV48: =データ一覧!H590 -> 1548
A49: =RIGHT(データ一覧!$A76,6) -> 6.9.30 | C49: 比率(対1,000人) | H49: =+H48/I36*1000 -> 5.679696253 | K49: =+K48/I36*1000 -> 13.69351425 | N49: - | Q49: - | T49: =+T48/I36*1000 -> 3.39225694 | W49: =+W48/I36*1000 -> 1.400473049 | Z49: ６ 漁 業 | BQ49: 中学校 | BZ49: =データ一覧!H592 -> 6 | CC49: =データ一覧!H593 -> 0 | CF49: =データ一覧!H594 -> 139 | CJ49: =データ一覧!H595 -> 52 | CN49: =データ一覧!H596 -> 1717 | CR49: =データ一覧!H597 -> 868 | CV49: =データ一覧!H598 -> 849
AN50: 水 道 供 給 人 口 | AU50: 上 水 道 | AY50: 簡易水道 | BC50: 専用水道 | BG50: 飲料水供給施設 | BK50: 下水道処理人口 | BQ50: 高等学校 | BZ50: =データ一覧!H600 -> 4 | CC50: =データ一覧!H601 -> 0 | CF50: =データ一覧!H602 -> 136 | CJ50: =データ一覧!H603 -> 59 | CN50: =データ一覧!H604 -> 1666 | CR50: =データ一覧!H605 -> 926 | CV50: =データ一覧!H606 -> 740
A51: ３ 事 業 所（民 営） | L51: 3.6.1 | Z51: 漁船隻数・トン数 | AD51: =データ一覧!$A$282 -> 5.12.31 | AH51: 動 力 船 | AN51: =データ一覧!$A$408 -> 6.3.31 | AT51: 人 | AV51: =データ一覧!H408 -> 61265 | AY51: =データ一覧!H409 -> 0 | BD51: =データ一覧!H410 -> 475 | BH51: =データ一覧!H411 -> 0 | BL51: =データ一覧!H412 -> 55691 | BQ51: 大学・短期大学 | BZ51: =データ一覧!H607 -> 2 | CC51: =データ一覧!H608 -> 0 | CF51: =データ一覧!H609 -> 39 | CJ51: =データ一覧!H610 -> 40 | CN51: =データ一覧!H611 -> 368 | CR51: =データ一覧!H612 -> 127 | CV51: =データ一覧!H613 -> 241
Z52: 無動力船隻数 | AD52: 船外機付漁船隻数 | AH52: 隻 数 | AK52: 総 ト ン 数 | BQ52: 高等専門学校 | BZ52: =データ一覧!H614 -> 0 | CC52: =データ一覧!H615 -> 0 | CF52: =データ一覧!H616 -> 0 | CJ52: =データ一覧!H617 -> 0 | CN52: =データ一覧!H618 -> 0 | CR52: =データ一覧!H619 -> 0 | CV52: =データ一覧!H620 -> 0
H53: 総 数 | N53: 民 営 | T53: 国 ･ 地方公共団体 | AC53: 隻 | AG53: 隻 | AJ53: 隻 | AM53: t | AN53: １２ 交 通 ・ 通 信 | BQ53: 特別支援学校 | BZ53: =データ一覧!H622 -> 0 | CC53: =データ一覧!H623 -> 0 | CF53: =+データ一覧!H624 -> 0 | CJ53: =+データ一覧!H625 -> 0 | CN53: =+データ一覧!H626 -> 0 | CR53: =+データ一覧!H627 -> 0 | CV53: =+データ一覧!H628 -> 0
A54: 区 分 | H54: 事業所数 | K54: 従業者数 | N54: 事業所数 | Q54: 従業者数 | T54: 事業所数 | W54: 従業者数 | Z54: =データ一覧!$H$282 -> 0 | AD54: =データ一覧!$H$283 -> 61 | AH54: =データ一覧!H284 -> 95 | AK54: =データ一覧!H285 -> 533.55 | BQ54: 幼稚園 | BZ54: =データ一覧!H630 -> 3 | CC54: =データ一覧!H631 -> 0 | CF54: =データ一覧!H632 -> 21 | CJ54: =データ一覧!H633 -> 8 | CN54: =データ一覧!$H$634 -> 118 | CR54: =データ一覧!H635 -> 62 | CV54: =データ一覧!H636 -> 56
K55: 人 | Q55: 人 | W55: 人 | Z55: 男女別就業者数 | AH55: =データ一覧!$A$286 -> 5.11.1 | AN55: 道 路 | AR55: 実 延 長 | AV55: 国 道 | AZ55: 県 道 | BD55: 市町道 | BH55: 鉄 道 営 業 キ ロ 数 | BQ55: 幼保連携認定こども園 | BZ55: =データ一覧!H638 -> 3 | CC55: =データ一覧!H639 -> 0 | CF55: =データ一覧!H640 -> 64 | CJ55: =データ一覧!H641 -> 10 | CN55: =データ一覧!H642 -> 478 | CR55: =データ一覧!H643 -> 241 | CV55: =データ一覧!H644 -> 237
A56: 総数 | H56: =データ一覧!H99 -> … | K56: =データ一覧!H156 -> … | N56: =データ一覧!H100 -> 3184 | Q56: =データ一覧!H157 -> 31278 | T56: =データ一覧!H101 -> … | W56: =データ一覧!H158 -> … | Z56: 総 数 | AF56: 男 | AJ56: 女 | AN56: =データ一覧!$A$413 -> 5.4.1 | AR56: =データ一覧!H413 -> 520.6 | AU56: ㎞ | AV56: =データ一覧!H414 -> 12.2 | AY56: ㎞ | AZ56: =データ一覧!H415 -> 71.6 | BC56: ㎞ | BD56: =データ一覧!H416 -> 436.8 | BG56: km | BH56: =データ一覧!$A$417 -> 6.4.1 | BL56: =データ一覧!H417 -> 0 | BO56: ㎞ | BQ56: 各種学校 | BZ56: =データ一覧!H646 -> 3 | CC56: =データ一覧!H647 -> 0 | CF56: =データ一覧!H648 -> 30 | CJ56: =データ一覧!H649 -> 0 | CN56: =データ一覧!H650 -> 221 | CR56: =データ一覧!H651 -> 148 | CV56: =データ一覧!H652 -> 73
A57: 農林漁業 | H57: =データ一覧!H102 -> … | K57: =データ一覧!H159 -> … | N57: =データ一覧!H103 -> 10 | Q57: =データ一覧!H160 -> 205 | T57: =データ一覧!H104 -> … | W57: =データ一覧!H161 -> … | AE57: 人 | AH57: 人 | AM57: 人 | AN57: 自動車 | AW57: 乗用車 | BQ57: 専修学校 | BZ57: =データ一覧!H654 -> 0 | CC57: =データ一覧!H655 -> 0 | CF57: =データ一覧!H656 -> 0 | CJ57: =データ一覧!H657 -> 0 | CN57: =データ一覧!H658 -> 0 | CR57: =データ一覧!H659 -> 0 | CV57: =データ一覧!H660 -> 0
A58: 鉱業 | H58: =データ一覧!H105 -> … | K58: =データ一覧!H162 -> … | N58: =データ一覧!H106 -> - | Q58: =データ一覧!H163 -> - | T58: =データ一覧!H107 -> … | W58: =データ一覧!H164 -> … | Z58: =データ一覧!H286 -> 102 | AF58: =データ一覧!$H$287 -> 0 | AJ58: =データ一覧!H288 -> 0 | AN58: 台 数 | AR58: 貨 物 | AV58: 普 通 | AZ58: 小 型 | BD58: 乗 合 | BG58: 特 種 | BJ58: 小型二輪 | BM58: 軽自動車 | BP58: １８ 衛 生
A59: 建設業 | H59: =データ一覧!H108 -> … | K59: =データ一覧!H165 -> … | N59: =データ一覧!H109 -> 465 | Q59: =データ一覧!H166 -> 3975 | T59: =データ一覧!H110 -> … | W59: =データ一覧!H167 -> … | Z59: 海 面 漁 業 漁 獲 量 （属人） | AH59: =データ一覧!$A$289 -> 30年中 | AN59: =データ一覧!$A$418 -> 6.3.31 | AS59: =データ一覧!H418 -> 4459 | AW59: =データ一覧!H420 -> 12524 | BA59: =データ一覧!H421 -> 10476 | BD59: =データ一覧!H419 -> 175 | BG59: =データ一覧!H422 -> 1518 | BJ59: =データ一覧!H423 -> 966 | BM59: =データ一覧!H424 -> 25006
A60: 製造業 | H60: =データ一覧!H111 -> … | K60: =データ一覧!H168 -> … | N60: =データ一覧!H112 -> 165 | Q60: =データ一覧!H169 -> 3835 | T60: =データ一覧!H113 -> … | W60: =データ一覧!H170 -> … | AF60: ｔ | AM60: t | AR60: 郵 便 局 数 | BF60: =+MID(データ一覧!$A$428,3,2) -> 3. | BG60: 令 | BH60: 一般加入 | BL60: ＩＮＳネット | BT60: 医療関係施設 | BZ60: =データ一覧!$A$661 -> 5.10.1 | CG60: および医療関係者数 | CO60: =データ一覧!$A$666 -> 4.12.31
A61: 電気・ｶﾞ ｽ・熱供給・水道業 | H61: =データ一覧!H114 -> … | K61: =データ一覧!H171 -> … | N61: =データ一覧!H115 -> 9 | Q61: =データ一覧!H172 -> 473 | T61: =データ一覧!H116 -> … | W61: =データ一覧!H173 -> … | Z61: 総 数 | AD61: =データ一覧!H289 -> 503 | AG61: 藻 類 | AK61: =データ一覧!H292 -> 2 | AN61: 通 信 | AR61: 総 数 | AW61: 郵 便 局 | BB61: 簡 易 局 | BF61: ・ | BG61: =+LEFT(データ一覧!$A$428,1) -> 6 | BH61: 電話数 | BL61: 加入数 | BW61: 病 | BZ61: 院 | CH61: 一般診療所 | CT61: 歯科診療所
A62: 情報通信業 | H62: =データ一覧!H117 -> … | K62: =データ一覧!H174 -> … | N62: =データ一覧!H118 -> 23 | Q62: =データ一覧!H175 -> 241 | T62: =データ一覧!H119 -> … | W62: =データ一覧!H176 -> … | Z62: 魚 類 | AD62: =データ一覧!H290 -> 420 | AG62: そ の 他 | AK62: =データ一覧!H293 -> 71 | AN62: =データ一覧!$A$428 -> 6.3.31 | AR62: =データ一覧!H425 -> 12 | AW62: =データ一覧!H426 -> 11 | BB62: =データ一覧!H427 -> 1 | BF62: =+RIGHT(データ一覧!$A$428,2) -> 31 | BG62: ・ | BH62: =データ一覧!H428 -> 5414 | BL62: =データ一覧!H429 -> 953 | BQ62: 医療関係 | CC62: 一般病院 | CO62: 有 | CR62: 床
A63: 運輸業、郵便業 | H63: =データ一覧!H120 -> … | K63: =データ一覧!H177 -> … | N63: =データ一覧!H121 -> 104 | Q63: =データ一覧!H178 -> 2323 | T63: =データ一覧!H122 -> … | W63: =データ一覧!H179 -> … | Z63: 貝 類 | AD63: =データ一覧!H291 -> 10 | BQ63: 施設数 | BX63: =データ一覧!H661 -> 5 | CD63: =データ一覧!H662 -> 3 | CJ63: =データ一覧!H663 -> 50 | CP63: =データ一覧!H664 -> 3 | CV63: =データ一覧!H665 -> 21
A64: 卸売業、小売業 | H64: =データ一覧!H123 -> … | K64: =データ一覧!H180 -> … | N64: =データ一覧!H124 -> 763 | Q64: =データ一覧!H181 -> 5658 | T64: =データ一覧!H125 -> … | W64: =データ一覧!H182 -> … | AN64: １３ 税 ・ 財 政 | BW64: 医師 | CB64: 歯科医師 | CG64: 薬剤師 | CL64: 保健師 | CQ64: 助産師 | CV64: 看護師
A65: 金融業、保険業 | H65: =データ一覧!H126 -> … | K65: =データ一覧!H183 -> … | N65: =データ一覧!H127 -> 56 | Q65: =データ一覧!H184 -> 569 | T65: =データ一覧!H128 -> … | W65: =データ一覧!H185 -> … | Z65: ７ 商 業 | AG65: =データ一覧!$A$294 -> 3.6.1(令和2年実績） | BQ65: 医療 | BZ65: 人 | CE65: 人 | CJ65: 人 | CO65: 人 | CT65: 人 | CY65: 人
A66: 不動産業、物品賃貸業 | H66: =データ一覧!H129 -> … | K66: =データ一覧!H186 -> … | N66: =データ一覧!H130 -> 133 | Q66: =データ一覧!H187 -> 655 | T66: =データ一覧!H131 -> … | W66: =データ一覧!H188 -> … | AR66: 歳入 | BA66: (千円） | BF66: 歳出 | BO66: (千円） | BQ66: 関係者 | BV66: =データ一覧!H666 -> 145 | CA66: =データ一覧!H667 -> 33 | CF66: =データ一覧!H668 -> 135 | CK66: =データ一覧!H669 -> 43 | CP66: =データ一覧!H670 -> 34 | CU66: =データ一覧!H671 -> 1015
A67: 学術研究、専門・技術ｻｰﾋﾞｽ業 | H67: =データ一覧!H132 -> … | K67: =データ一覧!H189 -> … | N67: =データ一覧!H133 -> 138 | Q67: =データ一覧!H190 -> 1734 | T67: =データ一覧!H134 -> … | W67: =データ一覧!H191 -> … | Z67: 産 業 分 類 | AD67: 事 業 所 数 | AG67: 従 業 者 数 | AJ67: 年 間 販 売 額 | AN67: 一人当たり歳入歳出予算決算額 | BY67: 死因別死亡数 | CO67: =データ一覧!$A$672 -> 5年中 | CX67: 単 位：人
A68: 宿泊業、飲食サービス業 | H68: =データ一覧!H135 -> … | K68: =データ一覧!H192 -> … | N68: =データ一覧!H136 -> 498 | Q68: =データ一覧!H193 -> 3044 | T68: =データ一覧!H137 -> … | W68: =データ一覧!H194 -> … | AI68: 人 | AK68: 百万円 | AN68: 区分 | AR68: =データ一覧!$A$438 -> 6年度 | AW68: =データ一覧!$A$452 -> 5年度 | BB68: 区分 | BF68: =+AR68 -> 6年度 | BK68: =データ一覧!$A$452 -> 5年度 | BP68: 死 因 | CB68: 悪 性 | CE68: 高血圧 | CK68: 脳血管 | CT68: 不慮の事故
A69: 生活関連サービス業、娯楽業 | H69: =データ一覧!H138 -> … | K69: =データ一覧!H195 -> … | N69: =データ一覧!H139 -> 248 | Q69: =データ一覧!H196 -> 937 | T69: =データ一覧!H140 -> … | W69: =データ一覧!H197 -> … | Z69: 総 計 | AD69: =データ一覧!$H$294 -> 652 | AG69: =データ一覧!H303 -> 4633 | AJ69: =データ一覧!H312 -> 178162 | AR69: =データ一覧!H434 -> 655743.7205 | AW69: =データ一覧!H435 -> 788621.9559 | BF69: =データ一覧!H436 -> 655743.7205 | BK69: =データ一覧!H437 -> 752538.1996 | BU69: 全 死 因 | BY69: 結 核 | CB69: 新生物 | CE69: 性疾患 | CH69: 心疾患 | CK69: 疾 患 | CN69: 肺 炎 | CQ69: 老 衰 | CW69: 交通事故
A70: 教育、学習支援業 | H70: =データ一覧!H141 -> … | K70: =データ一覧!H198 -> … | N70: =データ一覧!H142 -> 64 | Q70: =データ一覧!H199 -> 583 | T70: =データ一覧!H143 -> … | W70: =データ一覧!H200 -> … | Z70: 卸売業 | AD70: =データ一覧!H295 -> 163 | AG70: =データ一覧!H304 -> 1108 | AJ70: =データ一覧!H313 -> 104339 | AN70: 項目別歳入歳出予算決算額
A71: 医療、福祉 | H71: =データ一覧!H144 -> … | K71: =データ一覧!H201 -> … | N71: =データ一覧!H145 -> 207 | Q71: =データ一覧!H202 -> 3638 | T71: =データ一覧!H146 -> … | W71: =データ一覧!H203 -> … | Z71: 小売業 | AD71: =データ一覧!H296 -> 489 | AG71: =データ一覧!H305 -> 3525 | AJ71: =データ一覧!H314 -> 73822 | AN71: 区分 | AR71: =データ一覧!$A$438 -> 6年度 | AW71: =データ一覧!$A$452 -> 5年度 | BB71: 区分 | BF71: =+AR71 -> 6年度 | BK71: =データ一覧!$A$452 -> 5年度 | BU71: =データ一覧!H672 -> 854 | BY71: － | BZ71: =データ一覧!H673 -> 1 | CB71: =データ一覧!H674 -> 188 | CF71: =データ一覧!H675 -> 1 | CH71: =データ一覧!H676 -> 95 | CK71: =データ一覧!H677 -> 57 | CN71: =データ一覧!H678 -> 41 | CQ71: =データ一覧!H679 -> 170 | CT71: =データ一覧!H680 -> 24 | CW71: =データ一覧!H681 -> 2
A72: 複合サービス事業 | H72: =データ一覧!H147 -> … | K72: =データ一覧!H204 -> … | N72: =データ一覧!H148 -> 17 | Q72: =データ一覧!H205 -> 342 | T72: =データ一覧!H149 -> … | W72: =データ一覧!H206 -> … | Z72: 各種商品 | AD72: =データ一覧!H297 -> 1 | AG72: =データ一覧!H306 -> 15 | AJ72: =データ一覧!H315 -> x | AN72: 総額 | AR72: =SUM(AR73:AV85) -> 40386600 | AW72: =SUM(AW73:BA85) -> 49093294 | BB72: 総額 | BF72: =SUM(BF73:BJ85) -> 40386600 | BK72: =SUM(BK73:BO85) -> 46847008 | BP72: １９ 警 察 ・ 消 防 | CE72: =+データ一覧!$A682 -> 6.4.1
A73: サービス業 | H73: =データ一覧!H150 -> … | K73: =データ一覧!H207 -> … | N73: =データ一覧!H151 -> 284 | Q73: =データ一覧!H208 -> 3066 | T73: =データ一覧!H152 -> … | W73: =データ一覧!H209 -> … | Z73: 織物・衣服・身の回り品 | AD73: =データ一覧!H298 -> 64 | AG73: =データ一覧!H307 -> 225 | AJ73: =データ一覧!H316 -> 2391 | AN73: 地方税 | AR73: =データ一覧!H439 -> 13099142 | AW73: =データ一覧!H453 -> 13277149 | BB73: 議会費 | BF73: =データ一覧!H467 -> 273003 | BK73: =データ一覧!H481 -> 259750
A74: 公務 | H74: =データ一覧!H153 -> … | K74: =データ一覧!H210 -> … | N74: =データ一覧!H154 -> … | Q74: =データ一覧!H211 -> … | T74: =データ一覧!H155 -> … | W74: =データ一覧!H212 -> … | Z74: 飲食料品 | AD74: =データ一覧!H299 -> 148 | AG74: =データ一覧!H308 -> 1428 | AJ74: =データ一覧!H317 -> 23818 | AN74: 地方譲与税 | AR74: =データ一覧!H440 -> 233047 | AW74: =データ一覧!H454 -> 229700 | BB74: 総務費 | BF74: =データ一覧!H468 -> 9000544 | BK74: =データ一覧!H482 -> 11970900 | BZ74: 交番・駐在所 | CI74: 刑法犯認知件数 | CR74: 交通人身事故発生件数
A75: ４ 農 業 | Z75: 機械器具 | AD75: =データ一覧!H300 -> 79 | AG75: =データ一覧!H309 -> 594 | AJ75: =データ一覧!H318 -> 16977 | AN75: 各種交付金 | AR75: =データ一覧!H441 -> 1905500 | AW75: =データ一覧!H455 -> 2039603 | BB75: 民生費 | BF75: =データ一覧!H469 -> 12399978 | BK75: =データ一覧!H483 -> 11824873 | BQ75: 警察署数 | BZ75: 検問所数 | CJ75: =データ一覧!$A$684 -> 5年中 | CS75: =データ一覧!$A$684 -> 5年中
Z76: その他 | AD76: =データ一覧!H301 -> 177 | AG76: =データ一覧!H310 -> 1138 | AJ76: =データ一覧!H319 -> x | AN76: 地方特例交付金 | AR76: =データ一覧!H442 -> 70000 | AW76: =データ一覧!H456 -> 72523 | BB76: 衛生費 | BF76: =データ一覧!H470 -> 4040888 | BK76: =データ一覧!H484 -> 5723096 | CN76: 件 | CW76: 件
C77: 農業経営体数 | J77: 農産物販売額規模別経営体数 | R77: 経営耕地面積規模別経営体数 | Z77: 無店舗 | AD77: =データ一覧!H302 -> 20 | AG77: =データ一覧!H311 -> 125 | AJ77: =データ一覧!H320 -> 7924 | AN77: 地方交付税 | AR77: =データ一覧!H443 -> 2300000 | AW77: =データ一覧!H457 -> 2527294 | BB77: 労働費 | BF77: =データ一覧!H471 -> 126497 | BK77: =データ一覧!H485 -> 117908 | BR77: =データ一覧!H682 -> 1 | CA77: =データ一覧!H683 -> 8 | CJ77: =データ一覧!H684 -> 256 | CS77: =データ一覧!H685 -> 106
A78: 農 | C78: 区 分 | G78: 経営体数 （経営体） | J78: 区 分 | O78: 経営体数 （経営体） | R78: 区 分 | W78: 経営体数 （経営体） | AN78: 分担金および負担金 | AR78: =データ一覧!H444 -> 136141 | AW78: =データ一覧!H458 -> 815035 | BB78: 農林水産業費 | BF78: =データ一覧!H472 -> 607598 | BK78: =データ一覧!H486 -> 637253 | BP78: 火災発生件数 | BZ78: 林野焼損 | CE78: 損 害 | CJ78: 消 防 自 | CN78: その他の
A79: 業 | B79: 令 | Z79: ８ 住 宅 | AN79: 使用料および手数料 | AR79: =データ一覧!H445 -> 497014 | AW79: =データ一覧!H459 -> 500028 | BB79: 商工費 | BF79: =データ一覧!H473 -> 2597202 | BK79: =データ一覧!H487 -> 3032444 | BP79: =+データ一覧!$A$686 -> 5年中 | BU79: 焼損棟数 | BZ79: 面 積 | CE79: 見 積 額 | CJ79: 動 車 数 | CN79: ﾎﾟﾝﾌﾟ数 | CR79: 消防吏員 | CV79: 消防団員
A80: 経 | B80: =+LEFT(データ一覧!$A$213) -> 2 | C80: 計 | G80: =データ一覧!H213 -> 356 | J80: 総 数 | O80: =データ一覧!H217 -> 356 | R80: 総 数 | W80: =データ一覧!H233 -> 418 | AN80: 国庫支出金 | AR80: =データ一覧!H446 -> 5027054 | AW80: =データ一覧!H460 -> 7187492 | BB80: 土木費 | BF80: =データ一覧!H474 -> 2934529 | BK80: =データ一覧!H488 -> 4678269 | BP80: 件 | BV80: 棟 | CC80: ａ | CG80: 千円 | CT80: 人 | CX80: 人
A81: 営 | B81: ・ | C81: 個人経営体 | G81: =データ一覧!H214 -> 351 | J81: 販 売 な し | O81: =データ一覧!H218 -> 41 | R81: 0.5 ha 未満 | W81: =データ一覧!H234 -> 42 | Z81: =+データ一覧!$A$321 -> 4年 | AE81: =データ一覧!$A$324 -> 5年 | AF81: 中の増減 | AJ81: =+データ一覧!$A$324 -> 5年 | AN81: 県支出金 | AR81: =データ一覧!H447 -> 3084055 | AW81: =データ一覧!H461 -> 3360057 | BB81: 消防費 | BF81: =データ一覧!H475 -> 1169081 | BK81: =データ一覧!H489 -> 1091001 | BQ81: =データ一覧!H686 -> 16 | BV81: =データ一覧!H687 -> 20 | CA81: =データ一覧!H688 -> 0 | CE81: =データ一覧!H689 -> 376558 | CK81: =データ一覧!H690 -> 19 | CO81: =データ一覧!H691 -> 14 | CS81: =データ一覧!H692 -> 112 | CW81: =データ一覧!H693 -> 271
A82: 体 | B82: =+LEFT(データ一覧!$A$213,1) -> 2 | C82: 団体経営体 | G82: =データ一覧!H215 -> 5 | J82: 50万円未満 | O82: =データ一覧!H219 -> 177 | R82: 0.5 ha ～ 1.0 ha | W82: =データ一覧!H235 -> 94 | AD82: 建設した住宅 | AG82: 消失した住宅 | AN82: 財産収入 | AR82: =データ一覧!H448 -> 126861 | AW82: =データ一覧!H462 -> 148261 | BB82: 教育費 | BF82: =データ一覧!H476 -> 4800032 | BK82: =データ一覧!H490 -> 4613854 | BP82: ２０ そ の 他
A83: 数 | B83: ・ | D83: 法人経営 | G83: =データ一覧!H216 -> 2 | J83: 50～300万円 | O83: =データ一覧!H220 -> 112 | R83: 1.0 ha ～ 2.0 ha | W83: =データ一覧!H236 -> 89 | AN83: 繰入金 | AR83: =データ一覧!H449 -> 5348883 | AW83: =データ一覧!H463 -> 4397104 | BB83: 災害復旧費 | BF83: =データ一覧!H477 -> 67200 | BK83: =データ一覧!H491 -> 247504
A84: （ | B84: =+RIGHT(データ一覧!$A$213) -> 1 | J84: 300～500万円 | O84: =データ一覧!H221 -> 11 | R84: 2.0 ha ～ 3.0 ha | W84: =データ一覧!H237 -> 31 | AA84: =データ一覧!H321 -> 25770 | AC84: 戸 | AD84: =データ一覧!H322 -> 305 | AF84: 戸 | AG84: =データ一覧!H323 -> 252 | AI84: 戸 | AK84: =データ一覧!H324 -> 25823 | AM84: 戸 | AN84: 地方債 | AR84: =データ一覧!H450 -> 2072400 | AW84: =データ一覧!H464 -> 2740500 | BB84: 公債費 | BF84: =データ一覧!H478 -> 2350048 | BK84: =データ一覧!H492 -> 2650156 | BU84: 朝鮮鐘、氣比神宮大鳥居、西福寺御影堂・阿弥陀堂・書院及び庫裏、旧大和田銀行本店本館、金ヶ崎城跡、武田耕雲斎等墓、玄蕃尾城（内中尾山城）跡、中郷古墳群、気比の松原、西福寺書院庭園、柴田氏庭園、おくのほそ道の風景地 けいの明神（氣比神宮境内）、穴地蔵古墳、立洞古墳、疋壇城跡、洲崎の高燈籠、旧紐育スタンダード石油会社倉庫（赤レンガ倉庫）、旧敦賀倉庫株式会社新港第１・２・３号倉庫、立石岬灯台、旧大和田銀行本店社屋
A85: 総 | J85: 500～1,000万円 | O85: =データ一覧!H222 -> 9 | R85: 3.0 ha ～ 5.0 ha | W85: =データ一覧!H238 -> 52 | AN85: その他 | AR85: =データ一覧!H451 -> 6486503 | AW85: =データ一覧!H465 -> 11798548 | BB85: その他 | BF85: =データ一覧!H479 -> 20000 | BK85: =データ一覧!H493 -> 0 | BP85: 名所・旧跡
A86: 数 | J86: 1,000万円以上 | O86: =データ一覧!H223 -> 6 | R86: 5.0 ha以上 | W86: =データ一覧!H239 -> 110 | BP86: 文化財等
A87: ） | C87: 15歳以上の常雇い数 | J87: 農業に60日以上従事した世帯員、役員・構成員 （経営主を含む）の平均年齢 | Z87: ９ 議 員 ・ 職 員 | AN87: １４ 文 化 | AV87: ( | AW87: ="令"&データ一覧!$A$498 -> 令6.3.31 | AZ87: ただし図書館・公民館・児童館・ 社会教育学級講座 | BL87: =データ一覧!$A$494 -> 6.4.1
A88: と | BA88: 宗教法人数 | BL88: =データ一覧!$A$502 -> 5.12.31
A89: 就 | J89: 農業に60日以上従事 | R89: 農業に150日以上従事 | Z89: 市 町 議 会 | AC89: 有権者数 | AE89: =データ一覧!$A$328 -> 6.9.1 | AG89: 市 町 議 会 | AJ89: 職 員 数 | AS89: 図書館 | AY89: 公 民 館 | BJ89: 社会教育学級講座 | BP89: 特産物 | BU89: 昆布加工品、かまぼこ、越前がに、敦賀ふぐ、敦賀真鯛、杉箸アカカンバ、古田苅かぶら、黒河マナ、東浦みかん、豆らくがん、かたパン、敦賀ラーメン、ソースカツ丼
A90: 業 | C90: 区分 | G90: 人 | J90: 区分 | O90: 歳 | R90: 区 分 | W90: 歳 | Z90: 議 員 定 数 | AC90: 男 | AE90: 女 | AG90: 選 挙 投 票 率 | AJ90: 総 数 | AL90: 一般行政職 | AN90: 公 共 | AR90: 館 数 | AU90: 図書数 | AX90: 本 館 | BA90: 分 館 | BD90: 公 園 | BG90: 児童館 | BJ90: 学級講座数 | BM90: 受講者数
A91: 状 | C91: 総数 | G91: =データ一覧!H230 -> 8 | J91: 総数 | O91: =データ一覧!H224 -> 69.2 | R91: 総数 | W91: =データ一覧!H227 -> 69.6 | AB91: 人 | AD91: 人 | AF91: 人 | AI91: ％ | AK91: 人 | AM91: 人 | AN91: 施 設 数 | AS91: =データ一覧!H494 -> 1 | AU91: =データ一覧!H495 -> 284217 | AY91: =データ一覧!H496 -> 9 | BA91: =データ一覧!H497 -> 0 | BD91: =データ一覧!H498 -> 40 | BG91: =データ一覧!H499 -> 3 | BJ91: =データ一覧!H500 -> 331 | BM91: =データ一覧!H501 -> 5926 | BP91: 年中行事 | BU91: 敦賀西町の綱引き､花換まつり､沓見御田植祭､総参祭､とうろう流しと大花火大会､氣比神宮例大祭敦賀まつり、赤崎の獅子舞、阿曽相撲甚句、厄除せんべい焼､八幡神社の彼岸祭、野坂だのせ祭、御船遊管絃祭、毘沙講
A92: 況 | C92: 男 | G92: =データ一覧!H231 -> 3 | J92: 男 | O92: =データ一覧!H225 -> 68.2 | R92: 男 | W92: =データ一覧!H228 -> 69.2 | AA92: =データ一覧!H325 -> 22 | AC92: =データ一覧!H328 -> 25695 | AE92: =データ一覧!H329 -> 26424 | AG92: =データ一覧!H327 -> 60.43 | AJ92: =データ一覧!H330 -> 1041 | AL92: =データ一覧!H331 -> 367 | AN92: 宗 教 | AR92: 仏教系 | AU92: ｷﾘｽﾄ教系 | AX92: 神道諸派 | BA92: 公会堂・市民会館 | BG92: テレビ | BJ92: 衛星放送契約数
C93: 女 | G93: =データ一覧!H232 -> 5 | J93: 女 | O93: =データ一覧!H226 -> 70.9 | R93: 女 | W93: =データ一覧!H229 -> 70.2 | AG93: =データ一覧!H326 -> 5.4.23 | AN93: 法 人 数 | AR93: =データ一覧!H502 -> 127 | AU93: =データ一覧!H503 -> 6 | AX93: =データ一覧!H504 -> 105 | BA93: =データ一覧!H505 -> 2 | BG93: 等 | BJ93: =データ一覧!H506 -> 15154

Sheet 小浜市
A1: =+データ一覧!I2 -> 0
A2: =+データ一覧!I5 -> 0
AN3: 0
AB4: 【市章とそのいわれ】小浜市の「小」の字を、未来への飛躍を | AN4: 【位置および地勢】小浜市は福井県の南西部に位置し南は東西に走る京都 | BS4: 所在地 | CA4: 〒917-8585
AB5: こめて、鳥の羽ばたく姿にデザインしたもので、 | AO5: 北部一帯に連なる山岳で、一部滋賀県と境を接し、北は内外海半島、 | CA5: 小浜市大手町６番３号
A6: =+データ一覧!I3 -> おばまし | AB6: 市制発足の際、市民の公募作品から選定した。 | AO6: 大島半島で囲まれた小浜湾に面している。付近一帯の海岸は 国定公園の
A7: =データ一覧!I6 -> 小浜市 | AB7: 0 | AO7: 指定を受け、各所に明媚な風光をかもしだしており、遠く南の山岳地帯に | BS7: 電話番号 | CA7: （０７７０）５３－１１１１
AB8: 0 | AO8: 源を発する北川、南川の両河川は海岸に細長く走る肥沃な平野を貫流して、 | BS8: FAX番号 | CA8: 〃 ５３－０７４２
AB9: 0 | AO9: 下流にかんがいをもたらし小浜湾に注いでいる。
AB10: 0 | AN10: 0 | BS10: 最寄駅および距離 | CA10: ＪＲ小浜線小浜駅 下車４００ｍ
AB11: 0 | AN11: 0
AB13: 【市が掲げる標語】みんなで描く、悠久の歴史と風土が活きるまち ～新たな時代の御食国 若狭おばま～ | BS13: ホームページ | CA13: https://www1.city.obama.fukui.jp/
A15: １ 土 地 | Z15: =データ一覧!$A$240 -> 5年 | AA15: 産米収穫量 | AD15: 収 穫 量 | AG15: 作 付 面 積 | AJ15: 10a当たり収量 | BP15: １５ 労 働 | CE15: 2.10.1
AD16: =データ一覧!$I$240 -> 3810 | AF16: t | AG16: =データ一覧!$I$241 -> 814 | AI16: ha | AJ16: =データ一覧!I242 -> 468 | AM16: kg | AN16: １０ 工 業 | BB16: =データ一覧!$A$332 -> 4.6.1（令和3年実績）
A17: 総 面 積 | K17: 固 定 資 産 概 要 調 書 に よ る 地 目 別 面 積 | AC17: 総 数 | AG17: うち 田 | AK17: うち 畑 | BW17: 産業別就業者数
C18: =データ一覧!$A$7 -> 6.10.1 | Q18: =データ一覧!$A$9 -> 6.1.1 | Z18: 耕 地 面 積 | AD18: ha | AG18: ha | AK18: ha | AO18: 産業分類 | AW18: 事業所数 | BB18: 従業者数 | BH18: 年間製造品出荷額等 | BQ18: 区 分 | BV18: 総 数 | CA18: 男 | CE18: 女 | CI18: 区 分 | CN18: 総 数 | CS18: 男 | CW18: 女
G19: ㎢ | K19: 総 数 | P19: う ち 田 | U19: う ち 畑 | Z19: =データ一覧!A243 -> 5.7.15 | AC19: =データ一覧!$I$243 -> 1410 | AF19: =データ一覧!$I$244 -> 1290 | AJ19: =データ一覧!$I$245 -> 117 | AZ19: 事業所 | BB19: 人 | BE19: 人 | BG19: 万円 | BN19: 万円 | BV19: 人 | CB19: 人 | CF19: 人 | CN19: 人 | CR19: 人 | CV19: 人
D20: =データ一覧!I7 -> 233.11 | O20: ha | T20: ha | Y20: ha | Z20: 農 業 生 産 物 | AD20: 作 付 面 積 | AG20: 収 穫 量 | AJ20: 10a当たり収量 | AO20: 総数 | AX20: =データ一覧!I332 -> 69 | BB20: =+データ一覧!I357 -> 1730 | BI20: =データ一覧!I382 -> 4309043 | BP20: 総 数 | BV20: =BZ20+CD20 -> 14193 | BZ20: =データ一覧!I507 -> 7945 | CD20: =データ一覧!I532 -> 6248
L21: =データ一覧!I9 -> 13510.6 | Q21: =データ一覧!I10 -> 1474.9 | V21: =データ一覧!I11 -> 233.1 | Z21: =データ一覧!$A$246 -> 5年産 | AD21: ha | AG21: t | AJ21: kg | AN21: 食料品 | AO21: 食料品 | AX21: =データ一覧!I333 -> 15 | BB21: =+データ一覧!I358 -> 236 | BI21: =データ一覧!I383 -> 335125 | CI21: 卸売業,小売業 | CN21: =CR21+CV21 -> 2099 | CR21: =データ一覧!I520 -> 982 | CV21: =データ一覧!I545 -> 1117
A22: 町 ･ 丁 ･ 大 字 | K22: う ち 宅 地 | P22: う ち 山 林 | U22: う ち 原 野 | Z22: 水 稲 | AD22: =データ一覧!I246 -> 814 | AG22: =データ一覧!I247 -> 3810 | AJ22: =データ一覧!I248 -> 468 | AN22: 飲料・飼料 | AO22: 飲料・飼料 | AX22: =データ一覧!I334 -> 2 | BB22: =+データ一覧!I359 -> 22 | BI22: =データ一覧!I384 -> x | BP22: 第１次産業 | BV22: =BZ22+CD22 -> 567 | BZ22: =データ一覧!I508 -> 348 | CD22: =データ一覧!I533 -> 219 | CI22: 金融業,保険業 | CN22: =CR22+CV22 -> 244 | CR22: =データ一覧!I521 -> 101 | CV22: =データ一覧!I546 -> 143
A23: 区 画 数 | H23: =データ一覧!I8 -> 143 | O23: ha | T23: ha | Y23: ha | Z23: 六 条 大 麦 | AD23: =データ一覧!I249 -> 36 | AG23: =データ一覧!I250 -> 112 | AJ23: =データ一覧!I251 -> 312 | AN23: 繊維 | AO23: 繊維 | AX23: =データ一覧!I335 -> 6 | BB23: =+データ一覧!I360 -> 222 | BI23: =データ一覧!I385 -> 311879 | BQ23: 農業 | BV23: =BZ23+CD23 -> 474 | BZ23: =データ一覧!I509 -> 270 | CD23: =データ一覧!I534 -> 204 | CI23: 不動産業 | CN23: 123 | CR23: =データ一覧!I522 -> 71 | CV23: =データ一覧!I547 -> 52
A24: =データ一覧!$A$8 -> 5.4.1 | L24: =データ一覧!I12 -> 659.6 | Q24: =データ一覧!I13 -> 7226.3 | V24: =データ一覧!I14 -> 149.5 | Z24: 大 豆 | AD24: =データ一覧!I252 -> 21 | AG24: =データ一覧!I253 -> 24 | AJ24: =データ一覧!I254 -> 114 | AN24: 衣服 | AO24: 木材 | AX24: =データ一覧!I336 -> 11 | BB24: =+データ一覧!I361 -> 108 | BI24: =データ一覧!I386 -> 302288 | BQ24: 林業 | BV24: 17 | BZ24: =データ一覧!I510 -> 15 | CD24: =データ一覧!I535 -> 2 | CI24: 学術研究 | CN24: 566 | CR24: =データ一覧!I523 -> 434 | CV24: =データ一覧!I548 -> 132
A25: ２ 世 帯 数 と 人 口 | AB25: 区 分 | AD25: 乳 用 牛 | AF25: 肉 用 牛 | AH25: 豚 | AJ25: 採卵鶏 | AL25: ブロイラー | AN25: 木材 | AO25: 家具 | AX25: =データ一覧!I337 -> 2 | BB25: =+データ一覧!I362 -> 14 | BI25: =データ一覧!I387 -> x | BQ25: 漁業 | BV25: 76 | BZ25: =データ一覧!I511 -> 63 | CD25: =データ一覧!I536 -> 13 | CI25: 宿泊業,飲食ｻｰﾋﾞｽ | CN25: 748 | CR25: =データ一覧!I524 -> 276 | CV25: =データ一覧!I549 -> 472
Z26: 畜 産 | AB26: 飼養農家 | AD26: =データ一覧!$I$255 -> 0 | AF26: =データ一覧!$I$257 -> 0 | AH26: =データ一覧!$I$259 -> 0 | AJ26: =データ一覧!$I$261 -> 0 | AL26: =データ一覧!$I$263 -> 0 | AN26: 家具 | AO26: パルプ・紙 | AX26: =データ一覧!I338 -> 1 | BB26: =+データ一覧!I363 -> 47 | BI26: =データ一覧!I388 -> x | BP26: 第２次産業 | BV26: 3786 | BZ26: =データ一覧!I512 -> 2677 | CD26: =データ一覧!I537 -> 1109 | CI26: 生活関連ｻｰﾋﾞｽ業 | CN26: 402 | CR26: =データ一覧!I525 -> 162 | CV26: =データ一覧!I550 -> 240
I27: 人 口 | U27: １世帯当 | W27: 人 口 | Z27: =データ一覧!$A$255 -> 6.3.31 | AB27: （戸） | AN27: パルプ・紙 | AO27: 印刷 | AX27: =データ一覧!I339 -> 1 | BB27: =+データ一覧!I364 -> 5 | BI27: =データ一覧!I389 -> x | BQ27: 鉱業，採石業 | BV27: 0 | BZ27: =データ一覧!I513 -> - | CD27: =データ一覧!I538 -> - | CI27: 教育,学習支援業 | CN27: 821 | CR27: =データ一覧!I526 -> 374 | CV27: =データ一覧!I551 -> 447
A28: 区 分 | F28: 世帯数 | I28: 総 数 | L28: 男 | O28: 女 | R28: 男／女 | U28: たり人員 | W28: 密 度 | AB28: 頭 羽 | AD28: =データ一覧!$I$256 -> 0 | AF28: =データ一覧!$I$258 -> 0 | AH28: =データ一覧!$I$260 -> 0 | AJ28: =データ一覧!$I$262 -> 0 | AL28: =データ一覧!$I$264 -> 0 | AN28: 出版・印刷 | AO28: 化学 | AX28: =データ一覧!I340 -> 2 | BB28: =+データ一覧!I365 -> 85 | BI28: =データ一覧!I390 -> x | BQ28: 建設業 | BV28: 1537 | BZ28: =データ一覧!I514 -> 1319 | CD28: =データ一覧!I539 -> 218 | CI28: 医療，福祉 | CN28: 1927 | CR28: =データ一覧!I527 -> 477 | CV28: =データ一覧!I552 -> 1450
F29: 世 帯 | I29: 人 | L29: 人 | O29: 人 | S29: ％ | U29: 人 | W29: 人/㎢ | AN29: 化学 | AO29: 石油・石炭 | AX29: =データ一覧!I341 -> 1 | BB29: =+データ一覧!I366 -> 13 | BI29: =データ一覧!I391 -> x | BQ29: 製造業 | BV29: 2249 | BZ29: =データ一覧!I515 -> 1358 | CD29: =データ一覧!I540 -> 891 | CI29: 複合サービス事業 | CN29: 240 | CR29: =データ一覧!I528 -> 147 | CV29: =データ一覧!I553 -> 93
A30: =データ一覧!$A$22 -> 2.10.1 | F30: =データ一覧!I22 -> 9920 | I30: =+L30+O30 -> 33774 | L30: =データ一覧!I24 -> 16175 | O30: =データ一覧!I25 -> 17599 | S30: =+L30/O30*100 -> 91.90863117 | U30: =データ一覧!I27 -> 3.4 | W30: =データ一覧!I28 -> 145.1 | Z30: ５ 林 業 | AN30: 石油・石炭 | AO30: プラスチック | AX30: =データ一覧!I342 -> 2 | BB30: =+データ一覧!I367 -> 101 | BI30: =データ一覧!I392 -> x | BP30: 第３次産業 | BV30: 9494 | BZ30: =データ一覧!I516 -> 4700 | CD30: =データ一覧!I541 -> 4794 | CI30: サービス業 | CN30: 1062 | CR30: =データ一覧!I529 -> 704 | CV30: =データ一覧!I554 -> 358
A31: =データ一覧!$A$29 -> 7.10.1 | F31: =データ一覧!I29 -> 10383 | I31: =+L31+O31 -> 33496 | L31: =データ一覧!I31 -> 16164 | O31: =データ一覧!I32 -> 17332 | S31: 93.26102008 | U31: =データ一覧!I34 -> 3.23 | W31: =データ一覧!I35 -> 143.9 | AN31: プラスチック | AO31: ゴム | AX31: =データ一覧!I343 -> 0 | BB31: =+データ一覧!I368 -> 0 | BI31: =データ一覧!I393 -> 0 | BQ31: 電気･ｶﾞｽ･水道業 | BV31: 263 | BZ31: =データ一覧!I517 -> 231 | CD31: =データ一覧!I542 -> 32 | CI31: 公務 | CN31: 588 | CR31: =データ一覧!I530 -> 424 | CV31: =データ一覧!I555 -> 164
A32: =データ一覧!$A$36 -> 12.10.1 | F32: =データ一覧!I36 -> 10962 | I32: =+L32+O32 -> 33295 | L32: =データ一覧!I38 -> 16134 | O32: =データ一覧!I39 -> 17161 | S32: 94.01550026 | U32: =データ一覧!I41 -> 3.04 | W32: =データ一覧!I42 -> 143 | Z32: 森 林 総 面 積 | AH32: =データ一覧!$A$265 -> 5.3.31 | AN32: ゴム | AO32: 皮革 | AX32: =データ一覧!I344 -> 0 | BB32: =+データ一覧!I369 -> 0 | BI32: =データ一覧!I394 -> 0 | BQ32: 情報通信業 | BV32: 73 | BZ32: =データ一覧!I518 -> 42 | CD32: =データ一覧!I543 -> 31 | CH32: 分類不能の産業 | CN32: 346 | CR32: =データ一覧!I531 -> 220 | CV32: =データ一覧!I556 -> 126
A33: =+データ一覧!$A$43 -> 17.10.1 | F33: =データ一覧!I43 -> 11136 | I33: =+L33+O33 -> 32182 | L33: =データ一覧!I45 -> 15620 | O33: =データ一覧!I46 -> 16562 | S33: 94.31228113 | U33: =データ一覧!I48 -> 2.89 | W33: =データ一覧!I49 -> 138.2 | Z33: 森 林 の 構 成 | AN33: 皮革 | AO33: 窯業・土石 | AX33: =データ一覧!I345 -> 2 | BB33: =+データ一覧!I370 -> 25 | BI33: =データ一覧!I395 -> x | BQ33: 運輸業,郵便業 | BV33: =BZ33+CD33 -> 338 | BZ33: =データ一覧!I519 -> 275 | CD33: =データ一覧!I544 -> 63
A34: =+データ一覧!$A$50 -> 22.10.1 | F34: =+データ一覧!I50 -> 11477 | I34: =+L34+O34 -> 31340 | L34: =+データ一覧!I52 -> 15376 | O34: =+データ一覧!I53 -> 15964 | S34: 96.3167126 | U34: =+データ一覧!I55 -> 2.73 | W34: =+データ一覧!I56 -> 134.6 | AE34: ha | AL34: ha | AN34: 窯業・土石 | AO34: 鉄鋼 | AX34: =データ一覧!I346 -> 0 | BB34: =+データ一覧!I371 -> 0 | BI34: =データ一覧!I396 -> 0 | BP34: １６ 社 会 福 祉 | CF34: =データ一覧!$A$557 -> 6.4.1
A35: =データ一覧!$A$57 -> 27.10.1 | F35: =データ一覧!I57 -> 11220 | I35: =データ一覧!I58 -> 29670 | L35: =データ一覧!I59 -> 14539 | O35: =データ一覧!I60 -> 15131 | S35: 96.08750248 | U35: =データ一覧!I62 -> 2.644385027 | W35: =データ一覧!I63 -> 127.3 | Z35: 総 数 | AD35: =データ一覧!I265 -> 19030.38 | AG35: 天然林 針葉樹 | AK35: =データ一覧!I268 -> 1177.73 | AN35: 鉄鋼 | AO35: 非鉄金属 | AX35: =データ一覧!I347 -> 0 | BB35: =+データ一覧!I372 -> 0 | BI35: =データ一覧!I397 -> 0
A36: 令 2.10.1（国調） | F36: =データ一覧!I64 -> 12082 | I36: =データ一覧!I65 -> 28991 | L36: =データ一覧!I66 -> 14317 | O36: =データ一覧!I67 -> 14674 | S36: =+L36/O36*100 -> 97.56712553 | U36: =データ一覧!I69 -> 2.399519947 | W36: =データ一覧!I70 -> 124.3661791 | Z36: 人工林 針葉樹 | AD36: =データ一覧!I266 -> 7345.17 | AG36: 天然林 広葉樹 | AK36: =データ一覧!I269 -> 10144.39 | AN36: 非鉄金属 | AO36: 金属 | AX36: =データ一覧!I348 -> 0 | BB36: =+データ一覧!I373 -> 0 | BI36: =データ一覧!I398 -> 0 | BQ36: 区分 | BX36: 施設数 | CC36: 収容定員 | CI36: 区分 | CP36: 施設数 | CU36: 収容定員
A37: 年 | C37: 区 | E37: 0歳 | H37: 15歳 | K37: 25歳 | N37: 35歳 | Q37: 45歳 | T37: 55歳 | W37: 65歳 | Z37: 人工林 広葉樹 | AD37: =データ一覧!I267 -> 37.28 | AG37: 竹 林 | AK37: =データ一覧!I270 -> 181.56 | AN37: 金属 | AO37: はん用機械 | AX37: =データ一覧!I349 -> 0 | BB37: =+データ一覧!I374 -> 0 | BI37: =データ一覧!I399 -> 0 | BP37: 生活保護施設 | BX37: =データ一覧!I557 -> - | CB37: =データ一覧!I570 -> - | CF37: 人 | CH37: 指定障害者支援施設 | CP37: =データ一覧!I563 -> 3 | CT37: =データ一覧!I576 -> 120 | CX37: 人
A38: 齢 | B38: 令 | F38: ～ | I38: ～ | L38: ～ | O38: ～ | R38: ～ | U38: ～ | AN38: 一般機械 | AO38: 生産用機械 | AX38: =データ一覧!I350 -> 3 | BB38: =+データ一覧!I375 -> 96 | BI38: =データ一覧!I400 -> 160944 | BP38: 地域福祉施設 | BX38: =データ一覧!I558 -> - | CB38: =データ一覧!I571 -> - | CH38: 指定相談支援事業所 | CP38: =データ一覧!I564 -> 2 | CT38: =データ一覧!I577 -> -
A39: 階 | B39: =+LEFT(データ一覧!$A$83,1) -> 6 | C39: 分 | G39: 14歳 | J39: 24歳 | M39: 34歳 | P39: 44歳 | S39: 54歳 | V39: 64歳 | Y39: 以上 | Z39: 林 野 の 構 成 | AG39: 保 有 形 態 別 | AN39: 電気機械 | AO39: 業務用機械 | AX39: =データ一覧!I351 -> 1 | BB39: =+データ一覧!I376 -> 54 | BI39: =データ一覧!I401 -> x | BP39: 老人福祉施設 | BX39: =データ一覧!I559 -> 10 | CB39: =データ一覧!I572 -> 113 | CH39: 児童福祉施設 | CP39: =データ一覧!I565 -> 25 | CT39: =データ一覧!I578 -> 1227
A40: 級 | B40: ・ | G40: 人 | J40: 人 | L40: 人 | O40: 人 | R40: 人 | U40: 人 | X40: 人 | AF40: ha | AL40: ha | AO40: 電子・デバイス | AX40: =データ一覧!I352 -> 2 | BB40: =+データ一覧!I377 -> 161 | BI40: =データ一覧!I402 -> x | BP40: 介護保険施設 | BX40: =データ一覧!I560 -> 45 | CB40: =データ一覧!I573 -> 822 | CH40: 母子福祉施設 | CP40: =データ一覧!I566 -> - | CT40: =データ一覧!I579 -> -
A41: 別 | B41: =+MID(データ一覧!$A$83,3,2) -> 10 | C41: 総 数 | E41: =+E42+E43 -> 3237 | H41: =+H42+H43 -> 2140 | K41: =+K42+K43 -> 2279 | N41: =+N42+N43 -> 2815 | Q41: =+Q42+Q43 -> 3644 | T41: =+T42+T43 -> 3554 | W41: =+W42+W43 -> 9134 | Z41: 無立木地 伐採跡地 | AD41: =データ一覧!I271 -> 3.12 | AG41: 国 有 | AK41: =データ一覧!I273 -> 705.7 | AO41: 電気機械 | AX41: =データ一覧!I353 -> 4 | BB41: =+データ一覧!I378 -> 250 | BI41: =データ一覧!I403 -> 1447729 | BP41: 障害者自立支援法施行前からの身体障害者福祉施設 | BX41: =データ一覧!I561 -> - | CB41: =データ一覧!I574 -> - | CH41: 婦人保護施設 | CP41: =データ一覧!I567 -> - | CT41: =データ一覧!I580 -> -
A42: 人 | B42: ・ | C42: 男 | E42: =データ一覧!I83 -> 1662 | H42: =データ一覧!I84 -> 1167 | K42: =データ一覧!I85 -> 1286 | N42: =データ一覧!I86 -> 1474 | Q42: =データ一覧!I87 -> 1881 | T42: =データ一覧!I88 -> 1810 | W42: =データ一覧!I89 -> 3989 | Z42: 無立木地 未立木地 | AD42: =データ一覧!I272 -> 141.13 | AG42: 公 有 | AK42: =データ一覧!I274 -> 1886.05 | AN42: 輸送機械 | AO42: 情報通信機械 | AX42: =データ一覧!I354 -> 0 | BB42: =+データ一覧!I379 -> 0 | BI42: =データ一覧!I404 -> 0 | CH42: その他の社会福祉施設 | CP42: =データ一覧!I568+データ一覧!I569 -> 0 | CT42: 0
A43: 口 | B43: =+RIGHT(データ一覧!$A$83,1) -> 1 | C43: 女 | E43: =データ一覧!I91 -> 1575 | H43: =データ一覧!I92 -> 973 | K43: =データ一覧!I93 -> 993 | N43: =データ一覧!I94 -> 1341 | Q43: =データ一覧!I95 -> 1763 | T43: =データ一覧!I96 -> 1744 | W43: =データ一覧!I97 -> 5145 | AG43: 私 有 | AK43: =データ一覧!I275 -> 16438.63 | AN43: 精密機械 | AO43: 輸送機械 | AX43: =データ一覧!I355 -> 2 | BB43: =+データ一覧!I380 -> 25 | BI43: =データ一覧!I405 -> x | BP43: 障害福祉サービス事業所 | BX43: =データ一覧!I562 -> 31 | CB43: =データ一覧!I575 -> 291
Z44: 林 産 物 生 産 量 | AJ44: =データ一覧!$A$276 -> 5年中 | AN44: その他 | AO44: その他 | AX44: =データ一覧!I356 -> 12 | BB44: =+データ一覧!I381 -> 266 | BI44: =データ一覧!I406 -> 384782 | BP44: １７ 教 育 | CF44: =データ一覧!$A$583 -> 6.5.1
A45: 人口動態 | H45: 自 然 動 態 | N45: 社 会 動 態 | T45: =データ一覧!$A78 -> 5.1.1～5.12.31 | Z45: 生椎茸 | AD45: =データ一覧!I276 -> 158 | AF45: ㎏ | AG45: 乾椎茸 | AK45: =データ一覧!I277 -> 0 | AM45: ㎏
C46: 区 分 | H46: 出 生 | K46: 死 亡 | N46: 転 入 | Q46: 転 出 | T46: 婚 姻 | W46: 離 婚 | Z46: えのきだけ | AD46: =データ一覧!I279 -> 0 | AF46: ㎏ | AG46: なめこ | AK46: =データ一覧!I278 -> 0 | AM46: ㎏ | AO46: 工 業 用 水 量 | AU46: （従業者30人以上の事業所） | BF46: =データ一覧!I407 -> 1739 | BK46: ㎥／日 | BZ46: 学校数（校） | CG46: 教員数（人） | CO46: 学生・生徒・児童数（人）
A47: =LEFT(データ一覧!$A74,6) -> 5.10.1 | H47: 人 | K47: 人 | N47: 人 | Q47: 人 | U47: 件 | X47: 件 | Z47: ひらたけ | AD47: =+データ一覧!I280 -> 23 | AF47: ㎏ | AG47: まいたけ | AK47: =+データ一覧!I281 -> 0 | AM47: ㎏ | BR47: 区分 | BZ47: 本 校 | CC47: 分 校 | CF47: 本 務 | CJ47: 兼 務 | CN47: 総 数 | CR47: 男 | CV47: 女
A48: ～ | C48: 実 数 | H48: =データ一覧!I74 -> 169 | K48: =データ一覧!I75 -> 453 | N48: =データ一覧!I76 -> 841 | Q48: =データ一覧!I77 -> 876 | T48: =データ一覧!I78 -> 100 | W48: =データ一覧!I79 -> 37 | AN48: １１ 上 ・ 下 水 道 | BQ48: 小学校 | BZ48: =データ一覧!I584 -> 9 | CC48: =データ一覧!I585 -> 0 | CF48: =データ一覧!I586 -> 140 | CJ48: =データ一覧!I587 -> 26 | CN48: =データ一覧!I588 -> 1413 | CR48: =データ一覧!I589 -> 711 | CV48: =データ一覧!I590 -> 702
A49: =RIGHT(データ一覧!$A76,6) -> 6.9.30 | C49: 比率(対1,000人) | H49: =+H48/I36*1000 -> 5.82939533 | K49: =+K48/I36*1000 -> 15.62553896 | N49: - | Q49: - | T49: =+T48/I36*1000 -> 3.449346349 | W49: =+W48/I36*1000 -> 1.276258149 | Z49: ６ 漁 業 | BQ49: 中学校 | BZ49: =データ一覧!I592 -> 2 | CC49: =データ一覧!I593 -> 0 | CF49: =データ一覧!I594 -> 63 | CJ49: =データ一覧!I595 -> 3 | CN49: =データ一覧!I596 -> 753 | CR49: =データ一覧!I597 -> 394 | CV49: =データ一覧!I598 -> 359
AN50: 水 道 供 給 人 口 | AU50: 上 水 道 | AY50: 簡易水道 | BC50: 専用水道 | BG50: 飲料水供給施設 | BK50: 下水道処理人口 | BQ50: 高等学校 | BZ50: =データ一覧!I600 -> 2 | CC50: =データ一覧!I601 -> 0 | CF50: =データ一覧!I602 -> 112 | CJ50: =データ一覧!I603 -> 26 | CN50: =データ一覧!I604 -> 1160 | CR50: =データ一覧!I605 -> 594 | CV50: =データ一覧!I606 -> 566
A51: ３ 事 業 所（民 営） | L51: 3.6.1 | Z51: 漁船隻数・トン数 | AD51: =データ一覧!$A$282 -> 5.12.31 | AH51: 動 力 船 | AN51: =データ一覧!$A$408 -> 6.3.31 | AT51: 人 | AV51: =データ一覧!I408 -> 23292 | AY51: =データ一覧!I409 -> 3899 | BD51: =データ一覧!I410 -> 0 | BH51: =データ一覧!I411 -> 130 | BL51: =データ一覧!I412 -> 19370 | BQ51: 大学・短期大学 | BZ51: =データ一覧!I607 -> 0 | CC51: =データ一覧!I608 -> 2 | CF51: =データ一覧!I609 -> 30 | CJ51: =データ一覧!I610 -> 0 | CN51: =データ一覧!I611 -> 253 | CR51: =データ一覧!I612 -> 189 | CV51: =データ一覧!I613 -> 64
Z52: 無動力船隻数 | AD52: 船外機付漁船隻数 | AH52: 隻 数 | AK52: 総 ト ン 数 | BQ52: 高等専門学校 | BZ52: =データ一覧!I614 -> 0 | CC52: =データ一覧!I615 -> 0 | CF52: =データ一覧!I616 -> 0 | CJ52: =データ一覧!I617 -> 0 | CN52: =データ一覧!I618 -> 0 | CR52: =データ一覧!I619 -> 0 | CV52: =データ一覧!I620 -> 0
H53: 総 数 | N53: 民 営 | T53: 国 ･ 地方公共団体 | AC53: 隻 | AG53: 隻 | AJ53: 隻 | AM53: t | AN53: １２ 交 通 ・ 通 信 | BQ53: 特別支援学校 | BZ53: =+データ一覧!I622 -> 1 | CC53: =+データ一覧!I623 -> 0 | CF53: =+データ一覧!I624 -> 60 | CJ53: =+データ一覧!I625 -> 1 | CN53: =+データ一覧!I626 -> 71 | CR53: =+データ一覧!I627 -> 52 | CV53: =+データ一覧!I628 -> 19
A54: 区 分 | H54: 事業所数 | K54: 従業者数 | N54: 事業所数 | Q54: 従業者数 | T54: 事業所数 | W54: 従業者数 | Z54: =データ一覧!$I$282 -> 2 | AD54: =データ一覧!$I$283 -> 128 | AH54: =データ一覧!I284 -> 130 | AK54: =データ一覧!I285 -> 517.85 | BQ54: 幼稚園 | BZ54: =データ一覧!I630 -> 0 | CC54: =データ一覧!I631 -> 0 | CF54: =データ一覧!I632 -> 0 | CJ54: =データ一覧!I633 -> 0 | CN54: =データ一覧!I634 -> 0 | CR54: =データ一覧!I635 -> 0 | CV54: =データ一覧!I636 -> 0
K55: 人 | Q55: 人 | W55: 人 | Z55: 男女別就業者数 | AH55: =データ一覧!$A$286 -> 5.11.1 | AN55: 道 路 | AR55: 実 延 長 | AV55: 国 道 | AZ55: 県 道 | BD55: 市町道 | BH55: 鉄 道 営 業 キ ロ 数 | BQ55: 幼保連携認定こども園 | BZ55: =データ一覧!I638 -> 3 | CC55: =データ一覧!I639 -> 0 | CF55: =データ一覧!I640 -> 53 | CJ55: =データ一覧!I641 -> 20 | CN55: =データ一覧!I642 -> 389 | CR55: =データ一覧!I643 -> 198 | CV55: =データ一覧!I644 -> 191
A56: 総数 | H56: =データ一覧!I99 -> … | K56: =データ一覧!I156 -> … | N56: =データ一覧!I100 -> 1722 | Q56: =データ一覧!I157 -> 12613 | T56: =データ一覧!I101 -> … | W56: =データ一覧!I158 -> … | Z56: 総 数 | AF56: 男 | AJ56: 女 | AN56: =データ一覧!$A$413 -> 5.4.1 | AR56: =データ一覧!I413 -> 558.5 | AU56: ㎞ | AV56: =データ一覧!I414 -> 31.1 | AY56: ㎞ | AZ56: =データ一覧!I415 -> 87.3 | BC56: ㎞ | BD56: =データ一覧!I416 -> 440.1 | BG56: km | BH56: =データ一覧!$A$417 -> 6.4.1 | BL56: =データ一覧!I417 -> 0 | BO56: ㎞ | BQ56: 各種学校 | BZ56: =データ一覧!I646 -> 1 | CC56: =データ一覧!I647 -> 0 | CF56: =データ一覧!I648 -> 14 | CJ56: =データ一覧!I649 -> 0 | CN56: =データ一覧!I650 -> 61 | CR56: =データ一覧!I651 -> 43 | CV56: =データ一覧!I652 -> 18
A57: 農林漁業 | H57: =データ一覧!I102 -> … | K57: =データ一覧!I159 -> … | N57: =データ一覧!I103 -> 35 | Q57: =データ一覧!I160 -> 459 | T57: =データ一覧!I104 -> … | W57: =データ一覧!I161 -> … | AE57: 人 | AH57: 人 | AM57: 人 | AN57: 自動車 | AW57: 乗用車 | BQ57: 専修学校 | BZ57: =データ一覧!I654 -> 2 | CC57: =データ一覧!I655 -> 0 | CF57: =データ一覧!I656 -> 17 | CJ57: =データ一覧!I657 -> 90 | CN57: =データ一覧!I658 -> 172 | CR57: =データ一覧!I659 -> 10 | CV57: =データ一覧!I660 -> 162
A58: 鉱業 | H58: =データ一覧!I105 -> … | K58: =データ一覧!I162 -> … | N58: =データ一覧!I106 -> - | Q58: =データ一覧!I163 -> - | T58: =データ一覧!I107 -> … | W58: =データ一覧!I164 -> … | Z58: =データ一覧!I286 -> 118 | AF58: =データ一覧!$I$287 -> 0 | AJ58: =データ一覧!I288 -> 0 | AN58: 台 数 | AR58: 貨 物 | AV58: 普 通 | AZ58: 小 型 | BD58: 乗 合 | BG58: 特 種 | BJ58: 小型二輪 | BM58: 軽自動車 | BP58: １８ 衛 生
A59: 建設業 | H59: =データ一覧!I108 -> … | K59: =データ一覧!I165 -> … | N59: =データ一覧!I109 -> 198 | Q59: =データ一覧!I166 -> 1061 | T59: =データ一覧!I110 -> … | W59: =データ一覧!I167 -> … | Z59: 海 面 漁 業 漁 獲 量 （属人） | AH59: =データ一覧!$A$289 -> 30年中 | AN59: =データ一覧!$A$418 -> 6.3.31 | AS59: =データ一覧!I418 -> 1476 | AW59: =データ一覧!I420 -> 4891 | BA59: =データ一覧!I421 -> 4701 | BD59: =データ一覧!I419 -> 90 | BG59: =データ一覧!I422 -> 543 | BJ59: =データ一覧!I423 -> 411 | BM59: =データ一覧!I424 -> 12426
A60: 製造業 | H60: =データ一覧!I111 -> … | K60: =データ一覧!I168 -> … | N60: =データ一覧!I112 -> 144 | Q60: =データ一覧!I169 -> 1857 | T60: =データ一覧!I113 -> … | W60: =データ一覧!I170 -> … | AF60: ｔ | AM60: t | AR60: 郵 便 局 数 | BF60: =+MID(データ一覧!$A$428,3,2) -> 3. | BG60: 令 | BH60: 一般加入 | BL60: ＩＮＳネット | BT60: 医療関係施設 | BZ60: =データ一覧!$A$661 -> 5.10.1 | CG60: および医療関係者数 | CO60: =データ一覧!$A$666 -> 4.12.31
A61: 電気・ｶﾞ ｽ・熱供給・水道業 | H61: =データ一覧!I114 -> … | K61: =データ一覧!I171 -> … | N61: =データ一覧!I115 -> 1 | Q61: =データ一覧!I172 -> 2 | T61: =データ一覧!I116 -> … | W61: =データ一覧!I173 -> … | Z61: 総 数 | AD61: =データ一覧!I289 -> 675 | AG61: 藻 類 | AK61: =データ一覧!I292 -> 9 | AN61: 通 信 | AR61: 総 数 | AW61: 郵 便 局 | BB61: 簡 易 局 | BF61: ・ | BG61: =+LEFT(データ一覧!$A$428,1) -> 6 | BH61: 電話数 | BL61: 加入数 | BW61: 病 | BZ61: 院 | CH61: 一般診療所 | CT61: 歯科診療所
A62: 情報通信業 | H62: =データ一覧!I117 -> … | K62: =データ一覧!I174 -> … | N62: =データ一覧!I118 -> 12 | Q62: =データ一覧!I175 -> 65 | T62: =データ一覧!I119 -> … | W62: =データ一覧!I176 -> … | Z62: 魚 類 | AD62: =データ一覧!I290 -> 570 | AG62: そ の 他 | AK62: =データ一覧!I293 -> 64 | AN62: =データ一覧!$A$428 -> 6.3.31 | AR62: =データ一覧!I425 -> 14 | AW62: =データ一覧!I426 -> 13 | BB62: =データ一覧!I427 -> 1 | BF62: =+RIGHT(データ一覧!$A$428,2) -> 31 | BG62: ・ | BH62: =データ一覧!I428 -> 3943 | BL62: =データ一覧!I429 -> 351 | BQ62: 医療関係 | CC62: 一般病院 | CO62: 有 | CR62: 床
A63: 運輸業、郵便業 | H63: =データ一覧!I120 -> … | K63: =データ一覧!I177 -> … | N63: =データ一覧!I121 -> 22 | Q63: =データ一覧!I178 -> 350 | T63: =データ一覧!I122 -> … | W63: =データ一覧!I179 -> … | Z63: 貝 類 | AD63: =データ一覧!I291 -> 32 | BQ63: 施設数 | BX63: =データ一覧!I661 -> 2 | CD63: =データ一覧!I662 -> 1 | CJ63: =データ一覧!I663 -> 17 | CP63: =データ一覧!I664 -> 0 | CV63: =データ一覧!I665 -> 9
A64: 卸売業、小売業 | H64: =データ一覧!I123 -> … | K64: =データ一覧!I180 -> … | N64: =データ一覧!I124 -> 433 | Q64: =データ一覧!I181 -> 3042 | T64: =データ一覧!I125 -> … | W64: =データ一覧!I182 -> … | AN64: １３ 税 ・ 財 政 | BW64: 医師 | CB64: 歯科医師 | CG64: 薬剤師 | CL64: 保健師 | CQ64: 助産師 | CV64: 看護師
A65: 金融業、保険業 | H65: =データ一覧!I126 -> … | K65: =データ一覧!I183 -> … | N65: =データ一覧!I127 -> 34 | Q65: =データ一覧!I184 -> 369 | T65: =データ一覧!I128 -> … | W65: =データ一覧!I185 -> … | Z65: ７ 商 業 | AG65: =データ一覧!$A$294 -> 3.6.1(令和2年実績） | BQ65: 医療 | BZ65: 人 | CE65: 人 | CJ65: 人 | CO65: 人 | CT65: 人 | CY65: 人
A66: 不動産業、物品賃貸業 | H66: =データ一覧!I129 -> … | K66: =データ一覧!I186 -> … | N66: =データ一覧!I130 -> 69 | Q66: =データ一覧!I187 -> 173 | T66: =データ一覧!I131 -> … | W66: =データ一覧!I188 -> … | AR66: 歳入 | BA66: (千円） | BF66: 歳出 | BO66: (千円） | BQ66: 関係者 | BV66: =データ一覧!I666 -> 77 | CA66: =データ一覧!I667 -> 17 | CF66: =データ一覧!I668 -> 56 | CK66: =データ一覧!I669 -> 31 | CP66: =データ一覧!I670 -> 24 | CU66: =データ一覧!I671 -> 547
A67: 学術研究、専門・技術ｻｰﾋﾞｽ業 | H67: =データ一覧!I132 -> … | K67: =データ一覧!I189 -> … | N67: =データ一覧!I133 -> 72 | Q67: =データ一覧!I190 -> 742 | T67: =データ一覧!I134 -> … | W67: =データ一覧!I191 -> … | Z67: 産 業 分 類 | AD67: 事 業 所 数 | AG67: 従 業 者 数 | AJ67: 年 間 販 売 額 | AN67: 一人当たり歳入歳出予算決算額 | BY67: 死因別死亡数 | CO67: =データ一覧!$A$672 -> 5年中 | CX67: 単 位：人
A68: 宿泊業、飲食サービス業 | H68: =データ一覧!I135 -> … | K68: =データ一覧!I192 -> … | N68: =データ一覧!I136 -> 230 | Q68: =データ一覧!I193 -> 1155 | T68: =データ一覧!I137 -> … | W68: =データ一覧!I194 -> … | AI68: 人 | AK68: 百万円 | AN68: 区分 | AR68: =データ一覧!$A$438 -> 6年度 | AW68: =データ一覧!$A$452 -> 5年度 | BB68: 区分 | BF68: =+AR68 -> 6年度 | BK68: =データ一覧!$A$452 -> 5年度 | BP68: 死 因 | CB68: 悪 性 | CE68: 高血圧 | CK68: 脳血管 | CT68: 不慮の事故
A69: 生活関連サービス業、娯楽業 | H69: =データ一覧!I138 -> … | K69: =データ一覧!I195 -> … | N69: =データ一覧!I139 -> 158 | Q69: =データ一覧!I196 -> 587 | T69: =データ一覧!I140 -> … | W69: =データ一覧!I197 -> … | Z69: 総 計 | AD69: =データ一覧!$I$294 -> 386 | AG69: =データ一覧!I303 -> 2753 | AJ69: =データ一覧!I312 -> 64103 | AR69: =データ一覧!I434 -> 585146.6926 | AW69: =データ一覧!I435 -> 634617.9094 | BF69: =データ一覧!I436 -> 585146.6926 | BK69: =データ一覧!I437 -> 612901.9622 | BU69: 全 死 因 | BY69: 結 核 | CB69: 新生物 | CE69: 性疾患 | CH69: 心疾患 | CK69: 疾 患 | CN69: 肺 炎 | CQ69: 老 衰 | CW69: 交通事故
A70: 教育、学習支援業 | H70: =データ一覧!I141 -> … | K70: =データ一覧!I198 -> … | N70: =データ一覧!I142 -> 44 | Q70: =データ一覧!I199 -> 213 | T70: =データ一覧!I143 -> … | W70: =データ一覧!I200 -> … | Z70: 卸売業 | AD70: =データ一覧!I295 -> 86 | AG70: =データ一覧!I304 -> 782 | AJ70: =データ一覧!I313 -> 28611 | AN70: 項目別歳入歳出予算決算額
A71: 医療、福祉 | H71: =データ一覧!I144 -> … | K71: =データ一覧!I201 -> … | N71: =データ一覧!I145 -> 90 | Q71: =データ一覧!I202 -> 1339 | T71: =データ一覧!I146 -> … | W71: =データ一覧!I203 -> … | Z71: 小売業 | AD71: =データ一覧!I296 -> 300 | AG71: =データ一覧!I305 -> 1971 | AJ71: =データ一覧!I314 -> 35492 | AN71: 区分 | AR71: =データ一覧!$A$438 -> 6年度 | AW71: =データ一覧!$A$452 -> 5年度 | BB71: 区分 | BF71: =+AR71 -> 6年度 | BK71: =データ一覧!$A$452 -> 5年度 | BU71: =データ一覧!I672 -> 421 | BY71: － | BZ71: =データ一覧!I673 -> 1 | CB71: =データ一覧!I674 -> 91 | CF71: =データ一覧!I675 -> 10 | CH71: =データ一覧!I676 -> 47 | CK71: =データ一覧!I677 -> 38 | CN71: =データ一覧!I678 -> 8 | CQ71: =データ一覧!I679 -> 61 | CT71: =データ一覧!I680 -> 15 | CW71: =データ一覧!I681 -> 1
A72: 複合サービス事業 | H72: =データ一覧!I147 -> … | K72: =データ一覧!I204 -> … | N72: =データ一覧!I148 -> 23 | Q72: =データ一覧!I205 -> 283 | T72: =データ一覧!I149 -> … | W72: =データ一覧!I206 -> … | Z72: 各種商品 | AD72: =データ一覧!I297 -> 1 | AG72: =データ一覧!I306 -> 24 | AJ72: =データ一覧!I315 -> x | AN72: 総額 | AR72: =SUM(AR73:AV85) -> 16215000 | AW72: =SUM(AW73:BA85) -> 17788340 | BB72: 総額 | BF72: =SUM(BF73:BJ85) -> 16215000 | BK72: =SUM(BK73:BO85) -> 17179642 | BP72: １９ 警 察 ・ 消 防 | CF72: =+データ一覧!$A682 -> 6.4.1
A73: サービス業 | H73: =データ一覧!I150 -> … | K73: =データ一覧!I207 -> … | N73: =データ一覧!I151 -> 157 | Q73: =データ一覧!I208 -> 916 | T73: =データ一覧!I152 -> … | W73: =データ一覧!I209 -> … | Z73: 織物・衣服・身の回り品 | AD73: =データ一覧!I298 -> 25 | AG73: =データ一覧!I307 -> 69 | AJ73: =データ一覧!I316 -> 1118 | AN73: 地方税 | AR73: =データ一覧!I439 -> 3672994 | AW73: =データ一覧!I453 -> 3803944 | BB73: 議会費 | BF73: =データ一覧!I467 -> 179966 | BK73: =データ一覧!I481 -> 170942
A74: 公務 | H74: =データ一覧!I153 -> … | K74: =データ一覧!I210 -> … | N74: =データ一覧!I154 -> … | Q74: =データ一覧!I211 -> … | T74: =データ一覧!I155 -> … | W74: =データ一覧!I212 -> … | Z74: 飲食料品 | AD74: =データ一覧!I299 -> 105 | AG74: =データ一覧!I308 -> 872 | AJ74: =データ一覧!I317 -> 11763 | AN74: 地方譲与税 | AR74: =データ一覧!I440 -> 184000 | AW74: =データ一覧!I454 -> 168465 | BB74: 総務費 | BF74: =データ一覧!I468 -> 2604948 | BK74: =データ一覧!I482 -> 2564975 | BZ74: 交番・駐在所 | CI74: 刑法犯認知件数 | CR74: 交通人身事故発生件数
A75: ４ 農 業 | Z75: 機械器具 | AD75: =データ一覧!I300 -> 38 | AG75: =データ一覧!I309 -> 297 | AJ75: =データ一覧!I318 -> 7914 | AN75: 各種交付金 | AR75: =データ一覧!I441 -> 878600 | AW75: =データ一覧!I455 -> 896686 | BB75: 民生費 | BF75: =データ一覧!I469 -> 5220997 | BK75: =データ一覧!I483 -> 5856529 | BQ75: 警察署数 | BZ75: 検問所数 | CJ75: =データ一覧!$A$684 -> 5年中 | CS75: =データ一覧!$A$684 -> 5年中
Z76: その他 | AD76: =データ一覧!I301 -> 123 | AG76: =データ一覧!I310 -> 676 | AJ76: =データ一覧!I319 -> x | AN76: 地方特例交付金 | AR76: =データ一覧!I442 -> 78600 | AW76: =データ一覧!I456 -> 27787 | BB76: 衛生費 | BF76: =データ一覧!I470 -> 1947987 | BK76: =データ一覧!I484 -> 2022575 | CN76: 件 | CW76: 件
C77: 農業経営体数 | J77: 農産物販売額規模別経営体数 | R77: 経営耕地面積規模別経営体数 | Z77: 無店舗 | AD77: =データ一覧!I302 -> 8 | AG77: =データ一覧!I311 -> 33 | AJ77: =データ一覧!I320 -> 1397 | AN77: 地方交付税 | AR77: =データ一覧!I443 -> 5365000 | AW77: =データ一覧!I457 -> 5540511 | BB77: 労働費 | BF77: =データ一覧!I471 -> 136742 | BK77: =データ一覧!I485 -> 146073 | BR77: =データ一覧!I682 -> 1 | CA77: =データ一覧!I683 -> 6 | CJ77: =データ一覧!I684 -> 91 | CS77: =データ一覧!I685 -> 25
A78: 農 | C78: 区 分 | G78: 経営体数 （経営体） | J78: 区 分 | O78: 経営体数 （経営体） | R78: 区 分 | W78: 経営体数 （経営体） | AN78: 分担金および負担金 | AR78: =データ一覧!I444 -> 104951 | AW78: =データ一覧!I458 -> 158014 | BB78: 農林水産業費 | BF78: =データ一覧!I472 -> 753095 | BK78: =データ一覧!I486 -> 731462 | BP78: 火災発生件数 | BZ78: 林野焼損 | CE78: 損 害 | CJ78: 消 防 自 | CN78: その他の
A79: 業 | B79: 令 | Z79: ８ 住 宅 | AN79: 使用料および手数料 | AR79: =データ一覧!I445 -> 174780 | AW79: =データ一覧!I459 -> 178550 | BB79: 商工費 | BF79: =データ一覧!I473 -> 550706 | BK79: =データ一覧!I487 -> 596940 | BP79: =+データ一覧!$A$686 -> 5年中 | BU79: 焼損棟数 | BZ79: 面 積 | CE79: 見 積 額 | CJ79: 動 車 数 | CN79: ﾎﾟﾝﾌﾟ数 | CR79: 消防吏員 | CV79: 消防団員
A80: 経 | B80: =+LEFT(データ一覧!$A$213) -> 2 | C80: 計 | G80: =データ一覧!I213 -> 443 | J80: 総 数 | O80: =データ一覧!I217 -> 443 | R80: 総 数 | W80: =データ一覧!I233 -> 1011 | AN80: 国庫支出金 | AR80: =データ一覧!I446 -> 1903658 | AW80: =データ一覧!I460 -> 2602078 | BB80: 土木費 | BF80: =データ一覧!I474 -> 1637405 | BK80: =データ一覧!I488 -> 1797981 | BP80: 件 | BV80: 棟 | CC80: ａ | CG80: 千円 | CT80: 人 | CX80: 人
A81: 営 | B81: ・ | C81: 個人経営体 | G81: =データ一覧!I214 -> 424 | J81: 販 売 な し | O81: =データ一覧!I218 -> 42 | R81: 0.5 ha 未満 | W81: =データ一覧!I234 -> 40 | Z81: =+データ一覧!$A$321 -> 4年 | AE81: =データ一覧!$A$324 -> 5年 | AF81: 中の増減 | AJ81: =+データ一覧!$A$324 -> 5年 | AN81: 県支出金 | AR81: =データ一覧!I447 -> 1638961 | AW81: =データ一覧!I461 -> 1736188 | BB81: 消防費 | BF81: =データ一覧!I475 -> 582617 | BK81: =データ一覧!I489 -> 561626 | BQ81: =データ一覧!I686 -> 8 | BV81: =データ一覧!I687 -> 8 | CA81: =データ一覧!I688 -> 0 | CE81: =データ一覧!I689 -> 6277 | CK81: =データ一覧!I690 -> 11 | CO81: =データ一覧!I691 -> 33 | CS81: =データ一覧!I692 -> 72 | CW81: =データ一覧!I693 -> 368
A82: 体 | B82: =+LEFT(データ一覧!$A$213,1) -> 2 | C82: 団体経営体 | G82: =データ一覧!I215 -> 19 | J82: 50万円未満 | O82: =データ一覧!I219 -> 168 | R82: 0.5 ha ～ 1.0 ha | W82: =データ一覧!I235 -> 100 | AD82: 建設した住宅 | AG82: 消失した住宅 | AN82: 財産収入 | AR82: =データ一覧!I448 -> 26178 | AW82: =データ一覧!I462 -> 46581 | BB82: 教育費 | BF82: =データ一覧!I476 -> 1061076 | BK82: =データ一覧!I490 -> 1160980 | BP82: ２０ そ の 他
A83: 数 | B83: ・ | D83: 法人経営 | G83: =データ一覧!I216 -> 16 | J83: 50～300万円 | O83: =データ一覧!I220 -> 182 | R83: 1.0 ha ～ 2.0 ha | W83: =データ一覧!I236 -> 152 | AN83: 繰入金 | AR83: =データ一覧!I449 -> 614585 | AW83: =データ一覧!I463 -> 384840 | BB83: 災害復旧費 | BF83: =データ一覧!I477 -> 0 | BK83: =データ一覧!I491 -> 24211
A84: （ | B84: =+RIGHT(データ一覧!$A$213) -> 1 | J84: 300～500万円 | O84: =データ一覧!I221 -> 21 | R84: 2.0 ha ～ 3.0 ha | W84: =データ一覧!I237 -> 86 | AA84: =データ一覧!I321 -> 11898 | AC84: 戸 | AD84: =データ一覧!I322 -> 183 | AF84: 戸 | AG84: =データ一覧!I323 -> 65 | AI84: 戸 | AK84: =データ一覧!I324 -> 12016 | AM84: 戸 | AN84: 地方債 | AR84: =データ一覧!I450 -> 663200 | AW84: =データ一覧!I464 -> 735057 | BB84: 公債費 | BF84: =データ一覧!I478 -> 1529461 | BK84: =データ一覧!I492 -> 1545348 | BU84: 若狭湾国定公園（若狭蘇洞門 蒼島暖地性植物群落 双児島 児島）、明通寺、羽賀寺、神宮寺、妙楽寺、飯盛寺、国分寺、多田寺、円照寺、萬徳寺、小浜西組重要伝統的建造物群保存地区、国指定文化財等68、県指定83、市指定116（R6.10.1現在）
A85: 総 | J85: 500～1,000万円 | O85: =データ一覧!I222 -> 13 | R85: 3.0 ha ～ 5.0 ha | W85: =データ一覧!I238 -> 67 | AN85: その他 | AR85: =データ一覧!I451 -> 909493 | AW85: =データ一覧!I465 -> 1509639 | BB85: その他 | BF85: =データ一覧!I479 -> 10000 | BK85: =データ一覧!I493 -> 0 | BP85: 名所・旧跡
A86: 数 | J86: 1,000万円以上 | O86: =データ一覧!I223 -> 17 | R86: 5.0 ha以上 | W86: =データ一覧!I239 -> 567 | BP86: 文化財等
A87: ） | C87: 15歳以上の常雇い数 | J87: 農業に60日以上従事した世帯員、役員・構成員 （経営主を含む）の平均年齢 | Z87: ９ 議 員 ・ 職 員 | AN87: １４ 文 化 | AV87: ( | AW87: ="令"&データ一覧!$A$498 -> 令6.3.31 | AZ87: ただし図書館・公民館・児童館・ 社会教育学級講座 | BL87: =データ一覧!$A$494 -> 6.4.1
A88: と | BA88: 宗教法人数 | BL88: =データ一覧!$A$502 -> 5.12.31 | BP88: 特産物 | BU88: 若狭塗（箸、漆器）、若狭めのう細工、若狭和紙、うるしダルマ、若狭かれい、若狭小浜小鯛ささ漬、谷田部ねぎ、浜焼き鯖、若狭ぐじ、若狭ふぐ、若狭かき、鯖へしこ、鯖のなれずし、おばま醤油干、小浜よっぱらいサバ、でっちようかん、くずまんじゅう、ふくいサーモン、若狭まはた、八百姫ひらめ
A89: 就 | J89: 農業に60日以上従事 | R89: 農業に150日以上従事 | Z89: 市 町 議 会 | AC89: 有権者数 | AE89: =データ一覧!$A$328 -> 6.9.1 | AG89: 市 町 議 会 | AJ89: 職 員 数 | AS89: 図書館 | AY89: 公 民 館 | BJ89: 社会教育学級講座
A90: 業 | C90: 区分 | G90: 人 | J90: 区分 | O90: 歳 | R90: 区 分 | W90: 歳 | Z90: 議 員 定 数 | AC90: 男 | AE90: 女 | AG90: 選 挙 投 票 率 | AJ90: 総 数 | AL90: 一般行政職 | AN90: 公 共 | AR90: 館 数 | AU90: 図書数 | AX90: 本 館 | BA90: 分 館 | BD90: 公 園 | BG90: 児童館 | BJ90: 学級講座数 | BM90: 受講者数
A91: 状 | C91: 総数 | G91: =データ一覧!I230 -> 73 | J91: 総数 | O91: =データ一覧!I224 -> 67 | R91: 総数 | W91: =データ一覧!I227 -> 67.4 | AB91: 人 | AD91: 人 | AF91: 人 | AI91: ％ | AK91: 人 | AM91: 人 | AN91: 施 設 数 | AS91: =データ一覧!I494 -> 1 | AU91: =データ一覧!I495 -> 190667 | AY91: =データ一覧!I496 -> 12 | BA91: =データ一覧!I497 -> 0 | BD91: =データ一覧!I498 -> 24 | BG91: =データ一覧!I499 -> 4 | BJ91: =データ一覧!I500 -> 88 | BM91: =データ一覧!I501 -> 2556 | BP91: 年中行事 | BU91: お水送り、お城祭り(雲浜獅子)、放生祭、地蔵盆、箸まつり、若狭マリンピア、加茂神社のオイケモノ、すり鉢くぐり、小浜祇園祭、OBAMA食のまつり、御食国若狭おばまYOSAKOI祭、椎村神社の祭り（王の舞）、六斎念仏、鯖街道体験ウォーキング、鯖街道ウルトラマラソン、田烏棚田キャンドル、P-1グランプリ
A92: 況 | C92: 男 | G92: =データ一覧!I231 -> 28 | J92: 男 | O92: =データ一覧!I225 -> 66 | R92: 男 | W92: =データ一覧!I228 -> 67 | AA92: =データ一覧!I325 -> 17 | AC92: =データ一覧!I328 -> 11412 | AE92: =データ一覧!I329 -> 11797 | AG92: =データ一覧!I327 -> 無投票 | AJ92: =データ一覧!I330 -> 293 | AL92: =データ一覧!I331 -> 210 | AN92: 宗 教 | AR92: 仏教系 | AU92: ｷﾘｽﾄ教系 | AX92: 神道諸派 | BA92: 公会堂・市民会館 | BG92: テレビ | BJ92: 衛星放送契約数
C93: 女 | G93: =データ一覧!I232 -> 45 | J93: 女 | O93: =データ一覧!I226 -> 69.7 | R93: 女 | W93: =データ一覧!I229 -> 68.3 | AG93: =データ一覧!I326 -> 5.4.16 | AN93: 法 人 数 | AR93: =データ一覧!I502 -> 138 | AU93: =データ一覧!I503 -> 2 | AX93: =データ一覧!I504 -> 107 | BA93: =データ一覧!I505 -> 12 | BG93: 等 | BJ93: =データ一覧!I506 -> 4607

Sheet 大野市
A1: =+データ一覧!J2 -> 0
A2: =+データ一覧!J5 -> 0
AB4: 【市紋章とそのいわれ】大の（大野）を図案化したもので、円は | AN4: 【位置および地勢】大野市は福井県の東端に位置し、東は岐阜県郡上市、高山市、 | BS4: 所在地 | CA4: 〒912-8666
AB5: 和と団結を象徴し、円満な市政の運用を意味し、 | AO5: 西は福井市、池田町、 南は岐阜県関市、本巣市および揖斐川町、北は勝山市および | CA5: 大野市天神町１番１号
A6: =+データ一覧!J3 -> おおのし | AB6: 剣尖は市の将来の発展性を表す。昭和２９年 | AO6: 石川県の白山市に接している。四方を1,000ｍ級の霊峰白山の支脈に囲まれ、市域の
A7: =データ一覧!J6 -> 大野市 | AB7: ７月１日、市制施行と同時に公募により制定。 | AO7: 約8割が林野に覆われており、これらの山岳地形の間を縫うように、岐阜県境に源を | BS7: 電話番号 | CA7: （０７７９）６６－１１１１
AB8: 0 | AO8: 発する九頭竜川が貫流し、これへ石徹白川をはじめ多くの中小河川が合流している。 | BS8: FAX番号 | CA8: 〃 ６５－８３７１
AB9: 0 | AO9: 市内の交通は、国道１５７号が南北に、国道１５８号が東西に走り、東は東海北陸
AB10: 0 | AO10: 自動車道、西は北陸自動車道に連絡している。また、ＪＲ越美北線が国道１５８号に | BS10: 最寄駅および距離 | CA10: ＪＲ越美北線越前大野駅 下車１ｋｍ
AO11: ほぼ並行して走り、越前花堂駅でＪＲ北陸本線と接続している。中部縦貫自動車道に
AO12: ついては、福井北ICから九頭竜ICまでが開通し、北陸自動車道と直結している。
AB13: 【市が掲げる標語】人がつながり地域がつながる 住み続けたい結のまち | BS13: ホームページ | CA13: https://www.city.ono.fukui.jp/
A15: １ 土 地 | Z15: =データ一覧!$A$240 -> 5年 | AA15: 産米収穫量 | AD15: 収 穫 量 | AG15: 作 付 面 積 | AJ15: 10a当たり収量 | BP15: １５ 労 働 | CE15: 2.10.1
AD16: =データ一覧!$J$240 -> 12800 | AF16: t | AG16: =データ一覧!$J$241 -> 2530 | AI16: ha | AJ16: =データ一覧!J242 -> 506 | AM16: kg | AN16: １０ 工 業 | BB16: =データ一覧!$A$332 -> 4.6.1（令和3年実績）
A17: 総 面 積 | K17: 固 定 資 産 概 要 調 書 に よ る 地 目 別 面 積 | AC17: 総 数 | AG17: うち 田 | AK17: うち 畑 | BW17: 産業別就業者数
C18: =データ一覧!$A$7 -> 6.10.1 | Q18: =データ一覧!$A$9 -> 6.1.1 | Z18: 耕 地 面 積 | AD18: ha | AG18: ha | AK18: ha | AO18: 産業分類 | AW18: 事業所数 | BB18: 従業者数 | BH18: 年間製造品出荷額等 | BQ18: 区 分 | BV18: 総 数 | CA18: 男 | CE18: 女 | CI18: 区 分 | CN18: 総 数 | CS18: 男 | CW18: 女
G19: ㎢ | K19: 総 数 | P19: う ち 田 | U19: う ち 畑 | Z19: =データ一覧!A243 -> 5.7.15 | AC19: =データ一覧!$J$243 -> 4180 | AF19: =データ一覧!$J$244 -> 4040 | AJ19: =データ一覧!$J$245 -> 146 | AZ19: 事業所 | BB19: 人 | BE19: 人 | BG19: 万円 | BN19: 万円 | BV19: 人 | CB19: 人 | CF19: 人 | CN19: 人 | CR19: 人 | CV19: 人
D20: =データ一覧!J7 -> 872.43 | O20: ha | T20: ha | Y20: ha | Z20: 農 業 生 産 物 | AD20: 作 付 面 積 | AG20: 収 穫 量 | AJ20: 10a当たり収量 | AO20: 総数 | AX20: =データ一覧!J332 -> 78 | BB20: =+データ一覧!J357 -> 2525 | BI20: =データ一覧!J382 -> 5960886 | BP20: 総 数 | BV20: =BZ20+CD20 -> 16964 | BZ20: =データ一覧!J507 -> 9062 | CD20: =データ一覧!J532 -> 7902
L21: =データ一覧!J9 -> 48581 | Q21: =データ一覧!J10 -> 4181.5 | V21: =データ一覧!J11 -> 218.8 | Z21: =データ一覧!$A$246 -> 5年産 | AD21: ha | AG21: t | AJ21: kg | AN21: 食料品 | AO21: 食料品 | AX21: =データ一覧!J333 -> 6 | BB21: =+データ一覧!J358 -> 72 | BI21: =データ一覧!J383 -> 55537 | CI21: 卸売業,小売業 | CN21: =CR21+CV21 -> 2159 | CR21: =データ一覧!J520 -> 1045 | CV21: =データ一覧!J545 -> 1114
A22: 町 ･ 丁 ･ 大 字 | K22: う ち 宅 地 | P22: う ち 山 林 | U22: う ち 原 野 | Z22: 水 稲 | AD22: =データ一覧!J246 -> 2530 | AG22: =データ一覧!J247 -> 12800 | AJ22: =データ一覧!J248 -> 506 | AN22: 飲料・飼料 | AO22: 飲料・飼料 | AX22: =データ一覧!J334 -> 2 | BB22: =+データ一覧!J359 -> 26 | BI22: =データ一覧!J384 -> x | BP22: 第１次産業 | BV22: =BZ22+CD22 -> 1250 | BZ22: =データ一覧!J508 -> 781 | CD22: =データ一覧!J533 -> 469 | CI22: 金融業,保険業 | CN22: =CR22+CV22 -> 315 | CR22: =データ一覧!J521 -> 127 | CV22: =データ一覧!J546 -> 188
A23: 区 画 数 | H23: =データ一覧!J8 -> 207 | O23: ha | T23: ha | Y23: ha | Z23: 六 条 大 麦 | AD23: =データ一覧!J249 -> 822 | AG23: =データ一覧!J250 -> 2220 | AJ23: =データ一覧!J251 -> 270 | AN23: 繊維 | AO23: 繊維 | AX23: =データ一覧!J335 -> 27 | BB23: =+データ一覧!J360 -> 530 | BI23: =データ一覧!J385 -> 388627 | BQ23: 農業 | BV23: =BZ23+CD23 -> 1174 | BZ23: =データ一覧!J509 -> 714 | CD23: =データ一覧!J534 -> 460 | CI23: 不動産業 | CN23: 105 | CR23: =データ一覧!J522 -> 68 | CV23: =データ一覧!J547 -> 37
A24: =データ一覧!$A$8 -> 5.4.1 | L24: =データ一覧!J12 -> 1021.4 | Q24: =データ一覧!J13 -> 12977 | V24: =データ一覧!J14 -> 670.4 | Z24: 大 豆 | AD24: =データ一覧!J252 -> 124 | AG24: =データ一覧!J253 -> 146 | AJ24: =データ一覧!J254 -> 118 | AN24: 衣服 | AO24: 木材 | AX24: =データ一覧!J336 -> 3 | BB24: =+データ一覧!J361 -> 289 | BI24: =データ一覧!J386 -> 1378696 | BQ24: 林業 | BV24: 71 | BZ24: =データ一覧!J510 -> 64 | CD24: =データ一覧!J535 -> 7 | CI24: 学術研究 | CN24: 395 | CR24: =データ一覧!J523 -> 245 | CV24: =データ一覧!J548 -> 150
A25: ２ 世 帯 数 と 人 口 | AB25: 区 分 | AD25: 乳 用 牛 | AF25: 肉 用 牛 | AH25: 豚 | AJ25: 採卵鶏 | AL25: ブロイラー | AN25: 木材 | AO25: 家具 | AX25: =データ一覧!J337 -> 5 | BB25: =+データ一覧!J362 -> 160 | BI25: =データ一覧!J387 -> 261298 | BQ25: 漁業 | BV25: 5 | BZ25: =データ一覧!J511 -> 3 | CD25: =データ一覧!J536 -> 2 | CI25: 宿泊業,飲食ｻｰﾋﾞｽ | CN25: 614 | CR25: =データ一覧!J524 -> 224 | CV25: =データ一覧!J549 -> 390
Z26: 畜 産 | AB26: 飼養農家 | AD26: =データ一覧!$J$255 -> 3 | AF26: =データ一覧!$J$257 -> 1 | AH26: =データ一覧!$J$259 -> x | AJ26: =データ一覧!$J$261 -> 0 | AL26: =データ一覧!$J$263 -> 0 | AN26: 家具 | AO26: パルプ・紙 | AX26: =データ一覧!J338 -> 3 | BB26: =+データ一覧!J363 -> 46 | BI26: =データ一覧!J388 -> 30812 | BP26: 第２次産業 | BV26: 5502 | BZ26: =データ一覧!J512 -> 3723 | CD26: =データ一覧!J537 -> 1779 | CI26: 生活関連ｻｰﾋﾞｽ業 | CN26: 534 | CR26: =データ一覧!J525 -> 200 | CV26: =データ一覧!J550 -> 334
I27: 人 口 | U27: １世帯当 | W27: 人 口 | Z27: =データ一覧!$A$255 -> 6.3.31 | AB27: （戸） | AN27: パルプ・紙 | AO27: 印刷 | AX27: =データ一覧!J339 -> 2 | BB27: =+データ一覧!J364 -> 25 | BI27: =データ一覧!J389 -> x | BQ27: 鉱業，採石業 | BV27: 6 | BZ27: =データ一覧!J513 -> 5 | CD27: =データ一覧!J538 -> 1 | CI27: 教育,学習支援業 | CN27: 761 | CR27: =データ一覧!J526 -> 299 | CV27: =データ一覧!J551 -> 462
A28: 区 分 | F28: 世帯数 | I28: 総 数 | L28: 男 | O28: 女 | R28: 男／女 | U28: たり人員 | W28: 密 度 | AB28: 頭 羽 | AD28: =データ一覧!$J$256 -> 136 | AF28: =データ一覧!$J$258 -> 1 | AH28: =データ一覧!$J$260 -> 180 | AJ28: =データ一覧!$J$262 -> 0 | AL28: =データ一覧!$J$264 -> 0 | AN28: 出版・印刷 | AO28: 化学 | AX28: =データ一覧!J340 -> 0 | BB28: =+データ一覧!J365 -> 0 | BI28: =データ一覧!J390 -> 0 | BQ28: 建設業 | BV28: 2229 | BZ28: =データ一覧!J514 -> 1911 | CD28: =データ一覧!J539 -> 318 | CI28: 医療，福祉 | CN28: 2554 | CR28: =データ一覧!J527 -> 510 | CV28: =データ一覧!J552 -> 2044
F29: 世 帯 | I29: 人 | L29: 人 | O29: 人 | S29: ％ | U29: 人 | W29: 人/㎢ | AN29: 化学 | AO29: 石油・石炭 | AX29: =データ一覧!J341 -> 0 | BB29: =+データ一覧!J366 -> 0 | BI29: =データ一覧!J391 -> 0 | BQ29: 製造業 | BV29: 3267 | BZ29: =データ一覧!J515 -> 1807 | CD29: =データ一覧!J540 -> 1460 | CI29: 複合サービス事業 | CN29: 283 | CR29: =データ一覧!J528 -> 163 | CV29: =データ一覧!J553 -> 120
A30: =データ一覧!$A$22 -> 2.10.1 | F30: =データ一覧!J22 -> 10758 | I30: =+L30+O30 -> 41837 | L30: =データ一覧!J24 -> 19944 | O30: =データ一覧!J25 -> 21893 | S30: =+L30/O30*100 -> 91.09761111 | U30: =データ一覧!J27 -> 3.89 | W30: =データ一覧!J21 -> 0 | Z30: ５ 林 業 | AN30: 石油・石炭 | AO30: プラスチック | AX30: =データ一覧!J342 -> 3 | BB30: =+データ一覧!J367 -> 46 | BI30: =データ一覧!J392 -> 54280 | BP30: 第３次産業 | BV30: 9929 | BZ30: =データ一覧!J516 -> 4416 | CD30: =データ一覧!J541 -> 5513 | CI30: サービス業 | CN30: 859 | CR30: =データ一覧!J529 -> 520 | CV30: =データ一覧!J554 -> 339
A31: =データ一覧!$A$29 -> 7.10.1 | F31: =データ一覧!J29 -> 10862 | I31: =+L31+O31 -> 41069 | L31: =データ一覧!J31 -> 19537 | O31: =データ一覧!J32 -> 21532 | S31: 90.73472042 | U31: =データ一覧!J34 -> 3.78 | W31: =データ一覧!J28 -> 0 | AN31: プラスチック | AO31: ゴム | AX31: =データ一覧!J343 -> 0 | BB31: =+データ一覧!J368 -> 0 | BI31: =データ一覧!J393 -> 0 | BQ31: 電気･ｶﾞｽ･水道業 | BV31: 147 | BZ31: =データ一覧!J517 -> 129 | CD31: =データ一覧!J542 -> 18 | CI31: 公務 | CN31: 582 | CR31: =データ一覧!J530 -> 395 | CV31: =データ一覧!J555 -> 187
A32: =データ一覧!$A$36 -> 12.10.1 | F32: =データ一覧!J36 -> 11151 | I32: =+L32+O32 -> 39632 | L32: =データ一覧!J38 -> 18942 | O32: =データ一覧!J39 -> 20690 | S32: 91.55147414 | U32: =データ一覧!J41 -> 3.55 | W32: =データ一覧!J35 -> 0 | Z32: 森 林 総 面 積 | AH32: =データ一覧!$A$265 -> 5.3.31 | AN32: ゴム | AO32: 皮革 | AX32: =データ一覧!J344 -> 0 | BB32: =+データ一覧!J369 -> 0 | BI32: =データ一覧!J394 -> 0 | BQ32: 情報通信業 | BV32: 151 | BZ32: =データ一覧!J518 -> 109 | CD32: =データ一覧!J543 -> 42 | CH32: 分類不能の産業 | CN32: 283 | CR32: =データ一覧!J531 -> 142 | CV32: =データ一覧!J556 -> 141
A33: =+データ一覧!$A$43 -> 17.10.1 | F33: =データ一覧!J43 -> 11230 | I33: =+L33+O33 -> 37843 | L33: =データ一覧!J45 -> 17956 | O33: =データ一覧!J46 -> 19887 | S33: 90.29013929 | U33: =データ一覧!J48 -> 3.37 | W33: =データ一覧!J49 -> 43.4 | Z33: 森 林 の 構 成 | AN33: 皮革 | AO33: 窯業・土石 | AX33: =データ一覧!J345 -> 3 | BB33: =+データ一覧!J370 -> 44 | BI33: =データ一覧!J395 -> 186219 | BQ33: 運輸業,郵便業 | BV33: =BZ33+CD33 -> 470 | BZ33: =データ一覧!J519 -> 382 | CD33: =データ一覧!J544 -> 88
A34: =+データ一覧!$A$50 -> 22.10.1 | F34: =+データ一覧!J50 -> 10847 | I34: =+L34+O34 -> 35291 | L34: =+データ一覧!J52 -> 16705 | O34: =+データ一覧!J53 -> 18586 | S34: 89.87947918 | U34: =+データ一覧!J55 -> 3.25 | W34: =+データ一覧!J56 -> 40.5 | AE34: ha | AL34: ha | AN34: 窯業・土石 | AO34: 鉄鋼 | AX34: =データ一覧!J346 -> 0 | BB34: =+データ一覧!J371 -> 0 | BI34: =データ一覧!J396 -> 0 | BP34: １６ 社 会 福 祉 | CF34: =データ一覧!$A$557 -> 6.4.1
A35: =データ一覧!$A$57 -> 27.10.1 | F35: =データ一覧!J57 -> 10698 | I35: =データ一覧!J58 -> 33109 | L35: =データ一覧!J59 -> 15683 | O35: =データ一覧!J60 -> 17426 | S35: 89.99770458 | U35: =データ一覧!J62 -> 3.094877547 | W35: =データ一覧!J63 -> 38 | Z35: 総 数 | AD35: =データ一覧!J265 -> 75825.05 | AG35: 天然林 針葉樹 | AK35: =データ一覧!J268 -> 463.65 | AN35: 鉄鋼 | AO35: 非鉄金属 | AX35: =データ一覧!J347 -> 0 | BB35: =+データ一覧!J372 -> 0 | BI35: =データ一覧!J397 -> 0
A36: 令 2.10.1（国調） | F36: =データ一覧!J64 -> 10868 | I36: =データ一覧!J65 -> 31286 | L36: =データ一覧!J66 -> 14997 | O36: =データ一覧!J67 -> 16289 | S36: =+L36/O36*100 -> 92.06826693 | U36: =データ一覧!J69 -> 2.878726537 | W36: =データ一覧!J70 -> 35.86075674 | Z36: 人工林 針葉樹 | AD36: =データ一覧!J266 -> 18363.59 | AG36: 天然林 広葉樹 | AK36: =データ一覧!J269 -> 51928.12 | AN36: 非鉄金属 | AO36: 金属 | AX36: =データ一覧!J348 -> 10 | BB36: =+データ一覧!J373 -> 211 | BI36: =データ一覧!J398 -> 876772 | BQ36: 区分 | BX36: 施設数 | CC36: 収容定員 | CI36: 区分 | CP36: 施設数 | CU36: 収容定員
A37: 年 | C37: 区 | E37: 0歳 | H37: 15歳 | K37: 25歳 | N37: 35歳 | Q37: 45歳 | T37: 55歳 | W37: 65歳 | Z37: 人工林 広葉樹 | AD37: =データ一覧!J267 -> 1377.18 | AG37: 竹 林 | AK37: =データ一覧!J270 -> 8.83 | AN37: 金属 | AO37: はん用機械 | AX37: =データ一覧!J349 -> 1 | BB37: =+データ一覧!J374 -> 6 | BI37: =データ一覧!J399 -> x | BP37: 生活保護施設 | BX37: =データ一覧!J557 -> 1 | CB37: =データ一覧!J570 -> 130 | CF37: 人 | CH37: 指定障害者支援施設 | CP37: =データ一覧!J563 -> 2 | CT37: =データ一覧!J576 -> 110 | CX37: 人
A38: 齢 | B38: 令 | F38: ～ | I38: ～ | L38: ～ | O38: ～ | R38: ～ | U38: ～ | AN38: 一般機械 | AO38: 生産用機械 | AX38: =データ一覧!J350 -> 2 | BB38: =+データ一覧!J375 -> 12 | BI38: =データ一覧!J400 -> x | BP38: 地域福祉施設 | BX38: =データ一覧!J558 -> - | CB38: =データ一覧!J571 -> - | CH38: 指定相談支援事業所 | CP38: =データ一覧!J564 -> 3 | CT38: =データ一覧!J577 -> -
A39: 階 | B39: =+LEFT(データ一覧!$A$83,1) -> 6 | C39: 分 | G39: 14歳 | J39: 24歳 | M39: 34歳 | P39: 44歳 | S39: 54歳 | V39: 64歳 | Y39: 以上 | Z39: 林 野 の 構 成 | AG39: 保 有 形 態 別 | AN39: 電気機械 | AO39: 業務用機械 | AX39: =データ一覧!J351 -> 0 | BB39: =+データ一覧!J376 -> 0 | BI39: =データ一覧!J401 -> 0 | BP39: 老人福祉施設 | BX39: =データ一覧!J559 -> 8 | CB39: =データ一覧!J572 -> 237 | CH39: 児童福祉施設 | CP39: =データ一覧!J565 -> 24 | CT39: =データ一覧!J578 -> 1101
A40: 級 | B40: ・ | G40: 人 | J40: 人 | L40: 人 | O40: 人 | R40: 人 | U40: 人 | X40: 人 | AF40: ha | AL40: ha | AO40: 電子・デバイス | AX40: =データ一覧!J352 -> 4 | BB40: =+データ一覧!J377 -> 658 | BI40: =データ一覧!J402 -> 1523248 | BP40: 介護保険施設 | BX40: =データ一覧!J560 -> 74 | CB40: =データ一覧!J573 -> 1280 | CH40: 母子福祉施設 | CP40: =データ一覧!J566 -> - | CT40: =データ一覧!J579 -> -
A41: 別 | B41: =+MID(データ一覧!$A$83,3,2) -> 10 | C41: 総 数 | E41: =+E42+E43 -> 2883 | H41: =+H42+H43 -> 2292 | K41: =+K42+K43 -> 1729 | N41: =+N42+N43 -> 2797 | Q41: =+Q42+Q43 -> 3644 | T41: =+T42+T43 -> 3899 | W41: =+W42+W43 -> 11418 | Z41: 無立木地 伐採跡地 | AD41: =データ一覧!J271 -> 26.14 | AG41: 国 有 | AK41: =データ一覧!J273 -> 20664.12 | AO41: 電気機械 | AX41: =データ一覧!J353 -> 2 | BB41: =+データ一覧!J378 -> 64 | BI41: =データ一覧!J403 -> x | BP41: 障害者自立支援法施行前からの身体障害者福祉施設 | BX41: =データ一覧!J561 -> - | CB41: =データ一覧!J574 -> - | CH41: 婦人保護施設 | CP41: =データ一覧!J567 -> - | CT41: =データ一覧!J580 -> -
A42: 人 | B42: ・ | C42: 男 | E42: =データ一覧!J83 -> 1444 | H42: =データ一覧!J84 -> 1165 | K42: =データ一覧!J85 -> 888 | N42: =データ一覧!J86 -> 1434 | Q42: =データ一覧!J87 -> 1926 | T42: =データ一覧!J88 -> 1868 | W42: =データ一覧!J89 -> 4947 | Z42: 無立木地 未立木地 | AD42: =データ一覧!J272 -> 3657.54 | AG42: 公 有 | AK42: =データ一覧!J274 -> 11115.76 | AN42: 輸送機械 | AO42: 情報通信機械 | AX42: =データ一覧!J354 -> 1 | BB42: =+データ一覧!J379 -> 35 | BI42: =データ一覧!J404 -> x | CH42: その他の社会福祉施設 | CP42: =データ一覧!J568+データ一覧!J569 -> 0 | CT42: 0
A43: 口 | B43: =+RIGHT(データ一覧!$A$83,1) -> 1 | C43: 女 | E43: =データ一覧!J91 -> 1439 | H43: =データ一覧!J92 -> 1127 | K43: =データ一覧!J93 -> 841 | N43: =データ一覧!J94 -> 1363 | Q43: =データ一覧!J95 -> 1718 | T43: =データ一覧!J96 -> 2031 | W43: =データ一覧!J97 -> 6471 | AG43: 私 有 | AK43: =データ一覧!J275 -> 44045.17 | AN43: 精密機械 | AO43: 輸送機械 | AX43: =データ一覧!J355 -> 2 | BB43: =+データ一覧!J380 -> 98 | BI43: =データ一覧!J405 -> x | BP43: 障害福祉サービス事業所 | BX43: =データ一覧!J562 -> 27 | CB43: =データ一覧!J575 -> 256
Z44: 林 産 物 生 産 量 | AJ44: =データ一覧!$A$276 -> 5年中 | AN44: その他 | AO44: その他 | AX44: =データ一覧!J356 -> 2 | BB44: =+データ一覧!J381 -> 203 | BI44: =データ一覧!J406 -> x | BP44: １７ 教 育 | CF44: =データ一覧!$A$583 -> 6.5.1
A45: 人口動態 | H45: 自 然 動 態 | N45: 社 会 動 態 | T45: =データ一覧!$A78 -> 5.1.1～5.12.31 | Z45: 生椎茸 | AD45: =データ一覧!J276 -> 41075 | AF45: ㎏ | AG45: 乾椎茸 | AK45: =データ一覧!J277 -> 41 | AM45: ㎏
C46: 区 分 | H46: 出 生 | K46: 死 亡 | N46: 転 入 | Q46: 転 出 | T46: 婚 姻 | W46: 離 婚 | Z46: えのきだけ | AD46: =データ一覧!J279 -> 0 | AF46: ㎏ | AG46: なめこ | AK46: =データ一覧!J278 -> 15 | AM46: ㎏ | AO46: 工 業 用 水 量 | AU46: （従業者30人以上の事業所） | BF46: =データ一覧!J407 -> 8648 | BK46: ㎥／日 | BZ46: 学校数（校） | CG46: 教員数（人） | CO46: 学生・生徒・児童数（人）
A47: =LEFT(データ一覧!$A74,6) -> 5.10.1 | H47: 人 | K47: 人 | N47: 人 | Q47: 人 | U47: 件 | X47: 件 | Z47: ひらたけ | AD47: =+データ一覧!J280 -> 0 | AF47: ㎏ | AG47: まいたけ | AK47: =+データ一覧!J281 -> 0 | AM47: ㎏ | BR47: 区分 | BZ47: 本 校 | CC47: 分 校 | CF47: 本 務 | CJ47: 兼 務 | CN47: 総 数 | CR47: 男 | CV47: 女
A48: ～ | C48: 実 数 | H48: =データ一覧!J74 -> 110 | K48: =データ一覧!J75 -> 579 | N48: =データ一覧!J76 -> 743 | Q48: =データ一覧!J77 -> 883 | T48: =データ一覧!J78 -> 80 | W48: =データ一覧!J79 -> 36 | AN48: １１ 上 ・ 下 水 道 | BQ48: 小学校 | BZ48: =データ一覧!J584 -> 9 | CC48: =データ一覧!J585 -> 0 | CF48: =データ一覧!J586 -> 130 | CJ48: =データ一覧!J587 -> 20 | CN48: =データ一覧!J588 -> 1336 | CR48: =データ一覧!J589 -> 675 | CV48: =データ一覧!J590 -> 661
A49: =RIGHT(データ一覧!$A76,6) -> 6.9.30 | C49: 比率(対1,000人) | H49: =+H48/I36*1000 -> 3.515949626 | K49: =+K48/I36*1000 -> 18.5066803 | N49: - | Q49: - | T49: =+T48/I36*1000 -> 2.557054273 | W49: =+W48/I36*1000 -> 1.150674423 | Z49: ６ 漁 業 | BQ49: 中学校 | BZ49: =データ一覧!J592 -> 2 | CC49: =データ一覧!J593 -> 0 | CF49: =データ一覧!J594 -> 57 | CJ49: =データ一覧!J595 -> 4 | CN49: =データ一覧!J596 -> 650 | CR49: =データ一覧!J597 -> 322 | CV49: =データ一覧!J598 -> 328
AN50: 水 道 供 給 人 口 | AU50: 上 水 道 | AY50: 簡易水道 | BC50: 専用水道 | BG50: 飲料水供給施設 | BK50: 下水道処理人口 | BQ50: 高等学校 | BZ50: =データ一覧!J600 -> 2 | CC50: =データ一覧!J601 -> 0 | CF50: =データ一覧!J602 -> 87 | CJ50: =データ一覧!J603 -> 25 | CN50: =データ一覧!J604 -> 713 | CR50: =データ一覧!J605 -> 387 | CV50: =データ一覧!J606 -> 326
A51: ３ 事 業 所（民 営） | L51: 3.6.1 | Z51: 漁船隻数・トン数 | AD51: =データ一覧!$A$282 -> 5.12.31 | AH51: 動 力 船 | AN51: =データ一覧!$A$408 -> 6.3.31 | AT51: 人 | AV51: =データ一覧!J408 -> 4327 | AY51: =データ一覧!J409 -> 7333 | BD51: =データ一覧!J410 -> 0 | BH51: =データ一覧!J411 -> 236 | BL51: =データ一覧!J412 -> 18381 | BQ51: 大学・短期大学 | BZ51: =データ一覧!J607 -> 0 | CC51: =データ一覧!J608 -> 0 | CF51: =データ一覧!J609 -> 0 | CJ51: =データ一覧!J610 -> 0 | CN51: =データ一覧!J611 -> 0 | CR51: =データ一覧!J612 -> 0 | CV51: =データ一覧!J613 -> 0
Z52: 無動力船隻数 | AD52: 船外機付漁船隻数 | AH52: 隻 数 | AK52: 総 ト ン 数 | BQ52: 高等専門学校 | BZ52: =データ一覧!J614 -> 0 | CC52: =データ一覧!J615 -> 0 | CF52: =データ一覧!J616 -> 0 | CJ52: =データ一覧!J617 -> 0 | CN52: =データ一覧!J618 -> 0 | CR52: =データ一覧!J619 -> 0 | CV52: =データ一覧!J620 -> 0
H53: 総 数 | N53: 民 営 | T53: 国 ･ 地方公共団体 | AC53: 隻 | AG53: 隻 | AJ53: 隻 | AM53: t | AN53: １２ 交 通 ・ 通 信 | BQ53: 特別支援学校 | BZ53: =データ一覧!J622 -> 0 | CC53: =データ一覧!J623 -> 0 | CF53: =+データ一覧!J624 -> 0 | CJ53: =+データ一覧!J625 -> 0 | CN53: =+データ一覧!J626 -> 0 | CR53: =+データ一覧!J627 -> 0 | CV53: =+データ一覧!J628 -> 0
A54: 区 分 | H54: 事業所数 | K54: 従業者数 | N54: 事業所数 | Q54: 従業者数 | T54: 事業所数 | W54: 従業者数 | Z54: =データ一覧!$J$282 -> 0 | AD54: =データ一覧!$J$283 -> 2 | AH54: =データ一覧!J284 -> 0 | AK54: =データ一覧!J285 -> 0 | BQ54: 幼稚園 | BZ54: =データ一覧!J630 -> 6 | CC54: =データ一覧!J631 -> 0 | CF54: =データ一覧!J632 -> 8 | CJ54: =データ一覧!J633 -> 0 | CN54: =データ一覧!J634 -> 14 | CR54: =データ一覧!J635 -> 5 | CV54: =データ一覧!J636 -> 9
K55: 人 | Q55: 人 | W55: 人 | Z55: 男女別就業者数 | AH55: =データ一覧!$A$286 -> 5.11.1 | AN55: 道 路 | AR55: 実 延 長 | AV55: 国 道 | AZ55: 県 道 | BD55: 市町道 | BH55: 鉄 道 営 業 キ ロ 数 | BQ55: 幼保連携認定こども園 | BZ55: =データ一覧!J638 -> 9 | CC55: =データ一覧!J639 -> 0 | CF55: =データ一覧!J640 -> 144 | CJ55: =データ一覧!J641 -> 0 | CN55: =データ一覧!J642 -> 716 | CR55: =データ一覧!J643 -> 357 | CV55: =データ一覧!J644 -> 359
A56: 総数 | H56: =データ一覧!J99 -> … | K56: =データ一覧!J156 -> … | N56: =データ一覧!J100 -> 1737 | Q56: =データ一覧!J157 -> 12482 | T56: =データ一覧!J101 -> … | W56: =データ一覧!J158 -> … | Z56: 総 数 | AF56: 男 | AJ56: 女 | AN56: =データ一覧!$A$413 -> 5.4.1 | AR56: =データ一覧!J413 -> 768.2 | AU56: ㎞ | AV56: =データ一覧!J414 -> 110.2 | AY56: ㎞ | AZ56: =データ一覧!J415 -> 153.4 | BC56: ㎞ | BD56: =データ一覧!J416 -> 504.6 | BG56: km | BH56: =データ一覧!$A$417 -> 6.4.1 | BL56: =データ一覧!J417 -> 0 | BO56: ㎞ | BQ56: 各種学校 | BZ56: =データ一覧!J646 -> 1 | CC56: =データ一覧!J647 -> 0 | CF56: =データ一覧!J648 -> 10 | CJ56: =データ一覧!J649 -> 3 | CN56: =データ一覧!J650 -> 19 | CR56: =データ一覧!J651 -> 16 | CV56: =データ一覧!J652 -> 3
A57: 農林漁業 | H57: =データ一覧!J102 -> … | K57: =データ一覧!J159 -> … | N57: =データ一覧!J103 -> 53 | Q57: =データ一覧!J160 -> 789 | T57: =データ一覧!J104 -> … | W57: =データ一覧!J161 -> … | AE57: 人 | AH57: 人 | AM57: 人 | AN57: 自動車 | AW57: 乗用車 | BQ57: 専修学校 | BZ57: =データ一覧!J654 -> 0 | CC57: =データ一覧!J655 -> 0 | CF57: =データ一覧!J656 -> 0 | CJ57: =データ一覧!J657 -> 0 | CN57: =データ一覧!J658 -> 0 | CR57: =データ一覧!J659 -> 0 | CV57: =データ一覧!J660 -> 0
A58: 鉱業 | H58: =データ一覧!J105 -> … | K58: =データ一覧!J162 -> … | N58: =データ一覧!J106 -> - | Q58: =データ一覧!J163 -> - | T58: =データ一覧!J107 -> … | W58: =データ一覧!J164 -> … | Z58: =データ一覧!J286 -> 0 | AF58: =データ一覧!$J$287 -> 0 | AJ58: =データ一覧!J288 -> 0 | AN58: 台 数 | AR58: 貨 物 | AV58: 普 通 | AZ58: 小 型 | BD58: 乗 合 | BG58: 特 種 | BJ58: 小型二輪 | BM58: 軽自動車 | BP58: １８ 衛 生
A59: 建設業 | H59: =データ一覧!J108 -> … | K59: =データ一覧!J165 -> … | N59: =データ一覧!J109 -> 264 | Q59: =データ一覧!J166 -> 1605 | T59: =データ一覧!J110 -> … | W59: =データ一覧!J167 -> … | Z59: 海 面 漁 業 漁 獲 量 （属人） | AH59: =データ一覧!$A$289 -> 30年中 | AN59: =データ一覧!$A$418 -> 6.3.31 | AS59: =データ一覧!J418 -> 1684 | AW59: =データ一覧!J420 -> 6227 | BA59: =データ一覧!J421 -> 5910 | BD59: =データ一覧!J419 -> 92 | BG59: =データ一覧!J422 -> 1121 | BJ59: =データ一覧!J423 -> 320 | BM59: =データ一覧!J424 -> 13998
A60: 製造業 | H60: =データ一覧!J111 -> … | K60: =データ一覧!J168 -> … | N60: =データ一覧!J112 -> 185 | Q60: =データ一覧!J169 -> 2796 | T60: =データ一覧!J113 -> … | W60: =データ一覧!J170 -> … | AF60: ｔ | AM60: t | AR60: 郵 便 局 数 | BF60: =+MID(データ一覧!$A$428,3,2) -> 3. | BG60: 令 | BH60: 一般加入 | BL60: ＩＮＳネット | BT60: 医療関係施設 | BZ60: =データ一覧!$A$661 -> 5.10.1 | CG60: および医療関係者数 | CO60: =データ一覧!$A$666 -> 4.12.31
A61: 電気・ｶﾞ ｽ・熱供給・水道業 | H61: =データ一覧!J114 -> … | K61: =データ一覧!J171 -> … | N61: =データ一覧!J115 -> 3 | Q61: =データ一覧!J172 -> 107 | T61: =データ一覧!J116 -> … | W61: =データ一覧!J173 -> … | Z61: 総 数 | AD61: =データ一覧!J289 -> 0 | AG61: 藻 類 | AK61: =データ一覧!J292 -> 0 | AN61: 通 信 | AR61: 総 数 | AW61: 郵 便 局 | BB61: 簡 易 局 | BF61: ・ | BG61: =+LEFT(データ一覧!$A$428,1) -> 6 | BH61: 電話数 | BL61: 加入数 | BW61: 病 | BZ61: 院 | CH61: 一般診療所 | CT61: 歯科診療所
A62: 情報通信業 | H62: =データ一覧!J117 -> … | K62: =データ一覧!J174 -> … | N62: =データ一覧!J118 -> 6 | Q62: =データ一覧!J175 -> 18 | T62: =データ一覧!J119 -> … | W62: =データ一覧!J176 -> … | Z62: 魚 類 | AD62: =データ一覧!J290 -> 0 | AG62: そ の 他 | AK62: =データ一覧!J293 -> 0 | AN62: =データ一覧!$A$428 -> 6.3.31 | AR62: =データ一覧!J425 -> 13 | AW62: =データ一覧!J426 -> 10 | BB62: =データ一覧!J427 -> 3 | BF62: =+RIGHT(データ一覧!$A$428,2) -> 31 | BG62: ・ | BH62: =データ一覧!J428 -> 3188 | BL62: =データ一覧!J429 -> 259 | BQ62: 医療関係 | CC62: 一般病院 | CO62: 有 | CR62: 床
A63: 運輸業、郵便業 | H63: =データ一覧!J120 -> … | K63: =データ一覧!J177 -> … | N63: =データ一覧!J121 -> 24 | Q63: =データ一覧!J178 -> 252 | T63: =データ一覧!J122 -> … | W63: =データ一覧!J179 -> … | Z63: 貝 類 | AD63: =データ一覧!J291 -> 0 | BQ63: 施設数 | BX63: =データ一覧!J661 -> 4 | CD63: =データ一覧!J662 -> 4 | CJ63: =データ一覧!J663 -> 22 | CP63: =データ一覧!J664 -> 1 | CV63: =データ一覧!J665 -> 9
A64: 卸売業、小売業 | H64: =データ一覧!J123 -> … | K64: =データ一覧!J180 -> … | N64: =データ一覧!J124 -> 391 | Q64: =データ一覧!J181 -> 2232 | T64: =データ一覧!J125 -> … | W64: =データ一覧!J182 -> … | AN64: １３ 税 ・ 財 政 | BW64: 医師 | CB64: 歯科医師 | CG64: 薬剤師 | CL64: 保健師 | CQ64: 助産師 | CV64: 看護師
A65: 金融業、保険業 | H65: =データ一覧!J126 -> … | K65: =データ一覧!J183 -> … | N65: =データ一覧!J127 -> 28 | Q65: =データ一覧!J184 -> 254 | T65: =データ一覧!J128 -> … | W65: =データ一覧!J185 -> … | Z65: ７ 商 業 | AG65: =データ一覧!$A$294 -> 3.6.1(令和2年実績） | BQ65: 医療 | BZ65: 人 | CE65: 人 | CJ65: 人 | CO65: 人 | CT65: 人 | CY65: 人
A66: 不動産業、物品賃貸業 | H66: =データ一覧!J129 -> … | K66: =データ一覧!J186 -> … | N66: =データ一覧!J130 -> 33 | Q66: =データ一覧!J187 -> 131 | T66: =データ一覧!J131 -> … | W66: =データ一覧!J188 -> … | AR66: 歳入 | BA66: (千円） | BF66: 歳出 | BO66: (千円） | BQ66: 関係者 | BV66: =データ一覧!J666 -> 27 | CA66: =データ一覧!J667 -> 14 | CF66: =データ一覧!J668 -> 33 | CK66: =データ一覧!J669 -> 22 | CP66: =データ一覧!J670 -> 1 | CU66: =データ一覧!J671 -> 259
A67: 学術研究、専門・技術ｻｰﾋﾞｽ業 | H67: =データ一覧!J132 -> … | K67: =データ一覧!J189 -> … | N67: =データ一覧!J133 -> 48 | Q67: =データ一覧!J190 -> 246 | T67: =データ一覧!J134 -> … | W67: =データ一覧!J191 -> … | Z67: 産 業 分 類 | AD67: 事 業 所 数 | AG67: 従 業 者 数 | AJ67: 年 間 販 売 額 | AN67: 一人当たり歳入歳出予算決算額 | BY67: 死因別死亡数 | CO67: =データ一覧!$A$672 -> 5年中 | CX67: 単 位：人
A68: 宿泊業、飲食サービス業 | H68: =データ一覧!J135 -> … | K68: =データ一覧!J192 -> … | N68: =データ一覧!J136 -> 203 | Q68: =データ一覧!J193 -> 681 | T68: =データ一覧!J137 -> … | W68: =データ一覧!J194 -> … | AI68: 人 | AK68: 百万円 | AN68: 区分 | AR68: =データ一覧!$A$438 -> 6年度 | AW68: =データ一覧!$A$452 -> 5年度 | BB68: 区分 | BF68: =+AR68 -> 6年度 | BK68: =データ一覧!$A$452 -> 5年度 | BP68: 死 因 | CB68: 悪 性 | CE68: 高血圧 | CK68: 脳血管 | CT68: 不慮の事故
A69: 生活関連サービス業、娯楽業 | H69: =データ一覧!J138 -> … | K69: =データ一覧!J195 -> … | N69: =データ一覧!J139 -> 162 | Q69: =データ一覧!J196 -> 549 | T69: =データ一覧!J140 -> … | W69: =データ一覧!J197 -> … | Z69: 総 計 | AD69: =データ一覧!J294 -> 347 | AG69: =データ一覧!J303 -> 1819 | AJ69: =データ一覧!J312 -> 32032 | AR69: =データ一覧!J434 -> 741228.6784 | AW69: =データ一覧!J435 -> 757055.9536 | BF69: =データ一覧!J436 -> 741228.6784 | BK69: =データ一覧!J437 -> 724941.8056 | BU69: 全 死 因 | BY69: 結 核 | CB69: 新生物 | CE69: 性疾患 | CH69: 心疾患 | CK69: 疾 患 | CN69: 肺 炎 | CQ69: 老 衰 | CW69: 交通事故
A70: 教育、学習支援業 | H70: =データ一覧!J141 -> … | K70: =データ一覧!J198 -> … | N70: =データ一覧!J142 -> 39 | Q70: =データ一覧!J199 -> 267 | T70: =データ一覧!J143 -> … | W70: =データ一覧!J200 -> … | Z70: 卸売業 | AD70: =データ一覧!J295 -> 39 | AG70: =データ一覧!J304 -> 171 | AJ70: =データ一覧!J313 -> 3853 | AN70: 項目別歳入歳出予算決算額
A71: 医療、福祉 | H71: =データ一覧!J144 -> … | K71: =データ一覧!J201 -> … | N71: =データ一覧!J145 -> 147 | Q71: =データ一覧!J202 -> 1707 | T71: =データ一覧!J146 -> … | W71: =データ一覧!J203 -> … | Z71: 小売業 | AD71: =データ一覧!J296 -> 308 | AG71: =データ一覧!J305 -> 1648 | AJ71: =データ一覧!J314 -> 28179 | AN71: 区分 | AR71: =データ一覧!$A$438 -> 6年度 | AW71: =データ一覧!$A$452 -> 5年度 | BB71: 区分 | BF71: =+AR71 -> 6年度 | BK71: =データ一覧!$A$452 -> 5年度 | BU71: =データ一覧!J672 -> 543 | BY71: － | BZ71: =データ一覧!J673 -> - | CB71: =データ一覧!J674 -> 118 | CF71: =データ一覧!J675 -> 2 | CH71: =データ一覧!J676 -> 85 | CK71: =データ一覧!J677 -> 50 | CN71: =データ一覧!J678 -> 30 | CQ71: =データ一覧!J679 -> 64 | CT71: =データ一覧!J680 -> 19 | CW71: =データ一覧!J681 -> -
A72: 複合サービス事業 | H72: =データ一覧!J147 -> … | K72: =データ一覧!J204 -> … | N72: =データ一覧!J148 -> 15 | Q72: =データ一覧!J205 -> 145 | T72: =データ一覧!J149 -> … | W72: =データ一覧!J206 -> … | Z72: 各種商品 | AD72: =データ一覧!J297 -> 1 | AG72: =データ一覧!J306 -> 3 | AJ72: =データ一覧!J315 -> x | AN72: 総額 | AR72: =SUM(AR73:AV85) -> 21380000 | AW72: =SUM(AW73:BA85) -> 22297569 | BB72: 総額 | BF72: =SUM(BF73:BJ85) -> 21380000 | BK72: =SUM(BK73:BO85) -> 21351711 | BP72: １９ 警 察 ・ 消 防 | CF72: =+データ一覧!$A682 -> 6.4.1
A73: サービス業 | H73: =データ一覧!J150 -> … | K73: =データ一覧!J207 -> … | N73: =データ一覧!J151 -> 136 | Q73: =データ一覧!J208 -> 703 | T73: =データ一覧!J152 -> … | W73: =データ一覧!J209 -> … | Z73: 織物・衣服・身の回り品 | AD73: =データ一覧!J298 -> 51 | AG73: =データ一覧!J307 -> 116 | AJ73: =データ一覧!J316 -> 535 | AN73: 地方税 | AR73: =データ一覧!J439 -> 3692099 | AW73: =データ一覧!J453 -> 3886389 | BB73: 議会費 | BF73: =データ一覧!J467 -> 180790 | BK73: =データ一覧!J481 -> 169823
A74: 公務 | H74: =データ一覧!J153 -> … | K74: =データ一覧!J210 -> … | N74: =データ一覧!J154 -> … | Q74: =データ一覧!J211 -> … | T74: =データ一覧!J155 -> … | W74: =データ一覧!J212 -> … | Z74: 飲食料品 | AD74: =データ一覧!J299 -> 85 | AG74: =データ一覧!J308 -> 643 | AJ74: =データ一覧!J317 -> 10240 | AN74: 地方譲与税 | AR74: =データ一覧!J440 -> 259680 | AW74: =データ一覧!J454 -> 237523 | BB74: 総務費 | BF74: =データ一覧!J468 -> 2755493 | BK74: =データ一覧!J482 -> 4178119 | BZ74: 交番・駐在所 | CI74: 刑法犯認知件数 | CR74: 交通人身事故発生件数
A75: ４ 農 業 | Z75: 機械器具 | AD75: =データ一覧!J300 -> 50 | AG75: =データ一覧!J309 -> 251 | AJ75: =データ一覧!J318 -> 5528 | AN75: 各種交付金 | AR75: =データ一覧!J441 -> 956300 | AW75: =データ一覧!J455 -> 933508 | BB75: 民生費 | BF75: =データ一覧!J469 -> 5364296 | BK75: =データ一覧!J483 -> 5961247 | BQ75: 警察署数 | BZ75: 検問所数 | CJ75: =データ一覧!$A$684 -> 5年中 | CS75: =データ一覧!$A$684 -> 5年中
Z76: その他 | AD76: =データ一覧!J301 -> 115 | AG76: =データ一覧!J310 -> 605 | AJ76: =データ一覧!J319 -> x | AN76: 地方特例交付金 | AR76: =データ一覧!J442 -> 151100 | AW76: =データ一覧!J456 -> 25475 | BB76: 衛生費 | BF76: =データ一覧!J470 -> 2685689 | BK76: =データ一覧!J484 -> 1498009 | CN76: 件 | CW76: 件
C77: 農業経営体数 | J77: 農産物販売額規模別経営体数 | R77: 経営耕地面積規模別経営体数 | Z77: 無店舗 | AD77: =データ一覧!J302 -> 6 | AG77: =データ一覧!J311 -> 30 | AJ77: =データ一覧!J320 -> 391 | AN77: 地方交付税 | AR77: =データ一覧!J443 -> 6050000 | AW77: =データ一覧!J457 -> 6885301 | BB77: 労働費 | BF77: =データ一覧!J471 -> 124161 | BK77: =データ一覧!J485 -> 120955 | BR77: =データ一覧!J682 -> 1 | CA77: =データ一覧!J683 -> 8 | CJ77: =データ一覧!J684 -> 88 | CS77: =データ一覧!J685 -> 16
A78: 農 | C78: 区 分 | G78: 経営体数 （経営体） | J78: 区 分 | O78: 経営体数 （経営体） | R78: 区 分 | W78: 経営体数 （経営体） | AN78: 分担金および負担金 | AR78: =データ一覧!J444 -> 10470 | AW78: =データ一覧!J458 -> 19083 | BB78: 農林水産業費 | BF78: =データ一覧!J472 -> 1351209 | BK78: =データ一覧!J486 -> 1282457 | BP78: 火災発生件数 | BZ78: 林野焼損 | CE78: 損 害 | CJ78: 消 防 自 | CN78: その他の
A79: 業 | B79: 令 | Z79: ８ 住 宅 | AN79: 使用料および手数料 | AR79: =データ一覧!J445 -> 188766 | AW79: =データ一覧!J459 -> 195602 | BB79: 商工費 | BF79: =データ一覧!J473 -> 1222163 | BK79: =データ一覧!J487 -> 1109509 | BP79: =+データ一覧!$A$686 -> 5年中 | BU79: 焼損棟数 | BZ79: 面 積 | CE79: 見 積 額 | CJ79: 動 車 数 | CN79: ﾎﾟﾝﾌﾟ数 | CR79: 消防吏員 | CV79: 消防団員
A80: 経 | B80: =+LEFT(データ一覧!$A$213) -> 2 | C80: 計 | G80: =データ一覧!J213 -> 933 | J80: 総 数 | O80: =データ一覧!J217 -> 933 | R80: 総 数 | W80: =データ一覧!J233 -> 3837 | AN80: 国庫支出金 | AR80: =データ一覧!J446 -> 2645918 | AW80: =データ一覧!J460 -> 3680884 | BB80: 土木費 | BF80: =データ一覧!J474 -> 1726019 | BK80: =データ一覧!J488 -> 1776629 | BP80: 件 | BV80: 棟 | CC80: ａ | CG80: 千円 | CT80: 人 | CX80: 人
A81: 営 | B81: ・ | C81: 個人経営体 | G81: =データ一覧!J214 -> 885 | J81: 販 売 な し | O81: =データ一覧!J218 -> 38 | R81: 0.5 ha 未満 | W81: =データ一覧!J234 -> 35 | Z81: =+データ一覧!$A$321 -> 4年 | AE81: =データ一覧!$A$324 -> 5年 | AF81: 中の増減 | AJ81: =+データ一覧!$A$324 -> 5年 | AN81: 県支出金 | AR81: =データ一覧!J447 -> 1862222 | AW81: =データ一覧!J461 -> 1842607 | BB81: 消防費 | BF81: =データ一覧!J475 -> 1262191 | BK81: =データ一覧!J489 -> 806341 | BQ81: =データ一覧!J686 -> 4 | BV81: =データ一覧!J687 -> 7 | CA81: =データ一覧!J688 -> 0 | CE81: =データ一覧!J689 -> 11596 | CK81: =データ一覧!J690 -> 17 | CO81: =データ一覧!J691 -> 32 | CS81: =データ一覧!J692 -> 55 | CW81: =データ一覧!J693 -> 450
A82: 体 | B82: =+LEFT(データ一覧!$A$213,1) -> 2 | C82: 団体経営体 | G82: =データ一覧!J215 -> 48 | J82: 50万円未満 | O82: =データ一覧!J219 -> 252 | R82: 0.5 ha ～ 1.0 ha | W82: =データ一覧!J235 -> 183 | AD82: 建設した住宅 | AG82: 消失した住宅 | AN82: 財産収入 | AR82: =データ一覧!J448 -> 46005 | AW82: =データ一覧!J462 -> 92155 | BB82: 教育費 | BF82: =データ一覧!J476 -> 3362586 | BK82: =データ一覧!J490 -> 3046735 | BP82: ２０ そ の 他
A83: 数 | B83: ・ | D83: 法人経営 | G83: =データ一覧!J216 -> 34 | J83: 50～300万円 | O83: =データ一覧!J220 -> 508 | R83: 1.0 ha ～ 2.0 ha | W83: =データ一覧!J236 -> 469 | AN83: 繰入金 | AR83: =データ一覧!J449 -> 1321793 | AW83: =データ一覧!J463 -> 1776156 | BB83: 災害復旧費 | BF83: =データ一覧!J477 -> 1500 | BK83: =データ一覧!J491 -> 65317
A84: （ | B84: =+RIGHT(データ一覧!$A$213) -> 1 | J84: 300～500万円 | O84: =データ一覧!J221 -> 43 | R84: 2.0 ha ～ 3.0 ha | W84: =データ一覧!J237 -> 263 | AA84: =データ一覧!J321 -> 11240 | AC84: 戸 | AD84: =データ一覧!J322 -> 84 | AF84: 戸 | AG84: =データ一覧!J323 -> 131 | AI84: 戸 | AK84: =データ一覧!J324 -> 11193 | AM84: 戸 | AN84: 地方債 | AR84: =データ一覧!J450 -> 3407500 | AW84: =データ一覧!J464 -> 1412700 | BB84: 公債費 | BF84: =データ一覧!J478 -> 1323903 | BK84: =データ一覧!J492 -> 1336570 | BP84: 名所・旧跡 | BU84: 越前大野城、民俗資料館、歴史博物館、武家屋敷旧内山家、武家屋敷旧田村家、宝慶寺、和泉郷土資料館（くずりゅう化石ラボ ガ・オーノ）、御清水(名水百選)、本願清水(平成の名水百選)、本願清水イトヨの里、旧橋本家住宅、専福寺の大ケヤキ、朝倉義景墓所、平成大野屋、荒島岳（日本百名山）、刈込池、九頭竜峡、寺町通り、六呂師高原（星空保護区認定地）、九頭竜湖、良縁の樹、化石発掘体験センターHOROSSA!、COCONOアートプレイス
A85: 総 | J85: 500～1,000万円 | O85: =データ一覧!J222 -> 25 | R85: 3.0 ha ～ 5.0 ha | W85: =データ一覧!J238 -> 153 | AN85: その他 | AR85: =データ一覧!J451 -> 788147 | AW85: =データ一覧!J465 -> 1310186 | BB85: その他 | BF85: =データ一覧!J479 -> 20000 | BK85: =データ一覧!J493 -> 0 | BP85: 文化財等
A86: 数 | J86: 1,000万円以上 | O86: =データ一覧!J223 -> 67 | R86: 5.0 ha以上 | W86: =データ一覧!J239 -> 2732
A87: ） | C87: 15歳以上の常雇い数 | J87: 農業に60日以上従事した世帯員、役員・構成員 （経営主を含む）の平均年齢 | Z87: ９ 議 員 ・ 職 員 | AN87: １４ 文 化 | AV87: ( | AW87: ="令"&データ一覧!$A$498 -> 令6.3.31 | AZ87: ただし図書館・公民館・児童館・ 社会教育学級講座 | BL87: =データ一覧!$A$494 -> 6.4.1 | BP87: 特産物 | BU87: けんけら、でっち羊かん、やまぶどうワイン、地酒、はまな味噌、里芋、 大野在来そば、越前おおの米、半夏生さば、穴馬スイートコーン、九頭竜まいたけ、とんちゃん、醤油カツ丼、穴馬かぶら、荒島ポーク、名水サーモン
A88: と | BA88: 宗教法人数 | BL88: =データ一覧!$A$502 -> 5.12.31
A89: 就 | J89: 農業に60日以上従事 | R89: 農業に150日以上従事 | Z89: 市 町 議 会 | AC89: 有権者数 | AE89: =データ一覧!$A$328 -> 6.9.1 | AG89: 市 町 議 会 | AJ89: 職 員 数 | AS89: 図書館 | AY89: 公 民 館 | BJ89: 社会教育学級講座 | BP89: 年中行事 | BU89: 七間朝市(春分の日～12月)､七間朝市山菜フードピア(5月11日、12日)､名水マラソン(5月26日)､九頭竜新緑まつり(6月1日、2日)､おおの城まつり(8月13日～16日)、アルプス音楽祭(9月15日、16日)、三大朝市物産まつり・九頭竜紅葉まつり(10月26日、27日)、産業と食彩フェア(10月18日、19日)､新そばまつり(11月16日、17日)､越前おおの冬物語・でっち羊かんまつり(1月下旬)
A90: 業 | C90: 区分 | G90: 人 | J90: 区分 | O90: 歳 | R90: 区 分 | W90: 歳 | Z90: 議 員 定 数 | AC90: 男 | AE90: 女 | AG90: 選 挙 投 票 率 | AJ90: 総 数 | AL90: 一般行政職 | AN90: 公 共 | AR90: 館 数 | AU90: 図書数 | AX90: 本 館 | BA90: 分 館 | BD90: 公 園 | BG90: 児童館 | BJ90: 学級講座数 | BM90: 受講者数
A91: 状 | C91: 総数 | G91: =データ一覧!J230 -> 75 | J91: 総数 | O91: =データ一覧!J224 -> 68.3 | R91: 総数 | W91: =データ一覧!J227 -> 69.3 | AB91: 人 | AD91: 人 | AF91: 人 | AI91: ％ | AK91: 人 | AM91: 人 | AN91: 施 設 数 | AS91: =データ一覧!J494 -> 1 | AU91: =データ一覧!J495 -> 234542 | AY91: =データ一覧!J496 -> 9 | BA91: =データ一覧!J497 -> 0 | BD91: =データ一覧!J498 -> 34 | BG91: =データ一覧!J499 -> 5 | BJ91: =データ一覧!J500 -> 1150 | BM91: =データ一覧!J501 -> 13930
A92: 況 | C92: 男 | G92: =データ一覧!J231 -> 52 | J92: 男 | O92: =データ一覧!J225 -> 67.4 | R92: 男 | W92: =データ一覧!J228 -> 68.6 | AA92: =データ一覧!J325 -> 16 | AC92: =データ一覧!J328 -> 12318 | AE92: =データ一覧!J329 -> 13463 | AG92: =データ一覧!J327 -> 58.5 | AJ92: =データ一覧!J330 -> 366 | AL92: =データ一覧!J331 -> 224 | AN92: 宗 教 | AR92: 仏教系 | AU92: ｷﾘｽﾄ教系 | AX92: 神道諸派 | BA92: 公会堂・市民会館 | BG92: テレビ | BJ92: 衛星放送契約数
C93: 女 | G93: =データ一覧!J232 -> 23 | J93: 女 | O93: =データ一覧!J226 -> 69.7 | R93: 女 | W93: =データ一覧!J229 -> 70.7 | AG93: =データ一覧!J326 -> 5.2.12 | AN93: 法 人 数 | AR93: =データ一覧!J502 -> 77 | AU93: =データ一覧!J503 -> 1 | AX93: =データ一覧!J504 -> 102 | BA93: =データ一覧!J505 -> 2 | BG93: 等 | BJ93: =データ一覧!J506 -> 7161

Sheet 勝山市
A1: =+データ一覧!K2 -> 0
A2: =+データ一覧!K5 -> 0
AN3: 0
AB4: 【市章とそのいわれ】カツ山をもって勝山を意味する。 | AN4: 【位置および地勢】勝山市は福井県の北東部に位置し、南東は大野市に、 | BS4: 所在地 | CA4: 〒911-8501
AB5: 福井、大野、金沢の三方面への発展を | AO5: 南西は福井市、北西に坂井市、西に永平寺町、北は石川県に隣接し、 | CA5: 勝山市元町１丁目１番１号
A6: =+データ一覧!K3 -> かつやまし | AB6: 三角の各頂点であらわし、丸は和合、 | AO6: 市の周辺は1,000m級の山々に囲まれ、中心部は県下最大河川 である九頭竜川の
A7: =データ一覧!K6 -> 勝山市 | AB7: 三角は、どっしりとした安定性を意味 | AO7: 中流域に位置している。 | BS7: 電話番号 | CA7: （０７７９）８８－１１１１
AB8: し、三角と丸を組み合わせて勝山市と | AO8: 市街地は九頭竜川の流れに沿って形成された河岸段丘に位置しており、 | BS8: FAX番号 | CA8: 〃 ８８－１１１９
AB9: しての将来の発展を意味する。 | AO9: 明治以来の地場産業である繊維産業を中心とした商工業、古くから盛んな
AB10: 0 | AO10: 農林業を基幹産業とする水と緑の豊かな田園都市である。 | BS10: 最寄駅および距離 | CA10: えちぜん鉄道勝山永平寺線勝山駅 下車１ｋｍ
AB11: 0
AB13: 【市が掲げる標語】わいわい わくわく 安全安心のまち かつやま | BS13: ホームページ | CA13: https://www.city.katsuyama.fukui.jp/
A15: １ 土 地 | Z15: =データ一覧!$A$240 -> 5年 | AA15: 産米収穫量 | AD15: 収 穫 量 | AG15: 作 付 面 積 | AJ15: 10a当たり収量 | BP15: １５ 労 働 | CE15: 2.10.1
AD16: =データ一覧!$K$240 -> 5150 | AF16: t | AG16: =データ一覧!$K$241 -> 1050 | AI16: ha | AJ16: =データ一覧!K242 -> 490 | AM16: kg | AN16: １０ 工 業 | BB16: =データ一覧!$A$332 -> 4.6.1（令和3年実績）
A17: 総 面 積 | K17: 固 定 資 産 概 要 調 書 に よ る 地 目 別 面 積 | AC17: 総 数 | AG17: うち 田 | AK17: うち 畑 | BW17: 産業別就業者数
C18: =データ一覧!$A$7 -> 6.10.1 | Q18: =データ一覧!$A$9 -> 6.1.1 | Z18: 耕 地 面 積 | AD18: ha | AG18: ha | AK18: ha | AO18: 産業分類 | AW18: 事業所数 | BB18: 従業者数 | BH18: 年間製造品出荷額等 | BQ18: 区 分 | BV18: 総 数 | CA18: 男 | CE18: 女 | CI18: 区 分 | CN18: 総 数 | CS18: 男 | CW18: 女
G19: ㎢ | K19: 総 数 | P19: う ち 田 | U19: う ち 畑 | Z19: =データ一覧!A243 -> 5.7.15 | AC19: =データ一覧!$K$243 -> 1900 | AF19: =データ一覧!$K$244 -> 1750 | AJ19: =データ一覧!$K$245 -> 145 | AZ19: 事業所 | BB19: 人 | BE19: 人 | BG19: 万円 | BN19: 万円 | BV19: 人 | CB19: 人 | CF19: 人 | CN19: 人 | CR19: 人 | CV19: 人
D20: =データ一覧!K7 -> 253.88 | O20: ha | T20: ha | Y20: ha | Z20: 農 業 生 産 物 | AD20: 作 付 面 積 | AG20: 収 穫 量 | AJ20: 10a当たり収量 | AO20: 総数 | AX20: =データ一覧!K332 -> 65 | BB20: =+データ一覧!K357 -> 2369 | BI20: =データ一覧!K382 -> 6215077 | BP20: 総 数 | BV20: =BZ20+CD20 -> 11491 | BZ20: =データ一覧!K507 -> 5984 | CD20: =データ一覧!K532 -> 5507
L21: =データ一覧!K9 -> 20781.9 | Q21: =データ一覧!K10 -> 1899.8 | V21: =データ一覧!K11 -> 135.5 | Z21: =データ一覧!$A$246 -> 5年産 | AD21: ha | AG21: t | AJ21: kg | AN21: 食料品 | AO21: 食料品 | AX21: =データ一覧!K333 -> 3 | BB21: =+データ一覧!K358 -> 80 | BI21: =データ一覧!K383 -> 116694 | CI21: 卸売業,小売業 | CN21: =CR21+CV21 -> 1424 | CR21: =データ一覧!K520 -> 723 | CV21: =データ一覧!K545 -> 701
A22: 町 ･ 丁 ･ 大 字 | K22: う ち 宅 地 | P22: う ち 山 林 | U22: う ち 原 野 | Z22: 水 稲 | AD22: =データ一覧!K246 -> 1050 | AG22: =データ一覧!K247 -> 5150 | AJ22: =データ一覧!K248 -> 490 | AN22: 飲料・飼料 | AO22: 飲料・飼料 | AX22: =データ一覧!K334 -> 1 | BB22: =+データ一覧!K359 -> 42 | BI22: =データ一覧!K384 -> x | BP22: 第１次産業 | BV22: =BZ22+CD22 -> 599 | BZ22: =データ一覧!K508 -> 412 | CD22: =データ一覧!K533 -> 187 | CI22: 金融業,保険業 | CN22: =CR22+CV22 -> 196 | CR22: =データ一覧!K521 -> 77 | CV22: =データ一覧!K546 -> 119
A23: 区 画 数 | H23: =データ一覧!K8 -> 118 | O23: ha | T23: ha | Y23: ha | Z23: 六 条 大 麦 | AD23: =データ一覧!K249 -> 262 | AG23: =データ一覧!K250 -> 571 | AJ23: =データ一覧!K251 -> 218 | AN23: 繊維 | AO23: 繊維 | AX23: =データ一覧!K335 -> 34 | BB23: =+データ一覧!K360 -> 1162 | BI23: =データ一覧!K385 -> 1218072 | BQ23: 農業 | BV23: =BZ23+CD23 -> 547 | BZ23: =データ一覧!K509 -> 363 | CD23: =データ一覧!K534 -> 184 | CI23: 不動産業 | CN23: 51 | CR23: =データ一覧!K522 -> 30 | CV23: =データ一覧!K547 -> 21
A24: =データ一覧!$A$8 -> 5.4.1 | L24: =データ一覧!K12 -> 603.4 | Q24: =データ一覧!K13 -> 9280.1 | V24: =データ一覧!K14 -> 335.5 | Z24: 大 豆 | AD24: =データ一覧!K252 -> 11 | AG24: =データ一覧!K253 -> 11 | AJ24: =データ一覧!K254 -> 96 | AN24: 衣服 | AO24: 木材 | AX24: =データ一覧!K336 -> 0 | BB24: =+データ一覧!K361 -> 0 | BI24: =データ一覧!K386 -> 0 | BQ24: 林業 | BV24: 51 | BZ24: =データ一覧!K510 -> 49 | CD24: =データ一覧!K535 -> 2 | CI24: 学術研究 | CN24: 184 | CR24: =データ一覧!K523 -> 111 | CV24: =データ一覧!K548 -> 73
A25: ２ 世 帯 数 と 人 口 | AB25: 区 分 | AD25: 乳 用 牛 | AF25: 肉 用 牛 | AH25: 豚 | AJ25: 採卵鶏 | AL25: ブロイラー | AN25: 木材 | AO25: 家具 | AX25: =データ一覧!K337 -> 2 | BB25: =+データ一覧!K362 -> 26 | BI25: =データ一覧!K387 -> x | BQ25: 漁業 | BV25: 1 | BZ25: =データ一覧!K511 -> - | CD25: =データ一覧!K536 -> 1 | CI25: 宿泊業,飲食ｻｰﾋﾞｽ | CN25: 506 | CR25: =データ一覧!K524 -> 201 | CV25: =データ一覧!K549 -> 305
Z26: 畜 産 | AB26: 飼養農家 | AD26: =データ一覧!$K$255 -> 3 | AF26: =データ一覧!$K$257 -> 2 | AH26: =データ一覧!$K$259 -> 0 | AJ26: =データ一覧!$K$261 -> 1 | AL26: =データ一覧!$K$263 -> 0 | AN26: 家具 | AO26: パルプ・紙 | AX26: =データ一覧!K338 -> 0 | BB26: =+データ一覧!K363 -> 0 | BI26: =データ一覧!K388 -> 0 | BP26: 第２次産業 | BV26: 3818 | BZ26: =データ一覧!K512 -> 2396 | CD26: =データ一覧!K537 -> 1422 | CI26: 生活関連ｻｰﾋﾞｽ業 | CN26: 337 | CR26: =データ一覧!K525 -> 110 | CV26: =データ一覧!K550 -> 227
I27: 人 口 | U27: １世帯当 | W27: 人 口 | Z27: =データ一覧!$A$255 -> 6.3.31 | AB27: （戸） | AN27: パルプ・紙 | AO27: 印刷 | AX27: =データ一覧!K339 -> 2 | BB27: =+データ一覧!K364 -> 27 | BI27: =データ一覧!K389 -> x | BQ27: 鉱業，採石業 | BV27: 6 | BZ27: =データ一覧!K513 -> 5 | CD27: =データ一覧!K538 -> 1 | CI27: 教育,学習支援業 | CN27: 591 | CR27: =データ一覧!K526 -> 209 | CV27: =データ一覧!K551 -> 382
A28: 区 分 | F28: 世帯数 | I28: 総 数 | L28: 男 | O28: 女 | R28: 男／女 | U28: たり人員 | W28: 密 度 | AB28: 頭 羽 | AD28: =データ一覧!$K$256 -> 128 | AF28: =データ一覧!$K$258 -> 5 | AH28: =データ一覧!$K$260 -> 0 | AJ28: =データ一覧!$K$262 -> 115 | AL28: =データ一覧!$K$264 -> 0 | AN28: 出版・印刷 | AO28: 化学 | AX28: =データ一覧!K340 -> 1 | BB28: =+データ一覧!K365 -> 310 | BI28: =データ一覧!K390 -> x | BQ28: 建設業 | BV28: 1019 | BZ28: =データ一覧!K514 -> 862 | CD28: =データ一覧!K539 -> 157 | CI28: 医療，福祉 | CN28: 1675 | CR28: =データ一覧!K527 -> 346 | CV28: =データ一覧!K552 -> 1329
F29: 世 帯 | I29: 人 | L29: 人 | O29: 人 | S29: ％ | U29: 人 | W29: 人/㎢ | AN29: 化学 | AO29: 石油・石炭 | AX29: =データ一覧!K341 -> 0 | BB29: =+データ一覧!K366 -> 0 | BI29: =データ一覧!K391 -> 0 | BQ29: 製造業 | BV29: 2793 | BZ29: =データ一覧!K515 -> 1529 | CD29: =データ一覧!K540 -> 1264 | CI29: 複合サービス事業 | CN29: 151 | CR29: =データ一覧!K528 -> 83 | CV29: =データ一覧!K553 -> 68
A30: =データ一覧!$A$22 -> 2.10.1 | F30: =データ一覧!K22 -> 7701 | I30: =+L30+O30 -> 29805 | L30: =データ一覧!K24 -> 14400 | O30: =データ一覧!K25 -> 15405 | S30: =+L30/O30*100 -> 93.47614411 | U30: =データ一覧!K27 -> 3.87 | W30: =データ一覧!K28 -> 117.5 | Z30: ５ 林 業 | AN30: 石油・石炭 | AO30: プラスチック | AX30: =データ一覧!K342 -> 1 | BB30: =+データ一覧!K367 -> 6 | BI30: =データ一覧!K392 -> x | BP30: 第３次産業 | BV30: 6654 | BZ30: =データ一覧!K516 -> 2966 | CD30: =データ一覧!K541 -> 3688 | CI30: サービス業 | CN30: 578 | CR30: =データ一覧!K529 -> 360 | CV30: =データ一覧!K554 -> 218
A31: =データ一覧!$A$29 -> 7.10.1 | F31: =データ一覧!K29 -> 7733 | I31: =+L31+O31 -> 29162 | L31: =データ一覧!K31 -> 14033 | O31: =データ一覧!K32 -> 15129 | S31: 92.75563487 | U31: =データ一覧!K34 -> 3.77 | W31: =データ一覧!K35 -> 115 | AN31: プラスチック | AO31: ゴム | AX31: =データ一覧!K343 -> 0 | BB31: =+データ一覧!K368 -> 0 | BI31: =データ一覧!K393 -> 0 | BQ31: 電気･ｶﾞｽ･水道業 | BV31: 48 | BZ31: =データ一覧!K517 -> 42 | CD31: =データ一覧!K542 -> 6 | CI31: 公務 | CN31: 395 | CR31: =データ一覧!K530 -> 264 | CV31: =データ一覧!K555 -> 131
A32: =データ一覧!$A$36 -> 12.10.1 | F32: =データ一覧!K36 -> 7942 | I32: =+L32+O32 -> 28143 | L32: =データ一覧!K38 -> 13391 | O32: =データ一覧!K39 -> 14752 | S32: 90.77413232 | U32: =データ一覧!K41 -> 3.54 | W32: =データ一覧!K42 -> 110.9 | Z32: 森 林 総 面 積 | AH32: =データ一覧!$A$265 -> 5.3.31 | AN32: ゴム | AO32: 皮革 | AX32: =データ一覧!K344 -> 0 | BB32: =+データ一覧!K369 -> 0 | BI32: =データ一覧!K394 -> 0 | BQ32: 情報通信業 | BV32: 126 | BZ32: =データ一覧!K518 -> 89 | CD32: =データ一覧!K543 -> 37 | CH32: 分類不能の産業 | CN32: 420 | CR32: =データ一覧!K531 -> 210 | CV32: =データ一覧!K556 -> 210
A33: =+データ一覧!$A$43 -> 17.10.1 | F33: =データ一覧!K43 -> 7990 | I33: =+L33+O33 -> 26961 | L33: =データ一覧!K45 -> 12777 | O33: =データ一覧!K46 -> 14184 | S33: 90.08037225 | U33: =データ一覧!K48 -> 3.37 | W33: =データ一覧!K49 -> 106.3 | Z33: 森 林 の 構 成 | AN33: 皮革 | AO33: 窯業・土石 | AX33: =データ一覧!K345 -> 3 | BB33: =+データ一覧!K370 -> 43 | BI33: =データ一覧!K395 -> 144179 | BQ33: 運輸業,郵便業 | BV33: =BZ33+CD33 -> 392 | BZ33: =データ一覧!K519 -> 321 | CD33: =データ一覧!K544 -> 71
A34: =+データ一覧!$A$50 -> 22.10.1 | F34: =+データ一覧!K50 -> 7773 | I34: =+L34+O34 -> 25466 | L34: =+データ一覧!K52 -> 12072 | O34: =+データ一覧!K53 -> 13394 | S34: 90.12990891 | U34: =+データ一覧!K55 -> 3.28 | W34: =+データ一覧!K56 -> 100.4 | AE34: ha | AL34: ha | AN34: 窯業・土石 | AO34: 鉄鋼 | AX34: =データ一覧!K346 -> 2 | BB34: =+データ一覧!K371 -> 82 | BI34: =データ一覧!K396 -> x | BP34: １６ 社 会 福 祉 | CF34: =データ一覧!$A$557 -> 6.4.1
A35: =データ一覧!$A$57 -> 27.10.1 | F35: =データ一覧!K57 -> 7703 | I35: =データ一覧!K58 -> 24125 | L35: =データ一覧!K59 -> 11478 | O35: =データ一覧!K60 -> 12647 | S35: 90.75670119 | U35: =データ一覧!K62 -> 3.131896664 | W35: =データ一覧!K63 -> 95 | Z35: 総 数 | AD35: =データ一覧!K265 -> 20184.69 | AG35: 天然林 針葉樹 | AK35: =データ一覧!K268 -> 220.34 | AN35: 鉄鋼 | AO35: 非鉄金属 | AX35: =データ一覧!K347 -> 1 | BB35: =+データ一覧!K372 -> 7 | BI35: =データ一覧!K397 -> x
A36: 令 2.10.1（国調） | F36: =データ一覧!K64 -> 7524 | I36: =データ一覧!K65 -> 22150 | L36: =データ一覧!K66 -> 10581 | O36: =データ一覧!K67 -> 11569 | S36: =+L36/O36*100 -> 91.45993604 | U36: =データ一覧!K69 -> 2.943912812 | W36: =データ一覧!K70 -> 87.24594297 | Z36: 人工林 針葉樹 | AD36: =データ一覧!K266 -> 7906.53 | AG36: 天然林 広葉樹 | AK36: =データ一覧!K269 -> 11069.77 | AN36: 非鉄金属 | AO36: 金属 | AX36: =データ一覧!K348 -> 2 | BB36: =+データ一覧!K373 -> 81 | BI36: =データ一覧!K398 -> x | BQ36: 区分 | BX36: 施設数 | CC36: 収容定員 | CI36: 区分 | CP36: 施設数 | CU36: 収容定員
A37: 年 | C37: 区 | E37: 0歳 | H37: 15歳 | K37: 25歳 | N37: 35歳 | Q37: 45歳 | T37: 55歳 | W37: 65歳 | Z37: 人工林 広葉樹 | AD37: =データ一覧!K267 -> 222.27 | AG37: 竹 林 | AK37: =データ一覧!K270 -> 9.4 | AN37: 金属 | AO37: はん用機械 | AX37: =データ一覧!K349 -> 1 | BB37: =+データ一覧!K374 -> 5 | BI37: =データ一覧!K399 -> x | BP37: 生活保護施設 | BX37: =データ一覧!K557 -> - | CB37: =データ一覧!K570 -> - | CF37: 人 | CH37: 指定障害者支援施設 | CP37: =データ一覧!K563 -> 4 | CT37: =データ一覧!K576 -> 215 | CX37: 人
A38: 齢 | B38: 令 | F38: ～ | I38: ～ | L38: ～ | O38: ～ | R38: ～ | U38: ～ | AN38: 一般機械 | AO38: 生産用機械 | AX38: =データ一覧!K350 -> 3 | BB38: =+データ一覧!K375 -> 25 | BI38: =データ一覧!K400 -> 36722 | BP38: 地域福祉施設 | BX38: =データ一覧!K558 -> - | CB38: =データ一覧!K571 -> - | CH38: 指定相談支援事業所 | CP38: =データ一覧!K564 -> - | CT38: =データ一覧!K577 -> -
A39: 階 | B39: =+LEFT(データ一覧!$A$83,1) -> 6 | C39: 分 | G39: 14歳 | J39: 24歳 | M39: 34歳 | P39: 44歳 | S39: 54歳 | V39: 64歳 | Y39: 以上 | Z39: 林 野 の 構 成 | AG39: 保 有 形 態 別 | AN39: 電気機械 | AO39: 業務用機械 | AX39: =データ一覧!K351 -> 0 | BB39: =+データ一覧!K376 -> 0 | BI39: =データ一覧!K401 -> 0 | BP39: 老人福祉施設 | BX39: =データ一覧!K559 -> 5 | CB39: =データ一覧!K572 -> 76 | CH39: 児童福祉施設 | CP39: =データ一覧!K565 -> 11 | CT39: =データ一覧!K578 -> 764
A40: 級 | B40: ・ | G40: 人 | J40: 人 | L40: 人 | O40: 人 | R40: 人 | U40: 人 | X40: 人 | AF40: ha | AL40: ha | AO40: 電子・デバイス | AX40: =データ一覧!K352 -> 2 | BB40: =+データ一覧!K377 -> 57 | BI40: =データ一覧!K402 -> x | BP40: 介護保険施設 | BX40: =データ一覧!K560 -> 40 | CB40: =データ一覧!K573 -> 827 | CH40: 母子福祉施設 | CP40: =データ一覧!K566 -> - | CT40: =データ一覧!K579 -> -
A41: 別 | B41: =+MID(データ一覧!$A$83,3,2) -> 10 | C41: 総 数 | E41: =+E42+E43 -> 2086 | H41: =+H42+H43 -> 1656 | K41: =+K42+K43 -> 1347 | N41: =+N42+N43 -> 2021 | Q41: =+Q42+Q43 -> 2622 | T41: =+T42+T43 -> 2592 | W41: =+W42+W43 -> 8205 | Z41: 無立木地 伐採跡地 | AD41: =データ一覧!K271 -> 27.17 | AG41: 国 有 | AK41: =データ一覧!K273 -> 2002.02 | AO41: 電気機械 | AX41: =データ一覧!K353 -> 2 | BB41: =+データ一覧!K378 -> 123 | BI41: =データ一覧!K403 -> x | BP41: 障害者自立支援法施行前からの身体障害者福祉施設 | BX41: =データ一覧!K561 -> - | CB41: =データ一覧!K574 -> - | CH41: 婦人保護施設 | CP41: =データ一覧!K567 -> - | CT41: =データ一覧!K580 -> -
A42: 人 | B42: ・ | C42: 男 | E42: =データ一覧!K83 -> 1062 | H42: =データ一覧!K84 -> 848 | K42: =データ一覧!K85 -> 692 | N42: =データ一覧!K86 -> 1025 | Q42: =データ一覧!K87 -> 1336 | T42: =データ一覧!K88 -> 1238 | W42: =データ一覧!K89 -> 3600 | Z42: 無立木地 未立木地 | AD42: =データ一覧!K272 -> 729.21 | AG42: 公 有 | AK42: =データ一覧!K274 -> 4132.22 | AN42: 輸送機械 | AO42: 情報通信機械 | AX42: =データ一覧!K354 -> 0 | BB42: =+データ一覧!K379 -> 0 | BI42: =データ一覧!K404 -> 0 | CH42: その他の社会福祉施設 | CP42: =データ一覧!K568+データ一覧!K569 -> 0 | CT42: 0
A43: 口 | B43: =+RIGHT(データ一覧!$A$83,1) -> 1 | C43: 女 | E43: =データ一覧!K91 -> 1024 | H43: =データ一覧!K92 -> 808 | K43: =データ一覧!K93 -> 655 | N43: =データ一覧!K94 -> 996 | Q43: =データ一覧!K95 -> 1286 | T43: =データ一覧!K96 -> 1354 | W43: =データ一覧!K97 -> 4605 | AG43: 私 有 | AK43: =データ一覧!K275 -> 14050.45 | AN43: 精密機械 | AO43: 輸送機械 | AX43: =データ一覧!K355 -> 4 | BB43: =+データ一覧!K380 -> 283 | BI43: =データ一覧!K405 -> 896930 | BP43: 障害福祉サービス事業所 | BX43: =データ一覧!K562 -> 20 | CB43: =データ一覧!K575 -> 239
Z44: 林 産 物 生 産 量 | AJ44: =データ一覧!$A$276 -> 5年中 | AN44: その他 | AO44: その他 | AX44: =データ一覧!K356 -> 1 | BB44: =+データ一覧!K381 -> 10 | BI44: =データ一覧!K406 -> x | BP44: １７ 教 育 | CF44: =データ一覧!$A$583 -> 6.5.1
A45: 人口動態 | H45: 自 然 動 態 | N45: 社 会 動 態 | T45: =データ一覧!$A78 -> 5.1.1～5.12.31 | Z45: 生椎茸 | AD45: =データ一覧!K276 -> 0 | AF45: ㎏ | AG45: 乾椎茸 | AK45: =データ一覧!K277 -> 0 | AM45: ㎏
C46: 区 分 | H46: 出 生 | K46: 死 亡 | N46: 転 入 | Q46: 転 出 | T46: 婚 姻 | W46: 離 婚 | Z46: えのきだけ | AD46: =データ一覧!K279 -> 0 | AF46: ㎏ | AG46: なめこ | AK46: =データ一覧!K278 -> 0 | AM46: ㎏ | AO46: 工 業 用 水 量 | AU46: （従業者30人以上の事業所） | BF46: =データ一覧!K407 -> 6705 | BK46: ㎥／日 | BZ46: 学校数（校） | CG46: 教員数（人） | CO46: 学生・生徒・児童数（人）
A47: =LEFT(データ一覧!$A74,6) -> 5.10.1 | H47: 人 | K47: 人 | N47: 人 | Q47: 人 | U47: 件 | X47: 件 | Z47: ひらたけ | AD47: =+データ一覧!K280 -> 0 | AF47: ㎏ | AG47: まいたけ | AK47: =+データ一覧!K281 -> 114912 | AM47: ㎏ | BR47: 区分 | BZ47: 本 校 | CC47: 分 校 | CF47: 本 務 | CJ47: 兼 務 | CN47: 総 数 | CR47: 男 | CV47: 女
A48: ～ | C48: 実 数 | H48: =データ一覧!K74 -> 87 | K48: =データ一覧!K75 -> 337 | N48: =データ一覧!K76 -> 375 | Q48: =データ一覧!K77 -> 526 | T48: =データ一覧!K78 -> 53 | W48: =データ一覧!K79 -> 19 | AN48: １１ 上 ・ 下 水 道 | BQ48: 小学校 | BZ48: =データ一覧!K584 -> 10 | CC48: =データ一覧!K585 -> 0 | CF48: =データ一覧!K586 -> 119 | CJ48: =データ一覧!K587 -> 24 | CN48: =データ一覧!K588 -> 955 | CR48: =データ一覧!K589 -> 496 | CV48: =データ一覧!K590 -> 459
A49: =RIGHT(データ一覧!$A76,6) -> 6.9.30 | C49: 比率(対1,000人) | H49: =+H48/I36*1000 -> 3.927765237 | K49: =+K48/I36*1000 -> 15.21444695 | N49: - | Q49: - | T49: =+T48/I36*1000 -> 2.392776524 | W49: =+W48/I36*1000 -> 0.8577878104 | Z49: ６ 漁 業 | BQ49: 中学校 | BZ49: =データ一覧!K592 -> 4 | CC49: =データ一覧!K593 -> 0 | CF49: =データ一覧!K594 -> 63 | CJ49: =データ一覧!K595 -> 11 | CN49: =データ一覧!K596 -> 528 | CR49: =データ一覧!K597 -> 275 | CV49: =データ一覧!K598 -> 253
AN50: 水 道 供 給 人 口 | AU50: 上 水 道 | AY50: 簡易水道 | BC50: 専用水道 | BG50: 飲料水供給施設 | BK50: 下水道処理人口 | BQ50: 高等学校 | BZ50: =データ一覧!K600 -> 1 | CC50: =データ一覧!K601 -> 0 | CF50: =データ一覧!K602 -> 35 | CJ50: =データ一覧!K603 -> 14 | CN50: =データ一覧!K604 -> 294 | CR50: =データ一覧!K605 -> 154 | CV50: =データ一覧!K606 -> 140
A51: ３ 事 業 所（民 営） | L51: 3.6.1 | Z51: 漁船隻数・トン数 | AD51: =データ一覧!$A$282 -> 5.12.31 | AH51: 動 力 船 | AN51: =データ一覧!$A$408 -> 6.3.31 | AT51: 人 | AV51: =データ一覧!K408 -> 20552 | AY51: =データ一覧!K409 -> 0 | BD51: =データ一覧!K410 -> 120 | BH51: =データ一覧!K411 -> 0 | BL51: =データ一覧!K412 -> 18422 | BQ51: 大学・短期大学 | BZ51: =データ一覧!K607 -> 0 | CC51: =データ一覧!K608 -> 0 | CF51: =データ一覧!K609 -> 0 | CJ51: =データ一覧!K610 -> 0 | CN51: =データ一覧!K611 -> 0 | CR51: =データ一覧!K612 -> 0 | CV51: =データ一覧!K613 -> 0
Z52: 無動力船隻数 | AD52: 船外機付漁船隻数 | AH52: 隻 数 | AK52: 総 ト ン 数 | BQ52: 高等専門学校 | BZ52: =データ一覧!K614 -> 0 | CC52: =データ一覧!K615 -> 0 | CF52: =データ一覧!K616 -> 0 | CJ52: =データ一覧!K617 -> 0 | CN52: =データ一覧!K618 -> 0 | CR52: =データ一覧!K619 -> 0 | CV52: =データ一覧!K620 -> 0
H53: 総 数 | N53: 民 営 | T53: 国 ･ 地方公共団体 | AC53: 隻 | AG53: 隻 | AJ53: 隻 | AM53: t | AN53: １２ 交 通 ・ 通 信 | BQ53: 特別支援学校 | BZ53: =データ一覧!K622 -> 1 | CC53: =データ一覧!K623 -> 0 | CF53: =+データ一覧!K624 -> 57 | CJ53: =+データ一覧!K625 -> 2 | CN53: =+データ一覧!K626 -> 55 | CR53: =+データ一覧!K627 -> 35 | CV53: =+データ一覧!K628 -> 20
A54: 区 分 | H54: 事業所数 | K54: 従業者数 | N54: 事業所数 | Q54: 従業者数 | T54: 事業所数 | W54: 従業者数 | Z54: =データ一覧!$K$282 -> 0 | AD54: =データ一覧!$K$283 -> 0 | AH54: =データ一覧!K284 -> 0 | AK54: =データ一覧!K285 -> 0 | BQ54: 幼稚園 | BZ54: =データ一覧!K630 -> 1 | CC54: =データ一覧!K631 -> 0 | CF54: =データ一覧!K632 -> 2 | CJ54: =データ一覧!K633 -> 1 | CN54: =データ一覧!K634 -> 10 | CR54: =データ一覧!K635 -> 8 | CV54: =データ一覧!K636 -> 2
K55: 人 | Q55: 人 | W55: 人 | Z55: 男女別就業者数 | AH55: =データ一覧!$A$286 -> 5.11.1 | AN55: 道 路 | AR55: 実 延 長 | AV55: 国 道 | AZ55: 県 道 | BD55: 市町道 | BH55: 鉄 道 営 業 キ ロ 数 | BQ55: 幼保連携認定こども園 | BZ55: =データ一覧!K638 -> 7 | CC55: =データ一覧!K639 -> 0 | CF55: =データ一覧!K640 -> 109 | CJ55: =データ一覧!K641 -> 8 | CN55: =データ一覧!K642 -> 512 | CR55: =データ一覧!K643 -> 257 | CV55: =データ一覧!K644 -> 255
A56: 総数 | H56: =データ一覧!K99 -> … | K56: =データ一覧!K156 -> … | N56: =データ一覧!K100 -> 1091 | Q56: =データ一覧!K157 -> 8633 | T56: =データ一覧!K101 -> … | W56: =データ一覧!K158 -> … | Z56: 総 数 | AF56: 男 | AJ56: 女 | AN56: =データ一覧!$A$413 -> 5.4.1 | AR56: =データ一覧!K413 -> 568.7 | AU56: ㎞ | AV56: =データ一覧!K414 -> 39.7 | AY56: ㎞ | AZ56: =データ一覧!K415 -> 82.7 | BC56: ㎞ | BD56: =データ一覧!K416 -> 446.3 | BG56: km | BH56: =データ一覧!$A$417 -> 6.4.1 | BL56: =データ一覧!K417 -> 6.6 | BO56: ㎞ | BQ56: 各種学校 | BZ56: =データ一覧!K646 -> 1 | CC56: =データ一覧!K647 -> 0 | CF56: =データ一覧!K648 -> 19 | CJ56: =データ一覧!K649 -> 0 | CN56: =データ一覧!K650 -> 94 | CR56: =データ一覧!K651 -> 60 | CV56: =データ一覧!K652 -> 34
A57: 農林漁業 | H57: =データ一覧!K102 -> … | K57: =データ一覧!K159 -> … | N57: =データ一覧!K103 -> 19 | Q57: =データ一覧!K160 -> 342 | T57: =データ一覧!K104 -> … | W57: =データ一覧!K161 -> … | AE57: 人 | AH57: 人 | AM57: 人 | AN57: 自動車 | AW57: 乗用車 | BQ57: 専修学校 | BZ57: =データ一覧!K654 -> 0 | CC57: =データ一覧!K655 -> 0 | CF57: =データ一覧!K656 -> 0 | CJ57: =データ一覧!K657 -> 0 | CN57: =データ一覧!K658 -> 0 | CR57: =データ一覧!K659 -> 0 | CV57: =データ一覧!K660 -> 0
A58: 鉱業 | H58: =データ一覧!K105 -> … | K58: =データ一覧!K162 -> … | N58: =データ一覧!K106 -> - | Q58: =データ一覧!K163 -> - | T58: =データ一覧!K107 -> … | W58: =データ一覧!K164 -> … | Z58: =データ一覧!K286 -> 0 | AF58: =データ一覧!$K$287 -> 0 | AJ58: =データ一覧!K288 -> 0 | AN58: 台 数 | AR58: 貨 物 | AV58: 普 通 | AZ58: 小 型 | BD58: 乗 合 | BG58: 特 種 | BJ58: 小型二輪 | BM58: 軽自動車 | BP58: １８ 衛 生
A59: 建設業 | H59: =データ一覧!K108 -> … | K59: =データ一覧!K165 -> … | N59: =データ一覧!K109 -> 150 | Q59: =データ一覧!K166 -> 752 | T59: =データ一覧!K110 -> … | W59: =データ一覧!K167 -> … | Z59: 海 面 漁 業 漁 獲 量 （属人） | AH59: =データ一覧!$A$289 -> 30年中 | AN59: =データ一覧!$A$418 -> 6.3.31 | AS59: =データ一覧!K418 -> 899 | AW59: =データ一覧!K420 -> 4052 | BA59: =データ一覧!K421 -> 4000 | BD59: =データ一覧!K419 -> 62 | BG59: =データ一覧!K422 -> 518 | BJ59: =データ一覧!K423 -> 247 | BM59: =データ一覧!K424 -> 9061
A60: 製造業 | H60: =データ一覧!K111 -> … | K60: =データ一覧!K168 -> … | N60: =データ一覧!K112 -> 146 | Q60: =データ一覧!K169 -> 2736 | T60: =データ一覧!K113 -> … | W60: =データ一覧!K170 -> … | AF60: ｔ | AM60: t | AR60: 郵 便 局 数 | BF60: =+MID(データ一覧!$A$428,3,2) -> 3. | BG60: 令 | BH60: 一般加入 | BL60: ＩＮＳネット | BT60: 医療関係施設 | BZ60: =データ一覧!$A$661 -> 5.10.1 | CG60: および医療関係者数 | CO60: =データ一覧!$A$666 -> 4.12.31
A61: 電気・ｶﾞ ｽ・熱供給・水道業 | H61: =データ一覧!K114 -> … | K61: =データ一覧!K171 -> … | N61: =データ一覧!K115 -> 1 | Q61: =データ一覧!K172 -> 9 | T61: =データ一覧!K116 -> … | W61: =データ一覧!K173 -> … | Z61: 総 数 | AD61: =データ一覧!K289 -> 0 | AG61: 藻 類 | AK61: =データ一覧!K292 -> 0 | AN61: 通 信 | AR61: 総 数 | AW61: 郵 便 局 | BB61: 簡 易 局 | BF61: ・ | BG61: =+LEFT(データ一覧!$A$428,1) -> 6 | BH61: 電話数 | BL61: 加入数 | BW61: 病 | BZ61: 院 | CH61: 一般診療所 | CT61: 歯科診療所
A62: 情報通信業 | H62: =データ一覧!K117 -> … | K62: =データ一覧!K174 -> … | N62: =データ一覧!K118 -> 6 | Q62: =データ一覧!K175 -> 43 | T62: =データ一覧!K119 -> … | W62: =データ一覧!K176 -> … | Z62: 魚 類 | AD62: =データ一覧!K290 -> 0 | AG62: そ の 他 | AK62: =データ一覧!K293 -> 0 | AN62: =データ一覧!$A$428 -> 6.3.31 | AR62: =データ一覧!K425 -> 10 | AW62: =データ一覧!K426 -> 9 | BB62: =データ一覧!K427 -> 1 | BF62: =+RIGHT(データ一覧!$A$428,2) -> 31 | BG62: ・ | BH62: =データ一覧!K428 -> 2253 | BL62: =データ一覧!K429 -> 170 | BQ62: 医療関係 | CC62: 一般病院 | CO62: 有 | CR62: 床
A63: 運輸業、郵便業 | H63: =データ一覧!K120 -> … | K63: =データ一覧!K177 -> … | N63: =データ一覧!K121 -> 16 | Q63: =データ一覧!K178 -> 156 | T63: =データ一覧!K122 -> … | W63: =データ一覧!K179 -> … | Z63: 貝 類 | AD63: =データ一覧!K291 -> 0 | BQ63: 施設数 | BX63: =データ一覧!K661 -> 2 | CD63: =データ一覧!K662 -> 1 | CJ63: =データ一覧!K663 -> 12 | CP63: =データ一覧!K664 -> 2 | CV63: =データ一覧!K665 -> 7
A64: 卸売業、小売業 | H64: =データ一覧!K123 -> … | K64: =データ一覧!K180 -> … | N64: =データ一覧!K124 -> 256 | Q64: =データ一覧!K181 -> 1309 | T64: =データ一覧!K125 -> … | W64: =データ一覧!K182 -> … | AN64: １３ 税 ・ 財 政 | BW64: 医師 | CB64: 歯科医師 | CG64: 薬剤師 | CL64: 保健師 | CQ64: 助産師 | CV64: 看護師
A65: 金融業、保険業 | H65: =データ一覧!K126 -> … | K65: =データ一覧!K183 -> … | N65: =データ一覧!K127 -> 15 | Q65: =データ一覧!K184 -> 102 | T65: =データ一覧!K128 -> … | W65: =データ一覧!K185 -> … | Z65: ７ 商 業 | AG65: =データ一覧!$A$294 -> 3.6.1(令和2年実績） | BQ65: 医療 | BZ65: 人 | CE65: 人 | CJ65: 人 | CO65: 人 | CT65: 人 | CY65: 人
A66: 不動産業、物品賃貸業 | H66: =データ一覧!K129 -> … | K66: =データ一覧!K186 -> … | N66: =データ一覧!K130 -> 21 | Q66: =データ一覧!K187 -> 51 | T66: =データ一覧!K131 -> … | W66: =データ一覧!K188 -> … | AR66: 歳入 | BA66: (千円） | BF66: 歳出 | BO66: (千円） | BQ66: 関係者 | BV66: =データ一覧!K666 -> 43 | CA66: =データ一覧!K667 -> 12 | CF66: =データ一覧!K668 -> 48 | CK66: =データ一覧!K669 -> 19 | CP66: =データ一覧!K670 -> 0 | CU66: =データ一覧!K671 -> 339
A67: 学術研究、専門・技術ｻｰﾋﾞｽ業 | H67: =データ一覧!K132 -> … | K67: =データ一覧!K189 -> … | N67: =データ一覧!K133 -> 30 | Q67: =データ一覧!K190 -> 95 | T67: =データ一覧!K134 -> … | W67: =データ一覧!K191 -> … | Z67: 産 業 分 類 | AD67: 事 業 所 数 | AG67: 従 業 者 数 | AJ67: 年 間 販 売 額 | AN67: 一人当たり歳入歳出予算決算額 | BY67: 死因別死亡数 | CO67: =データ一覧!$A$672 -> 5年中 | CX67: 単 位：人
A68: 宿泊業、飲食サービス業 | H68: =データ一覧!K135 -> … | K68: =データ一覧!K192 -> … | N68: =データ一覧!K136 -> 135 | Q68: =データ一覧!K193 -> 672 | T68: =データ一覧!K137 -> … | W68: =データ一覧!K194 -> … | AI68: 人 | AK68: 百万円 | AN68: 区分 | AR68: =データ一覧!$A$438 -> 6年度 | AW68: =データ一覧!$A$452 -> 5年度 | BB68: 区分 | BF68: =+AR68 -> 6年度 | BK68: =データ一覧!$A$452 -> 5年度 | BP68: 死 因 | CB68: 悪 性 | CE68: 高血圧 | CK68: 脳血管 | CT68: 不慮の事故
A69: 生活関連サービス業、娯楽業 | H69: =データ一覧!K138 -> … | K69: =データ一覧!K195 -> … | N69: =データ一覧!K139 -> 108 | Q69: =データ一覧!K196 -> 258 | T69: =データ一覧!K140 -> … | W69: =データ一覧!K197 -> … | Z69: 総 計 | AD69: =データ一覧!K294 -> 227 | AG69: =データ一覧!K303 -> 1126 | AJ69: =データ一覧!K312 -> 20107 | AR69: =データ一覧!K434 -> 722587.5339 | AW69: =データ一覧!K435 -> 744333.7612 | BF69: =データ一覧!K436 -> 722587.5339 | BK69: =データ一覧!K437 -> 691148.576 | BU69: 全 死 因 | BY69: 結 核 | CB69: 新生物 | CE69: 性疾患 | CH69: 心疾患 | CK69: 疾 患 | CN69: 肺 炎 | CQ69: 老 衰 | CW69: 交通事故
A70: 教育、学習支援業 | H70: =データ一覧!K141 -> … | K70: =データ一覧!K198 -> … | N70: =データ一覧!K142 -> 32 | Q70: =データ一覧!K199 -> 232 | T70: =データ一覧!K143 -> … | W70: =データ一覧!K200 -> … | Z70: 卸売業 | AD70: =データ一覧!K295 -> 23 | AG70: =データ一覧!K304 -> 73 | AJ70: =データ一覧!K313 -> 4241 | AN70: 項目別歳入歳出予算決算額
A71: 医療、福祉 | H71: =データ一覧!K144 -> … | K71: =データ一覧!K201 -> … | N71: =データ一覧!K145 -> 67 | Q71: =データ一覧!K202 -> 1545 | T71: =データ一覧!K146 -> … | W71: =データ一覧!K203 -> … | Z71: 小売業 | AD71: =データ一覧!K296 -> 204 | AG71: =データ一覧!K305 -> 1053 | AJ71: =データ一覧!K314 -> 15866 | AN71: 区分 | AR71: =データ一覧!$A$438 -> 6年度 | AW71: =データ一覧!$A$452 -> 5年度 | BB71: 区分 | BF71: =+AR71 -> 6年度 | BK71: =データ一覧!$A$452 -> 5年度 | BU71: =データ一覧!K672 -> 342 | BY71: － | BZ71: =データ一覧!K673 -> 1 | CB71: =データ一覧!K674 -> 77 | CF71: =データ一覧!K675 -> 2 | CH71: =データ一覧!K676 -> 46 | CK71: =データ一覧!K677 -> 47 | CN71: =データ一覧!K678 -> 18 | CQ71: =データ一覧!K679 -> 44 | CT71: =データ一覧!K680 -> 9 | CX71: =データ一覧!K681 -> -
A72: 複合サービス事業 | H72: =データ一覧!K147 -> … | K72: =データ一覧!K204 -> … | N72: =データ一覧!K148 -> 10 | Q72: =データ一覧!K205 -> 81 | T72: =データ一覧!K149 -> … | W72: =データ一覧!K206 -> … | Z72: 各種商品 | AD72: =データ一覧!K297 -> 1 | AG72: =データ一覧!K306 -> 3 | AJ72: =データ一覧!K315 -> x | AN72: 総額 | AR72: =SUM(AR73:AV85) -> 14908426 | AW72: =SUM(AW73:BA85) -> 15655572 | BB72: 総額 | BF72: =SUM(BF73:BJ85) -> 14908426 | BK72: =SUM(BK73:BO85) -> 14536928 | BP72: １９ 警 察 ・ 消 防 | CF72: =+データ一覧!$A682 -> 6.4.1
A73: サービス業 | H73: =データ一覧!K150 -> … | K73: =データ一覧!K207 -> … | N73: =データ一覧!K151 -> 79 | Q73: =データ一覧!K208 -> 250 | T73: =データ一覧!K152 -> … | W73: =データ一覧!K209 -> … | Z73: 織物・衣服・身の回り品 | AD73: =データ一覧!K298 -> 20 | AG73: =データ一覧!K307 -> 45 | AJ73: =データ一覧!K316 -> 453 | AN73: 地方税 | AR73: =データ一覧!K439 -> 2640505 | AW73: =データ一覧!K453 -> 2775739 | BB73: 議会費 | BF73: =データ一覧!K467 -> 145051 | BK73: =データ一覧!K481 -> 149819
A74: 公務 | H74: =データ一覧!K153 -> … | K74: =データ一覧!K210 -> … | N74: =データ一覧!K154 -> … | Q74: =データ一覧!K211 -> … | T74: =データ一覧!K155 -> … | W74: =データ一覧!K212 -> … | Z74: 飲食料品 | AD74: =データ一覧!K299 -> 70 | AG74: =データ一覧!K308 -> 445 | AJ74: =データ一覧!K317 -> 6507 | AN74: 地方譲与税 | AR74: =データ一覧!K440 -> 170300 | AW74: =データ一覧!K454 -> 158706 | BB74: 総務費 | BF74: =データ一覧!K468 -> 1782709 | BK74: =データ一覧!K482 -> 3073530 | BZ74: 交番・駐在所 | CI74: 刑法犯認知件数 | CR74: 交通人身事故発生件数
A75: ４ 農 業 | Z75: 機械器具 | AD75: =データ一覧!K300 -> 35 | AG75: =データ一覧!K309 -> 137 | AJ75: =データ一覧!K318 -> 1587 | AN75: 各種交付金 | AR75: =データ一覧!K441 -> 639832 | AW75: =データ一覧!K455 -> 652954 | BB75: 民生費 | BF75: =データ一覧!K469 -> 3946485 | BK75: =データ一覧!K483 -> 4345966 | BQ75: 警察署数 | BZ75: 検問所数 | CJ75: =データ一覧!$A$684 -> 5年中 | CS75: =データ一覧!$A$684 -> 5年中
Z76: その他 | AD76: =データ一覧!K301 -> 73 | AG76: =データ一覧!K310 -> 378 | AJ76: =データ一覧!K319 -> x | AN76: 地方特例交付金 | AR76: =データ一覧!K442 -> 108176 | AW76: =データ一覧!K456 -> 17709 | BB76: 衛生費 | BF76: =データ一覧!K470 -> 1637953 | BK76: =データ一覧!K484 -> 798690 | CN76: 件 | CW76: 件
C77: 農業経営体数 | J77: 農産物販売額規模別経営体数 | R77: 経営耕地面積規模別経営体数 | Z77: 無店舗 | AD77: =データ一覧!K302 -> 5 | AG77: =データ一覧!K311 -> 45 | AJ77: =データ一覧!K320 -> 1257 | AN77: 地方交付税 | AR77: =データ一覧!K443 -> 4193000 | AW77: =データ一覧!K457 -> 4660547 | BB77: 労働費 | BF77: =データ一覧!K471 -> 104839 | BK77: =データ一覧!K485 -> 104839 | BR77: =データ一覧!K682 -> 1 | CA77: =データ一覧!K683 -> 5 | CJ77: =データ一覧!K684 -> 29 | CS77: =データ一覧!K685 -> 16
A78: 農 | C78: 区 分 | G78: 経営体数 （経営体） | J78: 区 分 | O78: 経営体数 （経営体） | R78: 区 分 | W78: 経営体数 （経営体） | AN78: 分担金および負担金 | AR78: =データ一覧!K444 -> 7049 | AW78: =データ一覧!K458 -> 17172 | BB78: 農林水産業費 | BF78: =データ一覧!K472 -> 712496 | BK78: =データ一覧!K486 -> 668981 | BP78: 火災発生件数 | BZ78: 林野焼損 | CE78: 損 害 | CJ78: 消 防 自 | CN78: その他の
A79: 業 | B79: 令 | Z79: ８ 住 宅 | AN79: 使用料および手数料 | AR79: =データ一覧!K445 -> 138368 | AW79: =データ一覧!K459 -> 149889 | BB79: 商工費 | BF79: =データ一覧!K473 -> 602500 | BK79: =データ一覧!K487 -> 552714 | BP79: =+データ一覧!$A$686 -> 5年中 | BU79: 焼損棟数 | BZ79: 面 積 | CE79: 見 積 額 | CJ79: 動 車 数 | CN79: ﾎﾟﾝﾌﾟ数 | CR79: 消防吏員 | CV79: 消防団員
A80: 経 | B80: =+LEFT(データ一覧!$A$213) -> 2 | C80: 計 | G80: =データ一覧!K213 -> 580 | J80: 総 数 | O80: =データ一覧!K217 -> 580 | R80: 総 数 | W80: =データ一覧!K233 -> 1416 | AN80: 国庫支出金 | AR80: =データ一覧!K446 -> 2500211 | AW80: =データ一覧!K460 -> 2279445 | BB80: 土木費 | BF80: =データ一覧!K474 -> 1843240 | BK80: =データ一覧!K488 -> 1423556 | BP80: 件 | BV80: 棟 | CC80: ａ | CG80: 千円 | CT80: 人 | CX80: 人
A81: 営 | B81: ・ | C81: 個人経営体 | G81: =データ一覧!K214 -> 554 | J81: 販 売 な し | O81: =データ一覧!K218 -> 68 | R81: 0.5 ha 未満 | W81: =データ一覧!K234 -> 40 | Z81: =+データ一覧!$A$321 -> 4年 | AE81: =データ一覧!$A$324 -> 5年 | AF81: 中の増減 | AJ81: =+データ一覧!$A$324 -> 5年 | AN81: 県支出金 | AR81: =データ一覧!K447 -> 1253866 | AW81: =データ一覧!K461 -> 1525027 | BB81: 消防費 | BF81: =データ一覧!K475 -> 353246 | BK81: =データ一覧!K489 -> 358223 | BQ81: =データ一覧!K686 -> 6 | BV81: =データ一覧!K687 -> 3 | CA81: =データ一覧!K688 -> 0 | CE81: =データ一覧!K689 -> 13073 | CK81: =データ一覧!K690 -> 7 | CO81: =データ一覧!K691 -> 37 | CS81: =データ一覧!K692 -> 36 | CW81: =データ一覧!K693 -> 290
A82: 体 | B82: =+LEFT(データ一覧!$A$213,1) -> 2 | C82: 団体経営体 | G82: =データ一覧!K215 -> 26 | J82: 50万円未満 | O82: =データ一覧!K219 -> 225 | R82: 0.5 ha ～ 1.0 ha | W82: =データ一覧!K235 -> 150 | AD82: 建設した住宅 | AG82: 消失した住宅 | AN82: 財産収入 | AR82: =データ一覧!K448 -> 27817 | AW82: =データ一覧!K462 -> 22061 | BB82: 教育費 | BF82: =データ一覧!K476 -> 2537381 | BK82: =データ一覧!K490 -> 1153345 | BP82: ２０ そ の 他
A83: 数 | B83: ・ | D83: 法人経営 | G83: =データ一覧!K216 -> 18 | J83: 50～300万円 | O83: =データ一覧!K220 -> 219 | R83: 1.0 ha ～ 2.0 ha | W83: =データ一覧!K236 -> 225 | AN83: 繰入金 | AR83: =データ一覧!K449 -> 758123 | AW83: =データ一覧!K463 -> 1068204 | BB83: 災害復旧費 | BF83: =データ一覧!K477 -> 0 | BK83: =データ一覧!K491 -> 708570
A84: （ | B84: =+RIGHT(データ一覧!$A$213) -> 1 | J84: 300～500万円 | O84: =データ一覧!K221 -> 18 | R84: 2.0 ha ～ 3.0 ha | W84: =データ一覧!K237 -> 84 | AA84: =データ一覧!K321 -> 8265 | AC84: 戸 | AD84: =データ一覧!K322 -> 65 | AF84: 戸 | AG84: =データ一覧!K323 -> 110 | AI84: 戸 | AK84: =データ一覧!K324 -> 8220 | AM84: 戸 | AN84: 地方債 | AR84: =データ一覧!K450 -> 1723800 | AW84: =データ一覧!K464 -> 1107048 | BB84: 公債費 | BF84: =データ一覧!K478 -> 1192426 | BK84: =データ一覧!K492 -> 1198695 | BU84: 越前大仏、勝山温泉センター｢水芭蕉｣、平泉寺白山神社、弁天桜、県立恐竜博物館、
A85: 総 | J85: 500～1,000万円 | O85: =データ一覧!K222 -> 18 | R85: 3.0 ha ～ 5.0 ha | W85: =データ一覧!K238 -> 53 | AN85: その他 | AR85: =データ一覧!K451 -> 747379 | AW85: =データ一覧!K465 -> 1221071 | BB85: その他 | BF85: =データ一覧!K479 -> 50100 | BK85: =データ一覧!K493 -> 0 | BP85: 名所・旧跡 | BU85: 道の駅 恐竜渓谷かつやま、勝山城博物館、弁ヶ滝、岩屋観音、
A86: 数 | J86: 1,000万円以上 | O86: =データ一覧!K223 -> 32 | R86: 5.0 ha以上 | W86: =データ一覧!K239 -> 863 | BP86: 文化財等 | BU86: スキージャム勝山、はたや記念館 ゆめおーれ勝山、加越国境と取立山「水芭蕉群生地」、
A87: ） | C87: 15歳以上の常雇い数 | J87: 農業に60日以上従事した世帯員、役員・構成員 （経営主を含む）の平均年齢 | Z87: ９ 議 員 ・ 職 員 | AN87: １４ 文 化 | AV87: ( | AW87: ="令"&データ一覧!$A$498 -> 令6.3.31 | AZ87: ただし図書館・公民館・児童館・ 社会教育学級講座 | BL87: =データ一覧!$A$494 -> 6.4.1 | BU87: 史跡白山平泉寺旧境内、旧木下家住宅、藩校｢旧成器堂講堂」外３棟、
A88: と | BA88: 宗教法人数 | BL88: =データ一覧!$A$502 -> 5.12.31 | BU88: えちぜん鉄道勝山駅本屋・ホーム待合所、白山平泉寺歴史探遊館まほろば
A89: 就 | J89: 農業に60日以上従事 | R89: 農業に150日以上従事 | Z89: 市 町 議 会 | AC89: 有権者数 | AE89: =データ一覧!$A$328 -> 6.9.1 | AG89: 市 町 議 会 | AJ89: 職 員 数 | AS89: 図書館 | AY89: 公 民 館 | BJ89: 社会教育学級講座 | BP89: 特産物 | BU89: 繊維製品、勝ち山おろしそば、勝ち山ボッカケ、勝ち山おやき、勝山水菜、鯖の熟れ鮨し、若猪野メロン、のむきのエゴマ、西ヶ原にんにく、九頭竜勝山あゆ、勝山 やまのサーモン
A90: 業 | C90: 区分 | G90: 人 | J90: 区分 | O90: 歳 | R90: 区 分 | W90: 歳 | Z90: 議 員 定 数 | AC90: 男 | AE90: 女 | AG90: 選 挙 投 票 率 | AJ90: 総 数 | AL90: 一般行政職 | AN90: 公 共 | AR90: 館 数 | AU90: 図書数 | AX90: 本 館 | BA90: 分 館 | BD90: 公 園 | BG90: 児童館 | BJ90: 学級講座数 | BM90: 受講者数
A91: 状 | C91: 総数 | G91: =データ一覧!K230 -> 15 | J91: 総数 | O91: =データ一覧!K224 -> 69.3 | R91: 総数 | W91: =データ一覧!K227 -> 69.9 | AB91: 人 | AD91: 人 | AF91: 人 | AI91: ％ | AK91: 人 | AM91: 人 | AN91: 施 設 数 | AS91: =データ一覧!K494 -> 1 | AU91: =データ一覧!K495 -> 154680 | AY91: =データ一覧!K496 -> 10 | BA91: =データ一覧!K497 -> 0 | BD91: =データ一覧!K498 -> 33 | BG91: =データ一覧!K499 -> - | BJ91: =データ一覧!K500 -> 95 | BM91: =データ一覧!K501 -> 5181 | BP91: 年中行事 | BU91: 勝山年の市、勝山左義長まつり、弁天桜まつり、
A92: 況 | C92: 男 | G92: =データ一覧!K231 -> 7 | J92: 男 | O92: =データ一覧!K225 -> 68.3 | R92: 男 | W92: =データ一覧!K228 -> 69.4 | AA92: =データ一覧!K325 -> 14 | AC92: =データ一覧!K328 -> 8733 | AE92: =データ一覧!K329 -> 9538 | AG92: =データ一覧!K327 -> 61.9 | AJ92: =データ一覧!K330 -> 243 | AL92: =データ一覧!K331 -> 152 | AN92: 宗 教 | AR92: 仏教系 | AU92: ｷﾘｽﾄ教系 | AX92: 神道諸派 | BA92: 公会堂・市民会館 | BG92: テレビ | BJ92: 衛星放送契約数 | BU92: 顕如講、神明神社祭礼、走りやんこ、勝山恐竜クロカンマラソン
C93: 女 | G93: =データ一覧!K232 -> 8 | J93: 女 | O93: =データ一覧!K226 -> 71.8 | R93: 女 | W93: =データ一覧!K229 -> 71.2 | AG93: =データ一覧!K326 -> 5.8.6 | AN93: 法 人 数 | AR93: =データ一覧!K502 -> 47 | AU93: =データ一覧!K503 -> 2 | AX93: =データ一覧!K504 -> 83 | BA93: =データ一覧!K505 -> 2 | BG93: 等 | BJ93: =データ一覧!K506 -> 4968

Sheet 鯖江市
A1: =+データ一覧!L2 -> 0
A2: =+データ一覧!L5 -> 0 | AN2: 0
AN3: 0
AB4: 【市章とそのいわれ】 サの図案化にて飛鳥の上昇を形象し、 | AN4: 【位置および地勢】鯖江市は福井県のほぼ中央、福井平野の南に位置し、 | BS4: 所在地 | CA4: 〒916-8666
AB5: 市将来の向上発展を意味づけたもの。 | AO5: 北は福井市、南は越前市に接している。東西約19.2㎞南北約 8.3㎞に | CA5: 鯖江市西山町１３番１号
A6: =+データ一覧!L3 -> さばえし | AB6: 0 | AO6: わたる地域のうち、その多くが平坦地であり、東部及び南西の一部が山地と
A7: =データ一覧!L6 -> 鯖江市 | AB7: 0 | AO7: なっている。市の中央を低い丘陵が南北に細長く延び、これに沿って市街地が | BS7: 電話番号 | CA7: （０７７８）５１－２２００
AB8: 0 | AO8: 形成されている。この丘陵に沿って国道８号、東側を北陸自動車道が走り、 | BS8: FAX番号 | CA8: 〃 ５１－８１５０
AB9: 0 | AO9: また日野川が北方に向かって流れている。
AB10: 0 | AN10: 0 | BS10: 最寄駅および距離 | CA10: 福井鉄道福武線西山公園駅 下車５００ｍ
AN11: 0
AB13: 【市が掲げる標語】若者が住みたくなる・住み続けたくなるまち鯖江 | BS13: ホームページ | CA13: https://www.city.sabae.fukui.jp/
A15: １ 土 地 | Z15: =データ一覧!$A$240 -> 5年 | AA15: 産米収穫量 | AD15: 収 穫 量 | AG15: 作 付 面 積 | AJ15: 10a当たり収量 | BP15: １５ 労 働 | CE15: 2.10.1
AD16: =データ一覧!$L$240 -> 7070 | AF16: t | AG16: =データ一覧!$L$241 -> 1410 | AI16: ha | AJ16: =データ一覧!L242 -> 501 | AM16: kg | AN16: １０ 工 業 | BB16: =データ一覧!$A$332 -> 4.6.1（令和3年実績）
A17: 総 面 積 | K17: 固 定 資 産 概 要 調 書 に よ る 地 目 別 面 積 | AC17: 総 数 | AG17: うち 田 | AK17: うち 畑 | BW17: 産業別就業者数
C18: =データ一覧!$A$7 -> 6.10.1 | Q18: =データ一覧!$A$9 -> 6.1.1 | Z18: 耕 地 面 積 | AD18: ha | AG18: ha | AK18: ha | AO18: 産業分類 | AW18: 事業所数 | BB18: 従業者数 | BH18: 年間製造品出荷額等 | BQ18: 区 分 | BV18: 総 数 | CA18: 男 | CE18: 女 | CI18: 区 分 | CN18: 総 数 | CS18: 男 | CW18: 女
G19: ㎢ | K19: 総 数 | P19: う ち 田 | U19: う ち 畑 | Z19: =データ一覧!A243 -> 5.7.15 | AC19: =データ一覧!$L$243 -> 2020 | AF19: =データ一覧!$L$244 -> 1950 | AJ19: =データ一覧!$L$245 -> 71 | AZ19: 事業所 | BB19: 人 | BE19: 人 | BG19: 万円 | BN19: 万円 | BV19: 人 | CB19: 人 | CF19: 人 | CN19: 人 | CR19: 人 | CV19: 人
D20: =データ一覧!L7 -> 84.59 | O20: ha | T20: ha | Y20: ha | Z20: 農 業 生 産 物 | AD20: 作 付 面 積 | AG20: 収 穫 量 | AJ20: 10a当たり収量 | AO20: 総数 | AX20: =データ一覧!L332 -> 304 | BB20: =+データ一覧!L357 -> 8990 | BI20: =データ一覧!L382 -> 22484395 | BP20: 総 数 | BV20: =BZ20+CD20 -> 35021 | BZ20: =データ一覧!L507 -> 18633 | CD20: =データ一覧!L532 -> 16388
L21: =データ一覧!L9 -> 8459 | Q21: =データ一覧!L10 -> 1992.6 | V21: =データ一覧!L11 -> 120.2 | Z21: =データ一覧!$A$246 -> 5年産 | AD21: ha | AG21: t | AJ21: kg | AN21: 食料品 | AO21: 食料品 | AX21: =データ一覧!L333 -> 6 | BB21: =+データ一覧!L358 -> 116 | BI21: =データ一覧!L383 -> 79533 | CI21: 卸売業,小売業 | CN21: =CR21+CV21 -> 4948 | CR21: =データ一覧!L520 -> 2304 | CV21: =データ一覧!L545 -> 2644
A22: 町 ･ 丁 ･ 大 字 | K22: う ち 宅 地 | P22: う ち 山 林 | U22: う ち 原 野 | Z22: 水 稲 | AD22: =データ一覧!L246 -> 1410 | AG22: =データ一覧!L247 -> 7070 | AJ22: =データ一覧!L248 -> 501 | AN22: 飲料・飼料 | AO22: 飲料・飼料 | AX22: =データ一覧!L334 -> 2 | BB22: =+データ一覧!L359 -> 126 | BI22: =データ一覧!L384 -> x | BP22: 第１次産業 | BV22: =BZ22+CD22 -> 531 | BZ22: =データ一覧!L508 -> 384 | CD22: =データ一覧!L533 -> 147 | CI22: 金融業,保険業 | CN22: =CR22+CV22 -> 703 | CR22: =データ一覧!L521 -> 261 | CV22: =データ一覧!L546 -> 442
A23: 区 画 数 | H23: =データ一覧!L8 -> 153 | O23: ha | T23: ha | Y23: ha | Z23: 六 条 大 麦 | AD23: =データ一覧!L249 -> 279 | AG23: =データ一覧!L250 -> 743 | AJ23: =データ一覧!L251 -> 266 | AN23: 繊維 | AO23: 繊維 | AX23: =データ一覧!L335 -> 49 | BB23: =+データ一覧!L360 -> 1772 | BI23: =データ一覧!L385 -> 3862572 | BQ23: 農業 | BV23: =BZ23+CD23 -> 496 | BZ23: =データ一覧!L509 -> 358 | CD23: =データ一覧!L534 -> 138 | CI23: 不動産業 | CN23: 286 | CR23: =データ一覧!L522 -> 155 | CV23: =データ一覧!L547 -> 131
A24: =データ一覧!$A$8 -> 5.4.1 | L24: =データ一覧!L12 -> 1490.4 | Q24: =データ一覧!L13 -> 1168.2 | V24: =データ一覧!L14 -> 0 | Z24: 大 豆 | AD24: =データ一覧!L252 -> 116 | AG24: =データ一覧!L253 -> 133 | AJ24: =データ一覧!L254 -> 115 | AN24: 衣服 | AO24: 木材 | AX24: =データ一覧!L336 -> 6 | BB24: =+データ一覧!L361 -> 215 | BI24: =データ一覧!L386 -> 636600 | BQ24: 林業 | BV24: 30 | BZ24: =データ一覧!L510 -> 22 | CD24: =データ一覧!L535 -> 8 | CI24: 学術研究 | CN24: 769 | CR24: =データ一覧!L523 -> 461 | CV24: =データ一覧!L548 -> 308
A25: ２ 世 帯 数 と 人 口 | AB25: 区 分 | AD25: 乳 用 牛 | AF25: 肉 用 牛 | AH25: 豚 | AJ25: 採卵鶏 | AL25: ブロイラー | AN25: 木材 | AO25: 家具 | AX25: =データ一覧!L337 -> 2 | BB25: =+データ一覧!L362 -> 40 | BI25: =データ一覧!L387 -> x | BQ25: 漁業 | BV25: 5 | BZ25: =データ一覧!L511 -> 4 | CD25: =データ一覧!L536 -> 1 | CI25: 宿泊業,飲食ｻｰﾋﾞｽ | CN25: 1313 | CR25: =データ一覧!L524 -> 461 | CV25: =データ一覧!L549 -> 852
Z26: 畜 産 | AB26: 飼養農家 | AD26: =データ一覧!$L$255 -> 0 | AF26: =データ一覧!$L$257 -> 0 | AH26: =データ一覧!$L$259 -> 0 | AJ26: =データ一覧!$L$261 -> 1 | AL26: =データ一覧!$L$263 -> 0 | AN26: 家具 | AO26: パルプ・紙 | AX26: =データ一覧!L338 -> 4 | BB26: =+データ一覧!L363 -> 104 | BI26: =データ一覧!L388 -> 172308 | BP26: 第２次産業 | BV26: 13675 | BZ26: =データ一覧!L512 -> 9020 | CD26: =データ一覧!L537 -> 4655 | CI26: 生活関連ｻｰﾋﾞｽ業 | CN26: 997 | CR26: =データ一覧!L525 -> 356 | CV26: =データ一覧!L550 -> 641
I27: 人 口 | U27: １世帯当 | W27: 人 口 | Z27: =データ一覧!$A$255 -> 6.3.31 | AB27: （戸） | AN27: パルプ・紙 | AO27: 印刷 | AX27: =データ一覧!L339 -> 8 | BB27: =+データ一覧!L364 -> 171 | BI27: =データ一覧!L389 -> 409880 | BQ27: 鉱業，採石業 | BV27: 7 | BZ27: =データ一覧!L513 -> 6 | CD27: =データ一覧!L538 -> 1 | CI27: 教育,学習支援業 | CN27: 1577 | CR27: =データ一覧!L526 -> 582 | CV27: =データ一覧!L551 -> 995
A28: 区 分 | F28: 世帯数 | I28: 総 数 | L28: 男 | O28: 女 | R28: 男／女 | U28: たり人員 | W28: 密 度 | AB28: 頭 羽 | AD28: =データ一覧!$L$256 -> 0 | AF28: =データ一覧!$L$258 -> 0 | AH28: =データ一覧!$L$260 -> 0 | AJ28: =データ一覧!$L$262 -> 200 | AL28: =データ一覧!$L$264 -> 0 | AN28: 出版・印刷 | AO28: 化学 | AX28: =データ一覧!L340 -> 3 | BB28: =+データ一覧!L365 -> 129 | BI28: =データ一覧!L390 -> 1557119 | BQ28: 建設業 | BV28: 2356 | BZ28: =データ一覧!L514 -> 1956 | CD28: =データ一覧!L539 -> 400 | CI28: 医療，福祉 | CN28: 4533 | CR28: =データ一覧!L527 -> 847 | CV28: =データ一覧!L552 -> 3686
F29: 世 帯 | I29: 人 | L29: 人 | O29: 人 | S29: ％ | U29: 人 | W29: 人/㎢ | AN29: 化学 | AO29: 石油・石炭 | AX29: =データ一覧!L341 -> 0 | BB29: =+データ一覧!L366 -> 0 | BI29: =データ一覧!L391 -> 0 | BQ29: 製造業 | BV29: 11312 | BZ29: =データ一覧!L515 -> 7058 | CD29: =データ一覧!L540 -> 4254 | CI29: 複合サービス事業 | CN29: 360 | CR29: =データ一覧!L528 -> 196 | CV29: =データ一覧!L553 -> 164
A30: =データ一覧!$A$22 -> 2.10.1 | F30: =データ一覧!L22 -> 16053 | I30: =+L30+O30 -> 62283 | L30: =データ一覧!L24 -> 30164 | O30: =データ一覧!L25 -> 32119 | S30: =+L30/O30*100 -> 93.91326006 | U30: =データ一覧!L27 -> 3.88 | W30: =データ一覧!L28 -> 734.9 | Z30: ５ 林 業 | AN30: 石油・石炭 | AO30: プラスチック | AX30: =データ一覧!L342 -> 13 | BB30: =+データ一覧!L367 -> 382 | BI30: =データ一覧!L392 -> 2665498 | BP30: 第３次産業 | BV30: 19992 | BZ30: =データ一覧!L516 -> 8781 | CD30: =データ一覧!L541 -> 11211 | CI30: サービス業 | CN30: 1640 | CR30: =データ一覧!L529 -> 1059 | CV30: =データ一覧!L554 -> 581
A31: =データ一覧!$A$29 -> 7.10.1 | F31: =データ一覧!L29 -> 16919 | I31: =+L31+O31 -> 62890 | L31: =データ一覧!L31 -> 30376 | O31: =データ一覧!L32 -> 32514 | S31: 93.42437104 | U31: =データ一覧!L34 -> 3.72 | W31: =データ一覧!L35 -> 742.1 | AN31: プラスチック | AO31: ゴム | AX31: =データ一覧!L343 -> 1 | BB31: =+データ一覧!L368 -> 7 | BI31: =データ一覧!L393 -> x | BQ31: 電気･ｶﾞｽ･水道業 | BV31: 124 | BZ31: =データ一覧!L517 -> 94 | CD31: =データ一覧!L542 -> 30 | CI31: 公務 | CN31: 1035 | CR31: =データ一覧!L530 -> 685 | CV31: =データ一覧!L555 -> 350
A32: =データ一覧!$A$36 -> 12.10.1 | F32: =データ一覧!L36 -> 18598 | I32: =+L32+O32 -> 64898 | L32: =データ一覧!L38 -> 31448 | O32: =データ一覧!L39 -> 33450 | S32: 94.01494768 | U32: =データ一覧!L41 -> 3.49 | W32: =データ一覧!L42 -> 765.8 | Z32: 森 林 総 面 積 | AH32: =データ一覧!$A$265 -> 5.3.31 | AN32: ゴム | AO32: 皮革 | AX32: =データ一覧!L344 -> 0 | BB32: =+データ一覧!L369 -> 0 | BI32: =データ一覧!L394 -> 0 | BQ32: 情報通信業 | BV32: 486 | BZ32: =データ一覧!L518 -> 331 | CD32: =データ一覧!L543 -> 155 | CH32: 分類不能の産業 | CN32: 823 | CR32: =データ一覧!L531 -> 448 | CV32: =データ一覧!L556 -> 375
A33: =+データ一覧!$A$43 -> 17.10.1 | F33: =データ一覧!L43 -> 20177 | I33: =+L33+O33 -> 66831 | L33: =データ一覧!L45 -> 32263 | O33: =データ一覧!L46 -> 34568 | S33: 93.33198334 | U33: =データ一覧!L48 -> 3.31 | W33: =データ一覧!L49 -> 788.6 | Z33: 森 林 の 構 成 | AN33: 皮革 | AO33: 窯業・土石 | AX33: =データ一覧!L345 -> 4 | BB33: =+データ一覧!L370 -> 96 | BI33: =データ一覧!L395 -> 309512 | BQ33: 運輸業,郵便業 | BV33: =BZ33+CD33 -> 1221 | BZ33: =データ一覧!L519 -> 989 | CD33: =データ一覧!L544 -> 232
A34: =+データ一覧!$A$50 -> 22.10.1 | F34: =+データ一覧!L50 -> 21028 | I34: =+L34+O34 -> 67450 | L34: =+データ一覧!L52 -> 32507 | O34: =+データ一覧!L53 -> 34943 | S34: 93.02864665 | U34: =+データ一覧!L55 -> 3.21 | W34: =+データ一覧!L56 -> 795.9 | AE34: ha | AL34: ha | AN34: 窯業・土石 | AO34: 鉄鋼 | AX34: =データ一覧!L346 -> 1 | BB34: =+データ一覧!L371 -> 15 | BI34: =データ一覧!L396 -> x | BP34: １６ 社 会 福 祉 | CF34: =データ一覧!$A$557 -> 6.4.1
A35: =データ一覧!$A$57 -> 27.10.1 | F35: =データ一覧!L57 -> 22335 | I35: =データ一覧!L58 -> 68284 | L35: =データ一覧!L59 -> 33105 | O35: =データ一覧!L60 -> 35179 | S35: 94.10443731 | U35: =データ一覧!L62 -> 3.057264383 | W35: =データ一覧!L63 -> 807.2 | Z35: 総 数 | AD35: =データ一覧!L265 -> 3148.42 | AG35: 天然林 針葉樹 | AK35: =データ一覧!L268 -> 72.23 | AN35: 鉄鋼 | AO35: 非鉄金属 | AX35: =データ一覧!L347 -> 1 | BB35: =+データ一覧!L372 -> 10 | BI35: =データ一覧!L397 -> x
A36: 令 2.10.1（国調） | F36: =データ一覧!L64 -> 23915 | I36: =データ一覧!L65 -> 68302 | L36: =データ一覧!L66 -> 33323 | O36: =データ一覧!L67 -> 34979 | S36: =+L36/O36*100 -> 95.26573087 | U36: =データ一覧!L69 -> 2.856031779 | W36: =データ一覧!L70 -> 807.4476889 | Z36: 人工林 針葉樹 | AD36: =データ一覧!L266 -> 2093.15 | AG36: 天然林 広葉樹 | AK36: =データ一覧!L269 -> 899.78 | AN36: 非鉄金属 | AO36: 金属 | AX36: =データ一覧!L348 -> 20 | BB36: =+データ一覧!L373 -> 771 | BI36: =データ一覧!L398 -> 1460675 | BQ36: 区分 | BX36: 施設数 | CC36: 収容定員 | CI36: 区分 | CP36: 施設数 | CU36: 収容定員
A37: 年 | C37: 区 | E37: 0歳 | H37: 15歳 | K37: 25歳 | N37: 35歳 | Q37: 45歳 | T37: 55歳 | W37: 65歳 | Z37: 人工林 広葉樹 | AD37: =データ一覧!L267 -> 40.33 | AG37: 竹 林 | AK37: =データ一覧!L270 -> 18.62 | AN37: 金属 | AO37: はん用機械 | AX37: =データ一覧!L349 -> 5 | BB37: =+データ一覧!L374 -> 84 | BI37: =データ一覧!L399 -> 169883 | BP37: 生活保護施設 | BX37: =データ一覧!L557 -> - | CB37: =データ一覧!L570 -> - | CF37: 人 | CH37: 指定障害者支援施設 | CP37: =データ一覧!L563 -> 2 | CT37: =データ一覧!L576 -> 190 | CX37: 人
A38: 齢 | B38: 令 | F38: ～ | I38: ～ | L38: ～ | O38: ～ | R38: ～ | U38: ～ | AN38: 一般機械 | AO38: 生産用機械 | AX38: =データ一覧!L350 -> 24 | BB38: =+データ一覧!L375 -> 388 | BI38: =データ一覧!L400 -> 856440 | BP38: 地域福祉施設 | BX38: =データ一覧!L558 -> - | CB38: =データ一覧!L571 -> - | CH38: 指定相談支援事業所 | CP38: =データ一覧!L564 -> 3 | CT38: =データ一覧!L577 -> -
A39: 階 | B39: =+LEFT(データ一覧!$A$83,1) -> 6 | C39: 分 | G39: 14歳 | J39: 24歳 | M39: 34歳 | P39: 44歳 | S39: 54歳 | V39: 64歳 | Y39: 以上 | Z39: 林 野 の 構 成 | AG39: 保 有 形 態 別 | AN39: 電気機械 | AO39: 業務用機械 | AX39: =データ一覧!L351 -> 3 | BB39: =+データ一覧!L376 -> 149 | BI39: =データ一覧!L401 -> 237219 | BP39: 老人福祉施設 | BX39: =データ一覧!L559 -> 11 | CB39: =データ一覧!L572 -> 167 | CH39: 児童福祉施設 | CP39: =データ一覧!L565 -> 49 | CT39: =データ一覧!L578 -> 2950
A40: 級 | B40: ・ | G40: 人 | J40: 人 | L40: 人 | O40: 人 | R40: 人 | U40: 人 | X40: 人 | AF40: ha | AL40: ha | AO40: 電子・デバイス | AX40: =データ一覧!L352 -> 6 | BB40: =+データ一覧!L377 -> 1125 | BI40: =データ一覧!L402 -> 3304236 | BP40: 介護保険施設 | BX40: =データ一覧!L560 -> 93 | CB40: =データ一覧!L573 -> 1837 | CH40: 母子福祉施設 | CP40: =データ一覧!L566 -> - | CT40: =データ一覧!L579 -> -
A41: 別 | B41: =+MID(データ一覧!$A$83,3,2) -> 10 | C41: 総 数 | E41: =+E42+E43 -> 8849 | H41: =+H42+H43 -> 6754 | K41: =+K42+K43 -> 6141 | N41: =+N42+N43 -> 7896 | Q41: =+Q42+Q43 -> 10231 | T41: =+T42+T43 -> 8017 | W41: =+W42+W43 -> 18879 | Z41: 無立木地 伐採跡地 | AD41: =データ一覧!L271 -> 0 | AG41: 国 有 | AK41: =データ一覧!L273 -> 16.96 | AO41: 電気機械 | AX41: =データ一覧!L353 -> 2 | BB41: =+データ一覧!L378 -> 26 | BI41: =データ一覧!L403 -> x | BP41: 障害者自立支援法施行前からの身体障害者福祉施設 | BX41: =データ一覧!L561 -> - | CB41: =データ一覧!L574 -> - | CH41: 婦人保護施設 | CP41: =データ一覧!L567 -> - | CT41: =データ一覧!L580 -> -
A42: 人 | B42: ・ | C42: 男 | E42: =データ一覧!L83 -> 4530 | H42: =データ一覧!L84 -> 3514 | K42: =データ一覧!L85 -> 3183 | N42: =データ一覧!L86 -> 3945 | Q42: =データ一覧!L87 -> 5220 | T42: =データ一覧!L88 -> 3983 | W42: =データ一覧!L89 -> 8260 | Z42: 無立木地 未立木地 | AD42: =データ一覧!L272 -> 24.31 | AG42: 公 有 | AK42: =データ一覧!L274 -> 126.77 | AN42: 輸送機械 | AO42: 情報通信機械 | AX42: =データ一覧!L354 -> 0 | BB42: =+データ一覧!L379 -> 0 | BI42: =データ一覧!L404 -> 0 | CH42: その他の社会福祉施設 | CP42: =データ一覧!L568+データ一覧!L569 -> 0 | CT42: 0
A43: 口 | B43: =+RIGHT(データ一覧!$A$83,1) -> 1 | C43: 女 | E43: =データ一覧!L91 -> 4319 | H43: =データ一覧!L92 -> 3240 | K43: =データ一覧!L93 -> 2958 | N43: =データ一覧!L94 -> 3951 | Q43: =データ一覧!L95 -> 5011 | T43: =データ一覧!L96 -> 4034 | W43: =データ一覧!L97 -> 10619 | AG43: 私 有 | AK43: =データ一覧!L275 -> 3004.69 | AN43: 精密機械 | AO43: 輸送機械 | AX43: =データ一覧!L355 -> 2 | BB43: =+データ一覧!L380 -> 21 | BI43: =データ一覧!L405 -> x | BP43: 障害福祉サービス事業所 | BX43: =データ一覧!L562 -> 54 | CB43: =データ一覧!L575 -> 641
Z44: 林 産 物 生 産 量 | AJ44: =データ一覧!$A$276 -> 5年中 | AN44: その他 | AO44: その他 | AX44: =データ一覧!L356 -> 142 | BB44: =+データ一覧!L381 -> 3243 | BI44: =データ一覧!L406 -> 5541276 | BP44: １７ 教 育 | CF44: =データ一覧!$A$583 -> 6.5.1
A45: 人口動態 | H45: 自 然 動 態 | N45: 社 会 動 態 | T45: =データ一覧!$A78 -> 5.1.1～5.12.31 | Z45: 生椎茸 | AD45: =データ一覧!L276 -> 1515 | AF45: ㎏ | AG45: 乾椎茸 | AK45: =データ一覧!L277 -> 486 | AM45: ㎏
C46: 区 分 | H46: 出 生 | K46: 死 亡 | N46: 転 入 | Q46: 転 出 | T46: 婚 姻 | W46: 離 婚 | Z46: えのきだけ | AD46: =データ一覧!L279 -> 0 | AF46: ㎏ | AG46: なめこ | AK46: =データ一覧!L278 -> 0 | AM46: ㎏ | AO46: 工 業 用 水 量 | AU46: （従業者30人以上の事業所） | BF46: =データ一覧!L407 -> 37236 | BK46: ㎥／日 | BZ46: 学校数（校） | CG46: 教員数（人） | CO46: 学生・生徒・児童数（人）
A47: =LEFT(データ一覧!$A74,6) -> 5.10.1 | H47: 人 | K47: 人 | N47: 人 | Q47: 人 | U47: 件 | X47: 件 | Z47: ひらたけ | AD47: =+データ一覧!L280 -> 0 | AF47: ㎏ | AG47: まいたけ | AK47: =+データ一覧!L281 -> 0 | AM47: ㎏ | BR47: 区分 | BZ47: 本 校 | CC47: 分 校 | CF47: 本 務 | CJ47: 兼 務 | CN47: 総 数 | CR47: 男 | CV47: 女
A48: ～ | C48: 実 数 | H48: =データ一覧!L74 -> 494 | K48: =データ一覧!L75 -> 802 | N48: =データ一覧!L76 -> 2048 | Q48: =データ一覧!L77 -> 1880 | T48: =データ一覧!L78 -> 260 | W48: =データ一覧!L79 -> 91 | AN48: １１ 上 ・ 下 水 道 | BQ48: 小学校 | BZ48: =データ一覧!L584 -> 12 | CC48: =データ一覧!L585 -> 0 | CF48: =データ一覧!L586 -> 266 | CJ48: =データ一覧!L587 -> 34 | CN48: =データ一覧!L588 -> 3716 | CR48: =データ一覧!L589 -> 1924 | CV48: =データ一覧!L590 -> 1792
A49: =RIGHT(データ一覧!$A76,6) -> 6.9.30 | C49: 比率(対1,000人) | H49: =+H48/I36*1000 -> 7.232584697 | K49: =+K48/I36*1000 -> 11.74196949 | N49: - | Q49: - | T49: =+T48/I36*1000 -> 3.806623525 | W49: =+W48/I36*1000 -> 1.332318234 | Z49: ６ 漁 業 | BQ49: 中学校 | BZ49: =データ一覧!L592 -> 3 | CC49: =データ一覧!L593 -> 0 | CF49: =データ一覧!L594 -> 137 | CJ49: =データ一覧!L595 -> 11 | CN49: =データ一覧!L596 -> 2061 | CR49: =データ一覧!L597 -> 1045 | CV49: =データ一覧!L598 -> 1016
AN50: 水 道 供 給 人 口 | AU50: 上 水 道 | AY50: 簡易水道 | BC50: 専用水道 | BG50: 飲料水供給施設 | BK50: 下水道処理人口 | BQ50: 高等学校 | BZ50: =データ一覧!L600 -> 1 | CC50: =データ一覧!L601 -> 0 | CF50: =データ一覧!L602 -> 65 | CJ50: =データ一覧!L603 -> 19 | CN50: =データ一覧!L604 -> 815 | CR50: =データ一覧!L605 -> 442 | CV50: =データ一覧!L606 -> 373
A51: ３ 事 業 所（民 営） | L51: 3.6.1 | Z51: 漁船隻数・トン数 | AD51: =データ一覧!$A$282 -> 5.12.31 | AH51: 動 力 船 | AN51: =データ一覧!$A$408 -> 6.3.31 | AT51: 人 | AV51: =データ一覧!L408 -> 68221 | AY51: =データ一覧!L409 -> 0 | BD51: =データ一覧!L410 -> 0 | BH51: =データ一覧!L411 -> 0 | BL51: =データ一覧!L412 -> 50658 | BQ51: 大学・短期大学 | BZ51: =データ一覧!L607 -> 0 | CC51: =データ一覧!L608 -> 0 | CF51: =データ一覧!L609 -> 0 | CJ51: =データ一覧!L610 -> 0 | CN51: =データ一覧!L611 -> 0 | CR51: =データ一覧!L612 -> 0 | CV51: =データ一覧!L613 -> 0
Z52: 無動力船隻数 | AD52: 船外機付漁船隻数 | AH52: 隻 数 | AK52: 総 ト ン 数 | BQ52: 高等専門学校 | BZ52: =データ一覧!L614 -> 1 | CC52: =データ一覧!L615 -> 0 | CF52: =データ一覧!L616 -> 77 | CJ52: =データ一覧!L617 -> 42 | CN52: =データ一覧!L618 -> 1063 | CR52: =データ一覧!L619 -> 828 | CV52: =データ一覧!L620 -> 235
H53: 総 数 | N53: 民 営 | T53: 国 ･ 地方公共団体 | AC53: 隻 | AG53: 隻 | AJ53: 隻 | AM53: t | AN53: １２ 交 通 ・ 通 信 | BQ53: 特別支援学校 | BZ53: =データ一覧!L622 -> 0 | CC53: =データ一覧!L623 -> 0 | CF53: =データ一覧!L624 -> 0 | CJ53: =データ一覧!L625 -> 0 | CN53: =データ一覧!L626 -> 0 | CR53: =データ一覧!L627 -> 0 | CV53: =データ一覧!L628 -> 0
A54: 区 分 | H54: 事業所数 | K54: 従業者数 | N54: 事業所数 | Q54: 従業者数 | T54: 事業所数 | W54: 従業者数 | Z54: =データ一覧!$L$282 -> 0 | AD54: =データ一覧!$L$283 -> 0 | AH54: =データ一覧!L284 -> 0 | AK54: =データ一覧!L285 -> 0 | BQ54: 幼稚園 | BZ54: =データ一覧!L630 -> 4 | CC54: =データ一覧!L631 -> 0 | CF54: =データ一覧!L632 -> 13 | CJ54: =データ一覧!L633 -> 4 | CN54: =データ一覧!L634 -> 62 | CR54: =データ一覧!L635 -> 31 | CV54: =データ一覧!L636 -> 31
K55: 人 | Q55: 人 | W55: 人 | Z55: 男女別就業者数 | AH55: =データ一覧!$A$286 -> 5.11.1 | AN55: 道 路 | AR55: 実 延 長 | AV55: 国 道 | AZ55: 県 道 | BD55: 市町道 | BH55: 鉄 道 営 業 キ ロ 数 | BQ55: 幼保連携認定こども園 | BZ55: =データ一覧!L638 -> 5 | CC55: =データ一覧!L639 -> 0 | CF55: =データ一覧!L640 -> 118 | CJ55: =データ一覧!L641 -> 22 | CN55: =データ一覧!L642 -> 772 | CR55: =データ一覧!L643 -> 405 | CV55: =データ一覧!L644 -> 367
A56: 総数 | H56: =データ一覧!L99 -> … | K56: =データ一覧!L156 -> … | N56: =データ一覧!L100 -> 3399 | Q56: =データ一覧!L157 -> 30197 | T56: =データ一覧!L101 -> … | W56: =データ一覧!L158 -> … | Z56: 総 数 | AF56: 男 | AJ56: 女 | AN56: =データ一覧!$A$413 -> 5.4.1 | AR56: =データ一覧!L413 -> 702.8 | AU56: ㎞ | AV56: =データ一覧!L414 -> 11.1 | AY56: ㎞ | AZ56: =データ一覧!L415 -> 66.9 | BC56: ㎞ | BD56: =データ一覧!L416 -> 624.8 | BG56: km | BH56: =データ一覧!$A$417 -> 6.4.1 | BL56: =データ一覧!L417 -> 7.4 | BO56: ㎞ | BQ56: 各種学校 | BZ56: =データ一覧!L646 -> 0 | CC56: =データ一覧!L647 -> 0 | CF56: =データ一覧!L648 -> 0 | CJ56: =データ一覧!L649 -> 0 | CN56: =データ一覧!L650 -> 0 | CR56: =データ一覧!L651 -> 0 | CV56: =データ一覧!L652 -> 0
A57: 農林漁業 | H57: =データ一覧!L102 -> … | K57: =データ一覧!L159 -> … | N57: =データ一覧!L103 -> 22 | Q57: =データ一覧!L160 -> 221 | T57: =データ一覧!L104 -> … | W57: =データ一覧!L161 -> … | AE57: 人 | AH57: 人 | AM57: 人 | AN57: 自動車 | AW57: 乗用車 | BQ57: 専修学校 | BZ57: =データ一覧!L654 -> 0 | CC57: =データ一覧!L655 -> 0 | CF57: =データ一覧!L656 -> 0 | CJ57: =データ一覧!L657 -> 0 | CN57: =データ一覧!L658 -> 0 | CR57: =データ一覧!L659 -> 0 | CV57: =データ一覧!L660 -> 0
A58: 鉱業 | H58: =データ一覧!L105 -> … | K58: =データ一覧!L162 -> … | N58: =データ一覧!L106 -> - | Q58: =データ一覧!L163 -> - | T58: =データ一覧!L107 -> … | W58: =データ一覧!L164 -> … | Z58: =データ一覧!L286 -> 0 | AF58: =データ一覧!$L$287 -> 0 | AJ58: =データ一覧!L288 -> 0 | AN58: 台 数 | AR58: 貨 物 | AV58: 普 通 | AZ58: 小 型 | BD58: 乗 合 | BG58: 特 種 | BJ58: 小型二輪 | BM58: 軽自動車 | BP58: １８ 衛 生
A59: 建設業 | H59: =データ一覧!L108 -> … | K59: =データ一覧!L165 -> … | N59: =データ一覧!L109 -> 258 | Q59: =データ一覧!L166 -> 1575 | T59: =データ一覧!L110 -> … | W59: =データ一覧!L167 -> … | Z59: 海 面 漁 業 漁 獲 量 （属人） | AH59: =データ一覧!$A$289 -> 30年中 | AN59: =データ一覧!$A$418 -> 6.3.31 | AS59: =データ一覧!L418 -> 2782 | AW59: =データ一覧!L420 -> 13986 | BA59: =データ一覧!L421 -> 12185 | BD59: =データ一覧!L419 -> 99 | BG59: =データ一覧!L422 -> 827 | BJ59: =データ一覧!L423 -> 838 | BM59: =データ一覧!L424 -> 25384
A60: 製造業 | H60: =データ一覧!L111 -> … | K60: =データ一覧!L168 -> … | N60: =データ一覧!L112 -> 973 | Q60: =データ一覧!L169 -> 10921 | T60: =データ一覧!L113 -> … | W60: =データ一覧!L170 -> … | AF60: ｔ | AM60: t | AR60: 郵 便 局 数 | BF60: =+MID(データ一覧!$A$428,3,2) -> 3. | BG60: 令 | BH60: 一般加入 | BL60: ＩＮＳネット | BT60: 医療関係施設 | BZ60: =データ一覧!$A$661 -> 5.10.1 | CG60: および医療関係者数 | CO60: =データ一覧!$A$666 -> 4.12.31
A61: 電気・ｶﾞ ｽ・熱供給・水道業 | H61: =データ一覧!L114 -> … | K61: =データ一覧!L171 -> … | N61: =データ一覧!L115 -> 1 | Q61: =データ一覧!L172 -> 2 | T61: =データ一覧!L116 -> … | W61: =データ一覧!L173 -> … | Z61: 総 数 | AD61: =データ一覧!L289 -> 0 | AG61: 藻 類 | AK61: =データ一覧!L292 -> 0 | AN61: 通 信 | AR61: 総 数 | AW61: 郵 便 局 | BB61: 簡 易 局 | BF61: ・ | BG61: =+LEFT(データ一覧!$A$428,1) -> 6 | BH61: 電話数 | BL61: 加入数 | BW61: 病 | BZ61: 院 | CH61: 一般診療所 | CT61: 歯科診療所
A62: 情報通信業 | H62: =データ一覧!L117 -> … | K62: =データ一覧!L174 -> … | N62: =データ一覧!L118 -> 17 | Q62: =データ一覧!L175 -> 356 | T62: =データ一覧!L119 -> … | W62: =データ一覧!L176 -> … | Z62: 魚 類 | AD62: =データ一覧!L290 -> 0 | AG62: そ の 他 | AK62: =データ一覧!L293 -> 0 | AN62: =データ一覧!$A$428 -> 6.3.31 | AR62: =データ一覧!L425 -> 14 | AW62: =データ一覧!L426 -> 12 | BB62: =データ一覧!L427 -> 2 | BF62: =+RIGHT(データ一覧!$A$428,2) -> 31 | BG62: ・ | BH62: =データ一覧!L428 -> 4104 | BL62: =データ一覧!L429 -> 426 | BQ62: 医療関係 | CC62: 一般病院 | CO62: 有 | CR62: 床
A63: 運輸業、郵便業 | H63: =データ一覧!L120 -> … | K63: =データ一覧!L177 -> … | N63: =データ一覧!L121 -> 48 | Q63: =データ一覧!L178 -> 713 | T63: =データ一覧!L122 -> … | W63: =データ一覧!L179 -> … | Z63: 貝 類 | AD63: =データ一覧!L291 -> 0 | BQ63: 施設数 | BX63: =データ一覧!L661 -> 7 | CD63: =データ一覧!L662 -> 6 | CJ63: =データ一覧!L663 -> 41 | CP63: =データ一覧!L664 -> 2 | CV63: =データ一覧!L665 -> 25
A64: 卸売業、小売業 | H64: =データ一覧!L123 -> … | K64: =データ一覧!L180 -> … | N64: =データ一覧!L124 -> 737 | Q64: =データ一覧!L181 -> 5676 | T64: =データ一覧!L125 -> … | W64: =データ一覧!L182 -> … | AN64: １３ 税 ・ 財 政 | BW64: 医師 | CB64: 歯科医師 | CG64: 薬剤師 | CL64: 保健師 | CQ64: 助産師 | CV64: 看護師
A65: 金融業、保険業 | H65: =データ一覧!L126 -> … | K65: =データ一覧!L183 -> … | N65: =データ一覧!L127 -> 51 | Q65: =データ一覧!L184 -> 604 | T65: =データ一覧!L128 -> … | W65: =データ一覧!L185 -> … | Z65: ７ 商 業 | AG65: =データ一覧!$A$294 -> 3.6.1(令和2年実績） | BQ65: 医療 | BZ65: 人 | CE65: 人 | CJ65: 人 | CO65: 人 | CT65: 人 | CY65: 人
A66: 不動産業、物品賃貸業 | H66: =データ一覧!L129 -> … | K66: =データ一覧!L186 -> … | N66: =データ一覧!L130 -> 85 | Q66: =データ一覧!L187 -> 218 | T66: =データ一覧!L131 -> … | W66: =データ一覧!L188 -> … | AR66: 歳入 | BA66: (千円） | BF66: 歳出 | BO66: (千円） | BQ66: 関係者 | BV66: =データ一覧!L666 -> 124 | CA66: =データ一覧!L667 -> 38 | CF66: =データ一覧!L668 -> 107 | CK66: =データ一覧!L669 -> 34 | CP66: =データ一覧!L670 -> 13 | CU66: =データ一覧!L671 -> 862
A67: 学術研究、専門・技術ｻｰﾋﾞｽ業 | H67: =データ一覧!L132 -> … | K67: =データ一覧!L189 -> … | N67: =データ一覧!L133 -> 105 | Q67: =データ一覧!L190 -> 466 | T67: =データ一覧!L134 -> … | W67: =データ一覧!L191 -> … | Z67: 産 業 分 類 | AD67: 事 業 所 数 | AG67: 従 業 者 数 | AJ67: 年 間 販 売 額 | AN67: 一人当たり歳入歳出予算決算額 | BY67: 死因別死亡数 | CO67: =データ一覧!$A$672 -> 5年中 | CX67: 単 位：人
A68: 宿泊業、飲食サービス業 | H68: =データ一覧!L135 -> … | K68: =データ一覧!L192 -> … | N68: =データ一覧!L136 -> 300 | Q68: =データ一覧!L193 -> 2348 | T68: =データ一覧!L137 -> … | W68: =データ一覧!L194 -> … | AI68: 人 | AK68: 百万円 | AN68: 区分 | AR68: =データ一覧!$A$438 -> 6年度 | AW68: =データ一覧!$A$452 -> 5年度 | BB68: 区分 | BF68: =+AR68 -> 6年度 | BK68: =データ一覧!$A$452 -> 5年度 | BP68: 死 因 | CB68: 悪 性 | CE68: 高血圧 | CK68: 脳血管 | CT68: 不慮の事故
A69: 生活関連サービス業、娯楽業 | H69: =データ一覧!L138 -> … | K69: =データ一覧!L195 -> … | N69: =データ一覧!L139 -> 266 | Q69: =データ一覧!L196 -> 983 | T69: =データ一覧!L140 -> … | W69: =データ一覧!L197 -> … | Z69: 総 計 | AD69: =データ一覧!L294 -> 650 | AG69: =データ一覧!L303 -> 5058 | AJ69: =データ一覧!L312 -> 125738 | AR69: =データ一覧!L434 -> 441241.0668 | AW69: =データ一覧!L435 -> 458108.4587 | BF69: =データ一覧!L436 -> 441241.0668 | BK69: =データ一覧!L437 -> 435364.6675 | BU69: 全 死 因 | BY69: 結 核 | CB69: 新生物 | CE69: 性疾患 | CH69: 心疾患 | CK69: 疾 患 | CN69: 肺 炎 | CQ69: 老 衰 | CW69: 交通事故
A70: 教育、学習支援業 | H70: =データ一覧!L141 -> … | K70: =データ一覧!L198 -> … | N70: =データ一覧!L142 -> 83 | Q70: =データ一覧!L199 -> 430 | T70: =データ一覧!L143 -> … | W70: =データ一覧!L200 -> … | Z70: 卸売業 | AD70: =データ一覧!L295 -> 178 | AG70: =データ一覧!L304 -> 1494 | AJ70: =データ一覧!L313 -> 64358 | AN70: 項目別歳入歳出予算決算額
A71: 医療、福祉 | H71: =データ一覧!L144 -> … | K71: =データ一覧!L201 -> … | N71: =データ一覧!L145 -> 200 | Q71: =データ一覧!L202 -> 4206 | T71: =データ一覧!L146 -> … | W71: =データ一覧!L203 -> … | Z71: 小売業 | AD71: =データ一覧!L296 -> 472 | AG71: =データ一覧!L305 -> 3564 | AJ71: =データ一覧!L314 -> 61381 | AN71: 区分 | AR71: =データ一覧!$A$438 -> 6年度 | AW71: =データ一覧!$A$452 -> 5年度 | BB71: 区分 | BF71: =+AR71 -> 6年度 | BK71: =データ一覧!$A$452 -> 5年度 | BU71: =データ一覧!L672 -> 764 | BY71: － | BZ71: =データ一覧!L673 -> - | CB71: =データ一覧!L674 -> 181 | CF71: =データ一覧!L675 -> 2 | CH71: =データ一覧!L676 -> 129 | CK71: =データ一覧!L677 -> 63 | CN71: =データ一覧!L678 -> 38 | CQ71: =データ一覧!L679 -> 56 | CT71: =データ一覧!L680 -> 35 | CW71: =データ一覧!L681 -> 4
A72: 複合サービス事業 | H72: =データ一覧!L147 -> … | K72: =データ一覧!L204 -> … | N72: =データ一覧!L148 -> 23 | Q72: =データ一覧!L205 -> 308 | T72: =データ一覧!L149 -> … | W72: =データ一覧!L206 -> … | Z72: 各種商品 | AD72: =データ一覧!L297 -> 1 | AG72: =データ一覧!L306 -> 177 | AJ72: =データ一覧!L315 -> x | AN72: 総額 | AR72: =SUM(AR73:AV85) -> 29697730 | AW72: =SUM(AW73:BA85) -> 30897125 | BB72: 総額 | BF72: =SUM(BF73:BJ85) -> 29697730 | BK72: =SUM(BK73:BO85) -> 29363170 | BP72: １９ 警 察 ・ 消 防 | CF72: =+データ一覧!$A682 -> 6.4.1
A73: サービス業 | H73: =データ一覧!L150 -> … | K73: =データ一覧!L207 -> … | N73: =データ一覧!L151 -> 230 | Q73: =データ一覧!L208 -> 1170 | T73: =データ一覧!L152 -> … | W73: =データ一覧!L209 -> … | Z73: 織物・衣服・身の回り品 | AD73: =データ一覧!L298 -> 64 | AG73: =データ一覧!L307 -> 221 | AJ73: =データ一覧!L316 -> 2622 | AN73: 地方税 | AR73: =データ一覧!L439 -> 9747000 | AW73: =データ一覧!L453 -> 10269906 | BB73: 議会費 | BF73: =データ一覧!L467 -> 253140 | BK73: =データ一覧!L481 -> 229780
A74: 公務 | H74: =データ一覧!L153 -> … | K74: =データ一覧!L210 -> … | N74: =データ一覧!L154 -> … | Q74: =データ一覧!L211 -> … | T74: =データ一覧!L155 -> … | W74: =データ一覧!L212 -> … | Z74: 飲食料品 | AD74: =データ一覧!L299 -> 141 | AG74: =データ一覧!L308 -> 1491 | AJ74: =データ一覧!L317 -> 21131 | AN74: 地方譲与税 | AR74: =データ一覧!L440 -> 262000 | AW74: =データ一覧!L454 -> 258676 | BB74: 総務費 | BF74: =データ一覧!L468 -> 3592152 | BK74: =データ一覧!L482 -> 3477102 | BZ74: 交番・駐在所 | CI74: 刑法犯認知件数 | CR74: 交通人身事故発生件数
A75: ４ 農 業 | Z75: 機械器具 | AD75: =データ一覧!L300 -> 69 | AG75: =データ一覧!L309 -> 406 | AJ75: =データ一覧!L318 -> 9335 | AN75: 各種交付金 | AR75: =データ一覧!L441 -> 2144300 | AW75: =データ一覧!L455 -> 2056990 | BB75: 民生費 | BF75: =データ一覧!L469 -> 11838906 | BK75: =データ一覧!L483 -> 11844921 | BQ75: 警察署数 | BZ75: 検問所数 | CJ75: =データ一覧!$A$684 -> 5年中 | CS75: =データ一覧!$A$684 -> 5年中
Z76: その他 | AD76: =データ一覧!L301 -> 177 | AG76: =データ一覧!L310 -> 1032 | AJ76: =データ一覧!L319 -> x | AN76: 地方特例交付金 | AR76: =データ一覧!L442 -> 410000 | AW76: =データ一覧!L456 -> 101321 | BB76: 衛生費 | BF76: =データ一覧!L470 -> 2814715 | BK76: =データ一覧!L484 -> 2960778 | CN76: 件 | CW76: 件
C77: 農業経営体数 | J77: 農産物販売額規模別経営体数 | R77: 経営耕地面積規模別経営体数 | Z77: 無店舗 | AD77: =データ一覧!L302 -> 20 | AG77: =データ一覧!L311 -> 237 | AJ77: =データ一覧!L320 -> 6214 | AN77: 地方交付税 | AR77: =データ一覧!L443 -> 5320000 | AW77: =データ一覧!L457 -> 5467260 | BB77: 労働費 | BF77: =データ一覧!L471 -> 67035 | BK77: =データ一覧!L485 -> 59831 | BR77: =データ一覧!L682 -> 1 | CA77: =データ一覧!L683 -> 8 | CJ77: =データ一覧!L684 -> 207 | CS77: =データ一覧!L685 -> 78
A78: 農 | C78: 区 分 | G78: 経営体数 （経営体） | J78: 区 分 | O78: 経営体数 （経営体） | R78: 区 分 | W78: 経営体数 （経営体） | AN78: 分担金および負担金 | AR78: =データ一覧!L444 -> 128370 | AW78: =データ一覧!L458 -> 154264 | BB78: 農林水産業費 | BF78: =データ一覧!L472 -> 984224 | BK78: =データ一覧!L486 -> 772981 | BP78: 火災発生件数 | BZ78: 林野焼損 | CE78: 損 害 | CJ78: 消 防 自 | CN78: その他の
A79: 業 | B79: 令 | Z79: ８ 住 宅 | AN79: 使用料および手数料 | AR79: =データ一覧!L445 -> 264163 | AW79: =データ一覧!L459 -> 251885 | BB79: 商工費 | BF79: =データ一覧!L473 -> 810510 | BK79: =データ一覧!L487 -> 887786 | BP79: =+データ一覧!$A$686 -> 5年中 | BU79: 焼損棟数 | BZ79: 面 積 | CE79: 見 積 額 | CJ79: 動 車 数 | CN79: ﾎﾟﾝﾌﾟ数 | CR79: 消防吏員 | CV79: 消防団員
A80: 経 | B80: =+LEFT(データ一覧!$A$213) -> 2 | C80: 計 | G80: =データ一覧!L213 -> 445 | J80: 総 数 | O80: =データ一覧!L217 -> 445 | R80: 総 数 | W80: =データ一覧!L233 -> 1850 | AN80: 国庫支出金 | AR80: =データ一覧!L446 -> 4217721 | AW80: =データ一覧!L460 -> 4930571 | BB80: 土木費 | BF80: =データ一覧!L474 -> 2735213 | BK80: =データ一覧!L488 -> 2898597 | BP80: 件 | BV80: 棟 | CC80: ａ | CG80: 千円 | CT80: 人 | CX80: 人
A81: 営 | B81: ・ | C81: 個人経営体 | G81: =データ一覧!L214 -> 412 | J81: 販 売 な し | O81: =データ一覧!L218 -> 23 | R81: 0.5 ha 未満 | W81: =データ一覧!L234 -> 27 | Z81: =+データ一覧!$A$321 -> 4年 | AE81: =データ一覧!$A$324 -> 5年 | AF81: 中の増減 | AJ81: =+データ一覧!$A$324 -> 5年 | AN81: 県支出金 | AR81: =データ一覧!L447 -> 2772009 | AW81: =データ一覧!L461 -> 2593752 | BB81: 消防費 | BF81: =データ一覧!L475 -> 914588 | BK81: =データ一覧!L489 -> 888256 | BQ81: =データ一覧!L686 -> 7 | BV81: =データ一覧!L687 -> 9 | CA81: =データ一覧!L688 -> 0 | CE81: =データ一覧!L689 -> 12345 | CK81: =データ一覧!L690 -> 20 | CO81: =データ一覧!L691 -> 2 | CS81: =データ一覧!L692 -> 84 | CW81: =データ一覧!L693 -> 221
A82: 体 | B82: =+LEFT(データ一覧!$A$213,1) -> 2 | C82: 団体経営体 | G82: =データ一覧!L215 -> 33 | J82: 50万円未満 | O82: =データ一覧!L219 -> 125 | R82: 0.5 ha ～ 1.0 ha | W82: =データ一覧!L235 -> 84 | AD82: 建設した住宅 | AG82: 消失した住宅 | AN82: 財産収入 | AR82: =データ一覧!L448 -> 53945 | AW82: =データ一覧!L462 -> 53637 | BB82: 教育費 | BF82: =データ一覧!L476 -> 3028092 | BK82: =データ一覧!L490 -> 2894191 | BP82: ２０ そ の 他
A83: 数 | B83: ・ | D83: 法人経営 | G83: =データ一覧!L216 -> 17 | J83: 50～300万円 | O83: =データ一覧!L220 -> 224 | R83: 1.0 ha ～ 2.0 ha | W83: =データ一覧!L236 -> 182 | AN83: 繰入金 | AR83: =データ一覧!L449 -> 632460 | AW83: =データ一覧!L463 -> 24587 | BB83: 災害復旧費 | BF83: =データ一覧!L477 -> 0 | BK83: =データ一覧!L491 -> 0
A84: （ | B84: =+RIGHT(データ一覧!$A$213) -> 1 | J84: 300～500万円 | O84: =データ一覧!L221 -> 19 | R84: 2.0 ha ～ 3.0 ha | W84: =データ一覧!L237 -> 85 | AA84: =データ一覧!L321 -> 23892 | AC84: 戸 | AD84: =データ一覧!L322 -> 660 | AF84: 戸 | AG84: =データ一覧!L323 -> 164 | AI84: 戸 | AK84: =データ一覧!L324 -> 24388 | AM84: 戸 | AN84: 地方債 | AR84: =データ一覧!L450 -> 1572800 | AW84: =データ一覧!L464 -> 1047900 | BB84: 公債費 | BF84: =データ一覧!L478 -> 2639155 | BK84: =データ一覧!L492 -> 2448947 | BU84: 西山公園、本山誠照寺、本山證誠寺、王山古墳群、兜山古墳、木地屋資料、旧瓜生家住宅、
A85: 総 | J85: 500～1,000万円 | O85: =データ一覧!L222 -> 20 | R85: 3.0 ha ～ 5.0 ha | W85: =データ一覧!L238 -> 53 | AN85: その他 | AR85: =データ一覧!L451 -> 2172962 | AW85: =データ一覧!L465 -> 3686376 | BB85: その他 | BF85: =データ一覧!L479 -> 20000 | BK85: =データ一覧!L493 -> 0 | BP85: 名所・旧跡 | BU85: 春日神社本殿、鳥ヶ森社叢、三六の桜、加多志波神社の追儺面、木造聖観音菩薩立像、
A86: 数 | J86: 1,000万円以上 | O86: =データ一覧!L223 -> 34 | R86: 5.0 ha以上 | W86: =データ一覧!L239 -> 1419 | BP86: 文化財等 | BU86: 日吉神社の相生の大杉、鯖江藩家老植田家長屋門、舟津神社本殿、神明社中雀門、
A87: ） | C87: 15歳以上の常雇い数 | J87: 農業に60日以上従事した世帯員、役員・構成員 （経営主を含む）の平均年齢 | Z87: ９ 議 員 ・ 職 員 | AN87: １４ 文 化 | AV87: ( | AW87: ="令"&データ一覧!$A$498 -> 令6.3.31 | AZ87: ただし図書館・公民館・児童館・ 社会教育学級講座 | BL87: =データ一覧!$A$494 -> 6.4.1 | BU87: 上河内の薄墨桜、薬師堂古樹林、三峯城跡、萬慶寺本堂天井絵
A88: と | BA88: 宗教法人数 | BL88: =データ一覧!$A$502 -> 5.12.31 | BP88: 特産物 | BU88: 眼鏡枠、織物、漆器、吉川ナス、ブロッコリー、マルセイユメロン、さばえ菜花、
A89: 就 | J89: 農業に60日以上従事 | R89: 農業に150日以上従事 | Z89: 市 町 議 会 | AC89: 有権者数 | AE89: =データ一覧!$A$328 -> 6.9.1 | AG89: 市 町 議 会 | AJ89: 職 員 数 | AS89: 図書館 | AY89: 公 民 館 | BJ89: 社会教育学級講座 | BU89: ミディトマト、山うに、さばえ菜花米、川島ごぼう
A90: 業 | C90: 区分 | G90: 人 | J90: 区分 | O90: 歳 | R90: 区 分 | W90: 歳 | Z90: 議 員 定 数 | AC90: 男 | AE90: 女 | AG90: 選 挙 投 票 率 | AJ90: 総 数 | AL90: 一般行政職 | AN90: 公 共 | AR90: 館 数 | AU90: 図書数 | AX90: 本 館 | BA90: 分 館 | BD90: 公 園 | BG90: 児童館 | BJ90: 学級講座数 | BM90: 受講者数 | BP90: 年中行事 | BU90: すりばちやいと(2月20日・3月2日)、誠市(3月～12月第2日曜)、 かたかみ春たんぼ(4月29日)､越前漆器まつり(5月3･4日)､ さばえつつじまつり(5月上旬)、つつじマラソン、 やっしきまつり(7月下旬)、じゃぼんこう(11月17日)
A91: 状 | C91: 総数 | G91: =データ一覧!L230 -> 17 | J91: 総数 | O91: =データ一覧!L224 -> 67.3 | R91: 総数 | W91: =データ一覧!L227 -> 65.3 | AB91: 人 | AD91: 人 | AF91: 人 | AI91: ％ | AK91: 人 | AM91: 人 | AN91: 施 設 数 | AS91: =データ一覧!L494 -> 1 | AU91: =データ一覧!L495 -> 378222 | AY91: =データ一覧!L496 -> 10 | BA91: =データ一覧!L497 -> 0 | BD91: =データ一覧!L498 -> 193 | BG91: =データ一覧!L499 -> 15 | BJ91: =データ一覧!L500 -> 416 | BM91: =データ一覧!L501 -> 56362
A92: 況 | C92: 男 | G92: =データ一覧!L231 -> 13 | J92: 男 | O92: =データ一覧!L225 -> 66.9 | R92: 男 | W92: =データ一覧!L228 -> 65 | AA92: =データ一覧!L325 -> 20 | AC92: =データ一覧!L328 -> 27258 | AE92: =データ一覧!L329 -> 28883 | AG92: =データ一覧!L327 -> 50.85 | AJ92: =データ一覧!L330 -> 405 | AL92: =データ一覧!L331 -> 278 | AN92: 宗 教 | AR92: 仏教系 | AU92: ｷﾘｽﾄ教系 | AX92: 神道諸派 | BA92: 公会堂・市民会館 | BG92: テレビ | BJ92: 衛星放送契約数
C93: 女 | G93: =データ一覧!L232 -> 4 | J93: 女 | O93: =データ一覧!L226 -> 68.6 | R93: 女 | W93: =データ一覧!L229 -> 66 | AG93: =データ一覧!L326 -> 5.7.2 | AN93: 法 人 数 | AR93: =データ一覧!L502 -> 111 | AU93: =データ一覧!L503 -> 3 | AX93: =データ一覧!L504 -> 63 | BA93: =データ一覧!L505 -> 5 | BG93: 等 | BJ93: =データ一覧!L506 -> 15453

Sheet あわら市
A1: =+データ一覧!M2 -> 0
A2: =+データ一覧!M5 -> 0
AN3: 0
AB4: 【市章とそのいわれ】あわら市の頭文字である、アルファベット | AN4: 【位置および地勢】あわら市は、福井県の最北端に位置し、西および南は | BS4: 所在地 | CA4: 〒919-0692
AB5: 小文字の「a」をモチーフにデザイン化した。 | AO5: 坂井市、北東は石川県加賀市に隣接し、北西は日本海に面している。 | CA5: あわら市市姫三丁目１番１号
A6: =+データ一覧!M3 -> あわらし | AB6: 緑の山並みをバックに、自然に囲まれ、黄色く | AO6: 面積は、116.98ｋ㎡で、地形は北部の丘陵地、南西部の平坦地、東部の
A7: =データ一覧!M6 -> あわら市 | AB7: 輝くあわら市を表現している。 | AO7: 山岳地帯と大きく３つに分かれており、南北に北潟湖が横たわり、東西には | BS7: 電話番号 | CA7: （０７７６）７３－１２２１
AO8: 竹田川が流れている。美しい日本海と静かな湖や川、優れた泉質の温泉、 | BS8: FAX番号 | CA8: 〃 ７３－１３５０
AO9: 太陽をいっぱいあびた農作物など、自然の恵みにあふれたところである。
AB10: 0 | AO10: 気候は、北陸地方の中でも比較的温暖で、気象環境は過ごしやすいものと | BS10: 最寄駅および距離 | CA10: ＪＲ北陸新幹線芦原温泉駅 下車８００ｍ
AB11: 0 | AO11: なっている。
AB13: 【市が掲げる標語】暮らしやすくて 幸せを実感できるまち | BS13: ホームページ | CA13: https://www.city.awara.lg.jp/
A15: １ 土 地 | Z15: =データ一覧!$A$240 -> 5年 | AA15: 産米収穫量 | AD15: 収 穫 量 | AG15: 作 付 面 積 | AJ15: 10a当たり収量 | BP15: １５ 労 働 | CE15: 2.10.1
AD16: =データ一覧!$M$240 -> 8640 | AF16: t | AG16: =データ一覧!$M$241 -> 1670 | AI16: ha | AJ16: =データ一覧!M242 -> 516 | AM16: kg | AN16: １０ 工 業 | BB16: =データ一覧!$A$332 -> 4.6.1（令和3年実績）
A17: 総 面 積 | K17: 固 定 資 産 概 要 調 書 に よ る 地 目 別 面 積 | AC17: 総 数 | AG17: うち 田 | AK17: うち 畑 | BW17: 産業別就業者数
C18: =データ一覧!$A$7 -> 6.10.1 | Q18: =データ一覧!$A$9 -> 6.1.1 | Z18: 耕 地 面 積 | AD18: ha | AG18: ha | AK18: ha | AO18: 産業分類 | AW18: 事業所数 | BB18: 従業者数 | BH18: 年間製造品出荷額等 | BQ18: 区 分 | BV18: 総 数 | CA18: 男 | CE18: 女 | CI18: 区 分 | CN18: 総 数 | CS18: 男 | CW18: 女
G19: ㎢ | K19: 総 数 | P19: う ち 田 | U19: う ち 畑 | Z19: =データ一覧!A243 -> 5.7.15 | AC19: =データ一覧!$M$243 -> 3380 | AF19: =データ一覧!$M$244 -> 2580 | AJ19: =データ一覧!$M$245 -> 797 | AZ19: 事業所 | BB19: 人 | BE19: 人 | BG19: 万円 | BN19: 万円 | BV19: 人 | CB19: 人 | CF19: 人 | CN19: 人 | CR19: 人 | CV19: 人
D20: =データ一覧!M7 -> 116.98 | O20: ha | T20: ha | Y20: ha | Z20: 農 業 生 産 物 | AD20: 作 付 面 積 | AG20: 収 穫 量 | AJ20: 10a当たり収量 | AO20: 総数 | AX20: =データ一覧!M332 -> 83 | BB20: =+データ一覧!M357 -> 3995 | BI20: =データ一覧!M382 -> 15097947 | BP20: 総 数 | BV20: =BZ20+CD20 -> 14287 | BZ20: =データ一覧!M507 -> 7536 | CD20: =データ一覧!M532 -> 6751
L21: =データ一覧!M9 -> 8984.2 | Q21: =データ一覧!M10 -> 2669.7 | V21: =データ一覧!M11 -> 891.3 | Z21: =データ一覧!$A$246 -> 5年産 | AD21: ha | AG21: t | AJ21: kg | AN21: 食料品 | AO21: 食料品 | AX21: =データ一覧!M333 -> 5 | BB21: =+データ一覧!M358 -> 63 | BI21: =データ一覧!M383 -> 58829 | CI21: 卸売業,小売業 | CN21: =CR21+CV21 -> 1767 | CR21: =データ一覧!M520 -> 771 | CV21: =データ一覧!M545 -> 996
A22: 町 ･ 丁 ･ 大 字 | K22: う ち 宅 地 | P22: う ち 山 林 | U22: う ち 原 野 | Z22: 水 稲 | AD22: =データ一覧!M246 -> 1670 | AG22: =データ一覧!M247 -> 8640 | AJ22: =データ一覧!M248 -> 516 | AN22: 飲料・飼料 | AO22: 飲料・飼料 | AX22: =データ一覧!M334 -> 0 | BB22: =+データ一覧!M359 -> 0 | BI22: =データ一覧!M384 -> 0 | BP22: 第１次産業 | BV22: =BZ22+CD22 -> 847 | BZ22: =データ一覧!M508 -> 571 | CD22: =データ一覧!M533 -> 276 | CI22: 金融業,保険業 | CN22: =CR22+CV22 -> 279 | CR22: =データ一覧!M521 -> 121 | CV22: =データ一覧!M546 -> 158
A23: 区 画 数 | H23: =データ一覧!M8 -> 120 | O23: ha | T23: ha | Y23: ha | Z23: 六 条 大 麦 | AD23: =データ一覧!M249 -> 615 | AG23: =データ一覧!M250 -> 2160 | AJ23: =データ一覧!M251 -> 351 | AN23: 繊維 | AO23: 繊維 | AX23: =データ一覧!M335 -> 21 | BB23: =+データ一覧!M360 -> 461 | BI23: =データ一覧!M385 -> 570469 | BQ23: 農業 | BV23: =BZ23+CD23 -> 814 | BZ23: =データ一覧!M509 -> 541 | CD23: =データ一覧!M534 -> 273 | CI23: 不動産業 | CN23: 92 | CR23: =データ一覧!M522 -> 63 | CV23: =データ一覧!M547 -> 29
A24: =データ一覧!$A$8 -> 5.4.1 | L24: =データ一覧!M12 -> 878 | Q24: =データ一覧!M13 -> 2162.8 | V24: =データ一覧!M14 -> 94.1 | Z24: 大 豆 | AD24: =データ一覧!M252 -> 353 | AG24: =データ一覧!M253 -> 420 | AJ24: =データ一覧!M254 -> 119 | AN24: 衣服 | AO24: 木材 | AX24: =データ一覧!M336 -> 0 | BB24: =+データ一覧!M361 -> 0 | BI24: =データ一覧!M386 -> 0 | BQ24: 林業 | BV24: 28 | BZ24: =データ一覧!M510 -> 25 | CD24: =データ一覧!M535 -> 3 | CI24: 学術研究 | CN24: 306 | CR24: =データ一覧!M523 -> 192 | CV24: =データ一覧!M548 -> 114
A25: ２ 世 帯 数 と 人 口 | AB25: 区 分 | AD25: 乳 用 牛 | AF25: 肉 用 牛 | AH25: 豚 | AJ25: 採卵鶏 | AL25: ブロイラー | AN25: 木材 | AO25: 家具 | AX25: =データ一覧!M337 -> 2 | BB25: =+データ一覧!M362 -> 35 | BI25: =データ一覧!M387 -> x | BQ25: 漁業 | BV25: 5 | BZ25: =データ一覧!M511 -> 5 | CD25: 0 | CI25: 宿泊業,飲食ｻｰﾋﾞｽ | CN25: 1020 | CR25: =データ一覧!M524 -> 356 | CV25: =データ一覧!M549 -> 664
Z26: 畜 産 | AB26: 飼養農家 | AD26: =データ一覧!$M$255 -> 2 | AF26: =データ一覧!$M$257 -> 0 | AH26: =データ一覧!$M$259 -> 0 | AJ26: =データ一覧!$M$261 -> 2 | AL26: =データ一覧!$M$263 -> x | AN26: 家具 | AO26: パルプ・紙 | AX26: =データ一覧!M338 -> 4 | BB26: =+データ一覧!M363 -> 190 | BI26: =データ一覧!M388 -> 2691381 | BP26: 第２次産業 | BV26: 4651 | BZ26: =データ一覧!M512 -> 3042 | CD26: =データ一覧!M537 -> 1609 | CI26: 生活関連ｻｰﾋﾞｽ業 | CN26: 522 | CR26: =データ一覧!M525 -> 186 | CV26: =データ一覧!M550 -> 336
I27: 人 口 | U27: １世帯当 | W27: 人 口 | Z27: =データ一覧!$A$255 -> 6.3.31 | AB27: （戸） | AN27: パルプ・紙 | AO27: 印刷 | AX27: =データ一覧!M339 -> 1 | BB27: =+データ一覧!M364 -> 9 | BI27: =データ一覧!M389 -> x | BQ27: 鉱業，採石業 | BV27: 2 | BZ27: =データ一覧!M513 -> 1 | CD27: =データ一覧!M538 -> 1 | CI27: 教育,学習支援業 | CN27: 667 | CR27: =データ一覧!M526 -> 236 | CV27: =データ一覧!M551 -> 431
A28: 区 分 | F28: 世帯数 | I28: 総 数 | L28: 男 | O28: 女 | R28: 男／女 | U28: たり人員 | W28: 密 度 | AB28: 頭 羽 | AD28: =データ一覧!$M$256 -> 149 | AF28: =データ一覧!$M$258 -> 0 | AH28: =データ一覧!$M$260 -> 0 | AJ28: =データ一覧!$M$262 -> 201653 | AL28: =データ一覧!$M$264 -> 36000 | AN28: 出版・印刷 | AO28: 化学 | AX28: =データ一覧!M340 -> 2 | BB28: =+データ一覧!M365 -> 365 | BI28: =データ一覧!M390 -> x | BQ28: 建設業 | BV28: 1019 | BZ28: =データ一覧!M514 -> 856 | CD28: =データ一覧!M539 -> 163 | CI28: 医療，福祉 | CN28: 1641 | CR28: =データ一覧!M527 -> 338 | CV28: =データ一覧!M552 -> 1303
F29: 世 帯 | I29: 人 | L29: 人 | O29: 人 | S29: ％ | U29: 人 | W29: 人/㎢ | AN29: 化学 | AO29: 石油・石炭 | AX29: =データ一覧!M341 -> 0 | BB29: =+データ一覧!M366 -> 0 | BI29: =データ一覧!M391 -> 0 | BQ29: 製造業 | BV29: 3630 | BZ29: =データ一覧!M515 -> 2185 | CD29: =データ一覧!M540 -> 1445 | CI29: 複合サービス事業 | CN29: 215 | CR29: =データ一覧!M528 -> 137 | CV29: =データ一覧!M553 -> 78
A30: =データ一覧!$A$22 -> 2.10.1 | F30: =データ一覧!M22 -> 8708 | I30: =+L30+O30 -> 31743 | L30: =データ一覧!M24 -> 14885 | O30: =データ一覧!M25 -> 16858 | S30: =+L30/O30*100 -> 88.29635781 | U30: =データ一覧!M27 -> 3.65 | W30: =データ一覧!M21 -> 0 | Z30: ５ 林 業 | AN30: 石油・石炭 | AO30: プラスチック | AX30: =データ一覧!M342 -> 5 | BB30: =+データ一覧!M367 -> 117 | BI30: =データ一覧!M392 -> 118790 | BP30: 第３次産業 | BV30: 8620 | BZ30: =データ一覧!M516 -> 3831 | CD30: =データ一覧!M541 -> 4789 | CI30: サービス業 | CN30: 736 | CR30: =データ一覧!M529 -> 461 | CV30: =データ一覧!M554 -> 275
A31: =データ一覧!$A$29 -> 7.10.1 | F31: =データ一覧!M29 -> 9327 | I31: =+L31+O31 -> 32432 | L31: =データ一覧!M31 -> 15174 | O31: =データ一覧!M32 -> 17258 | S31: 87.92444084 | U31: =データ一覧!M34 -> 3.48 | W31: =データ一覧!M28 -> 0 | AN31: プラスチック | AO31: ゴム | AX31: =データ一覧!M343 -> 0 | BB31: =+データ一覧!M368 -> 0 | BI31: =データ一覧!M393 -> 0 | BQ31: 電気･ｶﾞｽ･水道業 | BV31: 55 | BZ31: =データ一覧!M517 -> 42 | CD31: =データ一覧!M542 -> 13 | CI31: 公務 | CN31: 486 | CR31: =データ一覧!M530 -> 316 | CV31: =データ一覧!M555 -> 170
A32: =データ一覧!$A$36 -> 12.10.1 | F32: =データ一覧!M36 -> 9562 | I32: =+L32+O32 -> 32178 | L32: =データ一覧!M38 -> 15072 | O32: =データ一覧!M39 -> 17106 | S32: 88.10943529 | U32: =データ一覧!M41 -> 3.37 | W32: =データ一覧!M35 -> 0 | Z32: 森 林 総 面 積 | AH32: =データ一覧!$A$265 -> 5.3.31 | AN32: ゴム | AO32: 皮革 | AX32: =データ一覧!M344 -> 1 | BB32: =+データ一覧!M369 -> 6 | BI32: =データ一覧!M394 -> x | BQ32: 情報通信業 | BV32: 167 | BZ32: =データ一覧!M518 -> 129 | CD32: =データ一覧!M543 -> 38 | CH32: 分類不能の産業 | CN32: 169 | CR32: =データ一覧!M531 -> 92 | CV32: =データ一覧!M556 -> 77
A33: =+データ一覧!$A$43 -> 17.10.1 | F33: =データ一覧!M43 -> 9658 | I33: =+L33+O33 -> 31081 | L33: =データ一覧!M45 -> 14498 | O33: =データ一覧!M46 -> 16583 | S33: 87.42688295 | U33: =データ一覧!M48 -> 3.22 | W33: =データ一覧!M49 -> 265.7 | Z33: 森 林 の 構 成 | AN33: 皮革 | AO33: 窯業・土石 | AX33: =データ一覧!M345 -> 6 | BB33: =+データ一覧!M370 -> 88 | BI33: =データ一覧!M395 -> 446559 | BQ33: 運輸業,郵便業 | BV33: =BZ33+CD33 -> 667 | BZ33: =データ一覧!M519 -> 483 | CD33: =データ一覧!M544 -> 184
A34: =+データ一覧!$A$50 -> 22.10.1 | F34: =+データ一覧!M50 -> 9735 | I34: =+L34+O34 -> 29989 | L34: =+データ一覧!M52 -> 14081 | O34: =+データ一覧!M53 -> 15908 | S34: 88.51521247 | U34: =+データ一覧!M55 -> 3.08 | W34: =+データ一覧!M56 -> 256.3 | AE34: ha | AL34: ha | AN34: 窯業・土石 | AO34: 鉄鋼 | AX34: =データ一覧!M346 -> 1 | BB34: =+データ一覧!M371 -> 5 | BI34: =データ一覧!M396 -> x | BP34: １６ 社 会 福 祉 | CF34: =データ一覧!$A$557 -> 6.4.1
A35: =データ一覧!$A$57 -> 27.10.1 | F35: =データ一覧!M57 -> 9697 | I35: =データ一覧!M58 -> 28729 | L35: =データ一覧!M59 -> 13555 | O35: =データ一覧!M60 -> 15174 | S35: 89.33043364 | U35: =データ一覧!M62 -> 2.962668867 | W35: =データ一覧!M63 -> 245.6 | Z35: 総 数 | AD35: =データ一覧!M265 -> 4425.51 | AG35: 天然林 針葉樹 | AK35: =データ一覧!M268 -> 281.2 | AN35: 鉄鋼 | AO35: 非鉄金属 | AX35: =データ一覧!M347 -> 2 | BB35: =+データ一覧!M372 -> 21 | BI35: =データ一覧!M397 -> x
A36: 令 2.10.1（国調） | F36: =データ一覧!M64 -> 9933 | I36: =データ一覧!M65 -> 27524 | L36: =データ一覧!M66 -> 13067 | O36: =データ一覧!M67 -> 14457 | S36: =+L36/O36*100 -> 90.38528049 | U36: =データ一覧!M69 -> 2.770965469 | W36: =データ一覧!M70 -> 235.2880834 | Z36: 人工林 針葉樹 | AD36: =データ一覧!M266 -> 3171.31 | AG36: 天然林 広葉樹 | AK36: =データ一覧!M269 -> 851.73 | AN36: 非鉄金属 | AO36: 金属 | AX36: =データ一覧!M348 -> 6 | BB36: =+データ一覧!M373 -> 399 | BI36: =データ一覧!M398 -> 1076857 | BQ36: 区分 | BX36: 施設数 | CC36: 収容定員 | CI36: 区分 | CP36: 施設数 | CU36: 収容定員
A37: 年 | C37: 区 | E37: 0歳 | H37: 15歳 | K37: 25歳 | N37: 35歳 | Q37: 45歳 | T37: 55歳 | W37: 65歳 | Z37: 人工林 広葉樹 | AD37: =データ一覧!M267 -> 27.53 | AG37: 竹 林 | AK37: =データ一覧!M270 -> 15.75 | AN37: 金属 | AO37: はん用機械 | AX37: =データ一覧!M349 -> 1 | BB37: =+データ一覧!M374 -> 4 | BI37: =データ一覧!M399 -> x | BP37: 生活保護施設 | BX37: =データ一覧!M557 -> - | CB37: =データ一覧!M570 -> - | CF37: 人 | CH37: 指定障害者支援施設 | CP37: =データ一覧!M563 -> 1 | CT37: =データ一覧!M576 -> 50 | CX37: 人
A38: 齢 | B38: 令 | F38: ～ | I38: ～ | L38: ～ | O38: ～ | R38: ～ | U38: ～ | AN38: 一般機械 | AO38: 生産用機械 | AX38: =データ一覧!M350 -> 10 | BB38: =+データ一覧!M375 -> 675 | BI38: =データ一覧!M400 -> 2006436 | BP38: 地域福祉施設 | BX38: =データ一覧!M558 -> - | CB38: =データ一覧!M571 -> - | CH38: 指定相談支援事業所 | CP38: =データ一覧!M564 -> 3 | CT38: =データ一覧!M577 -> -
A39: 階 | B39: =+LEFT(データ一覧!$A$83,1) -> 6 | C39: 分 | G39: 14歳 | J39: 24歳 | M39: 34歳 | P39: 44歳 | S39: 54歳 | V39: 64歳 | Y39: 以上 | Z39: 林 野 の 構 成 | AG39: 保 有 形 態 別 | AN39: 電気機械 | AO39: 業務用機械 | AX39: =データ一覧!M351 -> 0 | BB39: =+データ一覧!M376 -> 0 | BI39: =データ一覧!M401 -> 0 | BP39: 老人福祉施設 | BX39: =データ一覧!M559 -> 7 | CB39: =データ一覧!M572 -> 658 | CH39: 児童福祉施設 | CP39: =データ一覧!M565 -> 22 | CT39: =データ一覧!M578 -> 1029
A40: 級 | B40: ・ | G40: 人 | J40: 人 | L40: 人 | O40: 人 | R40: 人 | U40: 人 | X40: 人 | AF40: ha | AL40: ha | AO40: 電子・デバイス | AX40: =データ一覧!M352 -> 9 | BB40: =+データ一覧!M377 -> 1382 | BI40: =データ一覧!M402 -> 4537657 | BP40: 介護保険施設 | BX40: =データ一覧!M560 -> 47 | CB40: =データ一覧!M573 -> 988 | CH40: 母子福祉施設 | CP40: =データ一覧!M566 -> - | CT40: =データ一覧!M579 -> -
A41: 別 | B41: =+MID(データ一覧!$A$83,3,2) -> 10 | C41: 総 数 | E41: =+E42+E43 -> 2730 | H41: =+H42+H43 -> 2118 | K41: =+K42+K43 -> 2029 | N41: =+N42+N43 -> 2734 | Q41: =+Q42+Q43 -> 3408 | T41: =+T42+T43 -> 3602 | W41: =+W42+W43 -> 9218 | Z41: 無立木地 伐採跡地 | AD41: =データ一覧!M271 -> 7.61 | AG41: 国 有 | AK41: =データ一覧!M273 -> 44.33 | AO41: 電気機械 | AX41: =データ一覧!M353 -> 4 | BB41: =+データ一覧!M378 -> 80 | BI41: =データ一覧!M403 -> 128104 | BP41: 障害者自立支援法施行前からの身体障害者福祉施設 | BX41: =データ一覧!M561 -> - | CB41: =データ一覧!M574 -> - | CH41: 婦人保護施設 | CP41: =データ一覧!M567 -> - | CT41: =データ一覧!M580 -> -
A42: 人 | B42: ・ | C42: 男 | E42: =データ一覧!M83 -> 1372 | H42: =データ一覧!M84 -> 1086 | K42: =データ一覧!M85 -> 1049 | N42: =データ一覧!M86 -> 1401 | Q42: =データ一覧!M87 -> 1730 | T42: =データ一覧!M88 -> 1724 | W42: =データ一覧!M89 -> 3945 | Z42: 無立木地 未立木地 | AD42: =データ一覧!M272 -> 70.38 | AG42: 公 有 | AK42: =データ一覧!M274 -> 572.01 | AN42: 輸送機械 | AO42: 情報通信機械 | AX42: =データ一覧!M354 -> 0 | BB42: =+データ一覧!M379 -> 0 | BI42: =データ一覧!M404 -> 0 | CH42: その他の社会福祉施設 | CP42: =データ一覧!M568+データ一覧!M569 -> 0 | CT42: 0
A43: 口 | B43: =+RIGHT(データ一覧!$A$83,1) -> 1 | C43: 女 | E43: =データ一覧!M91 -> 1358 | H43: =データ一覧!M92 -> 1032 | K43: =データ一覧!M93 -> 980 | N43: =データ一覧!M94 -> 1333 | Q43: =データ一覧!M95 -> 1678 | T43: =データ一覧!M96 -> 1878 | W43: =データ一覧!M97 -> 5273 | AG43: 私 有 | AK43: =データ一覧!M275 -> 3809.17 | AN43: 精密機械 | AO43: 輸送機械 | AX43: =データ一覧!M355 -> 2 | BB43: =+データ一覧!M380 -> 88 | BI43: =データ一覧!M405 -> x | BP43: 障害福祉サービス事業所 | BX43: =データ一覧!M562 -> 33 | CB43: =データ一覧!M575 -> 463
Z44: 林 産 物 生 産 量 | AJ44: =データ一覧!$A$276 -> 5年中 | AN44: その他 | AO44: その他 | AX44: =データ一覧!M356 -> 1 | BB44: =+データ一覧!M381 -> 7 | BI44: =データ一覧!M406 -> x | BP44: １７ 教 育 | CF44: =データ一覧!$A$583 -> 6.5.1
A45: 人口動態 | H45: 自 然 動 態 | N45: 社 会 動 態 | T45: =データ一覧!$A78 -> 5.1.1～5.12.31 | Z45: 生椎茸 | AD45: =データ一覧!M276 -> 0 | AF45: ㎏ | AG45: 乾椎茸 | AK45: =データ一覧!M277 -> 0 | AM45: ㎏
C46: 区 分 | H46: 出 生 | K46: 死 亡 | N46: 転 入 | Q46: 転 出 | T46: 婚 姻 | W46: 離 婚 | Z46: えのきだけ | AD46: =データ一覧!M279 -> 0 | AF46: ㎏ | AG46: なめこ | AK46: =データ一覧!M278 -> 0 | AM46: ㎏ | AO46: 工 業 用 水 量 | AU46: （従業者30人以上の事業所） | BF46: =データ一覧!M407 -> 14823 | BK46: ㎥／日 | BZ46: 学校数（校） | CG46: 教員数（人） | CO46: 学生・生徒・児童数（人）
A47: =LEFT(データ一覧!$A74,6) -> 5.10.1 | H47: 人 | K47: 人 | N47: 人 | Q47: 人 | U47: 件 | X47: 件 | Z47: ひらたけ | AD47: =+データ一覧!M280 -> 0 | AF47: ㎏ | AG47: まいたけ | AK47: =+データ一覧!M281 -> 0 | AM47: ㎏ | BR47: 区分 | BZ47: 本 校 | CC47: 分 校 | CF47: 本 務 | CJ47: 兼 務 | CN47: 総 数 | CR47: 男 | CV47: 女
A48: ～ | C48: 実 数 | H48: =データ一覧!M74 -> 109 | K48: =データ一覧!M75 -> 438 | N48: =データ一覧!M76 -> 901 | Q48: =データ一覧!M77 -> 865 | T48: =データ一覧!M78 -> 66 | W48: =データ一覧!M79 -> 26 | AN48: １１ 上 ・ 下 水 道 | BQ48: 小学校 | BZ48: =データ一覧!M584 -> 10 | CC48: =データ一覧!M585 -> 0 | CF48: =データ一覧!M586 -> 115 | CJ48: =データ一覧!M587 -> 29 | CN48: =データ一覧!M588 -> 1168 | CR48: =データ一覧!M589 -> 587 | CV48: =データ一覧!M590 -> 581
A49: =RIGHT(データ一覧!$A76,6) -> 6.9.30 | C49: 比率(対1,000人) | H49: =+H48/I36*1000 -> 3.960180206 | K49: =+K48/I36*1000 -> 15.91338468 | N49: - | Q49: - | T49: =+T48/I36*1000 -> 2.397907281 | W49: =+W48/I36*1000 -> 0.944630141 | Z49: ６ 漁 業 | BQ49: 中学校 | BZ49: =データ一覧!M592 -> 2 | CC49: =データ一覧!M593 -> 0 | CF49: =データ一覧!M594 -> 56 | CJ49: =データ一覧!M595 -> 6 | CN49: =データ一覧!M596 -> 608 | CR49: =データ一覧!M597 -> 301 | CV49: =データ一覧!M598 -> 307
AN50: 水 道 供 給 人 口 | AU50: 上 水 道 | AY50: 簡易水道 | BC50: 専用水道 | BG50: 飲料水供給施設 | BK50: 下水道処理人口 | BQ50: 高等学校 | BZ50: =データ一覧!M600 -> 1 | CC50: =データ一覧!M601 -> 0 | CF50: =データ一覧!M602 -> 52 | CJ50: =データ一覧!M603 -> 10 | CN50: =データ一覧!M604 -> 658 | CR50: =データ一覧!M605 -> 381 | CV50: =データ一覧!M606 -> 277
A51: ３ 事 業 所（民 営） | L51: 3.6.1 | Z51: 漁船隻数・トン数 | AD51: =データ一覧!$A$282 -> 5.12.31 | AH51: 動 力 船 | AN51: =データ一覧!$A$408 -> 6.3.31 | AT51: 人 | AV51: =データ一覧!M408 -> 23887 | AY51: =データ一覧!M409 -> 2516 | BD51: =データ一覧!M410 -> 34 | BH51: =データ一覧!M411 -> 0 | BL51: =データ一覧!M412 -> 25522 | BQ51: 大学・短期大学 | BZ51: =データ一覧!M607 -> 0 | CC51: =データ一覧!M608 -> 1 | CF51: =データ一覧!M609 -> 7 | CJ51: =データ一覧!M610 -> 0 | CN51: =データ一覧!M611 -> 90 | CR51: =データ一覧!M612 -> 38 | CV51: =データ一覧!M613 -> 52
Z52: 無動力船隻数 | AD52: 船外機付漁船隻数 | AH52: 隻 数 | AK52: 総 ト ン 数 | BQ52: 高等専門学校 | BZ52: =データ一覧!M614 -> 0 | CC52: =データ一覧!M615 -> 0 | CF52: =データ一覧!M616 -> 0 | CJ52: =データ一覧!M617 -> 0 | CN52: =データ一覧!M618 -> 0 | CR52: =データ一覧!M619 -> 0 | CV52: =データ一覧!M620 -> 0
H53: 総 数 | N53: 民 営 | T53: 国 ･ 地方公共団体 | AC53: 隻 | AG53: 隻 | AJ53: 隻 | AM53: t | AN53: １２ 交 通 ・ 通 信 | BQ53: 特別支援学校 | BZ53: =データ一覧!M622 -> 0 | CC53: =データ一覧!M623 -> 0 | CF53: =+データ一覧!M624 -> 0 | CJ53: =+データ一覧!M625 -> 0 | CN53: =+データ一覧!M626 -> 0 | CR53: =+データ一覧!M627 -> 0 | CV53: =+データ一覧!M628 -> 0
A54: 区 分 | H54: 事業所数 | K54: 従業者数 | N54: 事業所数 | Q54: 従業者数 | T54: 事業所数 | W54: 従業者数 | Z54: =データ一覧!$M$282 -> 0 | AD54: =データ一覧!$M$283 -> 26 | AH54: =データ一覧!M284 -> 9 | AK54: =データ一覧!M285 -> 14 | BQ54: 幼稚園 | BZ54: =データ一覧!M630 -> 0 | CC54: =データ一覧!M631 -> 0 | CF54: =データ一覧!M632 -> 0 | CJ54: =データ一覧!M633 -> 0 | CN54: =データ一覧!M634 -> 0 | CR54: =データ一覧!M635 -> 0 | CV54: =データ一覧!M636 -> 0
K55: 人 | Q55: 人 | W55: 人 | Z55: 男女別就業者数 | AH55: =データ一覧!$A$286 -> 5.11.1 | AN55: 道 路 | AR55: 実 延 長 | AV55: 国 道 | AZ55: 県 道 | BD55: 市町道 | BH55: 鉄 道 営 業 キ ロ 数 | BQ55: 幼保連携認定こども園 | BZ55: =データ一覧!M638 -> 12 | CC55: =データ一覧!M639 -> 0 | CF55: =データ一覧!M640 -> 199 | CJ55: =データ一覧!M641 -> 15 | CN55: =データ一覧!M642 -> 783 | CR55: =データ一覧!M643 -> 392 | CV55: =データ一覧!M644 -> 391
A56: 総数 | H56: =データ一覧!M99 -> … | K56: =データ一覧!M156 -> … | N56: =データ一覧!M100 -> 1242 | Q56: =データ一覧!M157 -> 12932 | T56: =データ一覧!M101 -> … | W56: =データ一覧!M158 -> … | Z56: 総 数 | AF56: 男 | AJ56: 女 | AN56: =データ一覧!$A$413 -> 5.4.1 | AR56: =データ一覧!M413 -> 416.2 | AU56: ㎞ | AV56: =データ一覧!M414 -> 11.2 | AY56: ㎞ | AZ56: =データ一覧!M415 -> 70.9 | BC56: ㎞ | BD56: =データ一覧!M416 -> 334.1 | BG56: km | BH56: =データ一覧!$A$417 -> 6.4.1 | BL56: =データ一覧!M417 -> 4.6 | BO56: ㎞ | BQ56: 各種学校 | BZ56: =データ一覧!M646 -> 0 | CC56: =データ一覧!M647 -> 0 | CF56: =データ一覧!M648 -> 0 | CJ56: =データ一覧!M649 -> 0 | CN56: =データ一覧!M650 -> 0 | CR56: =データ一覧!M651 -> 0 | CV56: =データ一覧!M652 -> 0
A57: 農林漁業 | H57: =データ一覧!M102 -> … | K57: =データ一覧!M159 -> … | N57: =データ一覧!M103 -> 44 | Q57: =データ一覧!M160 -> 559 | T57: =データ一覧!M104 -> … | W57: =データ一覧!M161 -> … | AE57: 人 | AH57: 人 | AM57: 人 | AN57: 自動車 | AW57: 乗用車 | BQ57: 専修学校 | BZ57: =データ一覧!M654 -> 0 | CC57: =データ一覧!M655 -> 0 | CF57: =データ一覧!M656 -> 0 | CJ57: =データ一覧!M657 -> 0 | CN57: =データ一覧!M658 -> 0 | CR57: =データ一覧!M659 -> 0 | CV57: =データ一覧!M660 -> 0
A58: 鉱業 | H58: =データ一覧!M105 -> … | K58: =データ一覧!M162 -> … | N58: =データ一覧!M106 -> 2 | Q58: =データ一覧!M163 -> 9 | T58: =データ一覧!M107 -> … | W58: =データ一覧!M164 -> … | Z58: =データ一覧!M286 -> 3 | AF58: =データ一覧!$M$287 -> 0 | AJ58: =データ一覧!M288 -> 0 | AN58: 台 数 | AR58: 貨 物 | AV58: 普 通 | AZ58: 小 型 | BD58: 乗 合 | BG58: 特 種 | BJ58: 小型二輪 | BM58: 軽自動車 | BP58: １８ 衛 生
A59: 建設業 | H59: =データ一覧!M108 -> … | K59: =データ一覧!M165 -> … | N59: =データ一覧!M109 -> 140 | Q59: =データ一覧!M166 -> 683 | T59: =データ一覧!M110 -> … | W59: =データ一覧!M167 -> … | Z59: 海 面 漁 業 漁 獲 量 （属人） | AH59: =データ一覧!$A$289 -> 30年中 | AN59: =データ一覧!$A$418 -> 6.3.31 | AS59: =データ一覧!M418 -> 1310 | AW59: =データ一覧!M420 -> 5744 | BA59: =データ一覧!M421 -> 5431 | BD59: =データ一覧!M419 -> 108 | BG59: =データ一覧!M422 -> 500 | BJ59: =データ一覧!M423 -> 317 | BM59: =データ一覧!M424 -> 11005
A60: 製造業 | H60: =データ一覧!M111 -> … | K60: =データ一覧!M168 -> … | N60: =データ一覧!M112 -> 160 | Q60: =データ一覧!M169 -> 4537 | T60: =データ一覧!M113 -> … | W60: =データ一覧!M170 -> … | AF60: ｔ | AM60: t | AR60: 郵 便 局 数 | BF60: =+MID(データ一覧!$A$428,3,2) -> 3. | BG60: 令 | BH60: 一般加入 | BL60: ＩＮＳネット | BT60: 医療関係施設 | BZ60: =データ一覧!$A$661 -> 5.10.1 | CG60: および医療関係者数 | CO60: =データ一覧!$A$666 -> 4.12.31
A61: 電気・ｶﾞ ｽ・熱供給・水道業 | H61: =データ一覧!M114 -> … | K61: =データ一覧!M171 -> … | N61: =データ一覧!M115 -> 1 | Q61: =データ一覧!M172 -> - | T61: =データ一覧!M116 -> … | W61: =データ一覧!M173 -> … | Z61: 総 数 | AD61: =データ一覧!M289 -> 3 | AG61: 藻 類 | AK61: =データ一覧!M292 -> 1 | AN61: 通 信 | AR61: 総 数 | AW61: 郵 便 局 | BB61: 簡 易 局 | BF61: ・ | BG61: =+LEFT(データ一覧!$A$428,1) -> 6 | BH61: 電話数 | BL61: 加入数 | BW61: 病 | BZ61: 院 | CH61: 一般診療所 | CT61: 歯科診療所
A62: 情報通信業 | H62: =データ一覧!M117 -> … | K62: =データ一覧!M174 -> … | N62: =データ一覧!M118 -> 3 | Q62: =データ一覧!M175 -> 11 | T62: =データ一覧!M119 -> … | W62: =データ一覧!M176 -> … | Z62: 魚 類 | AD62: =データ一覧!M290 -> 2 | AG62: そ の 他 | AK62: =データ一覧!M293 -> 0 | AN62: =データ一覧!$A$428 -> 6.3.31 | AR62: =データ一覧!M425 -> 9 | AW62: =データ一覧!M426 -> 7 | BB62: =データ一覧!M427 -> 2 | BF62: =+RIGHT(データ一覧!$A$428,2) -> 31 | BG62: ・ | BH62: =データ一覧!M428 -> 1837 | BL62: =データ一覧!M429 -> 335 | BQ62: 医療関係 | CC62: 一般病院 | CO62: 有 | CR62: 床
A63: 運輸業、郵便業 | H63: =データ一覧!M120 -> … | K63: =データ一覧!M177 -> … | N63: =データ一覧!M121 -> 36 | Q63: =データ一覧!M178 -> 529 | T63: =データ一覧!M122 -> … | W63: =データ一覧!M179 -> … | Z63: 貝 類 | AD63: =データ一覧!M291 -> 1 | BQ63: 施設数 | BX63: =データ一覧!M661 -> 3 | CD63: =データ一覧!M662 -> 3 | CJ63: =データ一覧!M663 -> 18 | CP63: =データ一覧!M664 -> 0 | CV63: =データ一覧!M665 -> 7
A64: 卸売業、小売業 | H64: =データ一覧!M123 -> … | K64: =データ一覧!M180 -> … | N64: =データ一覧!M124 -> 273 | Q64: =データ一覧!M181 -> 1648 | T64: =データ一覧!M125 -> … | W64: =データ一覧!M182 -> … | AN64: １３ 税 ・ 財 政 | BW64: 医師 | CB64: 歯科医師 | CG64: 薬剤師 | CL64: 保健師 | CQ64: 助産師 | CV64: 看護師
A65: 金融業、保険業 | H65: =データ一覧!M126 -> … | K65: =データ一覧!M183 -> … | N65: =データ一覧!M127 -> 18 | Q65: =データ一覧!M184 -> 127 | T65: =データ一覧!M128 -> … | W65: =データ一覧!M185 -> … | Z65: ７ 商 業 | AG65: =データ一覧!$A$294 -> 3.6.1(令和2年実績） | BQ65: 医療 | BZ65: 人 | CE65: 人 | CJ65: 人 | CO65: 人 | CT65: 人 | CY65: 人
A66: 不動産業、物品賃貸業 | H66: =データ一覧!M129 -> … | K66: =データ一覧!M186 -> … | N66: =データ一覧!M130 -> 20 | Q66: =データ一覧!M187 -> 77 | T66: =データ一覧!M131 -> … | W66: =データ一覧!M188 -> … | AR66: 歳入 | BA66: (千円） | BF66: 歳出 | BO66: (千円） | BQ66: 関係者 | BV66: =データ一覧!M666 -> 40 | CA66: =データ一覧!M667 -> 15 | CF66: =データ一覧!M668 -> 46 | CK66: =データ一覧!M669 -> 23 | CP66: =データ一覧!M670 -> 2 | CU66: =データ一覧!M671 -> 329
A67: 学術研究、専門・技術ｻｰﾋﾞｽ業 | H67: =データ一覧!M132 -> … | K67: =データ一覧!M189 -> … | N67: =データ一覧!M133 -> 38 | Q67: =データ一覧!M190 -> 139 | T67: =データ一覧!M134 -> … | W67: =データ一覧!M191 -> … | Z67: 産 業 分 類 | AD67: 事 業 所 数 | AG67: 従 業 者 数 | AJ67: 年 間 販 売 額 | AN67: 一人当たり歳入歳出予算決算額 | BY67: 死因別死亡数 | CO67: =データ一覧!$A$672 -> 5年中 | CX67: 単 位：人
A68: 宿泊業、飲食サービス業 | H68: =データ一覧!M135 -> … | K68: =データ一覧!M192 -> … | N68: =データ一覧!M136 -> 180 | Q68: =データ一覧!M193 -> 1574 | T68: =データ一覧!M137 -> … | W68: =データ一覧!M194 -> … | AI68: 人 | AK68: 百万円 | AN68: 区分 | AR68: =データ一覧!$A$438 -> 6年度 | AW68: =データ一覧!$A$452 -> 5年度 | BB68: 区分 | BF68: =+AR68 -> 6年度 | BK68: =データ一覧!$A$452 -> 5年度 | BP68: 死 因 | CB68: 悪 性 | CE68: 高血圧 | CK68: 脳血管 | CT68: 不慮の事故
A69: 生活関連サービス業、娯楽業 | H69: =データ一覧!M138 -> … | K69: =データ一覧!M195 -> … | N69: =データ一覧!M139 -> 110 | Q69: =データ一覧!M196 -> 567 | T69: =データ一覧!M140 -> … | W69: =データ一覧!M197 -> … | Z69: 総 計 | AD69: =データ一覧!M294 -> 247 | AG69: =データ一覧!M303 -> 1412 | AJ69: =データ一覧!M312 -> 32174 | AR69: =データ一覧!M434 -> 605663.4935 | AW69: =データ一覧!M435 -> 678224.0076 | BF69: =データ一覧!M436 -> 605663.4935 | BK69: =データ一覧!M437 -> 635127.4102 | BU69: 全 死 因 | BY69: 結 核 | CB69: 新生物 | CE69: 性疾患 | CH69: 心疾患 | CK69: 疾 患 | CN69: 肺 炎 | CQ69: 老 衰 | CW69: 交通事故
A70: 教育、学習支援業 | H70: =データ一覧!M141 -> … | K70: =データ一覧!M198 -> … | N70: =データ一覧!M142 -> 40 | Q70: =データ一覧!M199 -> 354 | T70: =データ一覧!M143 -> … | W70: =データ一覧!M200 -> … | Z70: 卸売業 | AD70: =データ一覧!M295 -> 36 | AG70: =データ一覧!M304 -> 207 | AJ70: =データ一覧!M313 -> 12644 | AN70: 項目別歳入歳出予算決算額
A71: 医療、福祉 | H71: =データ一覧!M144 -> … | K71: =データ一覧!M201 -> … | N71: =データ一覧!M145 -> 76 | Q71: =データ一覧!M202 -> 1517 | T71: =データ一覧!M146 -> … | W71: =データ一覧!M203 -> … | Z71: 小売業 | AD71: =データ一覧!M296 -> 211 | AG71: =データ一覧!M305 -> 1205 | AJ71: =データ一覧!M314 -> 19530 | AN71: 区分 | AR71: =データ一覧!$A$438 -> 6年度 | AW71: =データ一覧!$A$452 -> 5年度 | BB71: 区分 | BF71: =+AR71 -> 6年度 | BK71: =データ一覧!$A$452 -> 5年度 | BU71: =データ一覧!M672 -> 454 | BY71: － | BZ71: =データ一覧!M673 -> - | CB71: =データ一覧!M674 -> 98 | CF71: =データ一覧!M675 -> 1 | CH71: =データ一覧!M676 -> 83 | CK71: =データ一覧!M677 -> 37 | CN71: =データ一覧!M678 -> 30 | CQ71: =データ一覧!M679 -> 38 | CT71: =データ一覧!M680 -> 12 | CW71: =データ一覧!M681 -> 2
A72: 複合サービス事業 | H72: =データ一覧!M147 -> … | K72: =データ一覧!M204 -> … | N72: =データ一覧!M148 -> 11 | Q72: =データ一覧!M205 -> 121 | T72: =データ一覧!M149 -> … | W72: =データ一覧!M206 -> … | Z72: 各種商品 | AD72: =データ一覧!M297 -> - | AG72: =データ一覧!M306 -> - | AJ72: =データ一覧!M315 -> - | AN72: 総額 | AR72: =SUM(AR73:AV85) -> 15842340 | AW72: =SUM(AW73:BA85) -> 17939025 | BB72: 総額 | BF72: =SUM(BF73:BJ85) -> 15842340 | BK72: =SUM(BK73:BO85) -> 16799120 | BP72: １９ 警 察 ・ 消 防 | CF72: =+データ一覧!$A682 -> 6.4.1
A73: サービス業 | H73: =データ一覧!M150 -> … | K73: =データ一覧!M207 -> … | N73: =データ一覧!M151 -> 90 | Q73: =データ一覧!M208 -> 480 | T73: =データ一覧!M152 -> … | W73: =データ一覧!M209 -> … | Z73: 織物・衣服・身の回り品 | AD73: =データ一覧!M298 -> 24 | AG73: =データ一覧!M307 -> 51 | AJ73: =データ一覧!M316 -> 156 | AN73: 地方税 | AR73: =データ一覧!M439 -> 4204426 | AW73: =データ一覧!M453 -> 4462315 | BB73: 議会費 | BF73: =データ一覧!M467 -> 146451 | BK73: =データ一覧!M481 -> 145476
A74: 公務 | H74: =データ一覧!M153 -> … | K74: =データ一覧!M210 -> … | N74: =データ一覧!M154 -> … | Q74: =データ一覧!M211 -> … | T74: =データ一覧!M155 -> … | W74: =データ一覧!M212 -> … | Z74: 飲食料品 | AD74: =データ一覧!M299 -> 79 | AG74: =データ一覧!M308 -> 529 | AJ74: =データ一覧!M317 -> 6247 | AN74: 地方譲与税 | AR74: =データ一覧!M440 -> 133000 | AW74: =データ一覧!M454 -> 136224 | BB74: 総務費 | BF74: =データ一覧!M468 -> 2427386 | BK74: =データ一覧!M482 -> 3317199 | BZ74: 交番・駐在所 | CI74: 刑法犯認知件数 | CR74: 交通人身事故発生件数
A75: ４ 農 業 | Z75: 機械器具 | AD75: =データ一覧!M300 -> 29 | AG75: =データ一覧!M309 -> 103 | AJ75: =データ一覧!M318 -> 1426 | AN75: 各種交付金 | AR75: =データ一覧!M441 -> 856000 | AW75: =データ一覧!M455 -> 909722 | BB75: 民生費 | BF75: =データ一覧!M469 -> 5042544 | BK75: =データ一覧!M483 -> 4994083 | BQ75: 警察署数 | BZ75: 検問所数 | CJ75: =データ一覧!$A$684 -> 5年中 | CS75: =データ一覧!$A$684 -> 5年中
Z76: その他 | AD76: =データ一覧!M301 -> 68 | AG76: =データ一覧!M310 -> 355 | AJ76: =データ一覧!M319 -> 7120 | AN76: 地方特例交付金 | AR76: =データ一覧!M442 -> 142000 | AW76: =データ一覧!M456 -> 30736 | BB76: 衛生費 | BF76: =データ一覧!M470 -> 902780 | BK76: =データ一覧!M484 -> 879100 | CN76: 件 | CW76: 件
C77: 農業経営体数 | J77: 農産物販売額規模別経営体数 | R77: 経営耕地面積規模別経営体数 | Z77: 無店舗 | AD77: =データ一覧!M302 -> 11 | AG77: =データ一覧!M311 -> 167 | AJ77: =データ一覧!M320 -> 4580 | AN77: 地方交付税 | AR77: =データ一覧!M443 -> 3380000 | AW77: =データ一覧!M457 -> 4035882 | BB77: 労働費 | BF77: =データ一覧!M471 -> 32235 | BK77: =データ一覧!M485 -> 22098 | BR77: =データ一覧!M682 -> 1 | CA77: =データ一覧!M683 -> 6 | CJ77: =データ一覧!M684 -> 117 | CS77: =データ一覧!M685 -> 21
A78: 農 | C78: 区 分 | G78: 経営体数 （経営体） | J78: 区 分 | O78: 経営体数 （経営体） | R78: 区 分 | W78: 経営体数 （経営体） | AN78: 分担金および負担金 | AR78: =データ一覧!M444 -> 84359 | AW78: =データ一覧!M458 -> 216661 | BB78: 農林水産業費 | BF78: =データ一覧!M472 -> 865081 | BK78: =データ一覧!M486 -> 829385 | BP78: 火災発生件数 | BZ78: 林野焼損 | CE78: 損 害 | CJ78: 消 防 自 | CN78: その他の
A79: 業 | B79: 令 | Z79: ８ 住 宅 | AN79: 使用料および手数料 | AR79: =データ一覧!M445 -> 179961 | AW79: =データ一覧!M459 -> 182623 | BB79: 商工費 | BF79: =データ一覧!M473 -> 664912 | BK79: =データ一覧!M487 -> 714436 | BP79: =+データ一覧!$A$686 -> 5年中 | BU79: 焼損棟数 | BZ79: 面 積 | CE79: 見 積 額 | CJ79: 動 車 数 | CN79: ﾎﾟﾝﾌﾟ数 | CR79: 消防吏員 | CV79: 消防団員
A80: 経 | B80: =+LEFT(データ一覧!$A$213) -> 2 | C80: 計 | G80: =データ一覧!M213 -> 508 | J80: 総 数 | O80: =データ一覧!M217 -> 508 | R80: 総 数 | W80: =データ一覧!M233 -> 2560 | AN80: 国庫支出金 | AR80: =データ一覧!M446 -> 2035150 | AW80: =データ一覧!M460 -> 2271044 | BB80: 土木費 | BF80: =データ一覧!M474 -> 1577624 | BK80: =データ一覧!M488 -> 2164250 | BP80: 件 | BV80: 棟 | CC80: ａ | CG80: 千円 | CT80: 人 | CX80: 人
A81: 営 | B81: ・ | C81: 個人経営体 | G81: =データ一覧!M214 -> 457 | J81: 販 売 な し | O81: =データ一覧!M218 -> 14 | R81: 0.5 ha 未満 | W81: =データ一覧!M234 -> 31 | Z81: =+データ一覧!$A$321 -> 4年 | AE81: =データ一覧!$A$324 -> 5年 | AF81: 中の増減 | AJ81: =+データ一覧!$A$324 -> 5年 | AN81: 県支出金 | AR81: =データ一覧!M447 -> 1456235 | AW81: =データ一覧!M461 -> 1335117 | BB81: 消防費 | BF81: =データ一覧!M475 -> 598585 | BK81: =データ一覧!M489 -> 586705 | BQ81: =データ一覧!M686 -> 7 | BV81: =データ一覧!M687 -> 7 | CA81: =データ一覧!M688 -> 1 | CE81: =データ一覧!M689 -> 25846 | CK81: =データ一覧!M690 -> 19 | CO81: =データ一覧!M691 -> 11 | CS81: =データ一覧!M692 -> 46 | CW81: =データ一覧!M693 -> 252
A82: 体 | B82: =+LEFT(データ一覧!$A$213,1) -> 2 | C82: 団体経営体 | G82: =データ一覧!M215 -> 51 | J82: 50万円未満 | O82: =データ一覧!M219 -> 113 | R82: 0.5 ha ～ 1.0 ha | W82: =データ一覧!M235 -> 86 | AD82: 建設した住宅 | AG82: 消失した住宅 | AN82: 財産収入 | AR82: =データ一覧!M448 -> 27340 | AW82: =データ一覧!M462 -> 72912 | BB82: 教育費 | BF82: =データ一覧!M476 -> 1626368 | BK82: =データ一覧!M490 -> 1427279 | BP82: ２０ そ の 他
A83: 数 | B83: ・ | D83: 法人経営 | G83: =データ一覧!M216 -> 46 | J83: 50～300万円 | O83: =データ一覧!M220 -> 253 | R83: 1.0 ha ～ 2.0 ha | W83: =データ一覧!M236 -> 215 | AN83: 繰入金 | AR83: =データ一覧!M449 -> 2040450 | AW83: =データ一覧!M463 -> 994689 | BB83: 災害復旧費 | BF83: =データ一覧!M477 -> 1300 | BK83: =データ一覧!M491 -> 167854
A84: （ | B84: =+RIGHT(データ一覧!$A$213) -> 1 | J84: 300～500万円 | O84: =データ一覧!M221 -> 29 | R84: 2.0 ha ～ 3.0 ha | W84: =データ一覧!M237 -> 105 | AA84: =データ一覧!M321 -> 12944 | AC84: 戸 | AD84: =データ一覧!M322 -> 76 | AF84: 戸 | AG84: =データ一覧!M323 -> 89 | AI84: 戸 | AK84: =データ一覧!M324 -> 12931 | AM84: 戸 | AN84: 地方債 | AR84: =データ一覧!M450 -> 538600 | AW84: =データ一覧!M464 -> 991533 | BB84: 公債費 | BF84: =データ一覧!M478 -> 1925151 | BK84: =データ一覧!M492 -> 1551255 | BU84: あわら温泉、芦湯（足湯）、セントピアあわら、あわら温泉屋台村 湯けむり横丁、藤野厳九郎記念館、越前加賀海岸国定公園、北潟湖畔花菖蒲園、北潟湖畔公園、あわら夢ぐるま公園、刈安山森林自然公園、金津創作の森美術館、あわら市郷土歴史資料館、越前加賀県境の館、桑野遺跡出土品、吉崎御坊跡、本荘春日神社本殿、紙本著色法然上人図像（福円寺）、絹本著色梅山聞本禅師像（龍澤寺）、絹本著色法然上人像（浄光寺）、木造執金剛神像（安楽寺）、石造狛犬（永正十二年銘）、北潟古謡どっしゃどっしゃ、横山古墳群、椚古墳（石室）、千束一里塚、多賀谷左近三経公墓所
A85: 総 | J85: 500～1,000万円 | O85: =データ一覧!M222 -> 30 | R85: 3.0 ha ～ 5.0 ha | W85: =データ一覧!M238 -> 98 | AN85: その他 | AR85: =データ一覧!M451 -> 764819 | AW85: =データ一覧!M465 -> 2299567 | BB85: その他 | BF85: =データ一覧!M479 -> 31923 | BK85: =データ一覧!M493 -> 0 | BP85: 名所・旧跡
A86: 数 | J86: 1,000万円以上 | O86: =データ一覧!M223 -> 69 | R86: 5.0 ha以上 | W86: =データ一覧!M239 -> 2026 | BP86: 文化財等
A87: ） | C87: 15歳以上の常雇い数 | J87: 農業に60日以上従事した世帯員、役員・構成員 （経営主を含む）の平均年齢 | Z87: ９ 議 員 ・ 職 員 | AN87: １４ 文 化 | AV87: ( | AW87: ="令"&データ一覧!$A$498 -> 令6.3.31 | AZ87: ただし図書館・公民館・児童館・ 社会教育学級講座 | BL87: =データ一覧!$A$494 -> 6.4.1
A88: と | BA88: 宗教法人数 | BL88: =データ一覧!$A$502 -> 5.12.31 | BP88: 特産物 | BU88: メロン、スイカ、とみつ金時（サツマイモ）、越のルビー（トマト）、越前柿、芦原梨、剱岳そば、コシヒカリ、ハナエチゼン
A89: 就 | J89: 農業に60日以上従事 | R89: 農業に150日以上従事 | Z89: 市 町 議 会 | AC89: 有権者数 | AE89: =データ一覧!$A$328 -> 6.9.1 | AG89: 市 町 議 会 | AJ89: 職 員 数 | AS89: 図書館 | AY89: 公 民 館 | BJ89: 社会教育学級講座
A90: 業 | C90: 区分 | G90: 人 | J90: 区分 | O90: 歳 | R90: 区 分 | W90: 歳 | Z90: 議 員 定 数 | AC90: 男 | AE90: 女 | AG90: 選 挙 投 票 率 | AJ90: 総 数 | AL90: 一般行政職 | AN90: 公 共 | AR90: 館 数 | AU90: 図書数 | AX90: 本 館 | BA90: 分 館 | BD90: 公 園 | BG90: 児童館 | BJ90: 学級講座数 | BM90: 受講者数 | BU90: 芦原温泉春まつり、蓮如忌、あわら市トリムマラソン、あわら北潟湖畔花菖蒲まつり、金津祭、あわら湯かけまつり、あわらカップカヌーポロ大会、あわら湯けむり映画祭、あわら灯源郷、剱岳かりんて祭
A91: 状 | C91: 総数 | G91: =データ一覧!M230 -> 63 | J91: 総数 | O91: =データ一覧!M224 -> 66 | R91: 総数 | W91: =データ一覧!M227 -> 64.6 | AB91: 人 | AD91: 人 | AF91: 人 | AI91: ％ | AK91: 人 | AM91: 人 | AN91: 施 設 数 | AS91: =データ一覧!M494 -> 2 | AU91: =データ一覧!M495 -> 177235 | AY91: =データ一覧!M496 -> 9 | BA91: =データ一覧!M497 -> 0 | BD91: =データ一覧!M498 -> 24 | BG91: =データ一覧!M499 -> - | BJ91: =データ一覧!M500 -> 832 | BM91: =データ一覧!M501 -> 13441 | BP91: 年中行事
A92: 況 | C92: 男 | G92: =データ一覧!M231 -> 46 | J92: 男 | O92: =データ一覧!M225 -> 65.1 | R92: 男 | W92: =データ一覧!M228 -> 63.7 | AA92: =データ一覧!M325 -> 16 | AC92: =データ一覧!M328 -> 10617 | AE92: =データ一覧!M329 -> 11784 | AG92: =データ一覧!M327 -> 63.98 | AJ92: =データ一覧!M330 -> 305 | AL92: =データ一覧!M331 -> 214 | AN92: 宗 教 | AR92: 仏教系 | AU92: ｷﾘｽﾄ教系 | AX92: 神道諸派 | BA92: 公会堂・市民会館 | BG92: テレビ | BJ92: 衛星放送契約数
C93: 女 | G93: =データ一覧!M232 -> 17 | J93: 女 | O93: =データ一覧!M226 -> 68 | R93: 女 | W93: =データ一覧!M229 -> 66.4 | AG93: =データ一覧!M326 -> 3.6.20 | AN93: 法 人 数 | AR93: =データ一覧!M502 -> 65 | AU93: =データ一覧!M503 -> 2 | AX93: =データ一覧!M504 -> 95 | BA93: =データ一覧!M505 -> 0 | BG93: 等 | BJ93: =データ一覧!M506 -> 6872

Sheet 越前市
A1: =+データ一覧!N2 -> 0
A2: =+データ一覧!N5 -> 0
AC4: 【市章とそのいわれ】 | AD4: 越前（ECHIZEN）市の頭文字である「Ｅ」をモチーフに | AN4: 【位置および地勢】越前市は、福井県のほぼ中央に位置し、市の中央を北陸自動車道と | BS4: 所在地 | CA4: 〒915-8530
AD5: デザイン化しています。 | AO5: 国道８号が縦断し、関西・中央圏などの主要都市や福井市・敦賀市など周辺都市との | CA5: 越前市府中一丁目１３番７号
A6: =+データ一覧!N3 -> えちぜんし | AD6: ３つの太く流れるようなラインは、かつて越前の国府が | AO6: 交通の動脈となっている。
A7: =データ一覧!N6 -> 越前市 | AD7: 置かれて以来連綿と積み重ねられてきた歴史、伝統、 | AO7: また、両路線に交差するように国道417号や県道、主要地方道が横断している。 | BS7: 電話番号 | CA7: （０７７８）２２－３０００
AD8: 文化そして豊かな自然を、また、越前市の将来像である | AO8: 地形は、東部の越前中央山脈、西部の丹生山地、南部の「越前冨士」と呼ばれる
AD9: 「生活快適都市」、「伝統文化都市」、「交流拠点都市」 | AO9: 日野山など、４００～７００メートル級の山々に囲まれ、武生盆地を作っている。
AD10: を表現している。 | AO10: 武生盆地の中央を、県内三大河川のひとつ日野川が南北に貫流し、九頭竜川と名を | BS10: 最寄駅および距離 | CA10: ハピラインふくい線武生駅 下車１００ｍ
AO11: 変えて日本海に注いでいる。旧今立町内に流れる五つの川は、鞍谷川に合流した後、
Z12: 【市が掲げる標語】 幸せを実感できるふるさと（ウェルビーイング越前市） | AO12: 福井市内で日野川に合流している。
BS13: ホームページ | CA13: https://www.city.echizen.lg.jp/
A15: １ 土 地 | Z15: =データ一覧!$A$240 -> 5年 | AA15: 産米収穫量 | AD15: 収 穫 量 | AG15: 作 付 面 積 | AJ15: 10a当たり収量 | BP15: １５ 労 働 | CE15: 2.10.1
AD16: =データ一覧!$N$240 -> 12100 | AF16: t | AG16: =データ一覧!$N$241 -> 2420 | AI16: ha | AJ16: =データ一覧!N242 -> 500 | AM16: kg | AN16: １０ 工 業 | BB16: =データ一覧!$A$332 -> 4.6.1（令和3年実績）
A17: 総 面 積 | K17: 固 定 資 産 概 要 調 書 に よ る 地 目 別 面 積 | AC17: 総 数 | AG17: うち 田 | AK17: うち 畑 | BW17: 産業別就業者数
C18: =データ一覧!$A$7 -> 6.10.1 | Q18: =データ一覧!$A$9 -> 6.1.1 | Z18: 耕 地 面 積 | AD18: ha | AG18: ha | AK18: ha | AO18: 産業分類 | AW18: 事業所数 | BB18: 従業者数 | BH18: 年間製造品出荷額等 | BQ18: 区 分 | BV18: 総 数 | CA18: 男 | CE18: 女 | CI18: 区 分 | CN18: 総 数 | CS18: 男 | CW18: 女
G19: ㎢ | K19: 総 数 | P19: う ち 田 | U19: う ち 畑 | Z19: =データ一覧!A243 -> 5.7.15 | AC19: =データ一覧!$N$243 -> 3590 | AF19: =データ一覧!$N$244 -> 3400 | AJ19: =データ一覧!$N$245 -> 187 | AZ19: 事業所 | BB19: 人 | BE19: 人 | BG19: 万円 | BN19: 万円 | BV19: 人 | CB19: 人 | CF19: 人 | CN19: 人 | CR19: 人 | CV19: 人
D20: =データ一覧!N7 -> 230.7 | O20: ha | T20: ha | Y20: ha | Z20: 農 業 生 産 物 | AD20: 作 付 面 積 | AG20: 収 穫 量 | AJ20: 10a当たり収量 | AO20: 総数 | AX20: =データ一覧!N332 -> 255 | BB20: =+データ一覧!N357 -> 16537 | BI20: =データ一覧!N382 -> 69160832 | BP20: 総 数 | BV20: =BZ20+CD20 -> 42876 | BZ20: =データ一覧!N507 -> 23174 | CD20: =データ一覧!N532 -> 19702
L21: =データ一覧!N9 -> 13161.4 | Q21: =データ一覧!N10 -> 3667.6 | V21: =データ一覧!N11 -> 330.2 | Z21: =データ一覧!$A$246 -> 5年産 | AD21: ha | AG21: t | AJ21: kg | AN21: 食料品 | AO21: 食料品 | AX21: =データ一覧!N333 -> 19 | BB21: =+データ一覧!N358 -> 792 | BI21: =データ一覧!N383 -> 1269723 | CI21: 卸売業,小売業 | CN21: =CR21+CV21 -> 5665 | CR21: =データ一覧!N520 -> 2515 | CV21: =データ一覧!N545 -> 3150
A22: 町 ･ 丁 ･ 大 字 | K22: う ち 宅 地 | P22: う ち 山 林 | U22: う ち 原 野 | Z22: 水 稲 | AD22: =データ一覧!N246 -> 2420 | AG22: =データ一覧!N247 -> 12100 | AJ22: =データ一覧!N248 -> 500 | AN22: 飲料・飼料 | AO22: 飲料・飼料 | AX22: =データ一覧!N334 -> 1 | BB22: =+データ一覧!N359 -> 7 | BI22: =データ一覧!N384 -> x | BP22: 第１次産業 | BV22: =BZ22+CD22 -> 1043 | BZ22: =データ一覧!N508 -> 744 | CD22: =データ一覧!N533 -> 299 | CI22: 金融業,保険業 | CN22: =CR22+CV22 -> 693 | CR22: =データ一覧!N521 -> 277 | CV22: =データ一覧!N546 -> 416
A23: 区 画 数 | H23: =データ一覧!N8 -> 253 | O23: ha | T23: ha | Y23: ha | Z23: 六 条 大 麦 | AD23: =データ一覧!N249 -> 303 | AG23: =データ一覧!N250 -> 840 | AJ23: =データ一覧!N251 -> 277 | AN23: 繊維 | AO23: 繊維 | AX23: =データ一覧!N335 -> 58 | BB23: =+データ一覧!N360 -> 1436 | BI23: =データ一覧!N385 -> 1603126 | BQ23: 農業 | BV23: =BZ23+CD23 -> 997 | BZ23: =データ一覧!N509 -> 702 | CD23: =データ一覧!N534 -> 295 | CI23: 不動産業 | CN23: 344 | CR23: =データ一覧!N522 -> 171 | CV23: =データ一覧!N547 -> 173
A24: =データ一覧!$A$8 -> 5.4.1 | L24: =データ一覧!N12 -> 1971.3 | Q24: =データ一覧!N13 -> 4832.4 | V24: =データ一覧!N14 -> 108.1 | Z24: 大 豆 | AD24: =データ一覧!N252 -> 74 | AG24: =データ一覧!N253 -> 78 | AJ24: =データ一覧!N254 -> 105 | AN24: 衣服 | AO24: 木材 | AX24: =データ一覧!N336 -> 9 | BB24: =+データ一覧!N361 -> 144 | BI24: =データ一覧!N386 -> 323406 | BQ24: 林業 | BV24: 38 | BZ24: =データ一覧!N510 -> 34 | CD24: =データ一覧!N535 -> 4 | CI24: 学術研究 | CN24: 873 | CR24: =データ一覧!N523 -> 499 | CV24: =データ一覧!N548 -> 374
A25: ２ 世 帯 数 と 人 口 | AB25: 区 分 | AD25: 乳 用 牛 | AF25: 肉 用 牛 | AH25: 豚 | AJ25: 採卵鶏 | AL25: ブロイラー | AN25: 木材 | AO25: 家具 | AX25: =データ一覧!N337 -> 3 | BB25: =+データ一覧!N362 -> 119 | BI25: =データ一覧!N387 -> 307304 | BQ25: 漁業 | BV25: 8 | BZ25: =データ一覧!N511 -> 8 | CD25: 0 | CI25: 宿泊業,飲食ｻｰﾋﾞｽ | CN25: 1692 | CR25: =データ一覧!N524 -> 555 | CV25: =データ一覧!N549 -> 1137
Z26: 畜 産 | AB26: 飼養農家 | AD26: =データ一覧!$N$255 -> 0 | AF26: =データ一覧!$N$257 -> 1 | AH26: =データ一覧!$N$259 -> x | AJ26: =データ一覧!$N$261 -> 3 | AL26: =データ一覧!$N$263 -> 0 | AN26: 家具 | AO26: パルプ・紙 | AX26: =データ一覧!N338 -> 31 | BB26: =+データ一覧!N363 -> 533 | BI26: =データ一覧!N388 -> 1328420 | BP26: 第２次産業 | BV26: 18778 | BZ26: =データ一覧!N512 -> 12417 | CD26: =データ一覧!N537 -> 6361 | CI26: 生活関連ｻｰﾋﾞｽ業 | CN26: 1117 | CR26: =データ一覧!N525 -> 399 | CV26: =データ一覧!N550 -> 718
I27: 人 口 | U27: １世帯当 | W27: 人 口 | Z27: =データ一覧!$A$255 -> 6.3.31 | AB27: （戸） | AN27: パルプ・紙 | AO27: 印刷 | AX27: =データ一覧!N339 -> 5 | BB27: =+データ一覧!N364 -> 75 | BI27: =データ一覧!N389 -> 90358 | BQ27: 鉱業，採石業 | BV27: 17 | BZ27: =データ一覧!N513 -> 13 | CD27: =データ一覧!N538 -> 4 | CI27: 教育,学習支援業 | CN27: 1773 | CR27: =データ一覧!N526 -> 622 | CV27: =データ一覧!N551 -> 1151
A28: 区 分 | F28: 世帯数 | I28: 総 数 | L28: 男 | O28: 女 | R28: 男／女 | U28: たり人員 | W28: 密 度 | AB28: 頭 羽 | AD28: =データ一覧!$N$256 -> 0 | AF28: =データ一覧!$N$258 -> 20 | AH28: =データ一覧!$N$260 -> 2261 | AJ28: =データ一覧!$N$262 -> 39070 | AL28: =データ一覧!$N$264 -> 0 | AN28: 出版・印刷 | AO28: 化学 | AX28: =データ一覧!N340 -> 7 | BB28: =+データ一覧!N365 -> 462 | BI28: =データ一覧!N390 -> 2742317 | BQ28: 建設業 | BV28: 3194 | BZ28: =データ一覧!N514 -> 2634 | CD28: =データ一覧!N539 -> 560 | CI28: 医療，福祉 | CN28: 4585 | CR28: =データ一覧!N527 -> 834 | CV28: =データ一覧!N552 -> 3751
F29: 世 帯 | I29: 人 | L29: 人 | O29: 人 | S29: ％ | U29: 人 | W29: 人/㎢ | AN29: 化学 | AO29: 石油・石炭 | AX29: =データ一覧!N341 -> 1 | BB29: =+データ一覧!N366 -> 7 | BI29: =データ一覧!N391 -> x | BQ29: 製造業 | BV29: 15567 | BZ29: =データ一覧!N515 -> 9770 | CD29: =データ一覧!N540 -> 5797 | CI29: 複合サービス事業 | CN29: 421 | CR29: =データ一覧!N528 -> 231 | CV29: =データ一覧!N553 -> 190
A30: =データ一覧!$A$22 -> 2.10.1 | F30: =データ一覧!N22 -> 22678 | I30: =+L30+O30 -> 84897 | L30: =データ一覧!N24 -> 41272 | O30: =データ一覧!N25 -> 43625 | S30: =+L30/O30*100 -> 94.60630372 | U30: =データ一覧!N27 -> 3.74 | W30: =データ一覧!N21 -> 0 | Z30: ５ 林 業 | AN30: 石油・石炭 | AO30: プラスチック | AX30: =データ一覧!N342 -> 24 | BB30: =+データ一覧!N367 -> 1175 | BI30: =データ一覧!N392 -> 2939466 | BP30: 第３次産業 | BV30: 21976 | BZ30: =データ一覧!N516 -> 9433 | CD30: =データ一覧!N541 -> 12543 | CI30: サービス業 | CN30: 1783 | CR30: =データ一覧!N529 -> 1125 | CV30: =データ一覧!N554 -> 658
A31: =データ一覧!$A$29 -> 7.10.1 | F31: =データ一覧!N29 -> 24233 | I31: =+L31+O31 -> 85533 | L31: =データ一覧!N31 -> 41641 | O31: =データ一覧!N32 -> 43892 | S31: 94.87150278 | U31: =データ一覧!N34 -> 3.53 | W31: =データ一覧!N28 -> 0 | AN31: プラスチック | AO31: ゴム | AX31: =データ一覧!N343 -> 1 | BB31: =+データ一覧!N368 -> 100 | BI31: =データ一覧!N393 -> x | BQ31: 電気･ｶﾞｽ･水道業 | BV31: 159 | BZ31: =データ一覧!N517 -> 123 | CD31: =データ一覧!N542 -> 36 | CI31: 公務 | CN31: 1086 | CR31: =データ一覧!N530 -> 678 | CV31: =データ一覧!N555 -> 408
A32: =データ一覧!$A$36 -> 12.10.1 | F32: =データ一覧!N36 -> 26461 | I32: =+L32+O32 -> 87699 | L32: =データ一覧!N38 -> 42858 | O32: =データ一覧!N39 -> 44841 | S32: 95.5777079 | U32: =データ一覧!N41 -> 3.31 | W32: =データ一覧!N35 -> 0 | Z32: 森 林 総 面 積 | AH32: =データ一覧!$A$265 -> 5.3.31 | AN32: ゴム | AO32: 皮革 | AX32: =データ一覧!N344 -> 0 | BB32: =+データ一覧!N369 -> 0 | BI32: =データ一覧!N394 -> 0 | BQ32: 情報通信業 | BV32: 408 | BZ32: =データ一覧!N518 -> 286 | CD32: =データ一覧!N543 -> 122 | CH32: 分類不能の産業 | CN32: 1079 | CR32: =データ一覧!N531 -> 580 | CV32: =データ一覧!N556 -> 499
A33: =+データ一覧!$A$43 -> 17.10.1 | F33: =データ一覧!N43 -> 27916 | I33: =+L33+O33 -> 87742 | L33: =データ一覧!N45 -> 42706 | O33: =データ一覧!N46 -> 45036 | S33: 94.82636113 | U33: =データ一覧!N48 -> 3.14 | W33: =データ一覧!N49 -> 380.2 | Z33: 森 林 の 構 成 | AN33: 皮革 | AO33: 窯業・土石 | AX33: =データ一覧!N345 -> 15 | BB33: =+データ一覧!N370 -> 510 | BI33: =データ一覧!N395 -> 1702936 | BQ33: 運輸業,郵便業 | BV33: =BZ33+CD33 -> 1377 | BZ33: =データ一覧!N519 -> 1118 | CD33: =データ一覧!N544 -> 259
A34: =+データ一覧!$A$50 -> 22.10.1 | F34: =+データ一覧!N50 -> 27601 | I34: =+L34+O34 -> 85614 | L34: =+データ一覧!N52 -> 41762 | O34: =+データ一覧!N53 -> 43852 | S34: 95.2339688 | U34: =+データ一覧!N55 -> 3.1 | W34: =+データ一覧!N56 -> 371 | AE34: ha | AL34: ha | AN34: 窯業・土石 | AO34: 鉄鋼 | AX34: =データ一覧!N346 -> 7 | BB34: =+データ一覧!N371 -> 127 | BI34: =データ一覧!N396 -> 1163690 | BP34: １６ 社 会 福 祉 | CF34: =データ一覧!$A$557 -> 6.4.1
A35: =データ一覧!$A$57 -> 27.10.1 | F35: =データ一覧!N57 -> 27889 | I35: =データ一覧!N58 -> 81524 | L35: =データ一覧!N59 -> 39859 | O35: =データ一覧!N60 -> 41665 | S35: 95.66542662 | U35: =データ一覧!N62 -> 2.923159669 | W35: =データ一覧!N63 -> 353.4 | Z35: 総 数 | AD35: =データ一覧!N265 -> 14186.15 | AG35: 天然林 針葉樹 | AK35: =データ一覧!N268 -> 628.61 | AN35: 鉄鋼 | AO35: 非鉄金属 | AX35: =データ一覧!N347 -> 5 | BB35: =+データ一覧!N372 -> 348 | BI35: =データ一覧!N397 -> 2973105
A36: 令 2.10.1（国調） | F36: =データ一覧!N64 -> 29634 | I36: =データ一覧!N65 -> 80611 | L36: =データ一覧!N66 -> 39657 | O36: =データ一覧!N67 -> 40954 | S36: =+L36/O36*100 -> 96.83303218 | U36: =データ一覧!N69 -> 2.720220018 | W36: =データ一覧!N70 -> 349.4191591 | Z36: 人工林 針葉樹 | AD36: =データ一覧!N266 -> 7775.37 | AG36: 天然林 広葉樹 | AK36: =データ一覧!N269 -> 5466.1 | AN36: 非鉄金属 | AO36: 金属 | AX36: =データ一覧!N348 -> 18 | BB36: =+データ一覧!N373 -> 292 | BI36: =データ一覧!N398 -> 605741 | BQ36: 区分 | BX36: 施設数 | CC36: 収容定員 | CI36: 区分 | CP36: 施設数 | CU36: 収容定員
A37: 年 | C37: 区 | E37: 0歳 | H37: 15歳 | K37: 25歳 | N37: 35歳 | Q37: 45歳 | T37: 55歳 | W37: 65歳 | Z37: 人工林 広葉樹 | AD37: =データ一覧!N267 -> 59.06 | AG37: 竹 林 | AK37: =データ一覧!N270 -> 135.77 | AN37: 金属 | AO37: はん用機械 | AX37: =データ一覧!N349 -> 3 | BB37: =+データ一覧!N374 -> 21 | BI37: =データ一覧!N399 -> 21087 | BP37: 生活保護施設 | BX37: =データ一覧!N557 -> - | CB37: =データ一覧!N570 -> - | CF37: 人 | CH37: 指定障害者支援施設 | CP37: =データ一覧!N563 -> 2 | CT37: =データ一覧!N576 -> 138 | CX37: 人
A38: 齢 | B38: 令 | F38: ～ | I38: ～ | L38: ～ | O38: ～ | R38: ～ | U38: ～ | AN38: 一般機械 | AO38: 生産用機械 | AX38: =データ一覧!N350 -> 12 | BB38: =+データ一覧!N375 -> 275 | BI38: =データ一覧!N400 -> 1195088 | BP38: 地域福祉施設 | BX38: =データ一覧!N558 -> - | CB38: =データ一覧!N571 -> - | CH38: 指定相談支援事業所 | CP38: =データ一覧!N564 -> 2 | CT38: =データ一覧!N577 -> -
A39: 階 | B39: =+LEFT(データ一覧!$A$83,1) -> 6 | C39: 分 | G39: 14歳 | J39: 24歳 | M39: 34歳 | P39: 44歳 | S39: 54歳 | V39: 64歳 | Y39: 以上 | Z39: 林 野 の 構 成 | AG39: 保 有 形 態 別 | AN39: 電気機械 | AO39: 業務用機械 | AX39: =データ一覧!N351 -> 2 | BB39: =+データ一覧!N376 -> 351 | BI39: =データ一覧!N401 -> x | BP39: 老人福祉施設 | BX39: =データ一覧!N559 -> 22 | CB39: =データ一覧!N572 -> 580 | CH39: 児童福祉施設 | CP39: =データ一覧!N565 -> 63 | CT39: =データ一覧!N578 -> 3402
A40: 級 | B40: ・ | G40: 人 | J40: 人 | L40: 人 | O40: 人 | R40: 人 | U40: 人 | X40: 人 | AF40: ha | AL40: ha | AO40: 電子・デバイス | AX40: =データ一覧!N352 -> 6 | BB40: =+データ一覧!N377 -> 5097 | BI40: =データ一覧!N402 -> 19153261 | BP40: 介護保険施設 | BX40: =データ一覧!N560 -> 115 | CB40: =データ一覧!N573 -> 2361 | CH40: 母子福祉施設 | CP40: =データ一覧!N566 -> - | CT40: =データ一覧!N579 -> -
A41: 別 | B41: =+MID(データ一覧!$A$83,3,2) -> 10 | C41: 総 数 | E41: =+E42+E43 -> 9405 | H41: =+H42+H43 -> 7341 | K41: =+K42+K43 -> 7715 | N41: =+N42+N43 -> 8762 | Q41: =+Q42+Q43 -> 11218 | T41: =+T42+T43 -> 9633 | W41: =+W42+W43 -> 23751 | Z41: 無立木地 伐採跡地 | AD41: =データ一覧!N271 -> 0 | AG41: 国 有 | AK41: =データ一覧!N273 -> 54.83 | AO41: 電気機械 | AX41: =データ一覧!N353 -> 11 | BB41: =+データ一覧!N378 -> 1089 | BI41: =データ一覧!N403 -> 14489841 | BP41: 障害者自立支援法施行前からの身体障害者福祉施設 | BX41: =データ一覧!N561 -> - | CB41: =データ一覧!N574 -> - | CH41: 婦人保護施設 | CP41: =データ一覧!N567 -> - | CT41: =データ一覧!N580 -> -
A42: 人 | B42: ・ | C42: 男 | E42: =データ一覧!N83 -> 4876 | H42: =データ一覧!N84 -> 3821 | K42: =データ一覧!N85 -> 4035 | N42: =データ一覧!N86 -> 4554 | Q42: =データ一覧!N87 -> 5824 | T42: =データ一覧!N88 -> 4805 | W42: =データ一覧!N89 -> 10444 | Z42: 無立木地 未立木地 | AD42: =データ一覧!N272 -> 121.24 | AG42: 公 有 | AK42: =データ一覧!N274 -> 996.81 | AN42: 輸送機械 | AO42: 情報通信機械 | AX42: =データ一覧!N354 -> 1 | BB42: =+データ一覧!N379 -> 190 | BI42: =データ一覧!N404 -> x | CH42: その他の社会福祉施設 | CP42: =データ一覧!N568+データ一覧!N569 -> 1 | CT42: 0
